Workbook

Sheet Índice (hidden)
A1: Capítulo | B1: Módulo | C1: Pregunta | D1: Unidad de Análisis | E1: Pregunta
A2: 1. IDENTIFICACIÓN DE LA UNIDAD DE VIVIENDA Y EL HOGAR | B2: 1.1. Identificación | C2: P_005_a | D2: Vivienda | E2: Zona
C3: P_011 | D3: Vivienda | E3: Estrato
C4: P_012 | D4: Vivienda | E4: ¿Cuántos grupos de personas (hogares) incluyendo éste, conviven en la vivienda?
B5: 1.2. Conformación del hogar | C5: P_014 | D5: Vivienda | E5: Incluyéndose Usted, ¿Cuántas personas componen este hogar?
A6: 2. DATOS DE LAS PERSONAS DEL HOGAR | B6: 2.1. Identificación de las Personas del Hogar | C6: P_018 | D6: Personas | E6: Sexo de cada miembro del hogar
C7: P_019 | D7: Personas | E7: Usted se identifica como:
C8: P_020 | D8: Personas | E8: Parentesco con el jefe de este hogar
C9: P_021 | D9: Personas | E9: Edad_ Años Cumplidos
C10: P_022 | D10: Personas | E10: Estado civil actual(personas de 10 años o más)
C11: P_023 | D11: Personas | E11: De acuerdo con su cultura, pueblo o rasgos físicos es o se reconoce como:
B12: 2.2. Movilidad | C12: P_024 | D12: Personas | E12: ¿Cuál es su país de nacimiento?
C13: P_025 | D13: Personas | E13: Departamento
C14: P_026 | D14: Personas | E14: Municipio
C15: P_028 | D15: Personas | E15: ¿Ha vivído toda la vida en este municipio?
C16: P_029 | D16: Personas | E16: ¿Cuánto tiempo hace que vive en este municipio? (en años)
C17: P_030 | D17: Personas | E17: ¿Por qué causa, PRINCIPALMENTE, se vino a vivir a ESTE MUNICIPIO?
C18: P_031 | D18: Personas | E18: ¿En qué país, municipio y departamento vivía inmediatamente antes de trasladarse a vivir en ESTE MUNICIPIO? País
C19: P_032 | D19: Personas | E19: ¿En qué país, municipio y departamento vivía inmediatamente antes de trasladarse a vivir en ESTE MUNICIPIO? Departamento
C20: P_033 | D20: Personas | E20: ¿En qué país, municipio y departamento vivía inmediatamente antes de trasladarse a vivir en ESTE MUNICIPIO? Municipio
B21: 2.3. Participación | C21: P_034 | D21: Personas | E21: ¿Usted votó en alguna de las últimas elecciones (Presidente, Senado, Cámara, Gobernador y Alcalde)?
C22: P_035 | D22: Personas | E22: ¿Usted participa en alguna de las siguientes organizaciones o instancias de participación?
C23: P_036 | D23: Personas | E23: ¿Usted participa en alguna de las siguientes organizaciones o instancias de participación? 2da Respuesta
C24: P_037 | D24: Personas | E24: ¿Ha sido víctima de amenazas por hacer parte de estas organizaciones y participar activamente?
C25: P_034_a | D25: Personas | E25: ¿Se postuló electoralmente en las últimas elecciones?
B26: 2.4. Primera Infancia | C26: P_038 | D26: Personas | E26: ¿Los niños menores de 5 años, dónde o con quién permanecen la mayor parte del tiempo entre semana?
B27: 2.5. Educación | C27: P_039 | D27: Personas | E27: ¿Sabe leer y escribir más de un párrafo?
C28: P_040 | D28: Personas | E28: ¿Cuál es su lengua materna?
C29: P_041 | D29: Personas | E29: ¿Además de su Lengua Materna, indique cuál es el principal idioma en que puede comunicarse?
C30: P_042 | D30: Personas | E30: ¿Además del anterior, indique en cuál otro idioma en que puede comunicarse?
C31: P_043 | D31: Personas | E31: ¿Actualmente estudia? ( Asiste a: Preescolar, escuela, colegio, técnico, tecnológico o universidad de forma presencial o virtual)
C32: P_044 | D32: Personas | E32: ¿Estudió durante este año en alguna institución educativa de forma presencial o virtual?
C33: P_045 | D33: Personas | E33: ¿Estudió el año inmediatamente anterior?
C34: P_046 | D34: Personas | E34: ¿Cuál fue la principal causa por la que no pudo continuar sus estudios?
C35: P_047 | D35: Personas | E35: ¿Qué medio de transporte utiliza predominantemente para dirigirse a su centro educativo?
C36: P_048 | D36: Personas | E36: ¿Cuánto tiempo tarda en llegar a su centro educativo?
C37: P_049 | D37: Personas | E37: Último NIVEL de estudio aprobado (título)
C38: P_050 | D38: Personas | E38: Nivel de estudio y grado que estaba estudiando cuando se retiró, que está estudiando actualmente o que estudió? - NIVEL
C39: P_051 | D39: Personas | E39: Nivel de estudio y grado que estaba estudiando cuando se retiró, que está estudiando actualmente o que estudió? - GRADO
C40: P_052 | D40: Personas | E40: Área del conocimiento en la que obtuvo el título. Pregunte solo si respondió en P45 una opción mayor o igual a 5.
C41: P_053 | D41: Personas | E41: El carácter del ESTABLECIMIENTO EDUCATIVO (escuela, colegio, universidad u otra institución) en donde estudia o estudió el último curso o grado, es:
B42: 2.6. Condiciones de Salud y Accidentalidad | C42: P_054 | D42: Personas | E42: ¿Tiene dificultades para realizar ciertas tareas sin ningún tipo de ayuda? (Principal)
C43: P_055 | D43: Personas | E43: Esta limitación fue ocasionada por: (Principal)
C44: P_056 | D44: Personas | E44: Tiene dificultades para realizar ciertas tareas sin ningún tipo de ayudas (Secundaria)
C45: P_057 | D45: Personas | E45: Esta limitación fue ocasionada por: (Secundaria)
C46: P_058 | D46: Personas | E46: En los últimos 12 meses, ¿Usted o algún miembro de su familia ha sufrido algún tipo de accidente?
C47: P_059 | D47: Personas | E47: ¿Dónde ocurrió? Municipio
C48: P_060 | D48: Personas | E48: ¿Generó lesiones?
C49: P_061 | D49: Personas | E49: ¿Generó una discapacidad permanente?
C50: P_062 | D50: Personas | E50: Ese accidente ha sido ocasionado por:
C51: P_063 | D51: Personas | E51: ¿La acción principal que generó el accidente fue?
B52: 2.7. Fecundidad | C52: P_064 | D52: Personas | E52: ¿Cuántos hijos nacidos vivos ha tenido, en toda su vida?
C53: P_065 | D53: Personas | E53: ¿a que edad tuvo su primer hijo?
C54: P_066 | D54: Personas | E54: ¿De los hijos nacidos vivos, cuántos fueron Mujeres?
C55: P_067 | D55: Personas | E55: De los hijos(as) que nacieron vivos ¿cuántos están VIVOS ACTUALMENTE?
C56: P_068 | D56: Personas | E56: Y de ellos, ¿cuántas son Mujeres?
C57: P_069 | D57: Personas | E57: ¿A qué edad tuvo su último hijo nacido vivo?
C58: P_070 | D58: Personas | E58: ¿Cuántos hijos nacieron vivos en los últimos 12 meses?
C59: P_071 | D59: Personas | E59: De los hijos(as) que nacieron vivos, en los ÚLTIMOS 12 MESES, ¿Cuántos han MUERTO?
C60: P_072 | D60: Personas | E60: ¿Cuántos nacieron muertos, en los ÚLTIMOS 12 MESES?
C61: P_073 | D61: Personas | E61: ¿De los hijos(as) que nacieron vivos en el último año ¿Cuántos están REGISTRADOS?
C62: P_073_a | D62: Personas | E62: ¿En el último año ha consultado una institución de salud para el uso de métodos anticonceptivos y de planificación familiar?
C63: P_073_b | D63: Personas | E63: ¿Considera que tiene suficiente información acerca de los métodos de planificación familiar? Si no
C64: P_073_c | D64: Personas | E64: ¿Tiene actividad sexual reciente y usa métodos anticonceptivos modernos?
C65: P_073_d | D65: Personas | E65: ¿El método de planificación fue concertado?
B66: 2.8. Seguridad Social y Salud | C66: P_074 | D66: Personas | E66: ¿Qué tipo de afiliación al sistema de seguridad social en salud tienen los miembros de su familia?
C67: P_075 | D67: Personas | E67: ¿Tiene Afiliación al sistema de pensiones, como cotizante?
C68: P_076 | D68: Personas | E68: ¿Tiene Afiliación a una Administradora de Riesgos Laborales (ARL)?
B69: 2.9. Ingresos y Empleo: Fuerza de Trabajo | C69: P_077 | D69: Personas | E69: ¿En qué actividad ocupó la mayor parte del tiempo la semana pasada? [la predominante]
C70: P_078 | D70: Personas | E70: Adicional a la actividad principal a la que se dedicó la semana pasada ¿Cuáles de las siguientes actividades principales realizó?
C71: P_079 | D71: Personas | E71: Cuántas horas a la semana
C72: P_080 | D72: Personas | E72: Además de lo anterior, ¿realizó la semana pasada alguna actividad paga por una hora o más?
C73: P_081 | D73: Personas | E73: Aunque no trabajó la semana pasada por una hora o más en forma remunerada, ¿tenía durante esa semana algún trabajo o negocio por el que recibió ingresos?
C74: P_082 | D74: Personas | E74: ¿Trabajó la semana pasada en un negocio familiar por una hora o más, sin que le pagaran?
C75: P_083 | D75: Personas | E75: En las últimas 4 semanas ¿hizo alguna diligencia para conseguir trabajo o instalar un negocio?
C76: P_084 | D76: Personas | E76: ¿Desea conseguir un trabajo remunerado o instalar un negocio?
C77: P_085 | D77: Personas | E77: Aunque desea trabajar, ¿por qué motivo principal no hizo diligencias en las últimas 4 semanas?
B78: 2.10. Empleo : Ocupados - Empleo Principal | C78: P_086 | D78: Personas | E78: Durante los últimos 12 meses [últimas 52 semanas] ¿trabajó por lo menos 2 semanas consecutivas?
C79: P_087 | D79: Personas | E79: Después de su último empleo, ¿ha hecho alguna diligencia para conseguir trabajo o instalar un negocio?
C80: P_088 | D80: Personas | E80: Durante los últimos 12 meses [últimas 52 semanas], ¿ha hecho alguna diligencia para conseguir trabajo o instalar un negocio?
C81: P_089 | D81: Personas | E81: ¿Cuántos meses hace que dejó de buscar trabajo por última vez? Sólo acepte de 1 a 12 meses y continúe
C82: P_090 | D82: Personas | E82: Si le hubiera resultado algún trabajo ¿estaba disponible la semana pasada para empezar a trabajar?
C83: P_091 | D83: Personas | E83: ¿Cuántos meses (número) lleva trabajando en esa empresa o de forma independiente?
C84: P_092 | D84: Personas | E84: ¿En dónde está ubicada la empresa donde realiza su empleo principal? Departamento
C85: P_093 | D85: Personas | E85: ¿En dónde está ubicada la empresa donde realiza su empleo principal? Municipio
C86: P_094 | D86: Personas | E86: ¿Cuál es el medio de transporte utilizado predominante para dirigirse al sitio de su empleo principal?
C87: P_095 | D87: Personas | E87: ¿Cuánto tiempo tarda en llegar al sitio de trabajo?
C88: P_096 | D88: Personas | E88: ¿A qué actividad específica se dedica principalmente la empresa o negocio en la que realiza su trabajo?
C89: P_097 | D89: Personas | E89: ¿A qué actividad específica se dedica principalmente la empresa o negocio en la que realiza su trabajo? - Código CIIU a 3 dígitos Revisión 4
C90: P_098 | D90: Personas | E90: ¿Cuántas personas en total tiene la empresa, negocio, industria, oficina, firma, finca o sitio donde trabaja?
C91: P_099 | D91: Personas | E91: En este trabajo es:
C92: P_100 | D92: Personas | E92: ¿Cuántas horas a la semana trabaja normalmente en ese trabajo? (trabajo principal)
B93: 2.11. Empleo Secundario y Empleo Inadecuado o Con Insuficiencia de Horas (Continuación) | C93: P_101 | D93: Personas | E93: Además de la ocupación principal, ¿tenía la semana pasada otro trabajo o negocio?. [Incluya aquellos trabajos de los que estuvo ausente]
C94: P_102 | D94: Personas | E94: Además de las horas que trabaja actualmente ¿quiere: dedicar más horas al trabajo actual, buscar un trabajo adicional o cambiar su trabajo actual por otro con más horas?
C95: P_103 | D95: Personas | E95: Si la semana pasada le hubiera resultado un trabajo adicional o la posibilidad de trabajar más horas, ¿estaba disponible para hacerlo?
C96: P_104 | D96: Personas | E96: ¿Desea cambiar el trabajo que tiene actualmente?
C97: P_105 | D97: Personas | E97: ¿Por qué motivo principalmente desea cambiar de trabajo o empleo?.
C98: P_106 | D98: Personas | E98: ¿Por qué motivos principalmente desea cambiar de trabajo o empleo?. Opción 2
C99: P_107 | D99: Personas | E99: Durante las últimas 4 semanas, ¿hizo diligencias para cambiar de trabajo o trabajar más horas?
C100: P_108 | D100: Personas | E100: ¿Cuánto tiempo lleva haciendo diligencias para cambiar de trabajo? (en meses)
C101: P_109 | D101: Personas | E101: Si le resultara un nuevo trabajo o empleo a […..], ¿podría empezar a desempeñarlo antes de un mes?
B102: 2.12. Ingresos y Empleo : Desocupados | C102: P_110 | D102: Personas | E102: ¿Durante cuánto tiempo ha estado o estuvo buscando trabajo? (semanas)
C103: P_111 | D103: Personas | E103: Si le hubiera resultado un trabajo la semana pasada ¿cuántas horas -semanales-estaba disponible para trabajar?
C104: P_112 | D104: Personas | E104: ¿En qué ocupación, oficio o labor ha buscado trabajo?
C105: P_113 | D105: Personas | E105: Ha buscado trabajo como:
C106: P_114 | D106: Personas | E106: ¿Ha buscado trabajo por primera vez o había trabajado antes por lo menos durante dos semanas consecutivas?
C107: P_115 | D107: Personas | E107: En este último trabajo […..] era
B108: 2.13. Ingresos y Empleo : Inactivos | C108: P_116 | D108: Personas | E108: ¿ Ha trabajado alguna vez por lo menos durante dos semanas consecutivas?
C109: P_117 | D109: Personas | E109: ¿Cuánto hace que trabajó por última vez?
C110: P_118 | D110: Personas | E110: Después de su último trabajo ¿ha hecho alguna diligencia para conseguir otro trabajo o instalar un negocio?
C111: P_119 | D111: Personas | E111: ¿[…..] Ha buscado trabajo alguna vez?
C112: P_120 | D112: Personas | E112: ¿Cuánto hace que buscó trabajó por última vez?
C113: P_130 | D113: Personas | E113: ¿Está usted reportado en alguna de las siguientes centrales de riesgo?
B114: 2.14. Recreación | C114: P_131 | D114: Personas | E114: ¿Las personas de este hogar están inscritas en PROGRAMAS LÚDICOS?
C115: P_132 | D115: Personas | E115: ¿Las personas de este hogar están inscritas en PROGRAMAS RECREATIVOS?
C116: P_133 | D116: Personas | E116: ¿Las personas de este hogar están inscritas en PROGRAMAS DEPORTIVOS?
C117: P_134 | D117: Personas | E117: ¿Con qué frecuencia practica Actividades LÚDICAS?
C118: P_135 | D118: Personas | E118: ¿Con qué frecuencia practica Actividades RECREATIVAS?
C119: P_136 | D119: Personas | E119: ¿Con qué frecuencia practica Actividades DEPORTIVAS?
C120: P_137 | D120: Personas | E120: ¿Con qué frecuencia participa o asiste a lugares o eventos donde se promueve la cultura?
C121: P_138 | D121: Personas | E121: ¿A Cuál de los siguientes lugares o eventos donde se promueve la cultura asiste principalmente?
C122: P_139 | D122: Personas | E122: ¿Con qué frecuencia participa o asiste a los siguientes sitios donde se promueve el arte?
C123: P_140 | D123: Personas | E123: ¿A Cuál de los siguientes lugares o eventos donde se promueve el arte asiste principalmente?
C124: P_141 | D124: Personas | E124: ¿Con qué frecuencia participa o asiste a los siguientes sitios donde se promueve la recreación?
C125: P_142 | D125: Personas | E125: ¿A Cuál de los siguientes lugares o eventos donde se promueve la recreación asiste principalmente?
C126: P_143 | D126: Personas | E126: ¿participa o asiste a los siguientes eventos ? - EVENTOS MUSICALES (CONCIERTOS, RECITALES, PRESENTACIONES DE MÚSICA EN ESPACIOS ABIERTOS Y CERRADOS (EN VIVO))
C127: P_144 | D127: Personas | E127: ¿participa o asiste a los siguientes eventos ? - DANZA
C128: P_145 | D128: Personas | E128: ¿participa o asiste a los siguientes eventos ? - TEATRO
C129: P_146 | D129: Personas | E129: ¿participa o asiste a los siguientes eventos ? - PINTURA
B130: 2.15. Cultura | C130: P_147 | D130: Personas | E130: En los últimos 12 meses, ¿Con qué frecuencia leyó libros, documentos, artículos, trabajos académicos impresos?:
C131: P_148 | D131: Personas | E131: En los últimos 12 meses, ¿Con qué frecuencia leyó libros, documentos, artículos, noticias, revistas, periódicos o trabajos académicos en formato digital?:
C132: P_149 | D132: Personas | E132: En los últimos 12 meses, ¿Con qué frecuencia leyó correos electrónicos, blogs, foros, paginas web, redes sociales u otro contenido digital?:
C133: P_150 | D133: Personas | E133: En los últimos 12 meses, ¿cuántos libros leyó diferentes a los necesarios para realizar su trabajo o estudio?(Para personas de 5 años y más)
B134: 2.16. TIC | C134: P_151 | D134: Personas | E134: ¿Qué dispositivos usa principalmente para acceder a internet?
C135: P_152 | D135: Personas | E135: Qué tipo de celular usa?
C136: P_153 | D136: Personas | E136: ¿Cuál de las siguientes actividades realiza usted principalmente cuando usa el internet?
C137: P_154 | D137: Personas | E137: Frecuencia de uso del internet de la actividad principal:
C138: P_155 | D138: Personas | E138: Ha usado o conoce alguna pagina web del estado?
B139: 2.17. Movilidad : Origen - Destino | C139: P_156 | D139: Personas | E139: ¿En la última semana viajó a algún Municipio de Antioquia?
C140: P_157 | D140: Personas | E140: ¿A cuál municipio de Antioquia viajó en la última semana, ?
C141: P_158 | D141: Personas | E141: ¿Qué día de la semana realizó el viaje?
C142: P_159 | D142: Personas | E142: ¿Qué medio de transporte utilizó para desplazarse
C143: P_160 | D143: Personas | E143: ¿Cuál fue el principal motivo de viaje?
C144: P_161 | D144: Personas | E144: ¿Con qué frecuencia realiza viajes a otros municipios del departamento?
B145: 2.18. Utilización de la Bicicleta y las Ciclorutas | C145: P_162 | D145: Personas | E145: Frecuencia de uso de la bicicleta
C146: P_163 | D146: Personas | E146: La mayor parte de las veces que usa la bicicleta es para
C147: P_164 | D147: Personas | E147: ¿Se siente seguro al utilizar la bicicleta en su municipio?
C148: P_165 | D148: Personas | E148: ¿Considera qué la pavimentación de las vías y ciclorutas en su municipio favorece o motivan el uso de la bicicleta?
C149: P_166 | D149: Personas | E149: ¿Ha usado alguna vez la cicloruta en algún trayecto de su municipio?
C150: P_167 | D150: Personas | E150: ¿Aunque no las use, cómo califica el estado de las ciclorutas en su municipio?
B151: 2.19. Relación de Hechos Víctimizantes | C151: P_169 | D151: Personas | E151: Durante los últimos doce meses, ¿usted o algún miembro de su hogar ha sido víctima de algún hecho contra su vida, patrimonio, seguridad personal, etc.? (Vulneraciones por hechos victimizantes)
C152: P_170 | D152: Personas | E152: ¿Denunciaron el hecho ante algún organismo o autoridad competente?
C153: P_171 | D153: Personas | E153: ¿Dónde ocurrió el hecho? - Municipio
A154: 3. DATOS DE LA UNIDAD DE VIVIENDA | B154: 3. Datos De La Unidad De Vivienda | C154: P_172 | D154: Vivienda | E154: Tipo de vivienda
C155: P_173 | D155: Vivienda | E155: ¿Cuál es el Material predominante de las paredes exteriores?
C156: P_174 | D156: Vivienda | E156: ¿Cuál es el Material predominante de los pisos?
C157: P_175 | D157: Vivienda | E157: ¿De dónde obtiene principalmente esta vivienda el agua para consumo humano?
C158: P_176 | D158: Vivienda | E158: ¿El agua para consumo humano es potable?
C159: P_177 | D159: Vivienda | E159: ¿Cuántos cuartos tiene esta vivienda? SALA
C160: P_178 | D160: Vivienda | E160: ¿Cuántos cuartos tiene esta vivienda? COMEDOR
C161: P_179 | D161: Vivienda | E161: ¿Cuántos cuartos tiene esta vivienda? SALA COMEDOR
C162: P_180 | D162: Vivienda | E162: ¿Cuántos cuartos tiene esta vivienda? COCINA
C163: P_181 | D163: Vivienda | E163: ¿Cuántos cuartos tiene esta vivienda? GARAJES
C164: P_182 | D164: Vivienda | E164: ¿Cuántos cuartos tiene esta vivienda? EXCLUSIVOS PARA DORMIR
C165: P_183 | D165: Vivienda | E165: ¿Cuántos cuartos tiene esta vivienda? PARA DORMIR Y OTROS USOS
C166: P_184z | D166: Vivienda | E166: El estado actual del servicio de ENERGÍA es:
C167: P_185z | D167: Vivienda | E167: Cuantas horas al día cuenta vivienda cuenta con servicios públicos de: : ENERGÍA
C168: P_186z | D168: Vivienda | E168: ¿Como califica su calidad?
C169: P_187z | D169: Vivienda | E169: El estado actual del servicio de ACUEDUCTO es:
C170: P_188z | D170: Vivienda | E170: Cuantas horas al día cuenta vivienda cuenta con servicios públicos de: ACUEDUCTO
C171: P_189z | D171: Vivienda | E171: ¿Como califica su calidad?
C172: P_190z | D172: Vivienda | E172: La unidad de vivienda cuenta con servicios públicos de: ALCANTARILLADO
C173: P_191z | D173: Vivienda | E173: ¿Como califica su calidad?
C174: P_192z | D174: Vivienda | E174: El estado actual del servicio de TELÉFONO (LÍNEA FIJA) es:
C175: P_193z | D175: Vivienda | E175: ¿Como califica su calidad?
C176: P_194z | D176: Vivienda | E176: El estado actual del servicio de GAS NATURAL (RED) es:
C177: P_195z | D177: Vivienda | E177: ¿Como califica su calidad?
C178: P_196z | D178: Vivienda | E178: La unidad de vivienda cuenta con servicios públicos de: ASEO (RECOLECCIÓN)
C179: P_197z | D179: Vivienda | E179: ¿Como califica su calidad?
C180: P_198z | D180: Vivienda | E180: La unidad de vivienda cuenta con servicios públicos de: Gas en pipeta
C181: P_199z | D181: Vivienda | E181: ¿Como califica su calidad?
C182: P_200z | D182: Vivienda | E182: El estado actual del servicio de CONEXIÓN A INTERNET es:
C183: P_201z | D183: Vivienda | E183: ¿Como califica su calidad?
C184: P_202z | D184: Vivienda | E184: Tipo de conexión a internet
C185: P_203z | D185: Vivienda | E185: ¿Por qué razón no posee conexión a internet?
C186: P_204z | D186: Vivienda | E186: ¿Conoce usted si la vivienda esta ubicada en zona de riesgo?
C187: P_205z | D187: Vivienda | E187: Esta vivienda, en el último año, se ha visto afectada por:
C188: P_206z | D188: Vivienda | E188: ¿Cuántas veces se ha presentado en el último año?
C189: P_207z | D189: Vivienda | E189: ¿En este hogar hacen separación de residuos solidos ?
C190: P_208z | D190: Vivienda | E190: ¿Cómo disponen principalmente los residuos en esta unidad de vivienda?
C191: P_209z | D191: Vivienda | E191: ¿Con qué tipo de servicio sanitario cuenta el hogar?
C192: P_210z | D192: Vivienda | E192: Número de servicios sanitarios de uso exclusivo del hogar
C193: P_211z | D193: Vivienda | E193: Número de servicios sanitarios compartidos con personas de otro hogar
C194: P_212z | D194: Vivienda | E194: Incluyendo sala-comedor ¿De cuántos cuartos en total dispone este HOGAR para uso exclusivo?. Excluya cocinas, baños, garajes y cuartos dedicados a negocio
C195: P_213z | D195: Vivienda | E195: ¿En cuántos, de los cuartos que son exclusivos para dormir, duermen las personas de este hogar?
A196: 4. DATOS DEL HOGAR | B196: 4. Datos Del Hogar | C196: P_214 | D196: Hogar | E196: ¿Cuántos de los siguientes servicios o bienes, en funcionamiento, posee este hogar? - NEVERA O ENFRIADOR
C197: P_215 | D197: Hogar | E197: ¿Cuántos de los siguientes servicios o bienes, en funcionamiento, posee este hogar? - LAVADORA DE ROPA
C198: P_216 | D198: Hogar | E198: ¿Cuántos de los siguientes servicios o bienes, en funcionamiento, posee este hogar? - TELEVISOR
C199: P_217 | D199: Hogar | E199: ¿Cuántos de los siguientes servicios o bienes, en funcionamiento, posee este hogar? - CALENTADOR DE AGUA O DUCHA ELÉCTRICA O A GAS
C200: P_218 | D200: Hogar | E200: ¿Cuántos de los siguientes servicios o bienes, en funcionamiento, posee este hogar? - CALENTADOR DE AGUA A GAS
... 173 more rows

Sheet Índice Tablas 2021
A1: Capítulo | B1: Módulo | C1: NumCap | D1: Cifra | E1: Pr | F1: Pregunta | G1: Unidad de Análisis | H1: Descripción | I1: Tabla | J1: Título | K1: Aplica | M1: Introducción
A2: 1. IDENTIFICACIÓN DE LA UNIDAD DE VIVIENDA Y HOGAR | B2: 1.1. Identificación | C2: 1.1. | D2: 2252010 | E2: 1. | F2: P_005_a | G2: Vivienda | H2: Zona | I2: Población total según área urbana y rural por subregiones y zonas de Antioquia. | J2: =(A2&CHAR(10)&B2&CHAR(10)&C2&E2&" "&I2&CHAR(10)) -> 1. IDENTIFICACIÓN DE LA UNIDAD DE VIVIENDA Y HOGAR 1.1. Identificación 1.1.1. Población total según área urbana y rural por subregiones y zonas de Antioquia. | K2: 1 | M2: Las “Estadísticas Adicionales de la Encuesta de Calidad de Vida”, son la compilación de estadísticas descriptivas de las respuestas obtenidas en algunas de las variables de la Encuesta de Calidad de Vida, aplicada en todo el Departamento. Estas estadísticas, se muestran en tablas desagregadas para cada una de las 25 zonas y 9 subregiones y municipios del Departamento de Antioquia, además se encuentran agrupadas en cuatro capítulos según las unidades de análisis: población, vivienda, hogares y percepción. Esta información brinda una visión básica y global en materia de educación, seguridad social, condiciones de vivienda, características sociodemográficas, fuerza laboral, deporte, seguridad alimentaria, entre otros de los hogares y las personas del Departamento. Específicamente, se pueden encontrar tablas de algunas variables con las cuantificaciones de las respuestas. Para acceder a cada tabla debe dar clic en el hipervínculo respectivo de la columna ‘Pregunta’. Ejemplo:
A3: 1. IDENTIFICACIÓN DE LA UNIDAD DE VIVIENDA Y HOGAR | B3: 1.1. Identificación | C3: 1.1. | D3: 2252010 | E3: 2. | F3: P_011 | G3: Vivienda | H3: Estrato | I3: Viviendas según estrato por subregiones y zonas de Antioquia. | J3: =(A3&CHAR(10)&B3&CHAR(10)&C3&E3&" "&I3&CHAR(10)) -> 1. IDENTIFICACIÓN DE LA UNIDAD DE VIVIENDA Y HOGAR 1.1. Identificación 1.1.2. Viviendas según estrato por subregiones y zonas de Antioquia. | K3: 1
A4: 1. Identificación de la unidad de vivienda y el hogar | B4: 1.1. Identificación | C4: 1.1. | D4: 2252010 | F4: P_012 | G4: Vivienda | H4: ¿Cuántos grupos de personas (hogares) incluyendo éste, conviven en la vivienda? | K4: 0
A5: 1. IDENTIFICACIÓN DE LA UNIDAD DE VIVIENDA Y EL HOGAR | B5: 1.2. Conformación del hogar | C5: 1.2. | D5: 2252010 | E5: 1. | F5: P_014 | G5: Vivienda | H5: Incluyéndose Usted, ¿Cuántas personas componen este hogar? | I5: Viviendas según total personas por hogar subregiones y zonas de Antioquia. | J5: =(A5&CHAR(10)&B5&CHAR(10)&C5&E5&" "&I5&CHAR(10)) -> 1. IDENTIFICACIÓN DE LA UNIDAD DE VIVIENDA Y EL HOGAR 1.2. Conformación del hogar 1.2.1. Viviendas según total personas por hogar subregiones y zonas de Antioquia. | K5: 1
A6: 2. DATOS DE LAS PERSONAS DEL HOGAR | B6: 2.1. Identificación de las Personas del Hogar | C6: 2.1. | D6: 6782584 | F6: P_018 | G6: Personas | H6: Sexo de cada miembro del hogar | K6: 0
A7: 2. DATOS DE LAS PERSONAS DEL HOGAR | B7: 2.1. Identificación de las Personas del Hogar | C7: 2.1. | D7: 5661573 | E7: 1. | F7: P_019n | G7: Personas | H7: Usted se identifica como: | I7: Población según el autorreconocimiento del grupo étnico por subregiones y zonas de Antioquia. | J7: =(A7&CHAR(10)&B7&CHAR(10)&C7&E7&" "&I7&CHAR(10)) -> 2. DATOS DE LAS PERSONAS DEL HOGAR 2.1. Identificación de las Personas del Hogar 2.1.1. Población según el autorreconocimiento del grupo étnico por subregiones y zonas de Antioquia. | K7: 1
A8: 2. DATOS DE LAS PERSONAS DEL HOGAR | B8: 2.1. Identificación de las Personas del Hogar | C8: 2.1. | D8: 6782584 | E8: 2. | F8: P_020 | G8: Personas | H8: Parentesco con el jefe de este hogar | I8: Poblasción según parentesco con el jefe del hogar por hogar subregiones y zonas de Antioquia. | J8: 2. DATOS DE LAS PERSONAS DEL HOGAR 2.1. Identificación de las Personas del Hogar 2.1.2. Poblasción según parentesco con el jefe del hogar por hogar subregiones y zonas de Antioquia. | K8: 1
A9: 2. DATOS DE LAS PERSONAS DEL HOGAR | B9: 2.1. Identificación de las Personas del Hogar | C9: 2.1. | D9: 6782584 | F9: P_021 | G9: Personas | H9: Edad_ Años Cumplidos | K9: 0
A10: 2. DATOS DE LAS PERSONAS DEL HOGAR | B10: 2.1. Identificación de las Personas del Hogar | C10: 2.1. | D10: 6782584 | E10: 3. | F10: P_022 | G10: Personas | H10: Estado civil actual | I10: Población según el estado civil por subregiones y zonas de Antioquia. | J10: =(A10&CHAR(10)&B10&CHAR(10)&C10&E10&" "&I10&CHAR(10)) -> 2. DATOS DE LAS PERSONAS DEL HOGAR 2.1. Identificación de las Personas del Hogar 2.1.3. Población según el estado civil por subregiones y zonas de Antioquia. | K10: 1
A11: 2. DATOS DE LAS PERSONAS DEL HOGAR | B11: 2.1. Identificación de las Personas del Hogar | C11: 2.1. | D11: 6782584 | E11: 4. | F11: P_023 | G11: Personas | H11: De acuerdo con su cultura, pueblo o rasgos físicos es o se reconoce como: | I11: Población según el autorreconocimiento del grupo étnico por subregiones y zonas de Antioquia. | J11: 2. DATOS DE LAS PERSONAS DEL HOGAR 2.1. Identificación de las Personas del Hogar 2.1.4. Población según el autorreconocimiento del grupo étnico por subregiones y zonas de Antioquia. | K11: 1
A12: 2. DATOS DE LAS PERSONAS DEL HOGAR | B12: 2.2. Movilidad | C12: 2.2. | D12: 6782584 | E12: 1. | F12: P_024 | G12: Personas | H12: ¿Cuál es su país de nacimiento? | I12: Población según el país de nacimiento por subregiones y zonas de Antioquia. | J12: 2. DATOS DE LAS PERSONAS DEL HOGAR 2.2. Movilidad 2.2.1. Población según el país de nacimiento por subregiones y zonas de Antioquia. | K12: 1
A13: 2. DATOS DE LAS PERSONAS DEL HOGAR | B13: 2.2. Movilidad | C13: 2.2. | D13: 5661573 | E13: 2. | F13: P_025n | G13: Personas | H13: Departamento | I13: Población según el departamento de nacimiento por subregiones y zonas de Antioquia. | J13: 2. DATOS DE LAS PERSONAS DEL HOGAR 2.2. Movilidad 2.2.2. Población según el departamento de nacimiento por subregiones y zonas de Antioquia. | K13: 1
A14: 2. DATOS DE LAS PERSONAS DEL HOGAR | B14: 2.2. Movilidad | C14: 2.2. | D14: 6407551.453 | F14: P_026 | G14: Personas | H14: Municipio | K14: 0
A15: 2. DATOS DE LAS PERSONAS DEL HOGAR | B15: 2.2. Movilidad | C15: 2.2. | D15: 6782584 | E15: 3. | F15: P_028 | G15: Personas | H15: ¿Ha vivído toda la vida en este municipio? | I15: Población según permanencia en el municipio por subregiones y zonas de Antioquia. | J15: 2. DATOS DE LAS PERSONAS DEL HOGAR 2.2. Movilidad 2.2.3. Población según permanencia en el municipio por subregiones y zonas de Antioquia. | K15: 1
A16: 2. DATOS DE LAS PERSONAS DEL HOGAR | B16: 2.2. Movilidad | C16: 2.2. | D16: 6782584 | E16: 4. | F16: P_029n | G16: Personas | H16: ¿Cuánto tiempo hace que vive en este municipio? (en años) | I16: Población según años de permanencia en el municipio por subregiones y zonas de Antioquia. | J16: 2. DATOS DE LAS PERSONAS DEL HOGAR 2.2. Movilidad 2.2.4. Población según años de permanencia en el municipio por subregiones y zonas de Antioquia. | K16: 1
A17: 2. DATOS DE LAS PERSONAS DEL HOGAR | B17: 2.2. Movilidad | C17: 2.2. | D17: 2042965.898 | E17: 5. | F17: P_030n | G17: Personas | H17: ¿Por qué causa, PRINCIPALMENTE, se vino a vivir a ESTE MUNICIPIO? | I17: Población según causas de migración por subregiones y zonas de Antioquia. | J17: 2. DATOS DE LAS PERSONAS DEL HOGAR 2.2. Movilidad 2.2.5. Población según causas de migración por subregiones y zonas de Antioquia. | K17: 1
A18: 2. DATOS DE LAS PERSONAS DEL HOGAR | B18: 2.2. Movilidad | C18: 2.2. | D18: 2042965.898 | E18: 6. | F18: P_031n | G18: Personas | H18: ¿En qué país, municipio y departamento vivía inmediatamente antes de trasladarse a vivir en ESTE MUNICIPIO? País | I18: Población según país de procedencia por subregiones y zonas de Antioquia. | J18: 2. DATOS DE LAS PERSONAS DEL HOGAR 2.2. Movilidad 2.2.6. Población según país de procedencia por subregiones y zonas de Antioquia. | K18: 1
A19: 2. DATOS DE LAS PERSONAS DEL HOGAR | B19: 2.2. Movilidad | C19: 2.2. | D19: 1701786.904 | E19: 7. | F19: P_032n | G19: Personas | H19: ¿En qué país, municipio y departamento vivía inmediatamente antes de trasladarse a vivir en ESTE MUNICIPIO? Departamento | I19: Población según departamento de procedencia por subregiones y zonas de Antioquia. | J19: 2. DATOS DE LAS PERSONAS DEL HOGAR 2.2. Movilidad 2.2.7. Población según departamento de procedencia por subregiones y zonas de Antioquia. | K19: 1
A20: 2. DATOS DE LAS PERSONAS DEL HOGAR | B20: 2.2. Movilidad | C20: 2.2. | D20: 1701786.904 | E20: 8. | F20: P_033n | G20: Personas | H20: ¿En qué país, municipio y departamento vivía inmediatamente antes de trasladarse a vivir en ESTE MUNICIPIO? Municipio | I20: Población según municipio de procedencia por subregiones y zonas de Antioquia. | J20: 2. DATOS DE LAS PERSONAS DEL HOGAR 2.2. Movilidad 2.2.8. Población según municipio de procedencia por subregiones y zonas de Antioquia. | K20: 1
A21: 2. DATOS DE LAS PERSONAS DEL HOGAR | B21: 2.3. Participación | C21: 2.3. | D21: 5067912 | E21: 1. | F21: P_034n | G21: Personas | H21: ¿Usted votó en alguna de las últimas elecciones (Presidente, Senado, Cámara, Gobernador y Alcalde)? | I21: Población que votó en las últimas elecciones por subregiones y zonas de Antioquia. | J21: 2. DATOS DE LAS PERSONAS DEL HOGAR 2.3. Participación 2.3.1. Población que votó en las últimas elecciones por subregiones y zonas de Antioquia. | K21: 1
A22: 2. DATOS DE LAS PERSONAS DEL HOGAR | B22: 2.3. Participación | C22: 2.3. | D22: 5468849 | E22: 2. | F22: P_035n | G22: Personas | H22: ¿Usted participa en alguna de las siguientes organizaciones o instancias de participación? | I22: Población que participa en organizaciones o instancias de participación por subregiones y zonas de Antioquia. 1. | J22: 2. DATOS DE LAS PERSONAS DEL HOGAR 2.3. Participación 2.3.2. Población que participa en organizaciones o instancias de participación por subregiones y zonas de Antioquia. 1. | K22: 1
A23: 2. DATOS DE LAS PERSONAS DEL HOGAR | B23: 2.3. Participación | C23: 2.3. | D23: 295083.3239 | F23: P_036 | G23: Personas | H23: ¿Usted participa en alguna de las siguientes organizaciones o instancias de participación? 2da Respuesta | K23: 0
A24: 2. DATOS DE LAS PERSONAS DEL HOGAR | B24: 2.3. Participación | C24: 2.3. | D24: 5468849 | E24: 3 | F24: P_037n | G24: Personas | H24: ¿Ha sido víctima de amenazas por hacer parte de estas organizaciones y participar activamente? | I24: Población que ha recibido amenazas por participar en organizaciones o instancias de participación por subregiones y zonas de Antioquia. | J24: 2. DATOS DE LAS PERSONAS DEL HOGAR 2.3. Participación 2.3.3 Población que ha recibido amenazas por participar en organizaciones o instancias de participación por subregiones y zonas de Antioquia. | K24: 1
A25: 2. DATOS DE LAS PERSONAS DEL HOGAR | B25: 2.3. Participación | C25: 2.3. | D25: 4740049.666 | F25: P_034_a | G25: Personas | H25: ¿Se postuló electoralmente en las últimas elecciones? | K25: 0
A26: 2. DATOS DE LAS PERSONAS DEL HOGAR | B26: 2.4. Primera Infancia | C26: 2.4. | D26: 461990 | E26: 1. | F26: P_038n | G26: Personas | H26: ¿Los niños menores de 5 años, dónde o con quién permanecen la mayor parte del tiempo entre semana? | I26: Con quien o dónde permanecen los niños menores de 5 por subregiones y zonas de Antioquia. | J26: 2. DATOS DE LAS PERSONAS DEL HOGAR 2.4. Primera Infancia 2.4.1. Con quien o dónde permanecen los niños menores de 5 por subregiones y zonas de Antioquia. | K26: 1
A27: 2. DATOS DE LAS PERSONAS DEL HOGAR | B27: 2.5. Educación | C27: 2.5. | D27: 6782584 | E27: 1. | F27: P_039 | G27: Personas | H27: ¿Sabe leer y escribir más de un párrafo? | I27: Población que sabe leer y escribir más de un párrafo, según subregiones y zonas de Antioquia. | J27: 2. DATOS DE LAS PERSONAS DEL HOGAR 2.5. Educación 2.5.1. Población que sabe leer y escribir más de un párrafo, según subregiones y zonas de Antioquia. | K27: 1
A28: 2. DATOS DE LAS PERSONAS DEL HOGAR | B28: 2.5. Educación | C28: 2.5. | D28: 6782584 | F28: P_040 | G28: Personas | H28: ¿Cuál es su lengua materna? | K28: 0
A29: 2. DATOS DE LAS PERSONAS DEL HOGAR | B29: 2.5. Educación | C29: 2.5. | D29: 6782584 | E29: 2. | F29: P_041 | G29: Personas | H29: ¿Además de su Lengua Materna, indique cuál es el principal idioma en que puede comunicarse? | I29: Población que sabe hablar dos idiomas según, subregiones y zonas de Antioquia. | J29: 2. DATOS DE LAS PERSONAS DEL HOGAR 2.5. Educación 2.5.2. Población que sabe hablar dos idiomas según, subregiones y zonas de Antioquia. | K29: 1
A30: 2. DATOS DE LAS PERSONAS DEL HOGAR | B30: 2.5. Educación | C30: 2.5. | D30: 26890.9131 | E30: 3. | F30: P_042n | G30: Personas | H30: ¿Además del anterior, indique en cuál otro idioma en que puede comunicarse? | I30: Población que sabe hablar más de dos idiomas, según subregiones y zonas de Antioquia. | J30: 2. DATOS DE LAS PERSONAS DEL HOGAR 2.5. Educación 2.5.3. Población que sabe hablar más de dos idiomas, según subregiones y zonas de Antioquia. | K30: 1
A31: 2. DATOS DE LAS PERSONAS DEL HOGAR | B31: 2.5. Educación | C31: 2.5. | D31: 6782584 | E31: 4. | F31: P_043 | G31: Personas | H31: ¿Actualmente estudia? ( Asiste a: Preescolar, escuela, colegio, técnico, tecnológico o universidad de forma presencial o virtual) | I31: Población que actualmente estudia según, subregiones y zonas de Antioquia. | J31: 2. DATOS DE LAS PERSONAS DEL HOGAR 2.5. Educación 2.5.4. Población que actualmente estudia según, subregiones y zonas de Antioquia. | K31: 1
A32: 2. DATOS DE LAS PERSONAS DEL HOGAR | B32: 2.5. Educación | C32: 2.5. | D32: 5174931.388 | E32: 5. | F32: P_044n | G32: Personas | H32: ¿Estudió durante este año en alguna institución educativa de forma presencial o virtual? | I32: Población Hogares donde alguno de sus integrantes estudió ha lanzado o postulado este por subregiones y zonas de Antioquia. | J32: 2. DATOS DE LAS PERSONAS DEL HOGAR 2.5. Educación 2.5.5. Población Hogares donde alguno de sus integrantes estudió ha lanzado o postulado este por subregiones y zonas de Antioquia. | K32: 1
A33: 2. DATOS DE LAS PERSONAS DEL HOGAR | B33: 2.5. Educación | C33: 2.5. | D33: 5034832.663 | E33: 6. | F33: P_045 | G33: Personas | H33: ¿Estudió el año inmediatamente anterior? | I33: Población que estudió el año inmediatamente anterior, según subregiones y zonas de Antioquia. | J33: 2. DATOS DE LAS PERSONAS DEL HOGAR 2.5. Educación 2.5.6. Población que estudió el año inmediatamente anterior, según subregiones y zonas de Antioquia. | K33: 1
A34: 2. DATOS DE LAS PERSONAS DEL HOGAR | B34: 2.5. Educación | C34: 2.5. | D34: 129817.0484 | E34: 7. | F34: P_046n | G34: Personas | H34: ¿Cuál fue la principal causa por la que no pudo continuar sus estudios? | I34: Población por causa para abandonar sus estudios, según subregiones y zonas de Antioquia. | J34: 2. DATOS DE LAS PERSONAS DEL HOGAR 2.5. Educación 2.5.7. Población por causa para abandonar sus estudios, según subregiones y zonas de Antioquia. | K34: 1
A35: 2. DATOS DE LAS PERSONAS DEL HOGAR | B35: 2.5. Educación | C35: 2.5. | D35: 1209400.103 | E35: 8. | F35: P_047n | G35: Personas | H35: ¿Qué medio de transporte utiliza predominantemente para dirigirse a su centro educativo? | I35: Población que actualmente estudia según el medio de transporte que utiliza para llegar al centro educativo por subregiones y zonas de Antioquia. | J35: 2. DATOS DE LAS PERSONAS DEL HOGAR 2.5. Educación 2.5.8. Población que actualmente estudia según el medio de transporte que utiliza para llegar al centro educativo por subregiones y zonas de Antioquia. | K35: 1
A36: 2. DATOS DE LAS PERSONAS DEL HOGAR | B36: 2.5. Educación | C36: 2.5. | D36: 1209400.103 | E36: 9. | F36: P_048n | G36: Personas | H36: ¿Cuánto tiempo tarda en llegar a su centro educativo? | I36: Población que actualmente estudia según el tiempo que tarda en llegar al centro educativo por subregiones y zonas de Antioquia. | J36: 2. DATOS DE LAS PERSONAS DEL HOGAR 2.5. Educación 2.5.9. Población que actualmente estudia según el tiempo que tarda en llegar al centro educativo por subregiones y zonas de Antioquia. | K36: 1
A37: 2. DATOS DE LAS PERSONAS DEL HOGAR | B37: 2.5. Educación | C37: 2.5. | D37: 6782584 | E37: 10. | F37: P_049 | G37: Personas | H37: Último NIVEL de estudio aprobado (título) | I37: Población de acuerdo al último nivel de estudio aprobado (título obtenido) por subregiones y zonas de Antioquia. | J37: 2. DATOS DE LAS PERSONAS DEL HOGAR 2.5. Educación 2.5.10. Población de acuerdo al último nivel de estudio aprobado (título obtenido) por subregiones y zonas de Antioquia. | K37: 1
A38: 2. DATOS DE LAS PERSONAS DEL HOGAR | B38: 2.5. Educación | C38: 2.5. | D38: 6782584 | F38: P_050 | G38: Personas | H38: Nivel de estudio y grado que estaba estudiando cuando se retiró, que está estudiando actualmente o que estudió? - NIVEL | K38: 0
A39: 2. DATOS DE LAS PERSONAS DEL HOGAR | B39: 2.5. Educación | C39: 2.5. | D39: 6748306.729 | F39: P_051 | G39: Personas | H39: Nivel de estudio y grado que estaba estudiando cuando se retiró, que está estudiando actualmente o que estudió? - GRADO | K39: 0
A40: 2. DATOS DE LAS PERSONAS DEL HOGAR | B40: 2.5. Educación | C40: 2.5. | D40: 1078103.882 | E40: 11. | F40: P_052n | G40: Personas | H40: Área del conocimiento en la que obtuvo el título. | I40: Población de acuerdo al título obtenido, según subregiones y zonas de Antioquia. | J40: =(A40&CHAR(10)&B40&CHAR(10)&C40&E40&" "&I40&CHAR(10)) -> 2. DATOS DE LAS PERSONAS DEL HOGAR 2.5. Educación 2.5.11. Población de acuerdo al título obtenido, según subregiones y zonas de Antioquia. | K40: 1
A41: 2. DATOS DE LAS PERSONAS DEL HOGAR | B41: 2.5. Educación | C41: 2.5. | D41: 6782584 | F41: P_053 | G41: Personas | H41: El carácter del ESTABLECIMIENTO EDUCATIVO (escuela, colegio, universidad u otra institución) en donde estudia o estudió el último curso o grado, es: | K41: 0
A42: 2. DATOS DE LAS PERSONAS DEL HOGAR | B42: 2.6. Condiciones de Salud y Accidentalidad | C42: 2.6. | D42: 6782584 | F42: P_054 | G42: Personas | H42: ¿Tiene dificultades para realizar ciertas tareas sin ningún tipo de ayuda? (Principal) | K42: 0
A43: 2. DATOS DE LAS PERSONAS DEL HOGAR | B43: 2.6. Condiciones de Salud y Accidentalidad | C43: 2.6. | D43: 614943.3937 | E43: 1. | F43: P_055 | G43: Personas | H43: Esta limitación fue ocasionada por: (Principal) | I43: Población según la causa de la limitación física por subregiones y zonas fu Antioquia. | J43: =(A43&CHAR(10)&B43&CHAR(10)&C43&E43&" "&I43&CHAR(10)) -> 2. DATOS DE LAS PERSONAS DEL HOGAR 2.6. Condiciones de Salud y Accidentalidad 2.6.1. Población según la causa de la limitación física por subregiones y zonas fu Antioquia. | K43: 1
A44: 2. DATOS DE LAS PERSONAS DEL HOGAR | B44: 2.6. Condiciones de Salud y Accidentalidad | C44: 2.6. | D44: 533039.5596 | F44: P_056 | G44: Personas | H44: Tiene dificultades para realizar ciertas tareas sin ningún tipo de ayudas (Secundaria) | K44: 0
A45: 2. DATOS DE LAS PERSONAS DEL HOGAR | B45: 2.6. Condiciones de Salud y Accidentalidad | C45: 2.6. | D45: 192243.8323 | F45: P_057 | G45: Personas | H45: Esta limitación fue ocasionada por: (Secundaria) | K45: 0
A46: 2. DATOS DE LAS PERSONAS DEL HOGAR | B46: 2.6. Condiciones de Salud y Accidentalidad | C46: 2.6. | D46: 6782584 | E46: 2. | F46: P_058 | G46: Personas | H46: En los últimos 12 meses, ¿Usted o algún miembro de su familia ha sufrido algún tipo de accidente? | I46: Población que ha sufrido algún tipo de accidente en los últimos 12 meses por subregiones y zonas de Antioquia. | J46: =(A46&CHAR(10)&B46&CHAR(10)&C46&E46&" "&I46&CHAR(10)) -> 2. DATOS DE LAS PERSONAS DEL HOGAR 2.6. Condiciones de Salud y Accidentalidad 2.6.2. Población que ha sufrido algún tipo de accidente en los últimos 12 meses por subregiones y zonas de Antioquia. | K46: 1
A47: 2. DATOS DE LAS PERSONAS DEL HOGAR | B47: 2.6. Condiciones de Salud y Accidentalidad | C47: 2.6. | D47: 162658.4647 | E47: 3. | F47: P_059n | G47: Personas | H47: ¿Dónde ocurrió? Municipio | I47: Población por lugar de ocurrencia de algún tipo de accidente en los últimos 12 meses por subregiones y zonas de Antioquia. | J47: 2. DATOS DE LAS PERSONAS DEL HOGAR 2.6. Condiciones de Salud y Accidentalidad 2.6.3. Población por lugar de ocurrencia de algún tipo de accidente en los últimos 12 meses por subregiones y zonas de Antioquia. | K47: 1
A48: 2. DATOS DE LAS PERSONAS DEL HOGAR | B48: 2.6. Condiciones de Salud y Accidentalidad | C48: 2.6. | D48: 162658.4647 | E48: 4. | F48: P_060n | G48: Personas | H48: ¿Generó lesiones? | I48: Población con lesiones a raíz de algún tipo de accidente en los últimos 12 meses por subregiones y zonas de Antioquia. | J48: 2. DATOS DE LAS PERSONAS DEL HOGAR 2.6. Condiciones de Salud y Accidentalidad 2.6.4. Población con lesiones a raíz de algún tipo de accidente en los últimos 12 meses por subregiones y zonas de Antioquia. | K48: 1
A49: 2. DATOS DE LAS PERSONAS DEL HOGAR | B49: 2.6. Condiciones de Salud y Accidentalidad | C49: 2.6. | D49: 162658.4647 | E49: 5. | F49: P_061n | G49: Personas | H49: ¿Generó una discapacidad permanente? | I49: Población con discapacidades a raíz de algún tipo de accidente en los últimos 12 meses por subregiones y zonas de Antioquia. | J49: 2. DATOS DE LAS PERSONAS DEL HOGAR 2.6. Condiciones de Salud y Accidentalidad 2.6.5. Población con discapacidades a raíz de algún tipo de accidente en los últimos 12 meses por subregiones y zonas de Antioquia. | K49: 1
A50: 2. DATOS DE LAS PERSONAS DEL HOGAR | B50: 2.6. Condiciones de Salud y Accidentalidad | C50: 2.6. | D50: 162658.4647 | E50: 6. | F50: P_062n | G50: Personas | H50: Ese accidente ha sido ocasionado por: | I50: Población según la causa del accidente por subregiones y zonas de Antioquia. | J50: 2. DATOS DE LAS PERSONAS DEL HOGAR 2.6. Condiciones de Salud y Accidentalidad 2.6.6. Población según la causa del accidente por subregiones y zonas de Antioquia. | K50: 1
A51: 2. DATOS DE LAS PERSONAS DEL HOGAR | B51: 2.6. Condiciones de Salud y Accidentalidad | C51: 2.6. | D51: 162658.4647 | E51: 7. | F51: P_063n | G51: Personas | H51: ¿La acción principal que generó el accidente fue? | I51: Población según la acción principal que ocasionó el accidente subregiones y zonas de Antioquia. | J51: 2. DATOS DE LAS PERSONAS DEL HOGAR 2.6. Condiciones de Salud y Accidentalidad 2.6.7. Población según la acción principal que ocasionó el accidente subregiones y zonas de Antioquia. | K51: 1
A52: 2. DATOS DE LAS PERSONAS DEL HOGAR | B52: 2.7. Fecundidad | C52: 2.7 | F52: P_064 | G52: Personas | H52: ¿Cuántos hijos nacidos vivos ha tenido, en toda su vida? | K52: 0
A53: 2. DATOS DE LAS PERSONAS DEL HOGAR | B53: 2.7. Fecundidad | C53: 2.7 | F53: P_065 | G53: Personas | H53: ¿a que edad tuvo su primer hijo? | K53: 0
A54: 2. DATOS DE LAS PERSONAS DEL HOGAR | B54: 2.7. Fecundidad | C54: 2.7 | F54: P_066 | G54: Personas | H54: ¿De los hijos nacidos vivos, cuántos fueron Mujeres? | K54: 0
A55: 2. DATOS DE LAS PERSONAS DEL HOGAR | B55: 2.7. Fecundidad | C55: 2.7 | F55: P_067 | G55: Personas | H55: De los hijos(as) que nacieron vivos ¿cuántos están VIVOS ACTUALMENTE? | K55: 0
A56: 2. DATOS DE LAS PERSONAS DEL HOGAR | B56: 2.7. Fecundidad | C56: 2.7 | F56: P_068 | G56: Personas | H56: Y de ellos, ¿cuántas son Mujeres? | K56: 0
A57: 2. DATOS DE LAS PERSONAS DEL HOGAR | B57: 2.7. Fecundidad | C57: 2.7 | F57: P_069 | G57: Personas | H57: ¿A qué edad tuvo su último hijo nacido vivo? | K57: 0
A58: 2. DATOS DE LAS PERSONAS DEL HOGAR | B58: 2.7. Fecundidad | C58: 2.7 | F58: P_070 | G58: Personas | H58: ¿Cuántos hijos nacieron vivos en los últimos 12 meses? | K58: 0
A59: 2. DATOS DE LAS PERSONAS DEL HOGAR | B59: 2.7. Fecundidad | C59: 2.7 | F59: P_071 | G59: Personas | H59: De los hijos(as) que nacieron vivos, en los ÚLTIMOS 12 MESES, ¿Cuántos han MUERTO? | K59: 0
A60: 2. DATOS DE LAS PERSONAS DEL HOGAR | B60: 2.7. Fecundidad | C60: 2.7 | F60: P_072 | G60: Personas | H60: ¿Cuántos nacieron muertos, en los ÚLTIMOS 12 MESES? | K60: 0
A61: 2. DATOS DE LAS PERSONAS DEL HOGAR | B61: 2.7. Fecundidad | C61: 2.7. | D61: 75830.00903 | E61: 1. | F61: P_073n | G61: Personas | H61: ¿De los hijos(as) que nacieron vivos en el último año ¿Cuántos están REGISTRADOS? | I61: Población de hijos nacidos vivos en el último año según subregiones y zonas de Antioquia. | J61: =(A61&CHAR(10)&B61&CHAR(10)&C61&E61&" "&I61&CHAR(10)) -> 2. DATOS DE LAS PERSONAS DEL HOGAR 2.7. Fecundidad 2.7.1. Población de hijos nacidos vivos en el último año según subregiones y zonas de Antioquia. | K61: 1
A62: 2. DATOS DE LAS PERSONAS DEL HOGAR | B62: 2.7. Fecundidad | C62: 2.7. | D62: 5946496 | E62: 2. | F62: P_073_an | G62: Personas | H62: ¿En el último año ha consultado una institución de salud para el uso de métodos anticonceptivos y de planificación familiar? | I62: Población que ha consultado en el último año una institución de salud sobre métodos anticonceptivos y planificación familiar, según subregiones y zonas de Antioquia. | J62: 2. DATOS DE LAS PERSONAS DEL HOGAR 2.7. Fecundidad 2.7.2. Población que ha consultado en el último año una institución de salud sobre métodos anticonceptivos y planificación familiar, según subregiones y zonas de Antioquia. | K62: 1
A63: 2. DATOS DE LAS PERSONAS DEL HOGAR | B63: 2.7. Fecundidad | C63: 2.7. | D63: 5946496 | E63: 3. | F63: P_073_bn | G63: Personas | H63: ¿Considera que tiene suficiente información acerca de los métodos de planificación familiar? | I63: Población que considera que tiene suficiente información acerca de los métodos de planificación familiar, según subregiones y zonas de Antioquia. | J63: 2. DATOS DE LAS PERSONAS DEL HOGAR 2.7. Fecundidad 2.7.3. Población que considera que tiene suficiente información acerca de los métodos de planificación familiar, según subregiones y zonas de Antioquia. | K63: 1
A64: 2. DATOS DE LAS PERSONAS DEL HOGAR | B64: 2.7. Fecundidad | C64: 2.7. | D64: 5946496 | E64: 4. | F64: P_073_cn | G64: Personas | H64: ¿Tiene actividad sexual reciente y usa métodos anticonceptivos modernos? | I64: Población con actividad sexual reciente y usa métodos anticonceptivos, según subregiones y zonas de Antioquia. | J64: 2. DATOS DE LAS PERSONAS DEL HOGAR 2.7. Fecundidad 2.7.4. Población con actividad sexual reciente y usa métodos anticonceptivos, según subregiones y zonas de Antioquia. | K64: 1
A65: 2. DATOS DE LAS PERSONAS DEL HOGAR | B65: 2.7. Fecundidad | C65: 2.7. | D65: 5946496 | E65: 5. | F65: P_073_dn | G65: Personas | H65: ¿El método de planificación fue concertado? | I65: Población según el método de planificación si fue concertado, según subregiones y zonas de Antioquia. | J65: 2. DATOS DE LAS PERSONAS DEL HOGAR 2.7. Fecundidad 2.7.5. Población según el método de planificación si fue concertado, según subregiones y zonas de Antioquia. | K65: 1
A66: 2. DATOS DE LAS PERSONAS DEL HOGAR | B66: 2.8. Seguridad Social y Salud | C66: 2.8. | D66: 2477550.708 | F66: P_074 | G66: Personas | H66: ¿Qué tipo de afiliación al sistema de seguridad social en salud tienen los miembros de su familia? | K66: 0
A67: 2. DATOS DE LAS PERSONAS DEL HOGAR | B67: 2.8. Seguridad Social y Salud | C67: 2.8. | D67: 2477550.708 | F67: P_075 | G67: Personas | H67: ¿Tiene Afiliación al sistema de pensiones, como cotizante? | K67: 0
A68: 2. DATOS DE LAS PERSONAS DEL HOGAR | B68: 2.8. Seguridad Social y Salud | C68: 2.8. | D68: 2477550.708 | F68: P_076 | G68: Personas | H68: ¿Tiene Afiliación a una Administradora de Riesgos Laborales (ARL)? | K68: 0
A69: 2. DATOS DE LAS PERSONAS DEL HOGAR | B69: 2.9. Ingresos y Empleo: Fuerza de Trabajo | C69: 2.9. | D69: 6320594 | E69: 1. | F69: P_077 | G69: Personas | H69: ¿En qué actividad ocupó la mayor parte del tiempo la semana pasada? [la predominante] | I69: Población por tipo de actividad en la que ocupó la mayor parte de su tiempo durante la semana pasada, según subregiones y zonas de Antioquia. | J69: =(A69&CHAR(10)&B69&CHAR(10)&C69&E69&" "&I69&CHAR(10)) -> 2. DATOS DE LAS PERSONAS DEL HOGAR 2.9. Ingresos y Empleo: Fuerza de Trabajo 2.9.1. Población por tipo de actividad en la que ocupó la mayor parte de su tiempo durante la semana pasada, según subregiones y zonas de Antioquia. | K69: 1
A70: 2. DATOS DE LAS PERSONAS DEL HOGAR | B70: 2.9. Ingresos y Empleo: Fuerza de Trabajo | C70: 2.9. | D70: 3390707.962 | F70: P_078 | G70: Personas | H70: Adicional a la actividad principal a la que se dedicó la semana pasada ¿Cuáles de las siguientes actividades principales realizó? | K70: 0
A71: 2. DATOS DE LAS PERSONAS DEL HOGAR | B71: 2.9. Ingresos y Empleo: Fuerza de Trabajo | C71: 2.9. | D71: 222814.4788 | F71: P_079 | G71: Personas | H71: Cuántas horas a la semana | K71: 0
A72: 2. DATOS DE LAS PERSONAS DEL HOGAR | B72: 2.9. Ingresos y Empleo: Fuerza de Trabajo | C72: 2.9. | D72: 3319558.972 | F72: P_080 | G72: Personas | H72: Además de lo anterior, ¿realizó la semana pasada alguna actividad paga por una hora o más? | K72: 0
A73: 2. DATOS DE LAS PERSONAS DEL HOGAR | B73: 2.9. Ingresos y Empleo: Fuerza de Trabajo | C73: 2.9. | D73: 3155140.195 | F73: P_081 | G73: Personas | H73: Aunque no trabajó la semana pasada por una hora o más en forma remunerada, ¿tenía durante esa semana algún trabajo o negocio por el que recibió ingresos? | K73: 0
A74: 2. DATOS DE LAS PERSONAS DEL HOGAR | B74: 2.9. Ingresos y Empleo: Fuerza de Trabajo | C74: 2.9. | D74: 3150753.145 | F74: P_082 | G74: Personas | H74: ¿Trabajó la semana pasada en un negocio familiar por una hora o más, sin que le pagaran? | K74: 0
A75: 2. DATOS DE LAS PERSONAS DEL HOGAR | B75: 2.9. Ingresos y Empleo: Fuerza de Trabajo | C75: 2.9. | D75: 3202485.549 | F75: P_083 | G75: Personas | H75: En las últimas 4 semanas ¿hizo alguna diligencia para conseguir trabajo o instalar un negocio? | K75: 0
A76: 2. DATOS DE LAS PERSONAS DEL HOGAR | B76: 2.9. Ingresos y Empleo: Fuerza de Trabajo | C76: 2.9. | D76: 2802046.658 | F76: P_084 | G76: Personas | H76: ¿Desea conseguir un trabajo remunerado o instalar un negocio? | K76: 0
A77: 2. DATOS DE LAS PERSONAS DEL HOGAR | B77: 2.9. Ingresos y Empleo: Fuerza de Trabajo | C77: 2.9. | D77: 468507.8823 | F77: P_085 | G77: Personas | H77: Aunque desea trabajar, ¿por qué motivo principal no hizo diligencias en las últimas 4 semanas? | K77: 0
A78: 2. DATOS DE LAS PERSONAS DEL HOGAR | B78: 2.10. Empleo : Ocupados - Empleo Principal | C78: 2.10. | D78: 216847.2189 | F78: P_086 | G78: Personas | H78: Durante los últimos 12 meses [últimas 52 semanas] ¿trabajó por lo menos 2 semanas consecutivas? | K78: 0
A79: 2. DATOS DE LAS PERSONAS DEL HOGAR | B79: 2.10. Empleo : Ocupados - Empleo Principal | C79: 2.10. | D79: 52021.40715 | F79: P_087 | G79: Personas | H79: Después de su último empleo, ¿ha hecho alguna diligencia para conseguir trabajo o instalar un negocio? | K79: 0
A80: 2. DATOS DE LAS PERSONAS DEL HOGAR | B80: 2.10. Empleo : Ocupados - Empleo Principal | C80: 2.10. | D80: 24445.16087 | F80: P_088 | G80: Personas | H80: Durante los últimos 12 meses [últimas 52 semanas], ¿ha hecho alguna diligencia para conseguir trabajo o instalar un negocio? | K80: 0
A81: 2. DATOS DE LAS PERSONAS DEL HOGAR | B81: 2.10. Empleo : Ocupados - Empleo Principal | C81: 2.10. | D81: 21425.96934 | F81: P_089 | G81: Personas | H81: ¿Cuántos meses hace que dejó de buscar trabajo por última vez? Sólo acepte de 1 a 12 meses y continúe | K81: 0
A82: 2. DATOS DE LAS PERSONAS DEL HOGAR | B82: 2.10. Empleo : Ocupados - Empleo Principal | C82: 2.10. | D82: 702513.1628 | F82: P_090 | G82: Personas | H82: Si le hubiera resultado algún trabajo ¿estaba disponible la semana pasada para empezar a trabajar? | K82: 0
A83: 2. DATOS DE LAS PERSONAS DEL HOGAR | B83: 2.10. Empleo : Ocupados - Empleo Principal | C83: 2.10. | D83: 2567164.808 | F83: P_091 | G83: Personas | H83: ¿Cuántos meses (número) lleva trabajando en esa empresa o de forma independiente? | K83: 0
A84: 2. DATOS DE LAS PERSONAS DEL HOGAR | B84: 2.10. Empleo : Ocupados - Empleo Principal | C84: 2.10. | D84: 2564484.065 | F84: P_092 | G84: Personas | H84: ¿En dónde está ubicada la empresa donde realiza su empleo principal? Departamento | K84: 0
A85: 2. DATOS DE LAS PERSONAS DEL HOGAR | B85: 2.10. Empleo : Ocupados - Empleo Principal | C85: 2.10. | D85: 2563968.787 | F85: P_093 | G85: Personas | H85: ¿En dónde está ubicada la empresa donde realiza su empleo principal? Municipio | K85: 0
A86: 2. DATOS DE LAS PERSONAS DEL HOGAR | B86: 2.10. Empleo : Ocupados - Empleo Principal | C86: 2.10. | D86: 2684964.299 | E86: 1. | F86: P_094n | G86: Personas | H86: ¿Cuál es el medio de transporte utilizado predominante para dirigirse al sitio de su empleo principal? | I86: Población ocupada según el medio de transporte empleado para dirigirse al lugar de trabajo, según subregiones y zonas de Antioquia. | J86: =(A86&CHAR(10)&B86&CHAR(10)&C86&E86&" "&I86&CHAR(10)) -> 2. DATOS DE LAS PERSONAS DEL HOGAR 2.10. Empleo : Ocupados - Empleo Principal 2.10.1. Población ocupada según el medio de transporte empleado para dirigirse al lugar de trabajo, según subregiones y zonas de Antioquia. | K86: 1
A87: 2. DATOS DE LAS PERSONAS DEL HOGAR | B87: 2.10. Empleo : Ocupados - Empleo Principal | C87: 2.10. | D87: 2684964.299 | E87: 2. | F87: P_095n | G87: Personas | H87: ¿Cuánto tiempo tarda en llegar al sitio de trabajo? | I87: Población ocupada según el tiempo que tarda en llegar al lugar de trabajo por subregiones y zonas de Antioquia. | J87: 2. DATOS DE LAS PERSONAS DEL HOGAR 2.10. Empleo : Ocupados - Empleo Principal 2.10.2. Población ocupada según el tiempo que tarda en llegar al lugar de trabajo por subregiones y zonas de Antioquia. | K87: 1
A88: 2. DATOS DE LAS PERSONAS DEL HOGAR | B88: 2.10. Empleo : Ocupados - Empleo Principal | C88: 2.10. | D88: 2684964.299 | E88: 3. | F88: P_096n | G88: Personas | H88: ¿A qué actividad específica se dedica principalmente la empresa o negocio en la que realiza su trabajo? | I88: Población ocupada según la actividad específica de la empresa o negocio por subregiones y zonas de Antioquia. | J88: 2. DATOS DE LAS PERSONAS DEL HOGAR 2.10. Empleo : Ocupados - Empleo Principal 2.10.3. Población ocupada según la actividad específica de la empresa o negocio por subregiones y zonas de Antioquia. | K88: 1
A89: 2. DATOS DE LAS PERSONAS DEL HOGAR | B89: 2.10. Empleo : Ocupados - Empleo Principal | C89: 2.10. | D89: 2567115.234 | F89: P_097 | G89: Personas | H89: ¿A qué actividad específica se dedica principalmente la empresa o negocio en la que realiza su trabajo? - Código CIIU a 3 dígitos Revisión 4 | K89: 0
A90: 2. DATOS DE LAS PERSONAS DEL HOGAR | B90: 2.10. Empleo : Ocupados - Empleo Principal | C90: 2.10. | D90: 2567164.808 | F90: P_098 | G90: Personas | H90: ¿Cuántas personas en total tiene la empresa, negocio, industria, oficina, firma, finca o sitio donde trabaja? | I90: Población ocupada según el número de personas que tiene la empresa, negocio, industria, oficina, firma, finca o sitio donde trabaja, por subregiones y zonas de Antioquia. | J90: =(A90&CHAR(10)&B90&CHAR(10)&C90&E90&" "&I90&CHAR(10)) -> 2. DATOS DE LAS PERSONAS DEL HOGAR 2.10. Empleo : Ocupados - Empleo Principal 2.10. Población ocupada según el número de personas que tiene la empresa, negocio, industria, oficina, firma, finca o sitio donde trabaja, por subregiones y zonas de Antioquia. | K90: 0
A91: 2. DATOS DE LAS PERSONAS DEL HOGAR | B91: 2.10. Empleo : Ocupados - Empleo Principal | C91: 2.10. | D91: 2684964.299 | E91: 4. | F91: P_099n | G91: Personas | H91: En este trabajo es: | I91: Población ocupada según el tipo de cargo que tiene en el trabajo, por subregiones y zonas de Antioquia. | J91: 2. DATOS DE LAS PERSONAS DEL HOGAR 2.10. Empleo : Ocupados - Empleo Principal 2.10.4. Población ocupada según el tipo de cargo que tiene en el trabajo, por subregiones y zonas de Antioquia. | K91: 1
A92: 2. DATOS DE LAS PERSONAS DEL HOGAR | B92: 2.10. Empleo : Ocupados - Empleo Principal | C92: 2.10. | D92: 2567114.697 | F92: P_100 | G92: Personas | H92: ¿Cuántas horas a la semana trabaja normalmente en ese trabajo? (trabajo principal) | K92: 0
A93: 2. DATOS DE LAS PERSONAS DEL HOGAR | B93: 2.11. Empleo Secundario y Empleo Inadecuado o Con Insuficiencia de Horas (Continuación) | C93: 2.11. | D93: 2566829.263 | F93: P_101 | G93: Personas | H93: Además de la ocupación principal, ¿tenía la semana pasada otro trabajo o negocio?. [Incluya aquellos trabajos de los que estuvo ausente] | K93: 0
A94: 2. DATOS DE LAS PERSONAS DEL HOGAR | B94: 2.11. Empleo Secundario y Empleo Inadecuado o Con Insuficiencia de Horas (Continuación) | C94: 2.11 | D94: 2567164.808 | F94: P_102 | G94: Personas | H94: Además de las horas que trabaja actualmente ¿quiere: dedicar más horas al trabajo actual, buscar un trabajo adicional o cambiar su trabajo actual por otro con más horas? | K94: 0
A95: 2. DATOS DE LAS PERSONAS DEL HOGAR | B95: 2.11. Empleo Secundario y Empleo Inadecuado o Con Insuficiencia de Horas (Continuación) | C95: 2.11. | D95: 300274.4887 | F95: P_103 | G95: Personas | H95: Si la semana pasada le hubiera resultado un trabajo adicional o la posibilidad de trabajar más horas, ¿estaba disponible para hacerlo? | K95: 0
A96: 2. DATOS DE LAS PERSONAS DEL HOGAR | B96: 2.11. Empleo Secundario y Empleo Inadecuado o Con Insuficiencia de Horas (Continuación) | C96: 2.11 | D96: 2567164.808 | F96: P_104 | G96: Personas | H96: ¿Desea cambiar el trabajo que tiene actualmente? | K96: 0
A97: 2. DATOS DE LAS PERSONAS DEL HOGAR | B97: 2.11. Empleo Secundario y Empleo Inadecuado o Con Insuficiencia de Horas (Continuación) | C97: 2.11. | D97: 439226 | E97: 1. | F97: P_105 | G97: Personas | H97: ¿Por qué motivo principalmente desea cambiar de trabajo o empleo?. | I97: Población ocupada según el motivo por el que desea cambiar el empleo que tiene actualmente, por subregiones y zonas de Antioquia. | J97: =(A97&CHAR(10)&B97&CHAR(10)&C97&E97&" "&I97&CHAR(10)) -> 2. DATOS DE LAS PERSONAS DEL HOGAR 2.11. Empleo Secundario y Empleo Inadecuado o Con Insuficiencia de Horas (Continuación) 2.11.1. Población ocupada según el motivo por el que desea cambiar el empleo que tiene actualmente, por subregiones y zonas de Antioquia. | K97: 1
A98: 2. DATOS DE LAS PERSONAS DEL HOGAR | B98: 2.11. Empleo Secundario y Empleo Inadecuado o Con Insuficiencia de Horas (Continuación) | C98: 2.11. | D98: 439063.0107 | F98: P_106 | G98: Personas | H98: ¿Por qué motivos principalmente desea cambiar de trabajo o empleo?. Opción 2 | K98: 0
A99: 2. DATOS DE LAS PERSONAS DEL HOGAR | B99: 2.11. Empleo Secundario y Empleo Inadecuado o Con Insuficiencia de Horas (Continuación) | C99: 2.11. | D99: 439148.5107 | F99: P_107 | G99: Personas | H99: Durante las últimas 4 semanas, ¿hizo diligencias para cambiar de trabajo o trabajar más horas? | K99: 0
A100: 2. DATOS DE LAS PERSONAS DEL HOGAR | B100: 2.11. Empleo Secundario y Empleo Inadecuado o Con Insuficiencia de Horas (Continuación) | C100: 2.11. | D100: 363476.6613 | F100: P_108 | G100: Personas | H100: ¿Cuánto tiempo lleva haciendo diligencias para cambiar de trabajo? (en meses) | K100: 0
A101: 2. DATOS DE LAS PERSONAS DEL HOGAR | B101: 2.11. Empleo Secundario y Empleo Inadecuado o Con Insuficiencia de Horas (Continuación) | C101: 2.11. | D101: 439148.5107 | F101: P_109 | G101: Personas | H101: Si le resultara un nuevo trabajo o empleo a […..], ¿podría empezar a desempeñarlo antes de un mes? | K101: 0
A102: 2. DATOS DE LAS PERSONAS DEL HOGAR | B102: 2.12. Ingresos y Empleo : Desocupados | C102: 2.12. | D102: 168650.1213 | F102: P_110 | G102: Personas | H102: ¿Durante cuánto tiempo ha estado o estuvo buscando trabajo? (semanas) | K102: 0
A103: 2. DATOS DE LAS PERSONAS DEL HOGAR | B103: 2.12. Ingresos y Empleo : Desocupados | C103: 2.12. | F103: P_111 | G103: Personas | H103: Si le hubiera resultado un trabajo la semana pasada ¿cuántas horas -semanales-estaba disponible para trabajar? | K103: 0
A104: 2. DATOS DE LAS PERSONAS DEL HOGAR | B104: 2.12. Ingresos y Empleo : Desocupados | C104: 2.12. | D104: 506245.3548 | E104: 1. | F104: P_112n | G104: Personas | H104: ¿En qué ocupación, oficio o labor ha buscado trabajo? | I104: Población desocupada en qué ha buscado trabajo, por subregiones y zonas de Antioquia. | J104: =(A104&CHAR(10)&B104&CHAR(10)&C104&E104&" "&I104&CHAR(10)) -> 2. DATOS DE LAS PERSONAS DEL HOGAR 2.12. Ingresos y Empleo : Desocupados 2.12.1. Población desocupada en qué ha buscado trabajo, por subregiones y zonas de Antioquia. | K104: 1
A105: 2. DATOS DE LAS PERSONAS DEL HOGAR | B105: 2.12. Ingresos y Empleo : Desocupados | C105: 2.12. | D105: 506245.3548 | E105: 2. | F105: P_113n | G105: Personas | H105: Ha buscado trabajo como: | I105: Población desocupada en qué ha buscado trabajo, por subregiones y zonas de Antioquia. | J105: 2. DATOS DE LAS PERSONAS DEL HOGAR 2.12. Ingresos y Empleo : Desocupados 2.12.2. Población desocupada en qué ha buscado trabajo, por subregiones y zonas de Antioquia. | K105: 1
A106: 2. DATOS DE LAS PERSONAS DEL HOGAR | B106: 2.12. Ingresos y Empleo : Desocupados | C106: 2.12. | F106: P_114 | G106: Personas | H106: ¿Ha buscado trabajo por primera vez o había trabajado antes por lo menos durante dos semanas consecutivas? | I106: Población desocupada queha buscado trabajo por primera vez o había trabajado antes por lo menos durante dos semanas consecutivas, por subregiones y zonas de Antioquia. | K106: 0
A107: 2. DATOS DE LAS PERSONAS DEL HOGAR | B107: 2.12. Ingresos y Empleo : Desocupados | C107: 2.12. | F107: P_115 | G107: Personas | H107: En este último trabajo […..] era | K107: 0
A108: 2. DATOS DE LAS PERSONAS DEL HOGAR | B108: 2.13. Ingresos y Empleo : Inactivos | C108: 2.13. | F108: P_116 | G108: Personas | H108: ¿ Ha trabajado alguna vez por lo menos durante dos semanas consecutivas? | K108: 0
A109: 2. DATOS DE LAS PERSONAS DEL HOGAR | B109: 2.13. Ingresos y Empleo : Inactivos | C109: 2.13. | F109: P_117 | G109: Personas | H109: ¿Cuánto hace que trabajó por última vez? | K109: 0
A110: 2. DATOS DE LAS PERSONAS DEL HOGAR | B110: 2.13. Ingresos y Empleo : Inactivos | C110: 2.13. | F110: P_118 | G110: Personas | H110: Después de su último trabajo ¿ha hecho alguna diligencia para conseguir otro trabajo o instalar un negocio? | K110: 0
A111: 2. DATOS DE LAS PERSONAS DEL HOGAR | B111: 2.13. Ingresos y Empleo : Inactivos | C111: 2.13. | F111: P_119 | G111: Personas | H111: ¿[…..] Ha buscado trabajo alguna vez? | K111: 0
A112: 2. DATOS DE LAS PERSONAS DEL HOGAR | B112: 2.13. Ingresos y Empleo : Inactivos | C112: 2.13. | F112: P_120 | G112: Personas | H112: ¿Cuánto hace que buscó trabajó por última vez? | K112: 0
A113: 2. DATOS DE LAS PERSONAS DEL HOGAR | B113: 2.13. Ingresos y Empleo : Inactivos | C113: 2.13. | D113: 5057950.057 | E113: 1. | F113: P_130 | G113: Personas | H113: ¿Está usted reportado en alguna de las siguientes centrales de riesgo? | I113: Población inactiva que ha sido reportada en alguna de las centrales de riesgo, según subregiones y zonas de Antioquia. | J113: =(A113&CHAR(10)&B113&CHAR(10)&C113&E113&" "&I113&CHAR(10)) -> 2. DATOS DE LAS PERSONAS DEL HOGAR 2.13. Ingresos y Empleo : Inactivos 2.13.1. Población inactiva que ha sido reportada en alguna de las centrales de riesgo, según subregiones y zonas de Antioquia. | K113: 0
A114: 2. DATOS DE LAS PERSONAS DEL HOGAR | B114: 2.12. Recreación | C114: 2.12. | D114: 6782584 | F114: P_131 | G114: Personas | H114: ¿Las personas de este hogar están inscritas en PROGRAMAS LÚDICOS? | K114: 0
A115: 2. DATOS DE LAS PERSONAS DEL HOGAR | B115: 2.12. Recreación | C115: 2.12. | D115: 6782584 | F115: P_132 | G115: Personas | H115: ¿Las personas de este hogar están inscritas en PROGRAMAS RECREATIVOS? | K115: 0
A116: 2. DATOS DE LAS PERSONAS DEL HOGAR | B116: 2.12. Recreación | C116: 2.12. | D116: 6782584 | F116: P_133 | G116: Personas | H116: ¿Las personas de este hogar están inscritas en PROGRAMAS DEPORTIVOS? | K116: 0
A117: 2. DATOS DE LAS PERSONAS DEL HOGAR | B117: 2.12. Recreación | C117: 2.12. | D117: 6782584 | E117: 1. | F117: P_134 | G117: Personas | H117: ¿Con qué frecuencia practica Actividades LÚDICAS? | I117: Población según la frecuencia con la que practican actividades lúdicas por subregiones y zonas de Antioquia. | J117: =(A117&CHAR(10)&B117&CHAR(10)&C117&E117&" "&I117&CHAR(10)) -> 2. DATOS DE LAS PERSONAS DEL HOGAR 2.12. Recreación 2.12.1. Población según la frecuencia con la que practican actividades lúdicas por subregiones y zonas de Antioquia. | K117: 1
A118: 2. DATOS DE LAS PERSONAS DEL HOGAR | B118: 2.12. Recreación | C118: 2.12. | D118: 6782584 | E118: 2. | F118: P_135 | G118: Personas | H118: ¿Con qué frecuencia practica Actividades RECREATIVAS? | I118: .Población según la frecuencia con la que practican actividades recreativas por subregiones y zonas de Antioquia. | J118: 2. DATOS DE LAS PERSONAS DEL HOGAR 2.12. Recreación 2.12.2. .Población según la frecuencia con la que practican actividades recreativas por subregiones y zonas de Antioquia. | K118: 1
A119: 2. DATOS DE LAS PERSONAS DEL HOGAR | B119: 2.12. Recreación | C119: 2.12. | D119: 6782584 | E119: 3. | F119: P_136 | G119: Personas | H119: ¿Con qué frecuencia practica Actividades DEPORTIVAS? | I119: Población según la frecuencia con la que practican actividades deportivas por subregiones y zonas de Antioquia. | J119: 2. DATOS DE LAS PERSONAS DEL HOGAR 2.12. Recreación 2.12.3. Población según la frecuencia con la que practican actividades deportivas por subregiones y zonas de Antioquia. | K119: 1
A120: 2. DATOS DE LAS PERSONAS DEL HOGAR | B120: 2.12. Recreación | C120: 2.12. | D120: 6782584 | E120: 4. | F120: P_137 | G120: Personas | H120: ¿Con qué frecuencia participa o asiste a lugares o eventos donde se promueve la cultura? | I120: Población según la frecuencia con la que participa o asiste a lugares o eventos donde se promueve la cultura según subregiones y zonas de Antioquia. | J120: 2. DATOS DE LAS PERSONAS DEL HOGAR 2.12. Recreación 2.12.4. Población según la frecuencia con la que participa o asiste a lugares o eventos donde se promueve la cultura según subregiones y zonas de Antioquia. | K120: 1
A121: 2. DATOS DE LAS PERSONAS DEL HOGAR | B121: 2.12. Recreación | C121: 2.12. | D121: 400434.428 | E121: 5. | F121: P_138 | G121: Personas | H121: ¿A Cuál de los siguientes lugares o eventos donde se promueve la cultura asiste principalmente? | I121: Población según el lugar o evento al que asiste en donde se promueve la cultura según subregiones y zonas de Antioquia. | J121: 2. DATOS DE LAS PERSONAS DEL HOGAR 2.12. Recreación 2.12.5. Población según el lugar o evento al que asiste en donde se promueve la cultura según subregiones y zonas de Antioquia. | K121: 1
A122: 2. DATOS DE LAS PERSONAS DEL HOGAR | B122: 2.12. Recreación | C122: 2.12. | D122: 6782584 | E122: 6. | F122: P_139 | G122: Personas | H122: ¿Con qué frecuencia participa o asiste a los siguientes sitios donde se promueve el arte? | I122: Población según la frecuencia con la que participa o asiste a lugares o eventos donde se promueve el arte según subregiones y zonas de Antioquia. | J122: 2. DATOS DE LAS PERSONAS DEL HOGAR 2.12. Recreación 2.12.6. Población según la frecuencia con la que participa o asiste a lugares o eventos donde se promueve el arte según subregiones y zonas de Antioquia. | K122: 1
A123: 2. DATOS DE LAS PERSONAS DEL HOGAR | B123: 2.12. Recreación | C123: 2.12. | D123: 244892.6621 | E123: 7. | F123: P_140n | G123: Personas | H123: ¿A Cuál de los siguientes lugares o eventos donde se promueve el arte asiste principalmente? | I123: Población según el lugar o evento al que asiste en donde se promueve el arte según subregiones y zonas de Antioquia. | J123: 2. DATOS DE LAS PERSONAS DEL HOGAR 2.12. Recreación 2.12.7. Población según el lugar o evento al que asiste en donde se promueve el arte según subregiones y zonas de Antioquia. | K123: 1
A124: 2. DATOS DE LAS PERSONAS DEL HOGAR | B124: 2.12. Recreación | C124: 2.12. | D124: 6782584 | E124: 8. | F124: P_141 | G124: Personas | H124: ¿Con qué frecuencia participa o asiste a los siguientes sitios donde se promueve la recreación? | I124: Población según la frecuencia con la que participa o asiste a sitios en donde se promueve la recreación según subregiones y zonas de Antioquia. | J124: 2. DATOS DE LAS PERSONAS DEL HOGAR 2.12. Recreación 2.12.8. Población según la frecuencia con la que participa o asiste a sitios en donde se promueve la recreación según subregiones y zonas de Antioquia. | K124: 1
A125: 2. DATOS DE LAS PERSONAS DEL HOGAR | B125: 2.12. Recreación | C125: 2.12. | D125: 473054.6153 | E125: 9. | F125: P_142n | G125: Personas | H125: ¿A Cuál de los siguientes lugares o eventos donde se promueve la recreación asiste principalmente? | I125: Población según el lugar o evento al que asiste en donde se promueve la recreación según subregiones y zonas de Antioquia. | J125: 2. DATOS DE LAS PERSONAS DEL HOGAR 2.12. Recreación 2.12.9. Población según el lugar o evento al que asiste en donde se promueve la recreación según subregiones y zonas de Antioquia. | K125: 1
A126: 2. DATOS DE LAS PERSONAS DEL HOGAR | B126: 2.12. Recreación | C126: 2.12. | D126: 6782584 | E126: 10. | F126: P_143 | G126: Personas | H126: ¿participa o asiste a los siguientes eventos ? - EVENTOS MUSICALES (CONCIERTOS, RECITALES, PRESENTACIONES DE MÚSICA EN ESPACIOS ABIERTOS Y CERRADOS (EN VIVO)) | I126: Población que participa o asiste a eventos eventos musicales (conciertos, recitales, presentaciones de música en espacios abiertos y cerrados en vivo), según subregiones y zonas de Antioquia. | J126: 2. DATOS DE LAS PERSONAS DEL HOGAR 2.12. Recreación 2.12.10. Población que participa o asiste a eventos eventos musicales (conciertos, recitales, presentaciones de música en espacios abiertos y cerrados en vivo), según subregiones y zonas de Antioquia. | K126: 1
A127: 2. DATOS DE LAS PERSONAS DEL HOGAR | B127: 2.12. Recreación | C127: 2.12. | D127: 6782584 | E127: 11. | F127: P_144 | G127: Personas | H127: ¿participa o asiste a los siguientes eventos ? - DANZA | I127: Población que participa o asiste a eventos de danza según subregiones y zonas de Antioquia. | J127: 2. DATOS DE LAS PERSONAS DEL HOGAR 2.12. Recreación 2.12.11. Población que participa o asiste a eventos de danza según subregiones y zonas de Antioquia. | K127: 1
A128: 2. DATOS DE LAS PERSONAS DEL HOGAR | B128: 2.12. Recreación | C128: 2.12. | D128: 6782584 | E128: 12. | F128: P_145 | G128: Personas | H128: ¿participa o asiste a los siguientes eventos ? - TEATRO | I128: Población que participa o asiste a eventos de teatro según subregiones y zonas de Antioquia. | J128: 2. DATOS DE LAS PERSONAS DEL HOGAR 2.12. Recreación 2.12.12. Población que participa o asiste a eventos de teatro según subregiones y zonas de Antioquia. | K128: 1
A129: 2. DATOS DE LAS PERSONAS DEL HOGAR | B129: 2.12. Recreación | C129: 2.12. | D129: 6782584 | E129: 13. | F129: P_146 | G129: Personas | H129: ¿participa o asiste a los siguientes eventos ? - PINTURA | I129: Población que participa o asiste a eventos de pintura según subregiones y zonas de Antioquia. | J129: 2. DATOS DE LAS PERSONAS DEL HOGAR 2.12. Recreación 2.12.13. Población que participa o asiste a eventos de pintura según subregiones y zonas de Antioquia. | K129: 1
A130: 2. DATOS DE LAS PERSONAS DEL HOGAR | B130: 2.13. Cultura | C130: 2.13. | D130: 5980170.1 | E130: 1. | F130: P_147n | G130: Personas | H130: En los últimos 12 meses, ¿Con qué frecuencia leyó libros, documentos, artículos, trabajos académicos impresos?: | I130: Población según la frecuencia con la que en los últimos 12 meses leyó libros, documentos, artículos, trabajos académicos impresos, según subregiones y zonas de Antioquia. | J130: 2. DATOS DE LAS PERSONAS DEL HOGAR 2.13. Cultura 2.13.1. Población según la frecuencia con la que en los últimos 12 meses leyó libros, documentos, artículos, trabajos académicos impresos, según subregiones y zonas de Antioquia. | K130: 1
A131: 2. DATOS DE LAS PERSONAS DEL HOGAR | B131: 2.13. Cultura | C131: 2.13. | D131: 5980170.1 | E131: 2. | F131: P_148n | G131: Personas | H131: En los últimos 12 meses, ¿Con qué frecuencia leyó libros, documentos, artículos, noticias, revistas, periódicos o trabajos académicos en formato digital?: | I131: Población según la frecuencia con la que en los últimos 12 meses leyó libros, documentos, noticias, revistas, periódicos o trabajos académicos en formato digital, según subregiones y zonas de Antioquia. | J131: 2. DATOS DE LAS PERSONAS DEL HOGAR 2.13. Cultura 2.13.2. Población según la frecuencia con la que en los últimos 12 meses leyó libros, documentos, noticias, revistas, periódicos o trabajos académicos en formato digital, según subregiones y zonas de Antioquia. | K131: 1
A132: 2. DATOS DE LAS PERSONAS DEL HOGAR | B132: 2.13. Cultura | C132: 2.13. | D132: 5980170.1 | E132: 3. | F132: P_149n | G132: Personas | H132: En los últimos 12 meses, ¿Con qué frecuencia leyó correos electrónicos, blogs, foros, paginas web, redes sociales u otro contenido digital?: | I132: Población según la frecuencia con la que en los últimos 12 meses leyó correos electrónicos, blogs, foros, paginas web, redes sociales u otro contenido digital, según subregiones y zonas de Antioquia. | J132: 2. DATOS DE LAS PERSONAS DEL HOGAR 2.13. Cultura 2.13.3. Población según la frecuencia con la que en los últimos 12 meses leyó correos electrónicos, blogs, foros, paginas web, redes sociales u otro contenido digital, según subregiones y zonas de Antioquia. | K132: 1
A133: 2. DATOS DE LAS PERSONAS DEL HOGAR | B133: 2.13. Cultura | C133: 2.13. | D133: 5980170.1 | E133: 4. | F133: P_150 | G133: Personas | H133: En los últimos 12 meses, ¿cuántos libros leyó diferentes a los necesarios para realizar su trabajo o estudio? | I133: Población según la frecuencia con la que en los últimos 12 meses leyó diferentes a los necesarios para realizar su trabajo o estudio?(Para personas de 5 años y más), según subregiones y zonas de Antioquia. | J133: 2. DATOS DE LAS PERSONAS DEL HOGAR 2.13. Cultura 2.13.4. Población según la frecuencia con la que en los últimos 12 meses leyó diferentes a los necesarios para realizar su trabajo o estudio?(Para personas de 5 años y más), según subregiones y zonas de Antioquia. | K133: 1
A134: 2. DATOS DE LAS PERSONAS DEL HOGAR | B134: 2.14. TIC | C134: 2.14. | D134: 6782584 | E134: 1. | F134: P_151 | G134: Personas | H134: ¿Qué dispositivos usa principalmente para acceder a internet? | I134: Población según el tipo de dispositivo que usa para acceder a internet, según subregiones y zonas de Antioquia. | J134: 2. DATOS DE LAS PERSONAS DEL HOGAR 2.14. TIC 2.14.1. Población según el tipo de dispositivo que usa para acceder a internet, según subregiones y zonas de Antioquia. | K134: 1
A135: 2. DATOS DE LAS PERSONAS DEL HOGAR | B135: 2.14. TIC | C135: 2.14. | D135: 4937063.189 | E135: 2. | F135: P_152n | G135: Personas | H135: Qué tipo de celular usa? | I135: Población según el tipo de celular que usa, según subregiones y zonas de Antioquia. | J135: 2. DATOS DE LAS PERSONAS DEL HOGAR 2.14. TIC 2.14.2. Población según el tipo de celular que usa, según subregiones y zonas de Antioquia. | K135: 1
A136: 2. DATOS DE LAS PERSONAS DEL HOGAR | B136: 2.14. TIC | C136: 2.14. | D136: 6480218.127 | E136: 3. | F136: P_153n | G136: Personas | H136: ¿Cuál de las siguientes actividades realiza usted principalmente cuando usa el internet? | I136: Población según el tipo de actividades que realiza cuando usa internet, según subregiones y zonas de Antioquia. | J136: 2. DATOS DE LAS PERSONAS DEL HOGAR 2.14. TIC 2.14.3. Población según el tipo de actividades que realiza cuando usa internet, según subregiones y zonas de Antioquia. | K136: 1
A137: 2. DATOS DE LAS PERSONAS DEL HOGAR | B137: 2.14. TIC | C137: 2.14. | D137: 6480218.127 | E137: 4. | F137: P_154n | G137: Personas | H137: Frecuencia de uso del internet de la actividad principal: | I137: Población según la frecuencia de uso de internet, según subregiones y zonas de Antioquia. | J137: 2. DATOS DE LAS PERSONAS DEL HOGAR 2.14. TIC 2.14.4. Población según la frecuencia de uso de internet, según subregiones y zonas de Antioquia. | K137: 1
A138: 2. DATOS DE LAS PERSONAS DEL HOGAR | B138: 2.14. TIC | C138: 2.14. | D138: 6480218.127 | E138: 5. | F138: P_155n | G138: Personas | H138: Ha usado o conoce alguna pagina web del estado? | I138: Población que conoce alguna página web del estado, según subregiones y zonas de Antioquia. | J138: 2. DATOS DE LAS PERSONAS DEL HOGAR 2.14. TIC 2.14.5. Población que conoce alguna página web del estado, según subregiones y zonas de Antioquia. | K138: 1
A139: 2. DATOS DE LAS PERSONAS DEL HOGAR | B139: 2.15. Movilidad : Origen - Destino | C139: 2.15. | D139: 6782584 | E139: 1. | F139: P_156 | G139: Personas | H139: ¿En la última semana viajó a algún Municipio de Antioquia? | I139: Población que viajó la última semana a algún municipio de Antioquia, según subregiones y zonas de Antioquia. | J139: 2. DATOS DE LAS PERSONAS DEL HOGAR 2.15. Movilidad : Origen - Destino 2.15.1. Población que viajó la última semana a algún municipio de Antioquia, según subregiones y zonas de Antioquia. | K139: 1
A140: 2. DATOS DE LAS PERSONAS DEL HOGAR | B140: 2.15. Movilidad : Origen - Destino | C140: 2.15. | D140: 603216.1293 | E140: 2. | F140: P_157n | G140: Personas | H140: ¿A cuál municipio de Antioquia viajó en la última semana, ? | I140: Población según el municipio de Antioquia al que viajó, según subregiones y zonas de Antioquia. | J140: 2. DATOS DE LAS PERSONAS DEL HOGAR 2.15. Movilidad : Origen - Destino 2.15.2. Población según el municipio de Antioquia al que viajó, según subregiones y zonas de Antioquia. | K140: 1
A141: 2. DATOS DE LAS PERSONAS DEL HOGAR | B141: 2.15. Movilidad : Origen - Destino | C141: 2.15. | D141: 603216.1293 | E141: 3. | F141: P_158n | G141: Personas | H141: ¿Qué día de la semana realizó el viaje? | I141: Población según el el día de la semana en el que viajó a algún municipio de Antioquia, según subregiones y zonas de Antioquia. | J141: 2. DATOS DE LAS PERSONAS DEL HOGAR 2.15. Movilidad : Origen - Destino 2.15.3. Población según el el día de la semana en el que viajó a algún municipio de Antioquia, según subregiones y zonas de Antioquia. | K141: 1
A142: 2. DATOS DE LAS PERSONAS DEL HOGAR | B142: 2.15. Movilidad : Origen - Destino | C142: 2.15. | D142: 603216.1293 | E142: 4. | F142: P_159n | G142: Personas | H142: ¿Qué medio de transporte utilizó para desplazarse | I142: Población según el medio de transporte utilizado para el viaje a algún municipio de Antioquia, según subregiones y zonas de Antioquia. | J142: 2. DATOS DE LAS PERSONAS DEL HOGAR 2.15. Movilidad : Origen - Destino 2.15.4. Población según el medio de transporte utilizado para el viaje a algún municipio de Antioquia, según subregiones y zonas de Antioquia. | K142: 1
A143: 2. DATOS DE LAS PERSONAS DEL HOGAR | B143: 2.15. Movilidad : Origen - Destino | C143: 2.15. | D143: 603216.1293 | E143: 5. | F143: P_160n | G143: Personas | H143: ¿Cuál fue el principal motivo de viaje? | I143: Población según el motivo por el que viajó a algún municipio de Antioquia, según subregiones y zonas de Antioquia. | J143: 2. DATOS DE LAS PERSONAS DEL HOGAR 2.15. Movilidad : Origen - Destino 2.15.5. Población según el motivo por el que viajó a algún municipio de Antioquia, según subregiones y zonas de Antioquia. | K143: 1
A144: 2. DATOS DE LAS PERSONAS DEL HOGAR | B144: 2.15. Movilidad : Origen - Destino | C144: 2.15. | D144: 6782584 | E144: 6. | F144: P_161 | G144: Personas | H144: ¿Con qué frecuencia realiza viajes a otros municipios del departamento? | I144: Población según frecuencia con la que realiza viajes a otros municipios de Antioquia, según subregiones y zonas de Antioquia. | J144: 2. DATOS DE LAS PERSONAS DEL HOGAR 2.15. Movilidad : Origen - Destino 2.15.6. Población según frecuencia con la que realiza viajes a otros municipios de Antioquia, según subregiones y zonas de Antioquia. | K144: 1
A145: 2. DATOS DE LAS PERSONAS DEL HOGAR | B145: 2.16. Utilización de la Bicicleta y las Ciclorutas | C145: 2.16. | D145: 6782584 | E145: 1. | F145: P_162 | G145: Personas | H145: Frecuencia de uso de la bicicleta | I145: Población según la frecuencia de la bicicleta, según subregiones y zonas de Antioquia. | J145: 2. DATOS DE LAS PERSONAS DEL HOGAR 2.16. Utilización de la Bicicleta y las Ciclorutas 2.16.1. Población según la frecuencia de la bicicleta, según subregiones y zonas de Antioquia. | K145: 1
A146: 2. DATOS DE LAS PERSONAS DEL HOGAR | B146: 2.16. Utilización de la Bicicleta y las Ciclorutas | C146: 2.16. | D146: 925977.0411 | E146: 2. | F146: P_163n | G146: Personas | H146: La mayor parte de las veces que usa la bicicleta es para | I146: Población según la razón por la que usa la bicicleta, según subregiones y zonas de Antioquia. | J146: 2. DATOS DE LAS PERSONAS DEL HOGAR 2.16. Utilización de la Bicicleta y las Ciclorutas 2.16.2. Población según la razón por la que usa la bicicleta, según subregiones y zonas de Antioquia. | K146: 1
A147: 2. DATOS DE LAS PERSONAS DEL HOGAR | B147: 2.16. Utilización de la Bicicleta y las Ciclorutas | C147: 2.16. | D147: 925977.0411 | E147: 3. | F147: P_164n | G147: Personas | H147: ¿Se siente seguro al utilizar la bicicleta en su municipio? | I147: Población que considera que es seguro utilizar la bicicleta en su municipio, según subregiones y zonas de Antioquia. | J147: 2. DATOS DE LAS PERSONAS DEL HOGAR 2.16. Utilización de la Bicicleta y las Ciclorutas 2.16.3. Población que considera que es seguro utilizar la bicicleta en su municipio, según subregiones y zonas de Antioquia. | K147: 1
A148: 2. DATOS DE LAS PERSONAS DEL HOGAR | B148: 2.16. Utilización de la Bicicleta y las Ciclorutas | C148: 2.16. | D148: 6782584 | E148: 4. | F148: P_165 | G148: Personas | H148: ¿Considera qué la pavimentación de las vías y ciclorutas en su municipio favorece o motivan el uso de la bicicleta? | I148: Población que considera que la pavimentación de las vías y ciclorutas en su municipio favorecen o motivan el uso de la bicicleta, según subregiones y zonas de Antioquia. | J148: 2. DATOS DE LAS PERSONAS DEL HOGAR 2.16. Utilización de la Bicicleta y las Ciclorutas 2.16.4. Población que considera que la pavimentación de las vías y ciclorutas en su municipio favorecen o motivan el uso de la bicicleta, según subregiones y zonas de Antioquia. | K148: 1
A149: 2. DATOS DE LAS PERSONAS DEL HOGAR | B149: 2.16. Utilización de la Bicicleta y las Ciclorutas | C149: 2.16. | D149: 6782584 | E149: 5. | F149: P_166 | G149: Personas | H149: ¿Ha usado alguna vez la cicloruta en algún trayecto de su municipio? | I149: Población que alguna vez ha usado la cicloruta en su municipio, según subregiones y zonas de Antioquia. | J149: 2. DATOS DE LAS PERSONAS DEL HOGAR 2.16. Utilización de la Bicicleta y las Ciclorutas 2.16.5. Población que alguna vez ha usado la cicloruta en su municipio, según subregiones y zonas de Antioquia. | K149: 1
A150: 2. DATOS DE LAS PERSONAS DEL HOGAR | B150: 2.16. Utilización de la Bicicleta y las Ciclorutas | C150: 2.16. | D150: 5349621.859 | E150: 6. | F150: P_167n | G150: Personas | H150: ¿Aunque no las use, cómo califica el estado de las ciclorutas en su municipio? | I150: Población según la calificación que le dan al estado de las ciclorutas en su municipio, según subregiones y zonas de Antioquia. | J150: 2. DATOS DE LAS PERSONAS DEL HOGAR 2.16. Utilización de la Bicicleta y las Ciclorutas 2.16.6. Población según la calificación que le dan al estado de las ciclorutas en su municipio, según subregiones y zonas de Antioquia. | K150: 1
A151: 2. DATOS DE LAS PERSONAS DEL HOGAR | B151: 2.17. Relación de Hechos Víctimizantes | C151: 2.17. | D151: 6782584 | E151: 1. | F151: P_169 | G151: Personas | H151: Durante los últimos doce meses, ¿usted o algún miembro de su hogar ha sido víctima de algún hecho contra su vida, patrimonio, seguridad personal, etc.? (Vulneraciones por hechos victimizantes) | I151: Población que en los últimos 12 meses ha sido víctima de algún hecho contra su vida, patrimonio, seguridad personal, etc.? (Vulneraciones por hechos victimizantes), según subregiones y zonas de Antioquia. | J151: 2. DATOS DE LAS PERSONAS DEL HOGAR 2.17. Relación de Hechos Víctimizantes 2.17.1. Población que en los últimos 12 meses ha sido víctima de algún hecho contra su vida, patrimonio, seguridad personal, etc.? (Vulneraciones por hechos victimizantes), según subregiones y zonas de Antioquia. | K151: 1
A152: 2. DATOS DE LAS PERSONAS DEL HOGAR | B152: 2.17. Relación de Hechos Víctimizantes | C152: 2.17. | D152: 225099.7833 | E152: 2. | F152: P_170n | G152: Personas | H152: ¿Denunciaron el hecho ante algún organismo o autoridad competente? | I152: Población víctima que ha denunciado ante algún organismo o autoridad competente, según subregiones y zonas de Antioquia. | J152: 2. DATOS DE LAS PERSONAS DEL HOGAR 2.17. Relación de Hechos Víctimizantes 2.17.2. Población víctima que ha denunciado ante algún organismo o autoridad competente, según subregiones y zonas de Antioquia. | K152: 1
A153: 2. DATOS DE LAS PERSONAS DEL HOGAR | B153: 2.17. Relación de Hechos Víctimizantes | C153: 2.17. | D153: 225099.7833 | E153: 3. | F153: P_171n | G153: Personas | H153: ¿Dónde ocurrió el hecho? - Municipio | I153: Población víctima según el lugar en donde se desarrollaron los hechos, según subregiones y zonas de Antioquia. | J153: 2. DATOS DE LAS PERSONAS DEL HOGAR 2.17. Relación de Hechos Víctimizantes 2.17.3. Población víctima según el lugar en donde se desarrollaron los hechos, según subregiones y zonas de Antioquia. | K153: 1
A154: 3. DATOS DE LA UNIDAD DE VIVIENDA | B154: 3. Datos De La Unidad De Vivienda | C154: 3.3. | D154: 2252010 | E154: 1. | F154: P_172z | G154: Vivienda | H154: Tipo de vivienda | I154: Viviendas de acuerdo al tipo de vivienda según subregiones y zonas por subregiones y zonas de Antioquia. | J154: 3. DATOS DE LA UNIDAD DE VIVIENDA 3. Datos De La Unidad De Vivienda 3.3.1. Viviendas de acuerdo al tipo de vivienda según subregiones y zonas por subregiones y zonas de Antioquia. | K154: 1
A155: 3. DATOS DE LA UNIDAD DE VIVIENDA | B155: 3. Datos De La Unidad De Vivienda | C155: 3.3. | D155: 2252010 | E155: 2. | F155: P_173z | G155: Vivienda | H155: ¿Cuál es el Material predominante de las paredes exteriores? | I155: Viviendas de acuerdo al material predominante de las paredes exteriores según subregiones y zonas de Antioquia | J155: 3. DATOS DE LA UNIDAD DE VIVIENDA 3. Datos De La Unidad De Vivienda 3.3.2. Viviendas de acuerdo al material predominante de las paredes exteriores según subregiones y zonas de Antioquia | K155: 1
A156: 3. DATOS DE LA UNIDAD DE VIVIENDA | B156: 3. Datos De La Unidad De Vivienda | C156: 3.3. | D156: 2252010 | E156: 3. | F156: P_174z | G156: Vivienda | H156: ¿Cuál es el Material predominante de los pisos? | I156: Viviendas de acuerdo al material predominante de los pisos según subregiones y zonas de Antioquia | J156: 3. DATOS DE LA UNIDAD DE VIVIENDA 3. Datos De La Unidad De Vivienda 3.3.3. Viviendas de acuerdo al material predominante de los pisos según subregiones y zonas de Antioquia | K156: 1
A157: 3. DATOS DE LA UNIDAD DE VIVIENDA | B157: 3. Datos De La Unidad De Vivienda | C157: 3.3. | D157: 2252010 | E157: 4. | F157: P_175z | G157: Vivienda | H157: ¿De dónde obtiene principalmente esta vivienda el agua para consumo humano? | I157: Viviendas de acuerdo al proveedor de agua según subregiones y zonas de Antioquia | J157: 3. DATOS DE LA UNIDAD DE VIVIENDA 3. Datos De La Unidad De Vivienda 3.3.4. Viviendas de acuerdo al proveedor de agua según subregiones y zonas de Antioquia | K157: 1
A158: 3. DATOS DE LA UNIDAD DE VIVIENDA | B158: 3. Datos De La Unidad De Vivienda | C158: 3.3. | D158: 2252010 | E158: 5. | F158: P_176z | G158: Vivienda | H158: ¿El agua para consumo humano es potable? | I158: Viviendas de acuerdo la disponibilidad de agua potable según subregiones y zonas de Antioquia | J158: 3. DATOS DE LA UNIDAD DE VIVIENDA 3. Datos De La Unidad De Vivienda 3.3.5. Viviendas de acuerdo la disponibilidad de agua potable según subregiones y zonas de Antioquia | K158: 1
A159: 3. DATOS DE LA UNIDAD DE VIVIENDA | B159: 3. Datos De La Unidad De Vivienda | C159: 3.3. | D159: 2252010 | E159: 6. | F159: P_177 | G159: Vivienda | H159: ¿Cuántos cuartos tiene esta vivienda? SALA | I159: Viviendas que poseen cuartos destinados como sala según subregiones y zonas de Antioquia | J159: 3. DATOS DE LA UNIDAD DE VIVIENDA 3. Datos De La Unidad De Vivienda 3.3.6. Viviendas que poseen cuartos destinados como sala según subregiones y zonas de Antioquia | K159: 1
A160: 3. DATOS DE LA UNIDAD DE VIVIENDA | B160: 3. Datos De La Unidad De Vivienda | C160: 3.3. | D160: 2252010 | E160: 7. | F160: P_178 | G160: Vivienda | H160: ¿Cuántos cuartos tiene esta vivienda? COMEDOR | I160: Viviendas que poseen cuartos destinados como comedor según subregiones y zonas de Antioquia | J160: 3. DATOS DE LA UNIDAD DE VIVIENDA 3. Datos De La Unidad De Vivienda 3.3.7. Viviendas que poseen cuartos destinados como comedor según subregiones y zonas de Antioquia | K160: 1
A161: 3. DATOS DE LA UNIDAD DE VIVIENDA | B161: 3. Datos De La Unidad De Vivienda | C161: 3.3. | D161: 2252010 | E161: 8. | F161: P_179 | G161: Vivienda | H161: ¿Cuántos cuartos tiene esta vivienda? SALA COMEDOR | I161: Viviendas que poseen cuartos destinados como sala comedor según subregiones y zonas de Antioquia | J161: 3. DATOS DE LA UNIDAD DE VIVIENDA 3. Datos De La Unidad De Vivienda 3.3.8. Viviendas que poseen cuartos destinados como sala comedor según subregiones y zonas de Antioquia | K161: 1
A162: 3. DATOS DE LA UNIDAD DE VIVIENDA | B162: 3. Datos De La Unidad De Vivienda | C162: 3.3. | D162: 2252010 | E162: 9. | F162: P_180 | G162: Vivienda | H162: ¿Cuántos cuartos tiene esta vivienda? COCINA | I162: Viviendas que poseen cuartos destinados como cocina según subregiones y zonas de Antioquia | J162: 3. DATOS DE LA UNIDAD DE VIVIENDA 3. Datos De La Unidad De Vivienda 3.3.9. Viviendas que poseen cuartos destinados como cocina según subregiones y zonas de Antioquia | K162: 1
A163: 3. DATOS DE LA UNIDAD DE VIVIENDA | B163: 3. Datos De La Unidad De Vivienda | C163: 3.3. | D163: 2252010 | E163: 10. | F163: P_181 | G163: Vivienda | H163: ¿Cuántos cuartos tiene esta vivienda? GARAJES | I163: Viviendas que poseen cuartos destinados como garages según subregiones y zonas de Antioquia | J163: 3. DATOS DE LA UNIDAD DE VIVIENDA 3. Datos De La Unidad De Vivienda 3.3.10. Viviendas que poseen cuartos destinados como garages según subregiones y zonas de Antioquia | K163: 1
A164: 3. DATOS DE LA UNIDAD DE VIVIENDA | B164: 3. Datos De La Unidad De Vivienda | C164: 3.3. | D164: 2252010 | E164: 11. | F164: P_182 | G164: Vivienda | H164: ¿Cuántos cuartos tiene esta vivienda? EXCLUSIVOS PARA DORMIR | I164: Viviendas que poseen cuartos exclusivos para dormir según subregiones y zonas según subregiones y zonas de Antioquia | J164: 3. DATOS DE LA UNIDAD DE VIVIENDA 3. Datos De La Unidad De Vivienda 3.3.11. Viviendas que poseen cuartos exclusivos para dormir según subregiones y zonas según subregiones y zonas de Antioquia | K164: 1
A165: 3. DATOS DE LA UNIDAD DE VIVIENDA | B165: 3. Datos De La Unidad De Vivienda | C165: 3.3. | D165: 2252010 | E165: 12. | F165: P_183 | G165: Vivienda | H165: ¿Cuántos cuartos tiene esta vivienda? PARA DORMIR Y OTROS USOS | I165: Viviendas que poseen cuartos para dormir y otros usos según subregiones y zonas de Antioquia | J165: 3. DATOS DE LA UNIDAD DE VIVIENDA 3. Datos De La Unidad De Vivienda 3.3.12. Viviendas que poseen cuartos para dormir y otros usos según subregiones y zonas de Antioquia | K165: 1
A166: 3. DATOS DE LA UNIDAD DE VIVIENDA | B166: 3. Datos De La Unidad De Vivienda | C166: 3.3. | D166: 2252010 | E166: 13. | F166: P_184z | G166: Vivienda | H166: El estado actual del servicio de ENERGÍA es: | I166: Viviendas según el estado del servicio de energía según subregiones y zonas de Antioquia | J166: 3. DATOS DE LA UNIDAD DE VIVIENDA 3. Datos De La Unidad De Vivienda 3.3.13. Viviendas según el estado del servicio de energía según subregiones y zonas de Antioquia | K166: 1
A167: 3. DATOS DE LA UNIDAD DE VIVIENDA | B167: 3. Datos De La Unidad De Vivienda | C167: 3.3. | D167: 2226573.429 | E167: 14. | F167: P_185z | G167: Vivienda | H167: Cuantas horas al día cuenta vivienda cuenta con servicios públicos de: : ENERGÍA | I167: Viviendas según las horas disponibles del servicio de energía según subregiones y zonas de Antioquia. | J167: 3. DATOS DE LA UNIDAD DE VIVIENDA 3. Datos De La Unidad De Vivienda 3.3.14. Viviendas según las horas disponibles del servicio de energía según subregiones y zonas de Antioquia. | K167: 1
A168: 3. DATOS DE LA UNIDAD DE VIVIENDA | B168: 3. Datos De La Unidad De Vivienda | C168: 3.3. | D168: 2226573.429 | E168: 15. | F168: P_186z | G168: Vivienda | H168: ¿Como califica su calidad? | I168: Percepción de la calidad en el servicio de energía por vivienda según subregiones y zonas de Antioquia | J168: 3. DATOS DE LA UNIDAD DE VIVIENDA 3. Datos De La Unidad De Vivienda 3.3.15. Percepción de la calidad en el servicio de energía por vivienda según subregiones y zonas de Antioquia | K168: 1
A169: 3. DATOS DE LA UNIDAD DE VIVIENDA | B169: 3. Datos De La Unidad De Vivienda | C169: 3.3. | D169: 2252010 | E169: 16. | F169: P_187z | G169: Vivienda | H169: El estado actual del servicio de ACUEDUCTO es: | I169: Viviendas según el estado del servicio de acueducto según subregiones y zonas de Antioquia | J169: 3. DATOS DE LA UNIDAD DE VIVIENDA 3. Datos De La Unidad De Vivienda 3.3.16. Viviendas según el estado del servicio de acueducto según subregiones y zonas de Antioquia | K169: 1
A170: 3. DATOS DE LA UNIDAD DE VIVIENDA | B170: 3. Datos De La Unidad De Vivienda | C170: 3.3. | D170: 2110664.139 | E170: 17. | F170: P_188z | G170: Vivienda | H170: Cuantas horas al día cuenta vivienda cuenta con servicios públicos de: ACUEDUCTO | I170: Viviendas según las horas disponibles del servicio de acueducto según subregiones y zonas de Antioquia | J170: 3. DATOS DE LA UNIDAD DE VIVIENDA 3. Datos De La Unidad De Vivienda 3.3.17. Viviendas según las horas disponibles del servicio de acueducto según subregiones y zonas de Antioquia | K170: 1
A171: 3. DATOS DE LA UNIDAD DE VIVIENDA | B171: 3. Datos De La Unidad De Vivienda | C171: 3.3. | D171: 2110664.139 | E171: 18. | F171: P_189z | G171: Vivienda | H171: ¿Como califica su calidad? | I171: Percepción de la calidad en el servicio de acueducto por vivienda según subregiones y zonas de Antioquia | J171: 3. DATOS DE LA UNIDAD DE VIVIENDA 3. Datos De La Unidad De Vivienda 3.3.18. Percepción de la calidad en el servicio de acueducto por vivienda según subregiones y zonas de Antioquia | K171: 1
A172: 3. DATOS DE LA UNIDAD DE VIVIENDA | B172: 3. Datos De La Unidad De Vivienda | C172: 3.3. | D172: 2252010 | E172: 19. | F172: P_190z | G172: Vivienda | H172: La unidad de vivienda cuenta con servicios públicos de: ALCANTARILLADO | I172: Viviendas que poseen o no el servicio de alcantarillado según subregiones y zonas de Antioquia. | J172: 3. DATOS DE LA UNIDAD DE VIVIENDA 3. Datos De La Unidad De Vivienda 3.3.19. Viviendas que poseen o no el servicio de alcantarillado según subregiones y zonas de Antioquia. | K172: 1
A173: 3. DATOS DE LA UNIDAD DE VIVIENDA | B173: 3. Datos De La Unidad De Vivienda | C173: 3.3. | D173: 1868664.507 | E173: 20. | F173: P_191z | G173: Vivienda | H173: ¿Como califica su calidad? | I173: Percepción de la calidad en el servicio de alcantarillado por vivienda según subregiones y zonas de Antioquia | J173: 3. DATOS DE LA UNIDAD DE VIVIENDA 3. Datos De La Unidad De Vivienda 3.3.20. Percepción de la calidad en el servicio de alcantarillado por vivienda según subregiones y zonas de Antioquia | K173: 1
A174: 3. DATOS DE LA UNIDAD DE VIVIENDA | B174: 3. Datos De La Unidad De Vivienda | C174: 3.3. | D174: 2252010 | E174: 21. | F174: P_192z | G174: Vivienda | H174: El estado actual del servicio de TELÉFONO (LÍNEA FIJA) es: | I174: Viviendas según el estado del servicio de teléfono según subregiones y zonas de Antioquia | J174: 3. DATOS DE LA UNIDAD DE VIVIENDA 3. Datos De La Unidad De Vivienda 3.3.21. Viviendas según el estado del servicio de teléfono según subregiones y zonas de Antioquia | K174: 1
A175: 3. DATOS DE LA UNIDAD DE VIVIENDA | B175: 3. Datos De La Unidad De Vivienda | C175: 3.3. | D175: 892355.2659 | E175: 22. | F175: P_193z | G175: Vivienda | H175: ¿Como califica su calidad? | I175: Percepción de la calidad en el servicio de teléfono por vivienda según subregiones y zonas de Antioquia | J175: 3. DATOS DE LA UNIDAD DE VIVIENDA 3. Datos De La Unidad De Vivienda 3.3.22. Percepción de la calidad en el servicio de teléfono por vivienda según subregiones y zonas de Antioquia | K175: 1
A176: 3. DATOS DE LA UNIDAD DE VIVIENDA | B176: 3. Datos De La Unidad De Vivienda | C176: 3.3. | D176: 2252010 | E176: 23. | F176: P_194z | G176: Vivienda | H176: El estado actual del servicio de GAS NATURAL (RED) es: | I176: Viviendas según el estado del servicio de gas natural según subregiones y zonas de Antioquia | J176: 3. DATOS DE LA UNIDAD DE VIVIENDA 3. Datos De La Unidad De Vivienda 3.3.23. Viviendas según el estado del servicio de gas natural según subregiones y zonas de Antioquia | K176: 1
A177: 3. DATOS DE LA UNIDAD DE VIVIENDA | B177: 3. Datos De La Unidad De Vivienda | C177: 3.3. | D177: 1518210.433 | E177: 24. | F177: P_195z | G177: Vivienda | H177: ¿Como califica su calidad? | I177: Percepción de la calidad en el servicio de gas natural por vivienda según subregiones y zonas de Antioquia | J177: 3. DATOS DE LA UNIDAD DE VIVIENDA 3. Datos De La Unidad De Vivienda 3.3.24. Percepción de la calidad en el servicio de gas natural por vivienda según subregiones y zonas de Antioquia | K177: 1
A178: 3. DATOS DE LA UNIDAD DE VIVIENDA | B178: 3. Datos De La Unidad De Vivienda | C178: 3.3. | D178: 2252010 | E178: 25. | F178: P_196z | G178: Vivienda | H178: La unidad de vivienda cuenta con servicios públicos de: ASEO (RECOLECCIÓN) | I178: Viviendas que poseen o no el servicio de aseo según subregiones y zonas de Antioquia | J178: 3. DATOS DE LA UNIDAD DE VIVIENDA 3. Datos De La Unidad De Vivienda 3.3.25. Viviendas que poseen o no el servicio de aseo según subregiones y zonas de Antioquia | K178: 1
A179: 3. DATOS DE LA UNIDAD DE VIVIENDA | B179: 3. Datos De La Unidad De Vivienda | C179: 3.3. | D179: 2124626.419 | E179: 26. | F179: P_197z | G179: Vivienda | H179: ¿Como califica su calidad? | I179: Percepción de la calidad en el servicio de aseo por vivienda según subregiones y zonas de Antioquia | J179: 3. DATOS DE LA UNIDAD DE VIVIENDA 3. Datos De La Unidad De Vivienda 3.3.26. Percepción de la calidad en el servicio de aseo por vivienda según subregiones y zonas de Antioquia | K179: 1
A180: 3. DATOS DE LA UNIDAD DE VIVIENDA | B180: 3. Datos De La Unidad De Vivienda | C180: 3.3. | D180: 2252010 | E180: 27. | F180: P_198z | G180: Vivienda | H180: La unidad de vivienda cuenta con servicios públicos de: Gas en pipeta | I180: Viviendas que poseen o no el servicio de gas en pipeta según subregiones y zonas de Antioquia | J180: 3. DATOS DE LA UNIDAD DE VIVIENDA 3. Datos De La Unidad De Vivienda 3.3.27. Viviendas que poseen o no el servicio de gas en pipeta según subregiones y zonas de Antioquia | K180: 1
A181: 3. DATOS DE LA UNIDAD DE VIVIENDA | B181: 3. Datos De La Unidad De Vivienda | C181: 3.3. | D181: 699816.165 | E181: 28. | F181: P_199z | G181: Vivienda | H181: ¿Como califica su calidad? | I181: Percepción de la calidad en el servicio de gas en pipeta por vivienda según subregiones y zonas de Antioquia | J181: =(A181&CHAR(10)&B181&CHAR(10)&C181&E181&" "&I181&CHAR(10)) -> 3. DATOS DE LA UNIDAD DE VIVIENDA 3. Datos De La Unidad De Vivienda 3.3.28. Percepción de la calidad en el servicio de gas en pipeta por vivienda según subregiones y zonas de Antioquia | K181: 1
A182: 3. DATOS DE LA UNIDAD DE VIVIENDA | B182: 3. Datos De La Unidad De Vivienda | C182: 3.3. | D182: 2252010 | E182: 29. | F182: P_200z | G182: Vivienda | H182: El estado actual del servicio de CONEXIÓN A INTERNET es: | I182: Viviendas según el estado actual del servicio de internet según subregiones y zonas de Antioquia | J182: 3. DATOS DE LA UNIDAD DE VIVIENDA 3. Datos De La Unidad De Vivienda 3.3.29. Viviendas según el estado actual del servicio de internet según subregiones y zonas de Antioquia | K182: 1
A183: 3. DATOS DE LA UNIDAD DE VIVIENDA | B183: 3. Datos De La Unidad De Vivienda | C183: 3.3. | D183: 1355759.61 | E183: 30. | F183: P_201z | G183: Vivienda | H183: ¿Como califica su calidad? | I183: Percepción de la calidad en la conexión a internet por vivienda según subregiones y zonas de Antioquia | J183: 3. DATOS DE LA UNIDAD DE VIVIENDA 3. Datos De La Unidad De Vivienda 3.3.30. Percepción de la calidad en la conexión a internet por vivienda según subregiones y zonas de Antioquia | K183: 1
A184: 3. DATOS DE LA UNIDAD DE VIVIENDA | B184: 3. Datos De La Unidad De Vivienda | C184: 3.3. | D184: 1355759.61 | E184: 31. | F184: P_202z | G184: Vivienda | H184: Tipo de conexión a internet | I184: Viviendas según el tipo de conexión a internet según subregiones y zonas de Antioquia | J184: 3. DATOS DE LA UNIDAD DE VIVIENDA 3. Datos De La Unidad De Vivienda 3.3.31. Viviendas según el tipo de conexión a internet según subregiones y zonas de Antioquia | K184: 1
A185: 3. DATOS DE LA UNIDAD DE VIVIENDA | B185: 3. Datos De La Unidad De Vivienda | C185: 3.3. | D185: 896250.3896 | E185: 32. | F185: P_203z | G185: Vivienda | H185: ¿Por qué razón no posee conexión a internet? | I185: Viviendas según la razón para no tener conexión a internet según subregiones y zonas de Antioquia | J185: 3. DATOS DE LA UNIDAD DE VIVIENDA 3. Datos De La Unidad De Vivienda 3.3.32. Viviendas según la razón para no tener conexión a internet según subregiones y zonas de Antioquia | K185: 1
A186: 3. DATOS DE LA UNIDAD DE VIVIENDA | B186: 3. Datos De La Unidad De Vivienda | C186: 3.3. | D186: 2252010 | E186: 33. | F186: P_204z | G186: Vivienda | H186: ¿Conoce usted si la vivienda esta ubicada en zona de riesgo? | I186: Viviendas según ubicación en zona de riesgo, según subregiones y zonas de Antioquia | J186: 3. DATOS DE LA UNIDAD DE VIVIENDA 3. Datos De La Unidad De Vivienda 3.3.33. Viviendas según ubicación en zona de riesgo, según subregiones y zonas de Antioquia | K186: 1
A187: 3. DATOS DE LA UNIDAD DE VIVIENDA | B187: 3. Datos De La Unidad De Vivienda | C187: 3.3. | D187: 2252010 | E187: 34. | F187: P_205z | G187: Vivienda | H187: Esta vivienda, en el último año, se ha visto afectada por: | I187: Viviendas con afectaciones en el último año según subregiones y zonas de Antioquia | J187: 3. DATOS DE LA UNIDAD DE VIVIENDA 3. Datos De La Unidad De Vivienda 3.3.34. Viviendas con afectaciones en el último año según subregiones y zonas de Antioquia | K187: 1
A188: 3. DATOS DE LA UNIDAD DE VIVIENDA | B188: 3. Datos De La Unidad De Vivienda | C188: 3.3. | D188: 197384.1047 | E188: 35. | F188: P_206z | G188: Vivienda | H188: ¿Cuántas veces se ha presentado en el último año? | I188: Viviendas según la frecuencia de las afectaciones en el último año según subregiones y zonas de Antioquia | J188: 3. DATOS DE LA UNIDAD DE VIVIENDA 3. Datos De La Unidad De Vivienda 3.3.35. Viviendas según la frecuencia de las afectaciones en el último año según subregiones y zonas de Antioquia | K188: 1
A189: 3. DATOS DE LA UNIDAD DE VIVIENDA | B189: 3. Datos De La Unidad De Vivienda | C189: 3.3. | D189: 2252010 | E189: 36. | F189: P_207z | G189: Vivienda | H189: ¿En este hogar hacen separación de residuos solidos ? | I189: Viviendas según la disposición de los residuos sólidos según subregiones y zonas de Antioquia | J189: 3. DATOS DE LA UNIDAD DE VIVIENDA 3. Datos De La Unidad De Vivienda 3.3.36. Viviendas según la disposición de los residuos sólidos según subregiones y zonas de Antioquia | K189: 1
A190: 3. DATOS DE LA UNIDAD DE VIVIENDA | B190: 3. Datos De La Unidad De Vivienda | C190: 3.3. | D190: 1528923.771 | E190: 37. | F190: P_208z | G190: Vivienda | H190: ¿Cómo disponen principalmente los residuos en esta unidad de vivienda? | I190: Viviendas según el tipo de servicio sanitario con el que cuentan según subregiones y zonas de Antioquia | J190: 3. DATOS DE LA UNIDAD DE VIVIENDA 3. Datos De La Unidad De Vivienda 3.3.37. Viviendas según el tipo de servicio sanitario con el que cuentan según subregiones y zonas de Antioquia | K190: 1
A191: 3. DATOS DE LA UNIDAD DE VIVIENDA | B191: 3. Datos De La Unidad De Vivienda | C191: 3.3. | D191: 2252010 | E191: 38. | F191: P_209z | G191: Vivienda | H191: ¿Con qué tipo de servicio sanitario cuenta el hogar? | I191: Viviendas según el tipo de servicio sanitario con el que cuentan según subregiones y zonas de Antioquia | J191: 3. DATOS DE LA UNIDAD DE VIVIENDA 3. Datos De La Unidad De Vivienda 3.3.38. Viviendas según el tipo de servicio sanitario con el que cuentan según subregiones y zonas de Antioquia | K191: 1
A192: 3. DATOS DE LA UNIDAD DE VIVIENDA | B192: 3. Datos De La Unidad De Vivienda | C192: 3.3. | D192: 2192705 | E192: 39. | F192: P_210n | G192: Vivienda | H192: Número de servicios sanitarios de uso exclusivo del hogar | I192: Viviendas según el número de servicios sanitarios con el que cuentan según subregiones y zonas de Antioquia | J192: 3. DATOS DE LA UNIDAD DE VIVIENDA 3. Datos De La Unidad De Vivienda 3.3.39. Viviendas según el número de servicios sanitarios con el que cuentan según subregiones y zonas de Antioquia | K192: 1
A193: 3. DATOS DE LA UNIDAD DE VIVIENDA | B193: 3. Datos De La Unidad De Vivienda | C193: 3.3. | D193: 3119 | E193: 40. | F193: P_211n | G193: Vivienda | H193: Número de servicios sanitarios compartidos con personas de otro hogar | I193: Viviendas según el número de servicios sanitarios compartidos con otro hogar según subregiones y zonas de Antioquia | J193: 3. DATOS DE LA UNIDAD DE VIVIENDA 3. Datos De La Unidad De Vivienda 3.3.40. Viviendas según el número de servicios sanitarios compartidos con otro hogar según subregiones y zonas de Antioquia | K193: 1
A194: 3. DATOS DE LA UNIDAD DE VIVIENDA | B194: 3. Datos De La Unidad De Vivienda | C194: 3.3. | D194: 2252010 | E194: 41. | F194: P_212z | G194: Vivienda | H194: Incluyendo sala-comedor ¿De cuántos cuartos en total dispone este HOGAR para uso exclusivo?. Excluya cocinas, baños, garajes y cuartos dedicados a negocio | I194: Viviendas según el número de cuartos con los que cuenta para uso exclusivo, incluyendo sala-comedor, excluyendo cocinas, baños, garages y cuartos dedeicados a negocio, según subregiones y zonas de Antioquia | J194: 3. DATOS DE LA UNIDAD DE VIVIENDA 3. Datos De La Unidad De Vivienda 3.3.41. Viviendas según el número de cuartos con los que cuenta para uso exclusivo, incluyendo sala-comedor, excluyendo cocinas, baños, garages y cuartos dedeicados a negocio, según subregiones y zonas de Antioquia | K194: 1
A195: 3. DATOS DE LA UNIDAD DE VIVIENDA | B195: 3. Datos De La Unidad De Vivienda | C195: 3.3. | D195: 2252010 | E195: 42. | F195: P_213z | G195: Vivienda | H195: ¿En cuántos, de los cuartos que son exclusivos para dormir, duermen las personas de este hogar? | I195: Viviendas según el número de cuartos exclusivos en los que duermen personas, según subregiones y zonas de Antioquia | J195: 3. DATOS DE LA UNIDAD DE VIVIENDA 3. Datos De La Unidad De Vivienda 3.3.42. Viviendas según el número de cuartos exclusivos en los que duermen personas, según subregiones y zonas de Antioquia | K195: 1
A196: 4. DATOS DEL HOGAR | B196: 4. Datos Del Hogar | C196: 4. | D196: 2302956 | E196: 1. | F196: P_214 | G196: Hogar | H196: ¿Cuántos de los siguientes servicios o bienes, en funcionamiento, posee este hogar? - NEVERA O ENFRIADOR | I196: Hogares según el número de servicios o bienes, en funcionamiento, posee este hogar. NEVERA O ENFRIADOR. Según subregiones y zonas de Antioquia. | J196: 4. DATOS DEL HOGAR 4. Datos Del Hogar 4.1. Hogares según el número de servicios o bienes, en funcionamiento, posee este hogar. NEVERA O ENFRIADOR. Según subregiones y zonas de Antioquia. | K196: 1
A197: 4. DATOS DEL HOGAR | B197: 4. Datos Del Hogar | C197: 4. | D197: 2302956 | E197: 2. | F197: P_215 | G197: Hogar | H197: ¿Cuántos de los siguientes servicios o bienes, en funcionamiento, posee este hogar? - LAVADORA DE ROPA | I197: Hogares según el número de servicios o bienes, en funcionamiento, posee este hogar. LAVADORA DE ROPA. Según subregiones y zonas de Antioquia. | J197: 4. DATOS DEL HOGAR 4. Datos Del Hogar 4.2. Hogares según el número de servicios o bienes, en funcionamiento, posee este hogar. LAVADORA DE ROPA. Según subregiones y zonas de Antioquia. | K197: 1
A198: 4. DATOS DEL HOGAR | B198: 4. Datos Del Hogar | C198: 4. | D198: 2302956 | E198: 3. | F198: P_216 | G198: Hogar | H198: ¿Cuántos de los siguientes servicios o bienes, en funcionamiento, posee este hogar? - TELEVISOR | I198: Hogares según el número de servicios o bienes, en funcionamiento, posee este hogar. TELEVISOR. Según subregiones y zonas de Antioquia. | J198: 4. DATOS DEL HOGAR 4. Datos Del Hogar 4.3. Hogares según el número de servicios o bienes, en funcionamiento, posee este hogar. TELEVISOR. Según subregiones y zonas de Antioquia. | K198: 1
A199: 4. DATOS DEL HOGAR | B199: 4. Datos Del Hogar | C199: 4. | D199: 2302956 | E199: 4. | F199: P_217 | G199: Hogar | H199: ¿Cuántos de los siguientes servicios o bienes, en funcionamiento, posee este hogar? - CALENTADOR DE AGUA O DUCHA ELÉCTRICA O A GAS | I199: Hogares según el número de servicios o bienes, en funcionamiento, posee este hogar. CALENTADOR DE AGUA O DUCHA ELÉCTRICA O A GAS. Según subregiones y zonas de Antioquia. | J199: 4. DATOS DEL HOGAR 4. Datos Del Hogar 4.4. Hogares según el número de servicios o bienes, en funcionamiento, posee este hogar. CALENTADOR DE AGUA O DUCHA ELÉCTRICA O A GAS. Según subregiones y zonas de Antioquia. | K199: 1
A200: 4. DATOS DEL HOGAR | B200: 4. Datos Del Hogar | C200: 4. | D200: 2302956 | E200: 5. | F200: P_218 | G200: Hogar | H200: ¿Cuántos de los siguientes servicios o bienes, en funcionamiento, posee este hogar? - CALENTADOR DE AGUA A GAS | I200: Hogares según el número de servicios o bienes, en funcionamiento, posee este hogar. NEVERA O ENFRIADOR. Según subregiones y zonas de Antioquia. | J200: 4. DATOS DEL HOGAR 4. Datos Del Hogar 4.5. Hogares según el número de servicios o bienes, en funcionamiento, posee este hogar. NEVERA O ENFRIADOR. Según subregiones y zonas de Antioquia. | K200: 1
... 173 more rows

Sheet Viviendas
A1: VOLVER AL MENÚ
A3: =$E$3 -> P_005 : Zona REC | E3: P_005 : Zona REC
E4: Total | G4: Urbano | I4: Rural
E5: Recuento | F5: % del N de fila | G5: Recuento | H5: % del N de fila | I5: Recuento | J5: % del N de fila
B6: Total | C6: P_004_CADENA | D6: Total Departamento | E6: 2252010 | F6: 100 | G6: 1807124.31 | H6: =(G6/$E6)*100 -> 80.24495053 | I6: 444885.6896 | J6: =(I6/$E6)*100 -> 19.75504947
B7: Valle de Aburrá | C7: P_004_CADENA | D7: ="Total"&" "&B7 -> Total Valle de Aburrá | E7: 1412741 | F7: 100 | G7: 1325242.31 | H7: =(G7/$E7)*100 -> 93.80645924 | I7: 87498.68962 | J7: =(I7/$E7)*100 -> 6.193540757
D8: Barbosa | E8: 20038 | F8: 100 | G8: 8667 | H8: 43.25281964 | I8: 11371 | J8: 56.74718036
D9: Bello | E9: 184639 | F9: 100 | G9: 179507 | H9: 97.22052221 | I9: 5132 | J9: 2.779477792
D10: Caldas | E10: 27496 | F10: 100 | G10: 22511 | H10: 81.87009019 | I10: 4985 | J10: 18.12990981
D11: Copacabana | E11: 27315 | F11: 100 | G11: 22593 | H11: 82.71279517 | I11: 4722 | J11: 17.28720483
D12: Envigado | E12: 87487 | F12: 100 | G12: 84843 | H12: 96.97783671 | I12: 2644 | J12: 3.022163293
D13: Girardota | E13: 17383 | F13: 100 | G13: 10234 | H13: 58.87361215 | I13: 7149 | J13: 41.12638785
D14: Itagüí | E14: 94617 | F14: 100 | G14: 87148 | H14: 92.10606973 | I14: 7469 | J14: 7.893930266
D15: La Estrella | E15: 25059 | F15: 100 | G15: 21578 | H15: 86.10878327 | I15: 3481 | J15: 13.89121673
D16: Medellín | E16: 895573 | F16: 100 | G16: 858416.3104 | H16: 95.85107081 | I16: 37156.68962 | J16: 4.148929191
D17: Sabaneta | E17: 33134 | F17: 100 | G17: 29745 | H17: 89.77183558 | I17: 3389 | J17: 10.22816442
B18: Bajo Cauca | C18: P_004_CADENA | D18: ="Total"&" "&B18 -> Total Bajo Cauca | E18: 77368 | F18: 100 | G18: 50412 | H18: 65.15872195 | I18: 26956 | J18: 34.84127805
D19: Cáceres | E19: 8886 | F19: 100 | G19: 1886 | H19: 21.22439793 | I19: 7000 | J19: 78.77560207
D20: Caucasia | E20: 29058 | F20: 100 | G20: 25940 | H20: 89.26973639 | I20: 3118 | J20: 10.73026361
D21: El Bagre | E21: 14981 | F21: 100 | G21: 10079 | H21: 67.27855283 | I21: 4902 | J21: 32.72144717
D22: Nechí | E22: 7609 | F22: 100 | G22: 4142 | H22: 54.43553686 | I22: 3467 | J22: 45.56446314
D23: Tarazá | E23: 9020 | F23: 100 | G23: 4592 | H23: 50.90909091 | I23: 4428 | J23: 49.09090909
D24: Zaragoza | E24: 7814 | F24: 100 | G24: 3773 | H24: 48.28512926 | I24: 4041 | J24: 51.71487074
B25: Magdalena Medio | C25: P_004_CADENA | D25: ="Total"&" "&B25 -> Total Magdalena Medio | E25: 35647 | F25: 100 | G25: 20859 | H25: 58.51544309 | I25: 14788 | J25: 41.48455691
D26: Caracolí | E26: 1760 | F26: 100 | G26: 1147 | H26: 65.17045455 | I26: 613 | J26: 34.82954545
D27: Maceo | E27: 2910 | F27: 100 | G27: 1196 | H27: 41.09965636 | I27: 1714 | J27: 58.90034364
D28: Puerto Berrío | E28: 13749 | F28: 100 | G28: 11886 | H28: 86.44992363 | I28: 1863 | J28: 13.55007637
D29: Puerto Nare | E29: 5276 | F29: 100 | G29: 1908 | H29: 36.16376042 | I29: 3368 | J29: 63.83623958
D30: Puerto Triunfo | E30: 5677 | F30: 100 | G30: 1241 | H30: 21.8601374 | I30: 4436 | J30: 78.1398626
D31: Yondó | E31: 6275 | F31: 100 | G31: 3481 | H31: 55.47410359 | I31: 2794 | J31: 44.52589641
B32: Nordeste | C32: P_004_CADENA | D32: ="Total"&" "&B32 -> Total Nordeste | E32: 68400 | F32: 100 | G32: 37807 | H32: 55.27339181 | I32: 30593 | J32: 44.72660819
D33: Amalfi | E33: 9084 | F33: 100 | G33: 5412 | H33: 59.57727873 | I33: 3672 | J33: 40.42272127
D34: Anorí | E34: 6233 | F34: 100 | G34: 2840 | H34: 45.5639339 | I34: 3393 | J34: 54.4360661
D35: Cisneros | E35: 3577 | F35: 100 | G35: 3197 | H35: 89.37657255 | I35: 380 | J35: 10.62342745
D36: Remedios | E36: 9731 | F36: 100 | G36: 4412 | H36: 45.33963621 | I36: 5319 | J36: 54.66036379
D37: San Roque | E37: 7688 | F37: 100 | G37: 2677 | H37: 34.82049948 | I37: 5011 | J37: 65.17950052
D38: Santo Domingo | E38: 4250 | F38: 100 | G38: 1085 | H38: 25.52941176 | I38: 3165 | J38: 74.47058824
D39: Segovia | E39: 13052 | F39: 100 | G39: 11018 | H39: 84.41618143 | I39: 2034 | J39: 15.58381857
D40: Vegachí | E40: 4023 | F40: 100 | G40: 2980 | H40: 74.07407407 | I40: 1043 | J40: 25.92592593
D41: Yalí | E41: 2777 | F41: 100 | G41: 1421 | H41: 51.17032769 | I41: 1356 | J41: 48.82967231
D42: Yolombó | E42: 7985 | F42: 100 | G42: 2765 | H42: 34.62742642 | I42: 5220 | J42: 65.37257358
B43: Norte | C43: P_004_CADENA | D43: ="Total"&" "&B43 -> Total Norte | E43: 77455 | F43: 100 | G43: 42410 | H43: 54.75437351 | I43: 35045 | J43: 45.24562649
D44: Angostura | E44: 3532 | F44: 100 | G44: 1056 | H44: 29.89807475 | I44: 2476 | J44: 70.10192525
D45: Belmira | E45: 1805 | F45: 100 | G45: 580 | H45: 32.13296399 | I45: 1225 | J45: 67.86703601
D46: Briceño | E46: 2661 | F46: 100 | G46: 1022 | H46: 38.40661405 | I46: 1639 | J46: 61.59338595
D47: Campamento | E47: 2795 | F47: 100 | G47: 987 | H47: 35.31305903 | I47: 1808 | J47: 64.68694097
D48: Carolina del Príncipe | E48: 1544 | F48: 100 | G48: 1207 | H48: 78.17357513 | I48: 337 | J48: 21.82642487
D49: Donmatías | E49: 6720 | F49: 100 | G49: 4602 | H49: 68.48214286 | I49: 2118 | J49: 31.51785714
D50: Entrerríos | E50: 3763 | F50: 100 | G50: 2120 | H50: 56.33802817 | I50: 1643 | J50: 43.66197183
D51: Gómez Plata | E51: 3711 | F51: 100 | G51: 2133 | H51: 57.4777688 | I51: 1578 | J51: 42.5222312
D52: Guadalupe | E52: 2121 | F52: 100 | G52: 824 | H52: 38.84959925 | I52: 1297 | J52: 61.15040075
D53: Ituango | E53: 6636 | F53: 100 | G53: 2573 | H53: 38.77335744 | I53: 4063 | J53: 61.22664256
D54: San Andrés de Cuerquia | E54: 2287 | F54: 100 | G54: 1079 | H54: 47.17971141 | I54: 1208 | J54: 52.82028859
D55: San José de la Montaña | E55: 1206 | F55: 100 | G55: 839 | H55: 69.56882255 | I55: 367 | J55: 30.43117745
D56: San Pedro de los Milagros | E56: 7110 | F56: 100 | G56: 4300 | H56: 60.47819972 | I56: 2810 | J56: 39.52180028
D57: Santa Rosa de Osos | E57: 11536 | F57: 100 | G57: 6843 | H57: 59.31865465 | I57: 4693 | J57: 40.68134535
D58: Toledo | E58: 1671 | F58: 100 | G58: 684 | H58: 40.93357271 | I58: 987 | J58: 59.06642729
D59: Valdivia | E59: 4776 | F59: 100 | G59: 1442 | H59: 30.19262982 | I59: 3334 | J59: 69.80737018
D60: Yarumal | E60: 13581 | F60: 100 | G60: 10119 | H60: 74.50850453 | I60: 3462 | J60: 25.49149547
B61: Occidente | C61: P_004_CADENA | D61: ="Total"&" "&B61 -> Total Occidente | E61: 69973 | F61: 100 | G61: 30044 | H61: 42.93656125 | I61: 39929 | J61: 57.06343875
D62: Abriaquí | E62: 948 | F62: 100 | G62: 372 | H62: 39.24050633 | I62: 576 | J62: 60.75949367
D63: Anzá | E63: 2433 | F63: 100 | G63: 601 | H63: 24.70201397 | I63: 1832 | J63: 75.29798603
D64: Armenia | E64: 1861 | F64: 100 | G64: 723 | H64: 38.8500806 | I64: 1138 | J64: 61.1499194
D65: Buriticá | E65: 2877 | F65: 100 | G65: 820 | H65: 28.50191171 | I65: 2057 | J65: 71.49808829
D66: Caicedo | E66: 2778 | F66: 100 | G66: 731 | H66: 26.31389489 | I66: 2047 | J66: 73.68610511
D67: Cañasgordas | E67: 5171 | F67: 100 | G67: 2009 | H67: 38.85128602 | I67: 3162 | J67: 61.14871398
D68: Dabeiba | E68: 6913 | F68: 100 | G68: 3229 | H68: 46.7090988 | I68: 3684 | J68: 53.2909012
D69: Ebéjico | E69: 4600 | F69: 100 | G69: 1076 | H69: 23.39130435 | I69: 3524 | J69: 76.60869565
D70: Frontino | E70: 6321 | F70: 100 | G70: 3302 | H70: 52.23856985 | I70: 3019 | J70: 47.76143015
D71: Giraldo | E71: 1806 | F71: 100 | G71: 747 | H71: =(G71/$E71)*100 -> 41.36212625 | I71: 1059 | J71: =(I71/$E71)*100 -> 58.63787375
D72: Heliconia | E72: 1943 | F72: 100 | G72: 942 | H72: 48.48172928 | I72: 1001 | J72: 51.51827072
D73: Liborina | E73: 3303 | F73: 100 | G73: 926 | H73: 28.03511959 | I73: 2377 | J73: 71.96488041
D74: Olaya | E74: 1140 | F74: 100 | G74: 135 | H74: 11.84210526 | I74: 1005 | J74: 88.15789474
D75: Peque | E75: 2526 | F75: 100 | G75: 915 | H75: 36.22327791 | I75: 1611 | J75: 63.77672209
D76: Sabanalarga | E76: 2926 | F76: 100 | G76: 1113 | H76: 38.03827751 | I76: 1813 | J76: 61.96172249
D77: San Jerónimo | E77: 5276 | F77: 100 | G77: 2527 | H77: 47.89613343 | I77: 2749 | J77: 52.10386657
D78: Santa Fe de Antioquia | E78: 9274 | F78: 100 | G78: 6392 | H78: 68.92387319 | I78: 2882 | J78: 31.07612681
D79: Sopetrán | E79: 5638 | F79: 100 | G79: 2649 | H79: 46.98474636 | I79: 2989 | J79: 53.01525364
D80: Uramita | E80: 2239 | F80: 100 | G80: 835 | H80: 37.29343457 | I80: 1404 | J80: 62.70656543
B81: Oriente | C81: P_004_CADENA | D81: ="Total"&" "&B81 -> Total Oriente | E81: 227877 | F81: 100 | G81: 138308 | H81: 60.6941464 | I81: 89569 | J81: 39.3058536
D82: Abejorral | E82: 7061 | F82: 100 | G82: 3095 | H82: 43.83231837 | I82: 3966 | J82: 56.16768163
D83: Alejandría | E83: 1736 | F83: 100 | G83: 1026 | H83: 59.10138249 | I83: 710 | J83: 40.89861751
D84: Argelia | E84: 2616 | F84: 100 | G84: 1420 | H84: 54.28134557 | I84: 1196 | J84: 45.71865443
D85: Cocorná | E85: 5257 | F85: 100 | G85: 2585 | H85: 49.17253186 | I85: 2672 | J85: 50.82746814
D86: Concepción | E86: 1712 | F86: 100 | G86: 800 | H86: 46.72897196 | I86: 912 | J86: 53.27102804
D87: El Carmen de Viboral | E87: 19767 | F87: 100 | G87: 12191 | H87: 61.67349623 | I87: 7576 | J87: 38.32650377
D88: El Peñol | E88: 7562 | F88: 100 | G88: 4315 | H88: 57.06162391 | I88: 3247 | J88: 42.93837609
D89: El Retiro | E89: 8420 | F89: 100 | G89: 4841 | H89: 57.49406176 | I89: 3579 | J89: 42.50593824
D90: El Santuario | E90: 11003 | F90: 100 | G90: 8086 | H90: 73.48904844 | I90: 2917 | J90: 26.51095156
D91: Granada | E91: 3475 | F91: 100 | G91: 1986 | H91: 57.15107914 | I91: 1489 | J91: 42.84892086
D92: Guarne | E92: 18351 | F92: 100 | G92: 6736 | H92: 36.70644652 | I92: 11615 | J92: 63.29355348
D93: Guatapé | E93: 3139 | F93: 100 | G93: 2081 | H93: 66.29499841 | I93: 1058 | J93: 33.70500159
D94: La Ceja del Tambo | E94: 21023 | F94: 100 | G94: 18417 | H94: 87.6040527 | I94: 2606 | J94: 12.3959473
D95: La Unión | E95: 6860 | F95: 100 | G95: 4433 | H95: 64.62099125 | I95: 2427 | J95: 35.37900875
D96: Marinilla | E96: 20989 | F96: 100 | G96: 15143 | H96: 72.14731526 | I96: 5846 | J96: 27.85268474
D97: Nariño | E97: 3383 | F97: 100 | G97: 1320 | H97: 39.01862252 | I97: 2063 | J97: 60.98137748
D98: Rionegro | E98: 48708 | F98: 100 | G98: 31893 | H98: 65.47795023 | I98: 16815 | J98: 34.52204977
D99: San Carlos | E99: 5927 | F99: 100 | G99: 2824 | H99: 47.6463641 | I99: 3103 | J99: 52.3536359
D100: San Francisco | E100: 1979 | F100: 100 | G100: 1018 | H100: 51.44012127 | I100: 961 | J100: 48.55987873
D101: San Luis | E101: 4381 | F101: 100 | G101: 2768 | H101: 63.18192194 | I101: 1613 | J101: 36.81807806
D102: San Rafael | E102: 5486 | F102: 100 | G102: 3054 | H102: 55.66897557 | I102: 2432 | J102: 44.33102443
D103: San Vicente Ferrer | E103: 7267 | F103: 100 | G103: 2183 | H103: 30.03990643 | I103: 5084 | J103: 69.96009357
D104: Sonsón | E104: 11775 | F104: 100 | G104: 6093 | H104: 51.74522293 | I104: 5682 | J104: 48.25477707
B105: Suroeste | C105: P_004_CADENA | D105: ="Total"&" "&B105 -> Total Suroeste | E105: 125004 | F105: 100 | G105: 64615 | H105: 51.69034591 | I105: 60389 | J105: 48.30965409
D106: Amagá | E106: 10497 | F106: 100 | G106: 5309 | H106: 50.57635515 | I106: 5188 | J106: 49.42364485
D107: Andes | E107: 14466 | F107: 100 | G107: 7341 | H107: 50.74657818 | I107: 7125 | J107: 49.25342182
D108: Angelópolis | E108: 2068 | F108: 100 | G108: 908 | H108: 43.90715667 | I108: 1160 | J108: 56.09284333
D109: Betania | E109: 3157 | F109: 100 | G109: 1336 | H109: 42.31865695 | I109: 1821 | J109: 57.68134305
D110: Betulia | E110: 5116 | F110: 100 | G110: 1709 | H110: 33.40500391 | I110: 3407 | J110: 66.59499609
D111: Caramanta | E111: 1697 | F111: 100 | G111: 886 | H111: 52.20978197 | I111: 811 | J111: 47.79021803
D112: Ciudad Bolívar | E112: 8538 | F112: 100 | G112: 5704 | H112: 66.8072148 | I112: 2834 | J112: 33.1927852
D113: Concordia | E113: 7255 | F113: 100 | G113: 3015 | H113: 41.55754652 | I113: 4240 | J113: 58.44245348
D114: Fredonia | E114: 8977 | F114: 100 | G114: 3181 | H114: 35.43500056 | I114: 5796 | J114: 64.56499944
D115: Hispania | E115: 1970 | F115: 100 | G115: 1395 | H115: 70.81218274 | I115: 575 | J115: 29.18781726
D116: Jardín | E116: 4861 | F116: 100 | G116: 2958 | H116: 60.85167661 | I116: 1903 | J116: 39.14832339
D117: Jericó | E117: 4773 | F117: 100 | G117: 3004 | H117: 62.93735596 | I117: 1769 | J117: 37.06264404
D118: La Pintada | E118: 2743 | F118: 100 | G118: 2486 | H118: 90.63069632 | I118: 257 | J118: 9.369303682
D119: Montebello | E119: 2365 | F119: 100 | G119: 830 | H119: 35.09513742 | I119: 1535 | J119: 64.90486258
D120: Pueblorrico | E120: 2908 | F120: 100 | G120: 1739 | H120: 59.80055021 | I120: 1169 | J120: 40.19944979
D121: Salgar | E121: 6269 | F121: 100 | G121: 2767 | H121: 44.13782102 | I121: 3502 | J121: 55.86217898
D122: Santa Bárbara | E122: 9562 | F122: 100 | G122: 4747 | H122: 49.64442585 | I122: 4815 | J122: 50.35557415
D123: Támesis | E123: 5801 | F123: 100 | G123: 2962 | H123: 51.06016204 | I123: 2839 | J123: 48.93983796
D124: Tarso | E124: 1990 | F124: 100 | G124: 1186 | H124: 59.59798995 | I124: 804 | J124: 40.40201005
D125: Titiribí | E125: 3707 | F125: 100 | G125: 1836 | H125: 49.52792015 | I125: 1871 | J125: 50.47207985
D126: Urrao | E126: 9705 | F126: 100 | G126: 5783 | H126: 59.58784132 | I126: 3922 | J126: 40.41215868
D127: Valparaíso | E127: 2353 | F127: 100 | G127: 1458 | H127: 61.96345091 | I127: 895 | J127: 38.03654909
D128: Venecia | E128: 4226 | F128: 100 | G128: 2075 | H128: 49.10080454 | I128: 2151 | J128: 50.89919546
B129: Urabá | C129: P_004_CADENA | D129: ="Total"&" "&B129 -> Total Urabá | E129: 157545 | F129: 100 | G129: 97427 | H129: 61.84074391 | I129: 60118 | J129: 38.15925609
D130: Apartadó | E130: 41165 | F130: 100 | G130: 35194 | H130: 85.49495931 | I130: 5971 | J130: 14.50504069
D131: Arboletes | E131: 8705 | F131: 100 | G131: 3403 | H131: 39.09247559 | I131: 5302 | J131: 60.90752441
D132: Carepa | E132: 16238 | F132: 100 | G132: 12400 | H132: 76.36408425 | I132: 3838 | J132: 23.63591575
D133: Chigorodó | E133: 18520 | F133: 100 | G133: 16012 | H133: 86.45788337 | I133: 2508 | J133: 13.54211663
D134: Murindó | E134: 1304 | F134: 100 | G134: 631 | H134: 48.38957055 | I134: 673 | J134: 51.61042945
D135: Mutatá | E135: 4277 | F135: 100 | G135: 1915 | H135: =(G135/$E135)*100 -> 44.77437456 | I135: 2362 | J135: =(I135/$E135)*100 -> 55.22562544
D136: Necoclí | E136: 12648 | F136: 100 | G136: 4107 | H136: 32.471537 | I136: 8541 | J136: 67.528463
D137: San Juan de Urabá | E137: 5983 | F137: 100 | G137: 2307 | H137: 38.55925121 | I137: 3676 | J137: 61.44074879
D138: San Pedro de Urabá | E138: 8828 | F138: 100 | G138: 4144 | H138: 46.94154961 | I138: 4684 | J138: 53.05845039
D139: Turbo | E139: 37283 | F139: 100 | G139: 16267 | H139: 43.63114556 | I139: 21016 | J139: 56.36885444
D140: Vigía del Fuerte | E140: 2594 | F140: 100 | G140: 1047 | H140: 40.36237471 | I140: 1547 | J140: 59.63762529
A143: =E143 -> P_005 : Zona REC | E143: P_005 : Zona REC
E144: Total | G144: Urbano | I144: Rural
E145: Recuento | F145: % del N de fila | G145: Recuento | H145: % del N de fila | I145: Recuento | J145: % del N de fila
B146: Total | C146: ZonasDeptoA_CADENA | D146: Total Departamento | E146: 2252010 | F146: 100 | G146: 1807124.31 | H146: =(G146/$E146)*100 -> 80.24495053 | I146: 444885.6896 | J146: 19.75504947
B147: Valle de Aburrá | C147: ZonasDeptoA_CADENA | D147: ="Total"&" "&B147 -> Total Valle de Aburrá | E147: 1412741 | F147: 100 | G147: 1325242.31 | H147: 93.80645924 | I147: 87498.68962 | J147: =(I147/$E147)*100 -> 6.193540757
D148: Centro (Valle de Aburrá) | E148: 895573 | F148: 100 | G148: 858416.3104 | H148: 95.85107081 | I148: 37156.68962 | J148: =(I148/$E148)*100 -> 4.148929191
D149: Norte (Valle de Aburrá) | E149: 249375 | F149: 100 | G149: 221001 | H149: 88.62195489 | I149: 28374 | J149: =(I149/$E149)*100 -> 11.37804511
D150: Sur (Valle de Aburrá) | E150: 267793 | F150: 100 | G150: 245825 | H150: 91.7966489 | I150: 21968 | J150: =(I150/$E150)*100 -> 8.203351096
B151: Bajo Cauca | C151: ZonasDeptoA_CADENA | D151: ="Total"&" "&B151 -> Total Bajo Cauca | E151: 77368 | F151: 100 | G151: 50412 | H151: 65.15872195 | I151: 26956 | J151: =(I151/$E151)*100 -> 34.84127805
D152: Bajo Cauca | E152: 77368 | F152: 100 | G152: 50412 | H152: 65.15872195 | I152: 26956 | J152: =(I152/$E152)*100 -> 34.84127805
B153: Magdalena Medio | C153: ZonasDeptoA_CADENA | D153: ="Total"&" "&B153 -> Total Magdalena Medio | E153: 35647 | F153: 100 | G153: 20859 | H153: 58.51544309 | I153: 14788 | J153: =(I153/$E153)*100 -> 41.48455691
D154: Nus | E154: 4670 | F154: 100 | G154: 2343 | H154: 50.17130621 | I154: 2327 | J154: =(I154/$E154)*100 -> 49.82869379
D155: Ribereña | E155: 30977 | F155: 100 | G155: 18516 | H155: 59.77338025 | I155: 12461 | J155: =(I155/$E155)*100 -> 40.22661975
B156: Nordeste | C156: ZonasDeptoA_CADENA | D156: ="Total"&" "&B156 -> Total Nordeste | E156: 68400 | F156: 100 | G156: 37807 | H156: 55.27339181 | I156: 30593 | J156: =(I156/$E156)*100 -> 44.72660819
D157: Meseta | E157: 23869 | F157: 100 | G157: 12578 | H157: 52.69596548 | I157: 11291 | J157: =(I157/$E157)*100 -> 47.30403452
D158: Minera | E158: 22783 | F158: 100 | G158: 15430 | H158: 67.725936 | I158: 7353 | J158: =(I158/$E158)*100 -> 32.274064
D159: Nus | E159: 15515 | F159: 100 | G159: 6959 | H159: 44.85336771 | I159: 8556 | J159: =(I159/$E159)*100 -> 55.14663229
D160: Río Porce | E160: 6233 | F160: 100 | G160: 2840 | H160: 45.5639339 | I160: 3393 | J160: =(I160/$E160)*100 -> 54.4360661
B161: Norte | C161: ZonasDeptoA_CADENA | D161: ="Total"&" "&B161 -> Total Norte | E161: 77455 | F161: 100 | G161: 42410 | H161: 54.75437351 | I161: 35045 | J161: =(I161/$E161)*100 -> 45.24562649
D162: Río Cauca | E162: 10594 | F162: 100 | G162: 4336 | H162: 40.92882764 | I162: 6258 | J162: =(I162/$E162)*100 -> 59.07117236
D163: Río Grande y Chico | E163: 32140 | F163: 100 | G163: 19284 | H163: 60 | I163: 12856 | J163: =(I163/$E163)*100 -> 40
D164: Río Porce | E164: 7376 | F164: 100 | G164: 4164 | H164: 56.45336226 | I164: 3212 | J164: =(I164/$E164)*100 -> 43.54663774
D165: Vertiente Chorros Blancos | E165: 27345 | F165: 100 | G165: 14626 | H165: 53.48692631 | I165: 12719 | J165: =(I165/$E165)*100 -> 46.51307369
B166: Occidente | C166: ZonasDeptoA_CADENA | D166: ="Total"&" "&B166 -> Total Occidente | E166: 69973 | F166: 100 | G166: 30044 | H166: 42.93656125 | I166: 39929 | J166: =(I166/$E166)*100 -> 57.06343875
D167: Cauca Medio | E167: 45855 | F167: 100 | G167: 19382 | H167: 42.26801875 | I167: 26473 | J167: =(I167/$E167)*100 -> 57.73198125
D168: Cuenca del Río Sucio | E168: 24118 | F168: 100 | G168: 10662 | H168: 44.20764574 | I168: 13456 | J168: =(I168/$E168)*100 -> 55.79235426
B169: Oriente | C169: ZonasDeptoA_CADENA | D169: ="Total"&" "&B169 -> Total Oriente | E169: 227877 | F169: 100 | G169: 138308 | H169: 60.6941464 | I169: 89569 | J169: =(I169/$E169)*100 -> 39.3058536
D170: Bosques | E170: 11617 | F170: 100 | G170: 6371 | H170: 54.84204184 | I170: 5246 | J170: =(I170/$E170)*100 -> 45.15795816
D171: Embalses | E171: 29037 | F171: 100 | G171: 16086 | H171: 55.39828495 | I171: 12951 | J171: =(I171/$E171)*100 -> 44.60171505
D172: Páramo | E172: 24835 | F172: 100 | G172: 11928 | H172: 48.02899134 | I172: 12907 | J172: =(I172/$E172)*100 -> 51.97100866
D173: Valle de San Nicolás | E173: 162388 | F173: 100 | G173: 103923 | H173: 63.9967239 | I173: 58465 | J173: =(I173/$E173)*100 -> 36.0032761
B174: Suroeste | C174: ZonasDeptoA_CADENA | D174: ="Total"&" "&B174 -> Total Suroeste | E174: 125004 | F174: 100 | G174: 64615 | H174: 51.69034591 | I174: 60389 | J174: =(I174/$E174)*100 -> 48.30965409
D175: Cartama | E175: 34192 | F175: 100 | G175: 19298 | H175: 56.44010295 | I175: 14894 | J175: =(I175/$E175)*100 -> 43.55989705
D176: Penderisco | E176: 28345 | F176: 100 | G176: 13274 | H176: 46.83012877 | I176: 15071 | J176: =(I176/$E176)*100 -> 53.16987123
D177: San Juan | E177: 32992 | F177: 100 | G177: 18734 | H177: 56.78346266 | I177: 14258 | J177: =(I177/$E177)*100 -> 43.21653734
D178: Sinifaná | E178: 29475 | F178: 100 | G178: 13309 | H178: 45.15351993 | I178: 16166 | J178: =(I178/$E178)*100 -> 54.84648007
B179: Urabá | C179: ZonasDeptoA_CADENA | D179: ="Total"&" "&B179 -> Total Urabá | E179: 157545 | F179: 100 | G179: 97427 | H179: 61.84074391 | I179: 60118 | J179: =(I179/$E179)*100 -> 38.15925609
D180: Atrato Medio | E180: 3898 | F180: 100 | G180: 1678 | H180: 43.04771678 | I180: 2220 | J180: =(I180/$E180)*100 -> 56.95228322
D181: Centro (Urabá) | E181: 117483 | F181: 100 | G181: 81788 | H181: 69.61688074 | I181: 35695 | J181: =(I181/$E181)*100 -> 30.38311926
D182: Norte (Urabá) | E182: 36164 | F182: 100 | G182: 13961 | H182: 38.60468975 | I182: 22203 | J182: =(I182/$E182)*100 -> 61.39531025
A185: =E185 -> P_011 : Estrato | E185: P_011 : Estrato
E186: Total | G186: Bajo bajo | I186: Bajo | K186: Medio bajo | M186: Medio | O186: Medio Alto | Q186: Alto
E187: Recuento | F187: % del N de fila | G187: Recuento | H187: % del N de fila | I187: Recuento | J187: % del N de fila | K187: Recuento | L187: % del N de fila | M187: Recuento | N187: % del N de fila | O187: Recuento | P187: % del N de fila | Q187: Recuento | R187: % del N de fila
B188: Total | C188: P_004_CADENA | D188: Total Departamento | E188: 2252010 | F188: 100 | G188: 572364.1464 | H188: =(G188/$E188)*100 -> 25.41570181 | I188: 819148.1695 | J188: 36.37409112 | K188: 574905.8874 | L188: =(K188/$E188)*100 -> 25.52856725 | M188: 161181.0316 | N188: 7.157207631 | O188: 88033.27474 | P188: =(O188/$E188)*100 -> 3.909097861 | Q188: 36377.49039 | R188: 1.615334319
B189: Valle de Aburrá | C189: P_004_CADENA | D189: ="Total"&" "&B189 -> Total Valle de Aburrá | E189: 1412741 | F189: 100 | G189: 184088.2555 | H189: 13.03057358 | I189: 496677.9278 | J189: =(I189/$E189)*100 -> 35.15704066 | K189: 453455.5989 | L189: 32.09757478 | M189: 155165.1606 | N189: =(M189/$E189)*100 -> 10.98327016 | O189: 87333.79392 | P189: 6.181868716 | Q189: 36020.26326 | R189: =(Q189/$E189)*100 -> 2.54967211
D190: Barbosa | E190: 20038 | F190: 100 | G190: 3272.943588 | H190: 16.33368394 | I190: 13845.59626 | J190: =(I190/$E190)*100 -> 69.09669759 | K190: 2246.643715 | L190: 11.21191593 | M190: 488.4218393 | N190: =(M190/$E190)*100 -> 2.437477988 | O190: 122.9297297 | P190: 0.6134830309 | Q190: 61.46486486 | R190: =(Q190/$E190)*100 -> 0.3067415154
D191: Bello | E191: 184639 | F191: 100 | G191: 42805.97662 | H191: 23.1836051 | I191: 56607.37282 | J191: =(I191/$E191)*100 -> 30.65840523 | K191: 68934.90721 | L191: 37.33496564 | M191: 16203.26815 | N191: =(M191/$E191)*100 -> 8.775647696 | O191: 61.6862543 | P191: 0.03340911416 | Q191: 25.78894472 | R191: =(Q191/$E191)*100 -> 0.01396722508
D192: Caldas | E192: 27496 | F192: 100 | G192: 2419.036507 | H192: 8.797776065 | I192: 17234.26223 | J192: =(I192/$E192)*100 -> 62.67916144 | K192: 7466.390002 | L192: 27.15445884 | M192: 330.9930804 | N192: =(M192/$E192)*100 -> 1.203786298 | O192: 45.31818182 | P192: 0.1648173619 | Q192: 0 | R192: =(Q192/$E192)*100 -> 0
D193: Copacabana | E193: 27315 | F193: 100 | G193: 1245.118421 | H193: 4.558368739 | I193: 17870.21842 | J193: =(I193/$E193)*100 -> 65.42272898 | K193: 7884.863158 | L193: 28.86642196 | M193: 196.75 | N193: =(M193/$E193)*100 -> 0.7203002014 | O193: 78.7 | P193: 0.2881200805 | Q193: 39.35 | R193: =(Q193/$E193)*100 -> 0.1440600403
D194: Envigado | E194: 87487 | F194: 100 | G194: 119.3291139 | H194: 0.1363963948 | I194: 16303.16791 | J194: =(I194/$E194)*100 -> 18.63496052 | K194: 30887.69087 | L194: 35.30546352 | M194: 17538.47295 | N194: =(M194/$E194)*100 -> 20.04694748 | O194: 20664.49417 | P194: 23.62007403 | Q194: 1973.844999 | R194: =(Q194/$E194)*100 -> 2.256158056
D195: Girardota | E195: 17383 | F195: 100 | G195: 881.3835616 | H195: 5.070376584 | I195: 13638.72532 | J195: =(I195/$E195)*100 -> 78.46013531 | K195: 2422.199336 | L195: 13.93429981 | M195: 342.760274 | N195: =(M195/$E195)*100 -> 1.971813116 | O195: 48.96575342 | P195: 0.281687588 | Q195: 48.96575342 | R195: =(Q195/$E195)*100 -> 0.281687588
D196: Itagüí | E196: 94617 | F196: 100 | G196: 5823.526983 | H196: 6.154842135 | I196: 34828.30833 | J196: =(I196/$E196)*100 -> 36.80977871 | K196: 48511.23847 | L196: 51.2711653 | M196: 5453.926219 | N196: =(M196/$E196)*100 -> 5.76421385 | O196: 0 | P196: 0 | Q196: 0 | R196: =(Q196/$E196)*100 -> 0
D197: La Estrella | E197: 25059 | F197: 100 | G197: 1890.862999 | H197: 7.545644275 | I197: 7729.946542 | J197: =(I197/$E197)*100 -> 30.84698728 | K197: 9674.383255 | L197: 38.60642187 | M197: 5516.705502 | N197: =(M197/$E197)*100 -> 22.01486692 | O197: 204.1263934 | P197: 0.8145831573 | Q197: 42.97530864 | R197: =(Q197/$E197)*100 -> 0.1714965028
D198: Medellín | E198: 895573 | F198: 100 | G198: 125219.2898 | H198: 13.98203048 | I198: 310991.1376 | J198: =(I198/$E198)*100 -> 34.72538114 | K198: 261527.6289 | L198: 29.20226815 | M198: 97995.30724 | N198: =(M198/$E198)*100 -> 10.94219089 | O198: 66011.76307 | P198: 7.370896964 | Q198: 33827.87339 | R198: =(Q198/$E198)*100 -> 3.777232385
D199: Sabaneta | E199: 33134 | F199: 100 | G199: 410.7878788 | H199: 1.239777506 | I199: 7629.19235 | J199: =(I199/$E199)*100 -> 23.02526815 | K199: 13899.65403 | L199: 41.94982202 | M199: 11098.55537 | N199: =(M199/$E199)*100 -> 33.49597204 | O199: 95.81036826 | P199: 0.2891602833 | Q199: 0 | R199: =(Q199/$E199)*100 -> 0
B200: Bajo Cauca | C200: P_004_CADENA | D200: ="Total"&" "&B200 -> Total Bajo Cauca | E200: 77368 | F200: 100 | G200: 56890.54824 | H200: 73.5324013 | I200: 17520.26931 | J200: =(I200/$E200)*100 -> 22.64536928 | K200: 2924.656593 | L200: 3.780188958 | M200: 0 | N200: =(M200/$E200)*100 -> 0 | O200: 0 | P200: 0 | Q200: 32.52586207 | R200: =(Q200/$E200)*100 -> 0.04204045868
D201: Cáceres | E201: 8886 | F201: 100 | G201: 8152.022174 | H201: 91.74006498 | I201: 660.3482189 | J201: =(I201/$E201)*100 -> 7.431332645 | K201: 73.62960682 | L201: 0.8286023725 | M201: 0 | N201: =(M201/$E201)*100 -> 0 | O201: 0 | P201: 0 | Q201: 0 | R201: =(Q201/$E201)*100 -> 0
D202: Caucasia | E202: 29058 | F202: 100 | G202: 15850.16783 | H202: 54.54665783 | I202: 10849.65035 | J202: =(I202/$E202)*100 -> 37.33791159 | K202: 2358.181818 | L202: 8.115430581 | M202: 0 | N202: =(M202/$E202)*100 -> 0 | O202: 0 | P202: 0 | Q202: 0 | R202: =(Q202/$E202)*100 -> 0
D203: El Bagre | E203: 14981 | F203: 100 | G203: 10545.9868 | H203: 70.39574662 | I203: 3942.16803 | J203: =(I203/$E203)*100 -> 26.31445184 | K203: 492.8451683 | L203: 3.289801537 | M203: 0 | N203: =(M203/$E203)*100 -> 0 | O203: 0 | P203: 0 | Q203: 0 | R203: =(Q203/$E203)*100 -> 0
D204: Nechí | E204: 7609 | F204: 100 | G204: 6755.60576 | H204: 88.78441004 | I204: 853.3942401 | J204: =(I204/$E204)*100 -> 11.21558996 | K204: 0 | L204: 0 | M204: 0 | N204: =(M204/$E204)*100 -> 0 | O204: 0 | P204: 0 | Q204: 0 | R204: =(Q204/$E204)*100 -> 0
D205: Tarazá | E205: 9020 | F205: 100 | G205: 8423.282913 | H205: 93.38451123 | I205: 596.7170868 | J205: =(I205/$E205)*100 -> 6.615488768 | K205: 0 | L205: 0 | M205: 0 | N205: =(M205/$E205)*100 -> 0 | O205: 0 | P205: 0 | Q205: 0 | R205: =(Q205/$E205)*100 -> 0
... 1581 more rows

Sheet Zonas_Final
A1: VOLVER AL MENÚ
E2: P_005 : Zona REC
E3: Total | Q3: Urbano | AC3: Rural
A4: =E4 -> P_172 : Tipo de vivienda | E4: P_172 : Tipo de vivienda | Q4: P_172 : Tipo de vivienda | AC4: P_172 : Tipo de vivienda
E5: Total | G5: Rancho, vivienda de desechos | I5: Cuarto(s) | K5: Cuarto en inquilinato | M5: Apartamento | O5: Casa | Q5: Total | S5: Rancho, vivienda de desechos | U5: Cuarto(s) | W5: Cuarto en inquilinato | Y5: Apartamento | AA5: Casa | AC5: Total | AE5: Rancho, vivienda de desechos | AG5: Cuarto(s) | AI5: Cuarto en inquilinato | AK5: Apartamento | AM5: Casa
E6: Recuento | F6: % del N de fila | G6: Recuento | H6: % del N de fila | I6: Recuento | J6: % del N de fila | K6: Recuento | L6: % del N de fila | M6: Recuento | N6: % del N de fila | O6: Recuento | P6: % del N de fila | Q6: Recuento | R6: % del N de fila | S6: Recuento | T6: % del N de fila | U6: Recuento | V6: % del N de fila | W6: Recuento | X6: % del N de fila | Y6: Recuento | Z6: % del N de fila | AA6: Recuento | AB6: % del N de fila | AC6: Recuento | AD6: % del N de fila | AE6: Recuento | AF6: % del N de fila | AG6: Recuento | AH6: % del N de fila | AI6: Recuento | AJ6: % del N de fila | AK6: Recuento | AL6: % del N de fila | AM6: Recuento | AN6: % del N de fila
B7: Total | C7: P_004_CADENA | D7: Total | E7: 2252010 | F7: 100 | G7: 36030.26799 | H7: =(G7/$E7)*100 -> 1.599915986 | I7: 42712.40567 | J7: =(I7/$E7)*100 -> 1.896634814 | K7: 13815.88467 | L7: =(K7/$E7)*100 -> 0.6134912666 | M7: 896866.1227 | N7: =(M7/$E7)*100 -> 39.82513944 | O7: 1262585.319 | P7: =(O7/$E7)*100 -> 56.0648185 | Q7: 1738970 | R7: 100 | S7: 18606.61814 | T7: =(S7/$Q7)*100 -> 1.069979248 | U7: 31541.86862 | V7: =(U7/$Q7)*100 -> 1.813824771 | W7: 11215.86007 | X7: =(W7/$Q7)*100 -> 0.6449714529 | Y7: 791138.2635 | Z7: =(Y7/$Q7)*100 -> 45.49464703 | AA7: 886467.3897 | AB7: =(AA7/$Q7)*100 -> 50.9765775 | AC7: 513040 | AD7: 100 | AE7: 17423.64986 | AF7: =(AE7/$AC7)*100 -> 3.396158166 | AG7: 11170.53705 | AH7: =(AG7/$AC7)*100 -> 2.17732283 | AI7: 2600.024599 | AJ7: =(AI7/$AC7)*100 -> 0.5067878916 | AK7: 105727.8592 | AL7: =(AK7/$AC7)*100 -> 20.60811227 | AM7: 376117.9293 | AN7: =(AM7/$AC7)*100 -> 73.31161885
B8: Valle de Aburrá | C8: P_004_CADENA | D8: Total | E8: 1412741 | F8: 100 | G8: 5642.884896 | H8: 0.3994281256 | I8: 22166.48127 | J8: 1.5690407 | K8: 6893.313085 | L8: 0.4879389134 | M8: 748823.5374 | N8: 53.00501206 | O8: 629214.7833 | P8: 44.5385802 | Q8: 1257088 | R8: 100 | S8: 4453.799003 | T8: 0.3542949263 | U8: 20758.45921 | V8: 1.651313131 | W8: 5970.180124 | X8: 0.4749214155 | Y8: 680518.3922 | Z8: 54.13450707 | AA8: 545387.1695 | AB8: 43.38496346 | AC8: 155653 | AD8: 100 | AE8: 1189.085893 | AF8: 0.7639338097 | AG8: 1408.022061 | AH8: 0.9045903779 | AI8: 923.1329613 | AJ8: 0.5930711013 | AK8: 68305.14522 | AL8: 43.88296096 | AM8: 83827.61386 | AN8: 53.85544375
D9: Barbosa | E9: 20038 | F9: 100 | G9: 0 | H9: 0 | I9: 177.8004353 | J9: 0.8873162757 | K9: 0 | L9: 0 | M9: 5990.344096 | N9: 29.89492013 | O9: 13869.85547 | P9: 69.21776359 | Q9: 8667 | R9: 100 | S9: 0 | T9: 0 | U9: 116.3355705 | V9: 1.342281879 | W9: 0 | X9: 0 | Y9: 3839.073826 | Z9: 44.29530201 | AA9: 4711.590604 | AB9: 54.36241611 | AC9: 11371 | AD9: 100 | AE9: 0 | AF9: 0 | AG9: 61.46486486 | AH9: 0.5405405405 | AI9: 0 | AJ9: 0 | AK9: 2151.27027 | AL9: 18.91891892 | AM9: 9158.264865 | AN9: 80.54054054
D10: Bello | E10: 184639 | F10: 100 | G10: 658.3320676 | H10: 0.3565509278 | I10: 3804.331037 | J10: 2.06041575 | K10: 1418.783849 | L10: 0.7684096257 | M10: 87949.56222 | N10: 47.63325312 | O10: 90807.99083 | P10: 49.18137058 | Q10: 179507 | R10: 100 | S10: 555.1762887 | T10: 0.3092783505 | U10: 3701.175258 | V10: 2.06185567 | W10: 1418.783849 | X10: 0.7903780069 | Y10: 86299.06976 | Z10: 48.07560137 | AA10: 87532.79485 | AB10: 48.7628866 | AC10: 5132 | AD10: 100 | AE10: 103.1557789 | AF10: 2.010050251 | AG10: 103.1557789 | AH10: 2.010050251 | AI10: 0 | AJ10: 0 | AK10: 1650.492462 | AL10: 32.16080402 | AM10: 3275.19598 | AN10: 63.81909548
D11: Caldas | E11: 27496 | F11: 100 | G11: 45.31818182 | H11: 0.1648173619 | I11: 163.4861608 | J11: 0.5945816149 | K11: 45.31818182 | L11: 0.1648173619 | M11: 10653.51837 | N11: 38.74570255 | O11: 16588.3591 | P11: 60.33008111 | Q11: 22511 | R11: 100 | S11: 0 | T11: 0 | U11: 118.167979 | V11: 0.5249343832 | W11: 0 | X11: 0 | Y11: 9158.018373 | Z11: 40.6824147 | AA11: 13234.81365 | AB11: 58.79265092 | AC11: 4985 | AD11: 100 | AE11: 45.31818182 | AF11: 0.9090909091 | AG11: 45.31818182 | AH11: 0.9090909091 | AI11: 45.31818182 | AJ11: 0.9090909091 | AK11: 1495.5 | AL11: 30 | AM11: 3353.545455 | AN11: 67.27272727
D12: Copacabana | E12: 27315 | F12: 100 | G12: 78.7 | H12: 0.2881200805 | I12: 989.7736842 | J12: 3.623553667 | K12: 0 | L12: 0 | M12: 10417.03158 | N12: 38.13667062 | O12: 15829.49474 | P12: 57.95165564 | Q12: 22593 | R12: 100 | S12: 0 | T12: 0 | U12: 832.3736842 | V12: 3.684210526 | W12: 0 | X12: 0 | Y12: 9393.931579 | Z12: 41.57894737 | AA12: 12366.69474 | AB12: 54.73684211 | AC12: 4722 | AD12: 100 | AE12: 78.7 | AF12: 1.666666667 | AG12: 157.4 | AH12: 3.333333333 | AI12: 0 | AJ12: 0 | AK12: 1023.1 | AL12: 21.66666667 | AM12: 3462.8 | AN12: 73.33333333
D13: Envigado | E13: 87487 | F13: 100 | G13: 59.66455696 | H13: 0.0681981974 | I13: 1193.291139 | J13: 1.363963948 | K13: 477.3164557 | L13: 0.5455855792 | M13: 34158.51328 | N13: 39.04410173 | O13: 51598.21457 | P13: 58.97815055 | Q13: 84843 | R13: 100 | S13: 59.66455696 | T13: 0.07032348805 | U13: 1193.291139 | V13: 1.406469761 | W13: 477.3164557 | X13: 0.5625879044 | Y13: 33173.49367 | Z13: 39.09985935 | AA13: 49939.23418 | AB13: 58.86075949 | AC13: 2644 | AD13: 100 | AE13: 0 | AF13: 0 | AG13: 0 | AH13: 0 | AI13: 0 | AJ13: 0 | AK13: 985.0196078 | AL13: 37.25490196 | AM13: 1658.980392 | AN13: 62.74509804
D14: Girardota | E14: 17383 | F14: 100 | G14: 0 | H14: 0 | I14: 443.9599834 | J14: 2.553989434 | K14: 48.96575342 | L14: 0.281687588 | M14: 5742.108925 | N14: 33.03289953 | O14: 11147.96534 | P14: 64.13142345 | Q14: 10234 | R14: 100 | S14: 0 | T14: 0 | U14: 248.0969697 | V14: 2.424242424 | W14: 0 | X14: 0 | Y14: 3783.478788 | Z14: 36.96969697 | AA14: 6202.424242 | AB14: 60.60606061 | AC14: 7149 | AD14: 100 | AE14: 0 | AF14: 0 | AG14: 195.8630137 | AH14: 2.739726027 | AI14: 48.96575342 | AJ14: 0.6849315068 | AK14: 1958.630137 | AL14: 27.39726027 | AM14: 4945.541096 | AN14: 69.17808219
D15: Itagüí | E15: 94617 | F15: 100 | G15: 248.9666667 | H15: 0.2631310089 | I15: 1247.78166 | J15: 1.318771109 | K15: 459.2779974 | L15: 0.4854074821 | M15: 38401.22588 | N15: 40.58596856 | O15: 54259.7478 | P15: 57.34672184 | Q15: 87148 | R15: 100 | S15: 0 | T15: 0 | U15: 1148.194993 | V15: 1.317523057 | W15: 459.2779974 | X15: 0.5270092227 | Y15: 36110.73254 | Z15: 41.43610013 | AA15: 49429.79447 | AB15: 56.71936759 | AC15: 7469 | AD15: 100 | AE15: 248.9666667 | AF15: 3.333333333 | AG15: 99.58666667 | AH15: 1.333333333 | AI15: 0 | AJ15: 0 | AK15: 2290.493333 | AL15: 30.66666667 | AM15: 4829.953333 | AN15: 64.66666667
D16: La Estrella | E16: 25059 | F16: 100 | G16: 268.5893563 | H16: 1.071827912 | I16: 553.2849694 | J16: 2.207929165 | K16: 230.9828 | L16: 0.921755856 | M16: 9679.802589 | N16: 38.62804816 | O16: 14326.34029 | P16: 57.17043891 | Q16: 21578 | R16: 100 | S16: 139.6634304 | T16: 0.6472491909 | U16: 488.8220065 | V16: 2.265372168 | W16: 209.4951456 | X16: 0.9708737864 | Y16: 8519.469256 | Z16: 39.48220065 | AA16: 12220.55016 | AB16: 56.63430421 | AC16: 3481 | AD16: 100 | AE16: 128.9259259 | AF16: 3.703703704 | AG16: 64.46296296 | AH16: 1.851851852 | AI16: 21.48765432 | AJ16: 0.6172839506 | AK16: 1160.333333 | AL16: 33.33333333 | AM16: 2105.790123 | AN16: 60.49382716
D17: Medellín | E17: 895573 | F17: 100 | G17: 4283.314067 | H17: 0.4782763735 | I17: 13237.07713 | J17: 1.478056745 | K17: 4212.668048 | L17: 0.470388014 | M17: 528979.1726 | N17: 59.06600272 | O17: 344860.7682 | P17: 38.50727615 | Q17: 790262 | R17: 100 | S17: 3699.294727 | T17: 0.4681099088 | U17: 12556.30654 | V17: 1.588878947 | W17: 3405.306676 | X17: 0.4309085691 | Y17: 474723.9271 | Z17: 60.07171382 | AA17: 295877.165 | AB17: 37.44038875 | AC17: 105311 | AD17: 100 | AE17: 584.0193395 | AF17: 0.5545663221 | AG17: 680.7705919 | AH17: 0.6464382562 | AI17: 807.3613718 | AJ17: 0.7666448631 | AK17: 54255.24547 | AL17: 51.51906778 | AM17: 48983.60323 | AN17: 46.51328278
D18: Sabaneta | E18: 33134 | F18: 100 | G18: 0 | H18: 0 | I18: 355.6950673 | J18: 1.07350476 | K18: 0 | L18: 0 | M18: 16852.25792 | N18: 50.86092206 | O18: 15926.04702 | P18: 48.06557318 | Q18: 29745 | R18: 100 | S18: 0 | T18: 0 | U18: 355.6950673 | V18: 1.195814649 | W18: 0 | X18: 0 | Y18: 15517.19731 | Z18: 52.16741405 | AA18: 13872.10762 | AB18: 46.6367713 | AC18: 3389 | AD18: 100 | AE18: 0 | AF18: 0 | AG18: 0 | AH18: 0 | AI18: 0 | AJ18: 0 | AK18: 1335.060606 | AL18: 39.39393939 | AM18: 2053.939394 | AN18: 60.60606061
B19: Bajo Cauca | C19: P_004_CADENA | D19: Total | E19: 77368 | F19: 100 | G19: 6608.546215 | H19: =(G19/$E19)*100 -> 8.541704859 | I19: 821.9935618 | J19: 1.06244644 | K19: 129.9055862 | L19: =(K19/$E19)*100 -> 0.1679060932 | M19: 6512.419616 | N19: =(M19/$E19)*100 -> 8.417458919 | O19: 63295.13502 | P19: =(O19/$E19)*100 -> 81.81048369 | Q19: 50412 | R19: 100 | S19: 3385.5164 | T19: =(S19/$Q19)*100 -> 6.715695469 | U19: 549.1879679 | V19: 1.089399286 | W19: 97.57758621 | X19: =(W19/$Q19)*100 -> 0.1935602361 | Y19: 5962.000778 | Z19: =(Y19/$Q19)*100 -> 11.82655078 | AA19: 40417.71727 | AB19: =(AA19/$Q19)*100 -> 80.17479423 | AC19: 26956 | AD19: 100 | AE19: 3223.029816 | AF19: =(AE19/$AC19)*100 -> 11.95663235 | AG19: 272.8055939 | AH19: 1.01204034 | AI19: 32.328 | AJ19: =(AI19/$AC19)*100 -> 0.1199287728 | AK19: 550.4188379 | AL19: =(AK19/$AC19)*100 -> 2.041915855 | AM19: 22877.41775 | AN19: =(AM19/$AC19)*100 -> 84.86948268
D20: Cáceres | E20: 8886 | F20: 100 | G20: 478.4268556 | H20: 5.384051942 | I20: 73.29842932 | J20: 0.8248754144 | K20: 0 | L20: =(K20/$E20)*100 -> 0 | M20: 146.5968586 | N20: =(M20/$E20)*100 -> 1.649750829 | O20: 8187.677856 | P20: =(O20/$E20)*100 -> 92.14132182 | Q20: 1886 | R20: 100 | S20: 221.8823529 | T20: 11.76470588 | U20: 0 | V20: 0 | W20: 0 | X20: =(W20/$Q20)*100 -> 0 | Y20: 0 | Z20: =(Y20/$Q20)*100 -> 0 | AA20: 1664.117647 | AB20: =(AA20/$Q20)*100 -> 88.23529412 | AC20: 7000 | AD20: 100 | AE20: 256.5445026 | AF20: 3.664921466 | AG20: 73.29842932 | AH20: 1.047120419 | AI20: 0 | AJ20: =(AI20/$AC20)*100 -> 0 | AK20: 146.5968586 | AL20: =(AK20/$AC20)*100 -> 2.094240838 | AM20: 6523.560209 | AN20: =(AM20/$AC20)*100 -> 93.19371728
D21: Caucasia | E21: 29058 | F21: 100 | G21: 1061.181818 | H21: 3.651943761 | I21: 353.7272727 | J21: 1.217314587 | K21: 0 | L21: =(K21/$E21)*100 -> 0 | M21: 2711.909091 | N21: =(M21/$E21)*100 -> 9.332745168 | O21: 24931.18182 | P21: =(O21/$E21)*100 -> 85.79799648 | Q21: 25940 | R21: 100 | S21: 1061.181818 | T21: 4.090909091 | U21: 353.7272727 | V21: 1.363636364 | W21: 0 | X21: =(W21/$Q21)*100 -> 0 | Y21: 2711.909091 | Z21: =(Y21/$Q21)*100 -> 10.45454545 | AA21: 21813.18182 | AB21: =(AA21/$Q21)*100 -> 84.09090909 | AC21: 3118 | AD21: 100 | AE21: 0 | AF21: 0 | AG21: 0 | AH21: 0 | AI21: 0 | AJ21: =(AI21/$AC21)*100 -> 0 | AK21: 0 | AL21: =(AK21/$AC21)*100 -> 0 | AM21: 3118 | AN21: =(AM21/$AC21)*100 -> 100
D22: El Bagre | E22: 14981 | F22: 100 | G22: 1298.91008 | H22: =(G22/$E22)*100 -> 8.67038302 | I22: 123.50795 | J22: 0.824430612 | K22: 0 | L22: =(K22/$E22)*100 -> 0 | M22: 3199.340383 | N22: =(M22/$E22)*100 -> 21.3559868 | O22: 10359.24159 | P22: =(O22/$E22)*100 -> 69.14919957 | Q22: 10079 | R22: 100 | S22: 430.2012195 | T22: =(S22/$Q22)*100 -> 4.268292683 | U22: 61.45731707 | V22: 0.6097560976 | W22: 0 | X22: =(W22/$Q22)*100 -> 0 | Y22: 2827.036585 | Z22: =(Y22/$Q22)*100 -> 28.04878049 | AA22: 6760.304878 | AB22: =(AA22/$Q22)*100 -> 67.07317073 | AC22: 4902 | AD22: 100 | AE22: 868.7088608 | AF22: =(AE22/$AC22)*100 -> 17.72151899 | AG22: 62.05063291 | AH22: 1.265822785 | AI22: 0 | AJ22: =(AI22/$AC22)*100 -> 0 | AK22: 372.3037975 | AL22: =(AK22/$AC22)*100 -> 7.594936709 | AM22: 3598.936709 | AN22: =(AM22/$AC22)*100 -> 73.41772152
D23: Nechí | E23: 7609 | F23: 100 | G23: 252.3457321 | H23: 3.316411252 | I23: 94.65468425 | J23: 1.243983234 | K23: 0 | L23: =(K23/$E23)*100 -> 0 | M23: 63.13650243 | N23: =(M23/$E23)*100 -> 0.8297608415 | O23: 7198.863081 | P23: =(O23/$E23)*100 -> 94.60984467 | Q23: 4142 | R23: 100 | S23: 63.23664122 | T23: 1.526717557 | U23: 31.61832061 | V23: 0.7633587786 | W23: 0 | X23: =(W23/$Q23)*100 -> 0 | Y23: 31.61832061 | Z23: =(Y23/$Q23)*100 -> 0.7633587786 | AA23: 4015.526718 | AB23: =(AA23/$Q23)*100 -> 96.94656489 | AC23: 3467 | AD23: 100 | AE23: 189.1090909 | AF23: 5.454545455 | AG23: 63.03636364 | AH23: 1.818181818 | AI23: 0 | AJ23: =(AI23/$AC23)*100 -> 0 | AK23: 31.51818182 | AL23: =(AK23/$AC23)*100 -> 0.9090909091 | AM23: 3183.336364 | AN23: =(AM23/$AC23)*100 -> 91.81818182
D24: Tarazá | E24: 9020 | F24: 100 | G24: 2869.736695 | H24: 31.81526269 | I24: 111.7535014 | J24: 1.238952344 | K24: 0 | L24: =(K24/$E24)*100 -> 0 | M24: 261.3333333 | N24: =(M24/$E24)*100 -> 2.897265336 | O24: 5777.176471 | P24: =(O24/$E24)*100 -> 64.04851963 | Q24: 4592 | R24: 100 | S24: 1381.333333 | T24: 30.08130081 | U24: 37.33333333 | V24: 0.8130081301 | W24: 0 | X24: =(W24/$Q24)*100 -> 0 | Y24: 261.3333333 | Z24: =(Y24/$Q24)*100 -> 5.691056911 | AA24: 2912 | AB24: =(AA24/$Q24)*100 -> 63.41463415 | AC24: 4428 | AD24: 100 | AE24: 1488.403361 | AF24: 33.61344538 | AG24: 74.42016807 | AH24: 1.680672269 | AI24: 0 | AJ24: =(AI24/$AC24)*100 -> 0 | AK24: 0 | AL24: =(AK24/$AC24)*100 -> 0 | AM24: 2865.176471 | AN24: =(AM24/$AC24)*100 -> 64.70588235
D25: Zaragoza | E25: 7814 | F25: 100 | G25: 647.9450345 | H25: 8.292104357 | I25: 65.05172414 | J25: 0.8325022285 | K25: 129.9055862 | L25: =(K25/$E25)*100 -> 1.662472309 | M25: 130.1034483 | N25: =(M25/$E25)*100 -> 1.665004457 | O25: 6840.994207 | P25: =(O25/$E25)*100 -> 87.54791665 | Q25: 3773 | R25: 100 | S25: 227.6810345 | T25: 6.034482759 | U25: 65.05172414 | V25: 1.724137931 | W25: 97.57758621 | X25: =(W25/$Q25)*100 -> 2.586206897 | Y25: 130.1034483 | Z25: =(Y25/$Q25)*100 -> 3.448275862 | AA25: 3252.586207 | AB25: =(AA25/$Q25)*100 -> 86.20689655 | AC25: 4041 | AD25: 100 | AE25: 420.264 | AF25: 10.4 | AG25: 0 | AH25: 0 | AI25: 32.328 | AJ25: =(AI25/$AC25)*100 -> 0.8 | AK25: 0 | AL25: =(AK25/$AC25)*100 -> 0 | AM25: 3588.408 | AN25: =(AM25/$AC25)*100 -> 88.8
B26: Magdalena Medio | C26: P_004_CADENA | D26: Total | E26: 35647 | F26: 100 | G26: 1061.536801 | H26: 2.977913432 | I26: 292.7834099 | J26: 0.8213409542 | K26: 306.511429 | L26: =(K26/$E26)*100 -> 0.8598519622 | M26: 3213.54065 | N26: =(M26/$E26)*100 -> 9.014897888 | O26: 30772.62771 | P26: =(O26/$E26)*100 -> 86.32599576 | Q26: 20859 | R26: 100 | S26: 603.8104236 | T26: 2.894723734 | U26: 94.50196632 | V26: 0.4530512792 | W26: 238.0504185 | X26: =(W26/$Q26)*100 -> 1.141236006 | Y26: 1348.630939 | Z26: =(Y26/$Q26)*100 -> 6.465463057 | AA26: 18574.00625 | AB26: =(AA26/$Q26)*100 -> 89.04552592 | AC26: 14788 | AD26: 100 | AE26: 457.7263776 | AF26: 3.095255461 | AG26: 198.2814436 | AH26: 1.340826641 | AI26: 68.4610105 | AJ26: =(AI26/$AC26)*100 -> 0.4629497599 | AK26: 1864.909711 | AL26: =(AK26/$AC26)*100 -> 12.6109664 | AM26: 12198.62146 | AN26: =(AM26/$AC26)*100 -> 82.49000174
D27: Caracolí | E27: 1760 | F27: 100 | G27: 32.27483321 | H27: 1.833797341 | I27: 16.13157895 | J27: 0.9165669856 | K27: 8.065789474 | L27: =(K27/$E27)*100 -> 0.4582834928 | M27: 80.71627131 | N27: =(M27/$E27)*100 -> 4.586151779 | O27: 1622.811527 | P27: =(O27/$E27)*100 -> 92.2052004 | Q27: 1147 | R27: 100 | S27: 8.077464789 | T27: 0.7042253521 | U27: 0 | V27: 0 | W27: 0 | X27: =(W27/$Q27)*100 -> 0 | Y27: 40.38732394 | Z27: =(Y27/$Q27)*100 -> 3.521126761 | AA27: 1098.535211 | AB27: =(AA27/$Q27)*100 -> 95.77464789 | AC27: 613 | AD27: 100 | AE27: 24.19736842 | AF27: 3.947368421 | AG27: 16.13157895 | AH27: 2.631578947 | AI27: 8.065789474 | AJ27: =(AI27/$AC27)*100 -> 1.315789474 | AK27: 40.32894737 | AL27: =(AK27/$AC27)*100 -> 6.578947368 | AM27: 524.2763158 | AN27: =(AM27/$AC27)*100 -> 85.52631579
D28: Maceo | E28: 2910 | F28: 100 | G28: 25.39259259 | H28: 0.8725976836 | I28: 76.25910165 | J28: 2.620587686 | K28: 25.41970055 | L28: =(K28/$E28)*100 -> 0.8735292286 | M28: 381.3768322 | N28: =(M28/$E28)*100 -> 13.10573306 | O28: 2401.551773 | P28: =(O28/$E28)*100 -> 82.52755234 | Q28: 1196 | R28: 100 | S28: 0 | T28: 0 | U28: 38.17021277 | V28: 3.191489362 | W28: 12.72340426 | X28: =(W28/$Q28)*100 -> 1.063829787 | Y28: 229.0212766 | Z28: =(Y28/$Q28)*100 -> 19.14893617 | AA28: 916.0851064 | AB28: =(AA28/$Q28)*100 -> 76.59574468 | AC28: 1714 | AD28: 100 | AE28: 25.39259259 | AF28: 1.481481481 | AG28: 38.08888889 | AH28: 2.222222222 | AI28: 12.6962963 | AJ28: =(AI28/$AC28)*100 -> 0.7407407407 | AK28: 152.3555556 | AL28: =(AK28/$AC28)*100 -> 8.888888889 | AM28: 1485.466667 | AN28: =(AM28/$AC28)*100 -> 86.66666667
D29: Puerto Berrío | E29: 13749 | F29: 100 | G29: 337.9905213 | H29: 2.458291667 | I29: 56.33175355 | J29: 0.4097152779 | K29: 225.3270142 | L29: =(K29/$E29)*100 -> 1.638861111 | M29: 788.7673417 | N29: =(M29/$E29)*100 -> 5.736906987 | O29: 12340.58337 | P29: =(O29/$E29)*100 -> 89.75622496 | Q29: 11886 | R29: 100 | S29: 337.9905213 | T29: 2.843601896 | U29: 56.33175355 | V29: 0.4739336493 | W29: 225.3270142 | X29: =(W29/$Q29)*100 -> 1.895734597 | Y29: 732.3127962 | Z29: =(Y29/$Q29)*100 -> 6.161137441 | AA29: 10534.03791 | AB29: =(AA29/$Q29)*100 -> 88.62559242 | AC29: 1863 | AD29: 100 | AE29: 0 | AF29: 0 | AG29: 0 | AH29: 0 | AI29: 0 | AJ29: =(AI29/$AC29)*100 -> 0 | AK29: 56.45454545 | AL29: =(AK29/$AC29)*100 -> 3.03030303 | AM29: 1806.545455 | AN29: =(AM29/$AC29)*100 -> 96.96969697
D30: Puerto Nare | E30: 5276 | F30: 100 | G30: 200.6231326 | H30: 3.80256127 | I30: 22.30463576 | J30: 0.4227565535 | K30: 0 | L30: =(K30/$E30)*100 -> 0 | M30: 312.0277222 | N30: =(M30/$E30)*100 -> 5.914096326 | O30: 4741.044509 | P30: =(O30/$E30)*100 -> 89.86058585 | Q30: 1908 | R30: 100 | S30: 22.18604651 | T30: 1.162790698 | U30: 0 | V30: 0 | W30: 0 | X30: =(W30/$Q30)*100 -> 0 | Y30: 44.37209302 | Z30: =(Y30/$Q30)*100 -> 2.325581395 | AA30: 1841.44186 | AB30: =(AA30/$Q30)*100 -> 96.51162791 | AC30: 3368 | AD30: 100 | AE30: 178.4370861 | AF30: 5.298013245 | AG30: 22.30463576 | AH30: 0.6622516556 | AI30: 0 | AJ30: =(AI30/$AC30)*100 -> 0 | AK30: 267.6556291 | AL30: =(AK30/$AC30)*100 -> 7.947019868 | AM30: 2899.602649 | AN30: =(AM30/$AC30)*100 -> 86.09271523
D31: Puerto Triunfo | E31: 5677 | F31: 100 | G31: 71.5483871 | H31: 1.260320365 | I31: 95.39784946 | J31: 1.680427153 | K31: 47.69892473 | L31: =(K31/$E31)*100 -> 0.8402135764 | M31: 1335.649504 | N31: =(M31/$E31)*100 -> 23.52738249 | O31: 4126.705335 | P31: =(O31/$E31)*100 -> 72.69165642 | Q31: 1241 | R31: 100 | S31: 0 | T31: 0 | U31: 0 | V31: 0 | W31: 0 | X31: =(W31/$Q31)*100 -> 0 | Y31: 119.3269231 | Z31: =(Y31/$Q31)*100 -> 9.615384615 | AA31: 1121.673077 | AB31: =(AA31/$Q31)*100 -> 90.38461538 | AC31: 4436 | AD31: 100 | AE31: 71.5483871 | AF31: 1.612903226 | AG31: 95.39784946 | AH31: 2.150537634 | AI31: 47.69892473 | AJ31: =(AI31/$AC31)*100 -> 1.075268817 | AK31: 1216.322581 | AL31: =(AK31/$AC31)*100 -> 27.41935484 | AM31: 3005.032258 | AN31: =(AM31/$AC31)*100 -> 67.74193548
D32: Yondó | E32: 6275 | F32: 100 | G32: 393.7073344 | H32: 6.274220468 | I32: 26.35849057 | J32: 0.4200556266 | K32: 0 | L32: =(K32/$E32)*100 -> 0 | M32: 315.0029791 | N32: =(M32/$E32)*100 -> 5.019967795 | O32: 5539.931196 | P32: =(O32/$E32)*100 -> 88.28575611 | Q32: 3481 | R32: 100 | S32: 235.556391 | T32: 6.766917293 | U32: 0 | V32: 0 | W32: 0 | X32: =(W32/$Q32)*100 -> 0 | Y32: 183.2105263 | Z32: =(Y32/$Q32)*100 -> 5.263157895 | AA32: 3062.233083 | AB32: =(AA32/$Q32)*100 -> 87.96992481 | AC32: 2794 | AD32: 100 | AE32: 158.1509434 | AF32: 5.660377358 | AG32: 26.35849057 | AH32: 0.9433962264 | AI32: 0 | AJ32: =(AI32/$AC32)*100 -> 0 | AK32: 131.7924528 | AL32: =(AK32/$AC32)*100 -> 4.716981132 | AM32: 2477.698113 | AN32: =(AM32/$AC32)*100 -> 88.67924528
B33: Nordeste | C33: P_004_CADENA | D33: Total | E33: 68400 | F33: 100 | G33: 1583.974801 | H33: 2.315752634 | I33: 2350.761782 | J33: 3.436786231 | K33: 512.4524391 | L33: =(K33/$E33)*100 -> 0.7491994724 | M33: 11230.2673 | N33: =(M33/$E33)*100 -> 16.41851945 | O33: 52722.54367 | P33: =(O33/$E33)*100 -> 77.07974221 | Q33: 37807 | R33: 100 | S33: 679.208357 | T33: 1.796514817 | U33: 1034.303202 | V33: 2.735745237 | W33: 347.4345392 | X33: =(W33/$Q33)*100 -> 0.9189688132 | Y33: 7510.190171 | Z33: =(Y33/$Q33)*100 -> 19.86454935 | AA33: 28235.86373 | AB33: =(AA33/$Q33)*100 -> 74.68422179 | AC33: 30593 | AD33: 100 | AE33: 904.7664444 | AF33: 2.957429623 | AG33: 1316.45858 | AH33: 4.3031366 | AI33: 165.0178999 | AJ33: =(AI33/$AC33)*100 -> 0.5393975742 | AK33: 3720.077134 | AL33: =(AK33/$AC33)*100 -> 12.15989649 | AM33: 24486.67994 | AN33: =(AM33/$AC33)*100 -> 80.04013971
D34: Amalfi | E34: 9084 | F34: 100 | G34: 37.58333333 | H34: 0.4137311023 | I34: 37.46938776 | J34: 0.4124767476 | K34: 150.3333333 | L34: =(K34/$E34)*100 -> 1.654924409 | M34: 1352.772109 | N34: =(M34/$E34)*100 -> 14.89181097 | O34: 7505.841837 | P34: =(O34/$E34)*100 -> 82.62705677 | Q34: 5412 | R34: 100 | S34: 37.58333333 | T34: 0.6944444444 | U34: 0 | V34: 0 | W34: 150.3333333 | X34: =(W34/$Q34)*100 -> 2.777777778 | Y34: 1277.833333 | Z34: =(Y34/$Q34)*100 -> 23.61111111 | AA34: 3946.25 | AB34: =(AA34/$Q34)*100 -> 72.91666667 | AC34: 3672 | AD34: 100 | AE34: 0 | AF34: 0 | AG34: 37.46938776 | AH34: 1.020408163 | AI34: 0 | AJ34: =(AI34/$AC34)*100 -> 0 | AK34: 74.93877551 | AL34: =(AK34/$AC34)*100 -> 2.040816327 | AM34: 3559.591837 | AN34: =(AM34/$AC34)*100 -> 96.93877551
D35: Anorí | E35: 6233 | F35: 100 | G35: 78.3 | H35: 1.25621691 | I35: 156.4651376 | J35: 2.510270137 | K35: 78.21009174 | L35: =(K35/$E35)*100 -> 1.254774454 | M35: 990.9908257 | N35: =(M35/$E35)*100 -> 15.89909876 | O35: 4929.033945 | P35: =(O35/$E35)*100 -> 79.07963974 | Q35: 2840 | R35: 100 | S35: 0 | T35: 0 | U35: 78.16513761 | V35: 2.752293578 | W35: 52.11009174 | X35: =(W35/$Q35)*100 -> 1.834862385 | Y35: 468.9908257 | Z35: =(Y35/$Q35)*100 -> 16.51376147 | AA35: 2240.733945 | AB35: =(AA35/$Q35)*100 -> 78.89908257 | AC35: 3393 | AD35: 100 | AE35: 78.3 | AF35: 2.307692308 | AG35: 78.3 | AH35: 2.307692308 | AI35: 26.1 | AJ35: =(AI35/$AC35)*100 -> 0.7692307692 | AK35: 522 | AL35: =(AK35/$AC35)*100 -> 15.38461538 | AM35: 2688.3 | AN35: =(AM35/$AC35)*100 -> 79.23076923
D36: Cisneros | E36: 3577 | F36: 100 | G36: 30.88888889 | H36: 0.8635417637 | I36: 43.99233716 | J36: 1.229866848 | K36: 0 | L36: =(K36/$E36)*100 -> 0 | M36: 926.6666667 | N36: =(M36/$E36)*100 -> 25.90625291 | O36: 2575.452107 | P36: =(O36/$E36)*100 -> 72.00033848 | Q36: 3197 | R36: 100 | S36: 30.88888889 | T36: 0.9661835749 | U36: 30.88888889 | V36: 0.9661835749 | W36: 0 | X36: =(W36/$Q36)*100 -> 0 | Y36: 926.6666667 | Z36: =(Y36/$Q36)*100 -> 28.98550725 | AA36: 2208.555556 | AB36: =(AA36/$Q36)*100 -> 69.0821256 | AC36: 380 | AD36: 100 | AE36: 0 | AF36: 0 | AG36: 13.10344828 | AH36: 3.448275862 | AI36: 0 | AJ36: =(AI36/$AC36)*100 -> 0 | AK36: 0 | AL36: =(AK36/$AC36)*100 -> 0 | AM36: 366.8965517 | AN36: =(AM36/$AC36)*100 -> 96.55172414
D37: Remedios | E37: 9731 | F37: 100 | G37: 160.9954545 | H37: 1.654459506 | I37: 402.3954545 | J37: 4.135191188 | K37: 40.10909091 | L37: =(K37/$E37)*100 -> 0.412178511 | M37: 1326.581818 | N37: =(M37/$E37)*100 -> 13.63253333 | O37: 7800.918182 | P37: =(O37/$E37)*100 -> 80.16563747 | Q37: 4412 | R37: 100 | S37: 40.10909091 | T37: 0.9090909091 | U37: 120.3272727 | V37: 2.727272727 | W37: 40.10909091 | X37: =(W37/$Q37)*100 -> 0.9090909091 | Y37: 681.8545455 | Z37: =(Y37/$Q37)*100 -> 15.45454545 | AA37: 3529.6 | AB37: =(AA37/$Q37)*100 -> 80 | AC37: 5319 | AD37: 100 | AE37: 120.8863636 | AF37: 2.272727273 | AG37: 282.0681818 | AH37: 5.303030303 | AI37: 0 | AJ37: =(AI37/$AC37)*100 -> 0 | AK37: 644.7272727 | AL37: =(AK37/$AC37)*100 -> 12.12121212 | AM37: 4271.318182 | AN37: =(AM37/$AC37)*100 -> 80.3030303
D38: San Roque | E38: 7688 | F38: 100 | G38: 415.8141026 | H38: 5.408612156 | I38: 191.9725275 | J38: 2.4970412 | K38: 32.12179487 | L38: =(K38/$E38)*100 -> 0.417817311 | M38: 2755.650183 | N38: =(M38/$E38)*100 -> 35.84352475 | O38: 4292.441392 | P38: =(O38/$E38)*100 -> 55.83300458 | Q38: 2677 | R38: 100 | S38: 223.0833333 | T38: 8.333333333 | U38: 95.60714286 | V38: 3.571428571 | W38: 0 | X38: =(W38/$Q38)*100 -> 0 | Y38: 860.4642857 | Z38: =(Y38/$Q38)*100 -> 32.14285714 | AA38: 1497.845238 | AB38: =(AA38/$Q38)*100 -> 55.95238095 | AC38: 5011 | AD38: 100 | AE38: 192.7307692 | AF38: 3.846153846 | AG38: 96.36538462 | AH38: 1.923076923 | AI38: 32.12179487 | AJ38: =(AI38/$AC38)*100 -> 0.641025641 | AK38: 1895.185897 | AL38: =(AK38/$AC38)*100 -> 37.82051282 | AM38: 2794.596154 | AN38: =(AM38/$AC38)*100 -> 55.76923077
D39: Santo Domingo | E39: 4250 | F39: 100 | G39: 54.25238095 | H39: 1.276526611 | I39: 162.7690476 | J39: 3.829859944 | K39: 54.2547619 | L39: =(K39/$E39)*100 -> 1.276582633 | M39: 578.7095238 | N39: =(M39/$E39)*100 -> 13.61669468 | O39: 3400.014286 | P39: =(O39/$E39)*100 -> 80.00033613 | Q39: 1085 | R39: 100 | S39: 36.16666667 | T39: 3.333333333 | U39: 18.08333333 | V39: 1.666666667 | W39: 18.08333333 | X39: =(W39/$Q39)*100 -> 1.666666667 | Y39: 253.1666667 | Z39: =(Y39/$Q39)*100 -> 23.33333333 | AA39: 759.5 | AB39: =(AA39/$Q39)*100 -> 70 | AC39: 3165 | AD39: 100 | AE39: 18.08571429 | AF39: 0.5714285714 | AG39: 144.6857143 | AH39: 4.571428571 | AI39: 36.17142857 | AJ39: =(AI39/$AC39)*100 -> 1.142857143 | AK39: 325.5428571 | AL39: =(AK39/$AC39)*100 -> 10.28571429 | AM39: 2640.514286 | AN39: =(AM39/$AC39)*100 -> 83.42857143
D40: Segovia | E40: 13052 | F40: 100 | G40: 267.4680634 | H40: 2.049249643 | I40: 909.5385795 | J40: 6.968576306 | K40: 107.0117527 | L40: =(K40/$E40)*100 -> 0.8198877772 | M40: 1925.516607 | N40: =(M40/$E40)*100 -> 14.75265559 | O40: 9842.464997 | P40: =(O40/$E40)*100 -> 75.40963069 | Q40: 11018 | R40: 100 | S40: 213.9417476 | T40: 1.941747573 | U40: 534.8543689 | V40: 4.854368932 | W40: 53.48543689 | X40: =(W40/$Q40)*100 -> 0.4854368932 | Y40: 1871.990291 | Z40: =(Y40/$Q40)*100 -> 16.99029126 | AA40: 8343.728155 | AB40: =(AA40/$Q40)*100 -> 75.72815534 | AC40: 2034 | AD40: 100 | AE40: 53.52631579 | AF40: 2.631578947 | AG40: 374.6842105 | AH40: 18.42105263 | AI40: 53.52631579 | AJ40: =(AI40/$AC40)*100 -> 2.631578947 | AK40: 53.52631579 | AL40: =(AK40/$AC40)*100 -> 2.631578947 | AM40: 1498.736842 | AN40: =(AM40/$AC40)*100 -> 73.68421053
D41: Vegachí | E41: 4023 | F41: 100 | G41: 205.8619901 | H41: 5.117126276 | I41: 137.9229889 | J41: 3.428361644 | K41: 17.09836066 | L41: =(K41/$E41)*100 -> 0.4250151791 | M41: 692.1143729 | N41: =(M41/$E41)*100 -> 17.20393669 | O41: 2970.002287 | P41: =(O41/$E41)*100 -> 73.82556022 | Q41: 2980 | R41: 100 | S41: 51.97674419 | T41: 1.744186047 | U41: 86.62790698 | V41: 2.906976744 | W41: 0 | X41: =(W41/$Q41)*100 -> 0 | Y41: 623.7209302 | Z41: =(Y41/$Q41)*100 -> 20.93023256 | AA41: 2217.674419 | AB41: =(AA41/$Q41)*100 -> 74.41860465 | AC41: 1043 | AD41: 100 | AE41: 153.8852459 | AF41: 14.75409836 | AG41: 51.29508197 | AH41: 4.918032787 | AI41: 17.09836066 | AJ41: =(AI41/$AC41)*100 -> 1.639344262 | AK41: 68.39344262 | AL41: =(AK41/$AC41)*100 -> 6.557377049 | AM41: 752.3278689 | AN41: =(AM41/$AC41)*100 -> 72.13114754
D42: Yalí | E42: 2777 | F42: 100 | G42: 134.3074613 | H42: 4.836422805 | I42: 109.7331947 | J42: 3.951501431 | K42: 0 | L42: =(K42/$E42)*100 -> 0 | M42: 182.3922384 | N42: =(M42/$E42)*100 -> 6.567959611 | O42: 2350.567106 | P42: =(O42/$E42)*100 -> 84.64411615 | Q42: 1421 | R42: 100 | S42: 12.14529915 | T42: 0.8547008547 | U42: 36.43589744 | V42: 2.564102564 | W42: 0 | X42: =(W42/$Q42)*100 -> 0 | Y42: 145.7435897 | Z42: =(Y42/$Q42)*100 -> 10.25641026 | AA42: 1226.675214 | AB42: =(AA42/$Q42)*100 -> 86.32478632 | AC42: 1356 | AD42: 100 | AE42: 122.1621622 | AF42: 9.009009009 | AG42: 73.2972973 | AH42: 5.405405405 | AI42: 0 | AJ42: =(AI42/$AC42)*100 -> 0 | AK42: 36.64864865 | AL42: =(AK42/$AC42)*100 -> 2.702702703 | AM42: 1123.891892 | AN42: =(AM42/$AC42)*100 -> 82.88288288
D43: Yolombó | E43: 7985 | F43: 100 | G43: 198.5031264 | H43: 2.485950237 | I43: 198.5031264 | J43: 2.485950237 | K43: 33.31325301 | L43: =(K43/$E43)*100 -> 0.4171979087 | M43: 498.8729602 | N43: =(M43/$E43)*100 -> 6.247626302 | O43: 7055.807534 | P43: =(O43/$E43)*100 -> 88.36327532 | Q43: 2765 | R43: 100 | S43: 33.31325301 | T43: 1.204819277 | U43: 33.31325301 | V43: 1.204819277 | W43: 33.31325301 | X43: =(W43/$Q43)*100 -> 1.204819277 | Y43: 399.7590361 | Z43: =(Y43/$Q43)*100 -> 14.45783133 | AA43: 2265.301205 | AB43: =(AA43/$Q43)*100 -> 81.92771084 | AC43: 5220 | AD43: 100 | AE43: 165.1898734 | AF43: 3.164556962 | AG43: 165.1898734 | AH43: 3.164556962 | AI43: 0 | AJ43: =(AI43/$AC43)*100 -> 0 | AK43: 99.11392405 | AL43: =(AK43/$AC43)*100 -> 1.898734177 | AM43: 4790.506329 | AN43: =(AM43/$AC43)*100 -> 91.7721519
B44: Norte | C44: P_004_CADENA | D44: Total | E44: 77455 | F44: 100 | G44: 1261.73677 | H44: 1.628993312 | I44: 1475.944129 | J44: 1.905550486 | K44: 500.8565965 | L44: =(K44/$E44)*100 -> 0.6466420458 | M44: 18319.00567 | N44: =(M44/$E44)*100 -> 23.65115961 | O44: 55897.45683 | P44: =(O44/$E44)*100 -> 72.16765455 | Q44: 42410 | R44: 100 | S44: 376.8106248 | T44: 0.8884947531 | U44: 851.0847938 | V44: 2.006802155 | W44: 453.866069 | X44: =(W44/$Q44)*100 -> 1.07018644 | Y44: 12071.06728 | Z44: =(Y44/$Q44)*100 -> 28.46278538 | AA44: 28657.17123 | AB44: =(AA44/$Q44)*100 -> 67.57173128 | AC44: 35045 | AD44: 100 | AE44: 884.9261453 | AF44: 2.52511384 | AG44: 624.8593347 | AH44: 1.783019931 | AI44: 46.99052752 | AJ44: =(AI44/$AC44)*100 -> 0.1340862534 | AK44: 6247.938396 | AL44: =(AK44/$AC44)*100 -> 17.82833042 | AM44: 27240.2856 | AN44: =(AM44/$AC44)*100 -> 77.72944955
D45: Angostura | E45: 3532 | F45: 100 | G45: 15.30434783 | H45: 0.4333054311 | I45: 45.57055215 | J45: 1.290219483 | K45: 0 | L45: =(K45/$E45)*100 -> 0 | M45: 989.4169112 | N45: =(M45/$E45)*100 -> 28.01293633 | O45: 2481.708189 | P45: =(O45/$E45)*100 -> 70.26353876 | Q45: 1056 | R45: 100 | S45: 15.30434783 | T45: 1.449275362 | U45: 0 | V45: 0 | W45: 0 | X45: =(W45/$Q45)*100 -> 0 | Y45: 275.4782609 | Z45: =(Y45/$Q45)*100 -> 26.08695652 | AA45: 765.2173913 | AB45: =(AA45/$Q45)*100 -> 72.46376812 | AC45: 2476 | AD45: 100 | AE45: 0 | AF45: 0 | AG45: 45.57055215 | AH45: 1.840490798 | AI45: 0 | AJ45: =(AI45/$AC45)*100 -> 0 | AK45: 713.9386503 | AL45: =(AK45/$AC45)*100 -> 28.83435583 | AM45: 1716.490798 | AN45: =(AM45/$AC45)*100 -> 69.32515337
D46: Belmira | E46: 1805 | F46: 100 | G46: 16.68282413 | H46: 0.9242561844 | I46: 0 | J46: 0 | K46: 0 | L46: =(K46/$E46)*100 -> 0 | M46: 208.5996866 | N46: =(M46/$E46)*100 -> 11.55676934 | O46: 1579.717489 | P46: =(O46/$E46)*100 -> 87.51897447 | Q46: 580 | R46: 100 | S46: 8.405797101 | T46: 1.449275362 | U46: 0 | V46: 0 | W46: 0 | X46: =(W46/$Q46)*100 -> 0 | Y46: 109.2753623 | Z46: =(Y46/$Q46)*100 -> 18.84057971 | AA46: 462.3188406 | AB46: =(AA46/$Q46)*100 -> 79.71014493 | AC46: 1225 | AD46: 100 | AE46: 8.277027027 | AF46: 0.6756756757 | AG46: 0 | AH46: 0 | AI46: 0 | AJ46: =(AI46/$AC46)*100 -> 0 | AK46: 99.32432432 | AL46: =(AK46/$AC46)*100 -> 8.108108108 | AM46: 1117.398649 | AN46: =(AM46/$AC46)*100 -> 91.21621622
D47: Briceño | E47: 2661 | F47: 100 | G47: 23.41428571 | H47: 0.8799055135 | I47: 35.20139573 | J47: 1.322863425 | K47: 11.74712644 | L47: =(K47/$E47)*100 -> 0.441455334 | M47: 621.758046 | N47: =(M47/$E47)*100 -> 23.36557858 | O47: 1968.879146 | P47: =(O47/$E47)*100 -> 73.99019715 | Q47: 1022 | R47: 100 | S47: 0 | T47: 0 | U47: 23.49425287 | V47: 2.298850575 | W47: 11.74712644 | X47: =(W47/$Q47)*100 -> 1.149425287 | Y47: 375.908046 | Z47: =(Y47/$Q47)*100 -> 36.7816092 | AA47: 610.8505747 | AB47: =(AA47/$Q47)*100 -> 59.77011494 | AC47: 1639 | AD47: 100 | AE47: 23.41428571 | AF47: 1.428571429 | AG47: 11.70714286 | AH47: 0.7142857143 | AI47: 0 | AJ47: =(AI47/$AC47)*100 -> 0 | AK47: 245.85 | AL47: =(AK47/$AC47)*100 -> 15 | AM47: 1358.028571 | AN47: =(AM47/$AC47)*100 -> 82.85714286
D48: Campamento | E48: 2795 | F48: 100 | G48: 36.64864865 | H48: 1.311221776 | I48: 36.76993243 | J48: 1.315561089 | K48: 0 | L48: =(K48/$E48)*100 -> 0 | M48: 627.1506757 | N48: =(M48/$E48)*100 -> 22.43830682 | O48: 2094.430743 | P48: =(O48/$E48)*100 -> 74.93491031 | Q48: 987 | R48: 100 | S48: 0 | T48: 0 | U48: 12.3375 | V48: 1.25 | W48: 0 | X48: =(W48/$Q48)*100 -> 0 | Y48: 419.475 | Z48: =(Y48/$Q48)*100 -> 42.5 | AA48: 555.1875 | AB48: =(AA48/$Q48)*100 -> 56.25 | AC48: 1808 | AD48: 100 | AE48: 36.64864865 | AF48: 2.027027027 | AG48: 24.43243243 | AH48: 1.351351351 | AI48: 0 | AJ48: =(AI48/$AC48)*100 -> 0 | AK48: 207.6756757 | AL48: =(AK48/$AC48)*100 -> 11.48648649 | AM48: 1539.243243 | AN48: =(AM48/$AC48)*100 -> 85.13513514
D49: Carolina del Príncipe | E49: 1544 | F49: 100 | G49: 21.56797044 | H49: 1.396889277 | I49: 50.53548223 | J49: 3.27302346 | K49: 14.45508982 | L49: =(K49/$E49)*100 -> 0.9362104806 | M49: 201.9126003 | N49: =(M49/$E49)*100 -> 13.07724095 | O49: 1255.528857 | P49: =(O49/$E49)*100 -> 81.31663583 | Q49: 1207 | R49: 100 | S49: 7.22754491 | T49: 0.5988023952 | U49: 43.36526946 | V49: 3.592814371 | W49: 14.45508982 | X49: =(W49/$Q49)*100 -> 1.19760479 | Y49: 144.5508982 | Z49: =(Y49/$Q49)*100 -> 11.9760479 | AA49: 997.4011976 | AB49: =(AA49/$Q49)*100 -> 82.63473054 | AC49: 337 | AD49: 100 | AE49: 14.34042553 | AF49: 4.255319149 | AG49: 7.170212766 | AH49: 2.127659574 | AI49: 0 | AJ49: =(AI49/$AC49)*100 -> 0 | AK49: 57.36170213 | AL49: =(AK49/$AC49)*100 -> 17.0212766 | AM49: 258.1276596 | AN49: =(AM49/$AC49)*100 -> 76.59574468
D50: Donmatías | E50: 6720 | F50: 100 | G50: 0 | H50: 0 | I50: 196.2342747 | J50: 2.920152897 | K50: 56.12195122 | L50: =(K50/$E50)*100 -> 0.8351480836 | M50: 1541.428113 | N50: =(M50/$E50)*100 -> 22.93791835 | O50: 4926.215661 | P50: =(O50/$E50)*100 -> 73.30678067 | Q50: 4602 | R50: 100 | S50: 0 | T50: 0 | U50: 168.3658537 | V50: 3.658536585 | W50: 56.12195122 | X50: =(W50/$Q50)*100 -> 1.219512195 | Y50: 1262.743902 | Z50: =(Y50/$Q50)*100 -> 27.43902439 | AA50: 3114.768293 | AB50: =(AA50/$Q50)*100 -> 67.68292683 | AC50: 2118 | AD50: 100 | AE50: 0 | AF50: 0 | AG50: 27.86842105 | AH50: 1.315789474 | AI50: 0 | AJ50: =(AI50/$AC50)*100 -> 0 | AK50: 278.6842105 | AL50: =(AK50/$AC50)*100 -> 13.15789474 | AM50: 1811.447368 | AN50: =(AM50/$AC50)*100 -> 85.52631579
D51: Entrerríos | E51: 3763 | F51: 100 | G51: 16.18320611 | H51: 0.4300612837 | I51: 64.65746146 | J51: 1.718242399 | K51: 0 | L51: =(K51/$E51)*100 -> 0 | M51: 517.1089657 | N51: =(M51/$E51)*100 -> 13.74193372 | O51: 3165.050367 | P51: =(O51/$E51)*100 -> 84.1097626 | Q51: 2120 | R51: 100 | S51: 16.18320611 | T51: 0.7633587786 | U51: 48.54961832 | V51: 2.290076336 | W51: 0 | X51: =(W51/$Q51)*100 -> 0 | Y51: 356.0305344 | Z51: =(Y51/$Q51)*100 -> 16.79389313 | AA51: 1699.236641 | AB51: =(AA51/$Q51)*100 -> 80.15267176 | AC51: 1643 | AD51: 100 | AE51: 0 | AF51: 0 | AG51: 16.10784314 | AH51: 0.9803921569 | AI51: 0 | AJ51: =(AI51/$AC51)*100 -> 0 | AK51: 161.0784314 | AL51: =(AK51/$AC51)*100 -> 9.803921569 | AM51: 1465.813725 | AN51: =(AM51/$AC51)*100 -> 89.21568627
D52: Gómez Plata | E52: 3711 | F52: 100 | G52: 63.73609227 | H52: 1.717491034 | I52: 159.2220715 | J52: 4.290543559 | K52: 111.4253731 | L52: =(K52/$E52)*100 -> 3.002570012 | M52: 509.5235188 | N52: =(M52/$E52)*100 -> 13.73008674 | O52: 2867.092944 | P52: =(O52/$E52)*100 -> 77.25930866 | Q52: 2133 | R52: 100 | S52: 15.91791045 | T52: 0.7462686567 | U52: 127.3432836 | V52: 5.970149254 | W52: 111.4253731 | X52: =(W52/$Q52)*100 -> 5.223880597 | Y52: 397.9477612 | Z52: =(Y52/$Q52)*100 -> 18.65671642 | AA52: 1480.365672 | AB52: =(AA52/$Q52)*100 -> 69.40298507 | AC52: 1578 | AD52: 100 | AE52: 47.81818182 | AF52: 3.03030303 | AG52: 31.87878788 | AH52: 2.02020202 | AI52: 0 | AJ52: =(AI52/$AC52)*100 -> 0 | AK52: 111.5757576 | AL52: =(AK52/$AC52)*100 -> 7.070707071 | AM52: 1386.727273 | AN52: =(AM52/$AC52)*100 -> 87.87878788
D53: Guadalupe | E53: 2121 | F53: 100 | G53: 38.14705882 | H53: 1.798541199 | I53: 47.72845417 | J53: 2.250280725 | K53: 28.65492476 | L53: =(K53/$E53)*100 -> 1.351010125 | M53: 382.497093 | N53: =(M53/$E53)*100 -> 18.03380919 | O53: 1623.972469 | P53: =(O53/$E53)*100 -> 76.56635876 | Q53: 824 | R53: 100 | S53: 0 | T53: 0 | U53: 9.581395349 | V53: 1.162790698 | W53: 9.581395349 | X53: =(W53/$Q53)*100 -> 1.162790698 | Y53: 220.372093 | Z53: =(Y53/$Q53)*100 -> 26.74418605 | AA53: 584.4651163 | AB53: =(AA53/$Q53)*100 -> 70.93023256 | AC53: 1297 | AD53: 100 | AE53: 38.14705882 | AF53: 2.941176471 | AG53: 38.14705882 | AH53: 2.941176471 | AI53: 19.07352941 | AJ53: =(AI53/$AC53)*100 -> 1.470588235 | AK53: 162.125 | AL53: =(AK53/$AC53)*100 -> 12.5 | AM53: 1039.507353 | AN53: =(AM53/$AC53)*100 -> 80.14705882
D54: Ituango | E54: 6636 | F54: 100 | G54: 193.804126 | H54: 2.920496172 | I54: 55.60684709 | J54: 0.8379573099 | K54: 27.9673913 | L54: =(K54/$E54)*100 -> 0.4214495374 | M54: 943.6767229 | N54: =(M54/$E54)*100 -> 14.22056544 | O54: 5414.944913 | P54: =(O54/$E54)*100 -> 81.59953154 | Q54: 2573 | R54: 100 | S54: 27.9673913 | T54: 1.086956522 | U54: 27.9673913 | V54: 1.086956522 | W54: 27.9673913 | X54: =(W54/$Q54)*100 -> 1.086956522 | Y54: 335.6086957 | Z54: =(Y54/$Q54)*100 -> 13.04347826 | AA54: 2153.48913 | AB54: =(AA54/$Q54)*100 -> 83.69565217 | AC54: 4063 | AD54: 100 | AE54: 165.8367347 | AF54: 4.081632653 | AG54: 27.63945578 | AH54: 0.6802721088 | AI54: 0 | AJ54: =(AI54/$AC54)*100 -> 0 | AK54: 608.0680272 | AL54: =(AK54/$AC54)*100 -> 14.96598639 | AM54: 3261.455782 | AN54: =(AM54/$AC54)*100 -> 80.27210884
D55: San Andrés de Cuerquia | E55: 2287 | F55: 100 | G55: 51.18644068 | H55: 2.238147822 | I55: 91.96146466 | J55: 4.021052237 | K55: 30.53773585 | L55: =(K55/$E55)*100 -> 1.335274851 | M55: 265.2408059 | N55: =(M55/$E55)*100 -> 11.59776152 | O55: 1848.073553 | P55: =(O55/$E55)*100 -> 80.80776357 | Q55: 1079 | R55: 100 | S55: 0 | T55: 0 | U55: 30.53773585 | V55: 2.830188679 | W55: 30.53773585 | X55: =(W55/$Q55)*100 -> 2.830188679 | Y55: 162.8679245 | Z55: =(Y55/$Q55)*100 -> 15.09433962 | AA55: 855.0566038 | AB55: =(AA55/$Q55)*100 -> 79.24528302 | AC55: 1208 | AD55: 100 | AE55: 51.18644068 | AF55: 4.237288136 | AG55: 61.42372881 | AH55: 5.084745763 | AI55: 0 | AJ55: =(AI55/$AC55)*100 -> 0 | AK55: 102.3728814 | AL55: =(AK55/$AC55)*100 -> 8.474576271 | AM55: 993.0169492 | AN55: =(AM55/$AC55)*100 -> 82.20338983
D56: San José de la Montaña | E56: 1206 | F56: 100 | G56: 11.73426573 | H56: 0.9729905252 | I56: 17.51792652 | J56: 1.452564388 | K56: 11.73426573 | L56: =(K56/$E56)*100 -> 0.9729905252 | M56: 293.1062271 | N56: =(M56/$E56)*100 -> 24.30399893 | O56: 871.9073149 | P56: =(O56/$E56)*100 -> 72.29745563 | Q56: 839 | R56: 100 | S56: 11.73426573 | T56: 1.398601399 | U56: 5.867132867 | V56: 0.6993006993 | W56: 11.73426573 | X56: =(W56/$Q56)*100 -> 1.398601399 | Y56: 258.1538462 | Z56: =(Y56/$Q56)*100 -> 30.76923077 | AA56: 551.5104895 | AB56: =(AA56/$Q56)*100 -> 65.73426573 | AC56: 367 | AD56: 100 | AE56: 0 | AF56: 0 | AG56: 11.65079365 | AH56: 3.174603175 | AI56: 0 | AJ56: =(AI56/$AC56)*100 -> 0 | AK56: 34.95238095 | AL56: =(AK56/$AC56)*100 -> 9.523809524 | AM56: 320.3968254 | AN56: =(AM56/$AC56)*100 -> 87.3015873
D57: San Pedro de los Milagros | E57: 7110 | F57: 100 | G57: 59.15789474 | H57: 0.8320379007 | I57: 59.23411978 | J57: 0.8331099829 | K57: 29.65517241 | L57: =(K57/$E57)*100 -> 0.4170910325 | M57: 3229.898367 | N57: =(M57/$E57)*100 -> 45.42754383 | O57: 3732.054446 | P57: =(O57/$E57)*100 -> 52.49021725 | Q57: 4300 | R57: 100 | S57: 0 | T57: 0 | U57: 29.65517241 | V57: 0.6896551724 | W57: 29.65517241 | X57: =(W57/$Q57)*100 -> 0.6896551724 | Y57: 2253.793103 | Z57: =(Y57/$Q57)*100 -> 52.4137931 | AA57: 1986.896552 | AB57: =(AA57/$Q57)*100 -> 46.20689655 | AC57: 2810 | AD57: 100 | AE57: 59.15789474 | AF57: 2.105263158 | AG57: 29.57894737 | AH57: 1.052631579 | AI57: 0 | AJ57: =(AI57/$AC57)*100 -> 0 | AK57: 976.1052632 | AL57: =(AK57/$AC57)*100 -> 34.73684211 | AM57: 1745.157895 | AN57: =(AM57/$AC57)*100 -> 62.10526316
D58: Santa Rosa de Osos | E58: 11536 | F58: 100 | G58: 189.9665404 | H58: 1.646727985 | I58: 95.04166667 | J58: 0.8238702034 | K58: 95.04166667 | L58: =(K58/$E58)*100 -> 0.8238702034 | M58: 3371.292929 | N58: =(M58/$E58)*100 -> 29.22410653 | O58: 7784.657197 | P58: =(O58/$E58)*100 -> 67.48142508 | Q58: 6843 | R58: 100 | S58: 142.5625 | T58: 2.083333333 | U58: 95.04166667 | V58: 1.388888889 | W58: 95.04166667 | X58: =(W58/$Q58)*100 -> 1.388888889 | Y58: 2281 | Z58: =(Y58/$Q58)*100 -> 33.33333333 | AA58: 4229.354167 | AB58: =(AA58/$Q58)*100 -> 61.80555556 | AC58: 4693 | AD58: 100 | AE58: 47.4040404 | AF58: 1.01010101 | AG58: 0 | AH58: 0 | AI58: 0 | AJ58: =(AI58/$AC58)*100 -> 0 | AK58: 1090.292929 | AL58: =(AK58/$AC58)*100 -> 23.23232323 | AM58: 3555.30303 | AN58: =(AM58/$AC58)*100 -> 75.75757576
D59: Toledo | E59: 1671 | F59: 100 | G59: 69.3984375 | H59: 4.153108169 | I59: 69.89275568 | J59: 4.182690346 | K59: 7.7109375 | L59: =(K59/$E59)*100 -> 0.4614564632 | M59: 286.6022727 | N59: =(M59/$E59)*100 -> 17.15154235 | O59: 1237.395597 | P59: =(O59/$E59)*100 -> 74.05120267 | Q59: 684 | R59: 100 | S59: 0 | T59: 0 | U59: 62.18181818 | V59: 9.090909091 | W59: 0 | X59: =(W59/$Q59)*100 -> 0 | Y59: 163.2272727 | Z59: =(Y59/$Q59)*100 -> 23.86363636 | AA59: 458.5909091 | AB59: =(AA59/$Q59)*100 -> 67.04545455 | AC59: 987 | AD59: 100 | AE59: 69.3984375 | AF59: 7.03125 | AG59: 7.7109375 | AH59: 0.78125 | AI59: 7.7109375 | AJ59: =(AI59/$AC59)*100 -> 0.78125 | AK59: 123.375 | AL59: =(AK59/$AC59)*100 -> 12.5 | AM59: 778.8046875 | AN59: =(AM59/$AC59)*100 -> 78.90625
D60: Valdivia | E60: 4776 | F60: 100 | G60: 343.6068289 | H60: 7.19444784 | I60: 60.61818182 | J60: 1.269224912 | K60: 20.20606061 | L60: =(K60/$E60)*100 -> 0.4230749708 | M60: 1214.335809 | N60: =(M60/$E60)*100 -> 25.42579164 | O60: 3137.23312 | P60: =(O60/$E60)*100 -> 65.68746064 | Q60: 1442 | R60: 100 | S60: 20.30985915 | T60: 1.408450704 | U60: 0 | V60: 0 | W60: 0 | X60: =(W60/$Q60)*100 -> 0 | Y60: 385.8873239 | Z60: =(Y60/$Q60)*100 -> 26.76056338 | AA60: 1035.802817 | AB60: =(AA60/$Q60)*100 -> 71.83098592 | AC60: 3334 | AD60: 100 | AE60: 323.2969697 | AF60: 9.696969697 | AG60: 60.61818182 | AH60: 1.818181818 | AI60: 20.20606061 | AJ60: =(AI60/$AC60)*100 -> 0.6060606061 | AK60: 828.4484848 | AL60: =(AK60/$AC60)*100 -> 24.84848485 | AM60: 2101.430303 | AN60: =(AM60/$AC60)*100 -> 63.03030303
D61: Yarumal | E61: 13581 | F61: 100 | G61: 111.1978022 | H61: 0.818774775 | I61: 390.151542 | J61: 2.872774774 | K61: 55.5989011 | L61: =(K61/$E61)*100 -> 0.4093873875 | M61: 3115.45693 | N61: =(M61/$E61)*100 -> 22.93981982 | O61: 9908.594825 | P61: =(O61/$E61)*100 -> 72.95924324 | Q61: 10119 | R61: 100 | S61: 111.1978022 | T61: 1.098901099 | U61: 166.7967033 | V61: 1.648351648 | W61: 55.5989011 | X61: =(W61/$Q61)*100 -> 0.5494505495 | Y61: 2668.747253 | Z61: =(Y61/$Q61)*100 -> 26.37362637 | AA61: 7116.659341 | AB61: =(AA61/$Q61)*100 -> 70.32967033 | AC61: 3462 | AD61: 100 | AE61: 0 | AF61: 0 | AG61: 223.3548387 | AH61: 6.451612903 | AI61: 0 | AJ61: =(AI61/$AC61)*100 -> 0 | AK61: 446.7096774 | AL61: =(AK61/$AC61)*100 -> 12.90322581 | AM61: 2791.935484 | AN61: =(AM61/$AC61)*100 -> 80.64516129
B62: Occidente | C62: P_004_CADENA | D62: Total | E62: 69973 | F62: 100 | G62: 3651.749106 | H62: 5.218797402 | I62: 2448.571096 | J62: 3.499308442 | K62: 644.0310614 | L62: =(K62/$E62)*100 -> 0.9203993846 | M62: 8518.269352 | N62: =(M62/$E62)*100 -> 12.17365177 | O62: 54710.37938 | P62: =(O62/$E62)*100 -> 78.187843 | Q62: 30044 | R62: 100 | S62: 916.1484036 | T62: 3.049355624 | U62: 1168.653787 | V62: 3.889807571 | W62: 506.1313485 | X62: =(W62/$Q62)*100 -> 1.684633699 | Y62: 5214.736155 | Z62: =(Y62/$Q62)*100 -> 17.35699692 | AA62: 22238.33031 | AB62: =(AA62/$Q62)*100 -> 74.01920619 | AC62: 39929 | AD62: 100 | AE62: 2735.600703 | AF62: 6.85116257 | AG62: 1279.91731 | AH62: 3.205483007 | AI62: 137.8997129 | AJ62: =(AI62/$AC62)*100 -> 0.3453623003 | AK62: 3303.533197 | AL62: =(AK62/$AC62)*100 -> 8.273518489 | AM62: 32472.04908 | AN62: =(AM62/$AC62)*100 -> 81.32447363
D63: Abriaquí | E63: 948 | F63: 100 | G63: 57.63116883 | H63: 6.079237218 | I63: 33.63116883 | J63: 3.547591649 | K63: 4.831168831 | L63: =(K63/$E63)*100 -> 0.5096169653 | M63: 57.69350649 | N63: =(M63/$E63)*100 -> 6.085812921 | O63: 794.212987 | P63: =(O63/$E63)*100 -> 83.77774125 | Q63: 372 | R63: 100 | S63: 4.831168831 | T63: 1.298701299 | U63: 4.831168831 | V63: 1.298701299 | W63: 4.831168831 | X63: =(W63/$Q63)*100 -> 1.298701299 | Y63: 14.49350649 | Z63: =(Y63/$Q63)*100 -> 3.896103896 | AA63: 343.012987 | AB63: =(AA63/$Q63)*100 -> 92.20779221 | AC63: 576 | AD63: 100 | AE63: 52.8 | AF63: 9.166666667 | AG63: 28.8 | AH63: 5 | AI63: 0 | AJ63: =(AI63/$AC63)*100 -> 0 | AK63: 43.2 | AL63: =(AK63/$AC63)*100 -> 7.5 | AM63: 451.2 | AN63: =(AM63/$AC63)*100 -> 78.33333333
D64: Anzá | E64: 2433 | F64: 100 | G64: 162.2502674 | H64: 6.668732732 | I64: 54.03315508 | J64: 2.220844845 | K64: 0 | L64: =(K64/$E64)*100 -> 0 | M64: 260.7465241 | N64: =(M64/$E64)*100 -> 10.71707867 | O64: 1955.970053 | P64: =(O64/$E64)*100 -> 80.39334375 | Q64: 601 | R64: 100 | S64: 43.70909091 | T64: 7.272727273 | U64: 10.92727273 | V64: 1.818181818 | W64: 0 | X64: =(W64/$Q64)*100 -> 0 | Y64: 152.9818182 | Z64: =(Y64/$Q64)*100 -> 25.45454545 | AA64: 393.3818182 | AB64: =(AA64/$Q64)*100 -> 65.45454545 | AC64: 1832 | AD64: 100 | AE64: 118.5411765 | AF64: 6.470588235 | AG64: 43.10588235 | AH64: 2.352941176 | AI64: 0 | AJ64: =(AI64/$AC64)*100 -> 0 | AK64: 107.7647059 | AL64: =(AK64/$AC64)*100 -> 5.882352941 | AM64: 1562.588235 | AN64: =(AM64/$AC64)*100 -> 85.29411765
D65: Armenia | E65: 1861 | F65: 100 | G65: 8.492537313 | H65: 0.4563426821 | I65: 16.99841967 | J65: 0.9134024539 | K65: 25.49095698 | L65: =(K65/$E65)*100 -> 1.369745136 | M65: 246.6172081 | N65: =(M65/$E65)*100 -> 13.25186502 | O65: 1563.400878 | P65: =(O65/$E65)*100 -> 84.00864471 | Q65: 723 | R65: 100 | S65: 0 | T65: 0 | U65: 8.505882353 | V65: 1.176470588 | W65: 8.505882353 | X65: =(W65/$Q65)*100 -> 1.176470588 | Y65: 212.6470588 | Z65: =(Y65/$Q65)*100 -> 29.41176471 | AA65: 493.3411765 | AB65: =(AA65/$Q65)*100 -> 68.23529412 | AC65: 1138 | AD65: 100 | AE65: 8.492537313 | AF65: 0.7462686567 | AG65: 8.492537313 | AH65: 0.7462686567 | AI65: 16.98507463 | AJ65: =(AI65/$AC65)*100 -> 1.492537313 | AK65: 33.97014925 | AL65: =(AK65/$AC65)*100 -> 2.985074627 | AM65: 1070.059701 | AN65: =(AM65/$AC65)*100 -> 94.02985075
D66: Buriticá | E66: 2877 | F66: 100 | G66: 225.9136961 | H66: 7.852405146 | I66: 238.456379 | J66: 8.288369099 | K66: 100.9230769 | L66: =(K66/$E66)*100 -> 3.507927596 | M66: 627.9338649 | N66: =(M66/$E66)*100 -> 21.82599461 | O66: 1683.772983 | P66: =(O66/$E66)*100 -> 58.52530355 | Q66: 820 | R66: 100 | S66: 25.23076923 | T66: 3.076923077 | U66: 25.23076923 | V66: 3.076923077 | W66: 100.9230769 | X66: =(W66/$Q66)*100 -> 12.30769231 | Y66: 138.7692308 | Z66: =(Y66/$Q66)*100 -> 16.92307692 | AA66: 529.8461538 | AB66: =(AA66/$Q66)*100 -> 64.61538462 | AC66: 2057 | AD66: 100 | AE66: 200.6829268 | AF66: 9.756097561 | AG66: 213.2256098 | AH66: 10.36585366 | AI66: 0 | AJ66: =(AI66/$AC66)*100 -> 0 | AK66: 489.1646341 | AL66: =(AK66/$AC66)*100 -> 23.7804878 | AM66: 1153.926829 | AN66: =(AM66/$AC66)*100 -> 56.09756098
D67: Caicedo | E67: 2778 | F67: 100 | G67: 36.55357143 | H67: 1.315823306 | I67: 24.36785714 | J67: 0.8771726833 | K67: 0 | L67: =(K67/$E67)*100 -> 0 | M67: 499.5416667 | N67: =(M67/$E67)*100 -> 17.98206144 | O67: 2217.536905 | P67: =(O67/$E67)*100 -> 79.82494258 | Q67: 731 | R67: 100 | S67: 0 | T67: 0 | U67: 12.18333333 | V67: 1.666666667 | W67: 0 | X67: =(W67/$Q67)*100 -> 0 | Y67: 243.6666667 | Z67: =(Y67/$Q67)*100 -> 33.33333333 | AA67: 475.15 | AB67: =(AA67/$Q67)*100 -> 65 | AC67: 2047 | AD67: 100 | AE67: 36.55357143 | AF67: 1.785714286 | AG67: 12.18452381 | AH67: 0.5952380952 | AI67: 0 | AJ67: =(AI67/$AC67)*100 -> 0 | AK67: 255.875 | AL67: =(AK67/$AC67)*100 -> 12.5 | AM67: 1742.386905 | AN67: =(AM67/$AC67)*100 -> 85.11904762
D68: Cañasgordas | E68: 5171 | F68: 100 | G68: 283.5798351 | H68: 5.48404245 | I68: 130.9014993 | J68: 2.53145425 | K68: 0 | L68: =(K68/$E68)*100 -> 0 | M68: 654.5676162 | N68: =(M68/$E68)*100 -> 12.65843388 | O68: 4101.951049 | P68: =(O68/$E68)*100 -> 79.32606942 | Q68: 2009 | R68: 100 | S68: 65.51086957 | T68: 3.260869565 | U68: 43.67391304 | V68: 2.173913043 | W68: 0 | X68: =(W68/$Q68)*100 -> 0 | Y68: 262.0434783 | Z68: =(Y68/$Q68)*100 -> 13.04347826 | AA68: 1637.771739 | AB68: =(AA68/$Q68)*100 -> 81.52173913 | AC68: 3162 | AD68: 100 | AE68: 218.0689655 | AF68: 6.896551724 | AG68: 87.22758621 | AH68: 2.75862069 | AI68: 0 | AJ68: =(AI68/$AC68)*100 -> 0 | AK68: 392.5241379 | AL68: =(AK68/$AC68)*100 -> 12.4137931 | AM68: 2464.17931 | AN68: =(AM68/$AC68)*100 -> 77.93103448
D69: Dabeiba | E69: 6913 | F69: 100 | G69: 1209.205357 | H69: 17.49175983 | I69: 115.3214286 | J69: 1.6681821 | K69: 0 | L69: =(K69/$E69)*100 -> 0 | M69: 259.4732143 | N69: =(M69/$E69)*100 -> 3.753409725 | O69: 5329 | P69: =(O69/$E69)*100 -> 77.08664834 | Q69: 3229 | R69: 100 | S69: 230.6428571 | T69: 7.142857143 | U69: 115.3214286 | V69: 3.571428571 | W69: 0 | X69: =(W69/$Q69)*100 -> 0 | Y69: 259.4732143 | Z69: =(Y69/$Q69)*100 -> 8.035714286 | AA69: 2623.5625 | AB69: =(AA69/$Q69)*100 -> 81.25 | AC69: 3684 | AD69: 100 | AE69: 978.5625 | AF69: 26.5625 | AG69: 0 | AH69: 0 | AI69: 0 | AJ69: =(AI69/$AC69)*100 -> 0 | AK69: 0 | AL69: =(AK69/$AC69)*100 -> 0 | AM69: 2705.4375 | AN69: =(AM69/$AC69)*100 -> 73.4375
D70: Ebéjico | E70: 4600 | F70: 100 | G70: 0 | H70: 0 | I70: 78.06649925 | J70: 1.69709781 | K70: 19.46961326 | L70: =(K70/$E70)*100 -> 0.4232524622 | M70: 449.1174284 | N70: =(M70/$E70)*100 -> 9.763422357 | O70: 4053.346459 | P70: =(O70/$E70)*100 -> 88.11622737 | Q70: 1076 | R70: 100 | S70: 0 | T70: 0 | U70: 39.12727273 | V70: 3.636363636 | W70: 0 | X70: =(W70/$Q70)*100 -> 0 | Y70: 273.8909091 | Z70: =(Y70/$Q70)*100 -> 25.45454545 | AA70: 762.9818182 | AB70: =(AA70/$Q70)*100 -> 70.90909091 | AC70: 3524 | AD70: 100 | AE70: 0 | AF70: 0 | AG70: 38.93922652 | AH70: 1.104972376 | AI70: 19.46961326 | AJ70: =(AI70/$AC70)*100 -> 0.5524861878 | AK70: 175.2265193 | AL70: =(AK70/$AC70)*100 -> 4.972375691 | AM70: 3290.364641 | AN70: =(AM70/$AC70)*100 -> 93.37016575
D71: Frontino | E71: 6321 | F71: 100 | G71: 423.3870175 | H71: 6.698101844 | I71: 211.5273684 | J71: 3.346422535 | K71: 52.832 | L71: =(K71/$E71)*100 -> 0.8358171175 | M71: 634.6485614 | N71: =(M71/$E71)*100 -> 10.04031896 | O71: 4998.605053 | P71: =(O71/$E71)*100 -> 79.07933954 | Q71: 3302 | R71: 100 | S71: 132.08 | T71: 4 | U71: 132.08 | V71: 4 | W71: 52.832 | X71: =(W71/$Q71)*100 -> 1.6 | Y71: 369.824 | Z71: =(Y71/$Q71)*100 -> 11.2 | AA71: 2615.184 | AB71: =(AA71/$Q71)*100 -> 79.2 | AC71: 3019 | AD71: 100 | AE71: 291.3070175 | AF71: 9.649122807 | AG71: 79.44736842 | AH71: 2.631578947 | AI71: 0 | AJ71: =(AI71/$AC71)*100 -> 0 | AK71: 264.8245614 | AL71: =(AK71/$AC71)*100 -> 8.771929825 | AM71: 2383.421053 | AN71: =(AM71/$AC71)*100 -> 78.94736842
D72: Giraldo | E72: 1806 | F72: 100 | G72: 92.24285714 | H72: 5.107577915 | I72: 42.02380952 | J72: 2.326899752 | K72: 0 | L72: =(K72/$E72)*100 -> 0 | M72: 166.7333333 | N72: =(M72/$E72)*100 -> 9.232189 | O72: 1505 | P72: =(O72/$E72)*100 -> 83.33333333 | Q72: 747 | R72: 100 | S72: 16.6 | T72: 2.222222222 | U72: 0 | V72: 0 | W72: 0 | X72: =(W72/$Q72)*100 -> 0 | Y72: 107.9 | Z72: =(Y72/$Q72)*100 -> 14.44444444 | AA72: 622.5 | AB72: =(AA72/$Q72)*100 -> 83.33333333 | AC72: 1059 | AD72: 100 | AE72: 75.64285714 | AF72: 7.142857143 | AG72: 42.02380952 | AH72: 3.968253968 | AI72: 0 | AJ72: =(AI72/$AC72)*100 -> 0 | AK72: 58.83333333 | AL72: =(AK72/$AC72)*100 -> 5.555555556 | AM72: 882.5 | AN72: =(AM72/$AC72)*100 -> 83.33333333
D73: Heliconia | E73: 1943 | F73: 100 | G73: 17.60747664 | H73: 0.9062005474 | I73: 35.32429079 | J73: 1.818028348 | K73: 17.60747664 | L73: =(K73/$E73)*100 -> 0.9062005474 | M73: 52.87709867 | N73: =(M73/$E73)*100 -> 2.721415269 | O73: 1819.583657 | P73: =(O73/$E73)*100 -> 93.64815529 | Q73: 942 | R73: 100 | S73: 17.60747664 | T73: 1.869158879 | U73: 17.60747664 | V73: 1.869158879 | W73: 17.60747664 | X73: =(W73/$Q73)*100 -> 1.869158879 | Y73: 44.01869159 | Z73: =(Y73/$Q73)*100 -> 4.672897196 | AA73: 845.1588785 | AB73: =(AA73/$Q73)*100 -> 89.71962617 | AC73: 1001 | AD73: 100 | AE73: 0 | AF73: 0 | AG73: 17.71681416 | AH73: 1.769911504 | AI73: 0 | AJ73: =(AI73/$AC73)*100 -> 0 | AK73: 8.85840708 | AL73: =(AK73/$AC73)*100 -> 0.8849557522 | AM73: 974.4247788 | AN73: =(AM73/$AC73)*100 -> 97.34513274
D74: Liborina | E74: 3303 | F74: 100 | G74: 171.758202 | H74: 5.200066668 | I74: 42.95783133 | J74: 1.300570128 | K74: 0 | L74: =(K74/$E74)*100 -> 0 | M74: 342.7120482 | N74: =(M74/$E74)*100 -> 10.37578105 | O74: 2745.571918 | P74: =(O74/$E74)*100 -> 83.12358215 | Q74: 926 | R74: 100 | S74: 14.24615385 | T74: 1.538461538 | U74: 0 | V74: 0 | W74: 0 | X74: =(W74/$Q74)*100 -> 0 | Y74: 185.2 | Z74: =(Y74/$Q74)*100 -> 20 | AA74: 726.5538462 | AB74: =(AA74/$Q74)*100 -> 78.46153846 | AC74: 2377 | AD74: 100 | AE74: 157.5120482 | AF74: 6.626506024 | AG74: 42.95783133 | AH74: 1.807228916 | AI74: 0 | AJ74: =(AI74/$AC74)*100 -> 0 | AK74: 157.5120482 | AL74: =(AK74/$AC74)*100 -> 6.626506024 | AM74: 2019.018072 | AN74: =(AM74/$AC74)*100 -> 84.93975904
D75: Olaya | E75: 1140 | F75: 100 | G75: 26.08333333 | H75: 2.288011696 | I75: 14.91666667 | J75: 1.308479532 | K75: 0 | L75: =(K75/$E75)*100 -> 0 | M75: 76.33333333 | N75: =(M75/$E75)*100 -> 6.695906433 | O75: 1022.666667 | P75: =(O75/$E75)*100 -> 89.70760234 | Q75: 135 | R75: 100 | S75: 3.75 | T75: 2.777777778 | U75: 3.75 | V75: 2.777777778 | W75: 0 | X75: =(W75/$Q75)*100 -> 0 | Y75: 3.75 | Z75: =(Y75/$Q75)*100 -> 2.777777778 | AA75: 123.75 | AB75: =(AA75/$Q75)*100 -> 91.66666667 | AC75: 1005 | AD75: 100 | AE75: 22.33333333 | AF75: 2.222222222 | AG75: 11.16666667 | AH75: 1.111111111 | AI75: 0 | AJ75: =(AI75/$AC75)*100 -> 0 | AK75: 72.58333333 | AL75: =(AK75/$AC75)*100 -> 7.222222222 | AM75: 898.9166667 | AN75: =(AM75/$AC75)*100 -> 89.44444444
D76: Peque | E76: 2526 | F76: 100 | G76: 11.15853659 | H76: 0.4417472916 | I76: 33.53353659 | J76: 1.327535098 | K76: 11.15853659 | L76: =(K76/$E76)*100 -> 0.4417472916 | M76: 145.1189024 | N76: =(M76/$E76)*100 -> 5.745008014 | O76: 2325.030488 | P76: =(O76/$E76)*100 -> 92.0439623 | Q76: 915 | R76: 100 | S76: 11.15853659 | T76: 1.219512195 | U76: 11.15853659 | V76: 1.219512195 | W76: 11.15853659 | X76: =(W76/$Q76)*100 -> 1.219512195 | Y76: 122.7439024 | Z76: =(Y76/$Q76)*100 -> 13.41463415 | AA76: 758.7804878 | AB76: =(AA76/$Q76)*100 -> 82.92682927 | AC76: 1611 | AD76: 100 | AE76: 0 | AF76: 0 | AG76: 22.375 | AH76: 1.388888889 | AI76: 0 | AJ76: =(AI76/$AC76)*100 -> 0 | AK76: 22.375 | AL76: =(AK76/$AC76)*100 -> 1.388888889 | AM76: 1566.25 | AN76: =(AM76/$AC76)*100 -> 97.22222222
D77: Sabanalarga | E77: 2926 | F77: 100 | G77: 89.44973288 | H77: 3.057065375 | I77: 25.56070908 | J77: 0.873571739 | K77: 38.35381253 | L77: =(K77/$E77)*100 -> 1.31079332 | M77: 191.7945605 | N77: =(M77/$E77)*100 -> 6.55483802 | O77: 2580.841185 | P77: =(O77/$E77)*100 -> 88.20373155 | Q77: 1113 | R77: 100 | S77: 38.37931034 | T77: 3.448275862 | U77: 12.79310345 | V77: 1.149425287 | W77: 25.5862069 | X77: =(W77/$Q77)*100 -> 2.298850575 | Y77: 140.7241379 | Z77: =(Y77/$Q77)*100 -> 12.64367816 | AA77: 895.5172414 | AB77: =(AA77/$Q77)*100 -> 80.45977011 | AC77: 1813 | AD77: 100 | AE77: 51.07042254 | AF77: 2.816901408 | AG77: 12.76760563 | AH77: 0.7042253521 | AI77: 12.76760563 | AJ77: =(AI77/$AC77)*100 -> 0.7042253521 | AK77: 51.07042254 | AL77: =(AK77/$AC77)*100 -> 2.816901408 | AM77: 1685.323944 | AN77: =(AM77/$AC77)*100 -> 92.95774648
D78: San Jerónimo | E78: 5276 | F78: 100 | G78: 177.9352698 | H78: 3.372541125 | I78: 333.8946617 | J78: 6.328556894 | K78: 133.4030831 | L78: =(K78/$E78)*100 -> 2.528489065 | M78: 1580.408935 | N78: =(M78/$E78)*100 -> 29.95468035 | O78: 3050.35805 | P78: =(O78/$E78)*100 -> 57.81573257 | Q78: 2527 | R78: 100 | S78: 67.08849558 | T78: 2.654867257 | U78: 156.539823 | V78: 6.194690265 | W78: 44.72566372 | X78: =(W78/$Q78)*100 -> 1.769911504 | Y78: 737.9734513 | Z78: =(Y78/$Q78)*100 -> 29.20353982 | AA78: 1520.672566 | AB78: =(AA78/$Q78)*100 -> 60.17699115 | AC78: 2749 | AD78: 100 | AE78: 110.8467742 | AF78: 4.032258065 | AG78: 177.3548387 | AH78: 6.451612903 | AI78: 88.67741935 | AJ78: =(AI78/$AC78)*100 -> 3.225806452 | AK78: 842.4354839 | AL78: =(AK78/$AC78)*100 -> 30.64516129 | AM78: 1529.685484 | AN78: =(AM78/$AC78)*100 -> 55.64516129
D79: Santa Fe de Antioquia | E79: 9274 | F79: 100 | G79: 306.8084631 | H79: 3.308264644 | I79: 575.341477 | J79: 6.203811484 | K79: 229.6526946 | L79: =(K79/$E79)*100 -> 2.476306821 | M79: 1684.573413 | N79: =(M79/$E79)*100 -> 18.16447502 | O79: 6477.623952 | P79: =(O79/$E79)*100 -> 69.84714203 | Q79: 6392 | R79: 100 | S79: 153.1017964 | T79: 2.395209581 | U79: 267.9281437 | V79: 4.191616766 | W79: 229.6526946 | X79: =(W79/$Q79)*100 -> 3.592814371 | Y79: 1569.293413 | Z79: =(Y79/$Q79)*100 -> 24.5508982 | AA79: 4172.023952 | AB79: =(AA79/$Q79)*100 -> 65.26946108 | AC79: 2882 | AD79: 100 | AE79: 153.7066667 | AF79: 5.333333333 | AG79: 307.4133333 | AH79: 10.66666667 | AI79: 0 | AJ79: =(AI79/$AC79)*100 -> 0 | AK79: 115.28 | AL79: =(AK79/$AC79)*100 -> 4 | AM79: 2305.6 | AN79: =(AM79/$AC79)*100 -> 80
D80: Sopetrán | E80: 5638 | F80: 100 | G80: 261.3723724 | H80: 4.63590586 | I80: 381.2672673 | J80: 6.762455964 | K80: 0 | L80: =(K80/$E80)*100 -> 0 | M80: 476.4414414 | N80: =(M80/$E80)*100 -> 8.450539933 | O80: 4518.918919 | P80: =(O80/$E80)*100 -> 80.15109824 | Q80: 2649 | R80: 100 | S80: 71.59459459 | T80: 2.702702703 | U80: 286.3783784 | V80: 10.81081081 | W80: 0 | X80: =(W80/$Q80)*100 -> 0 | Y80: 334.1081081 | Z80: =(Y80/$Q80)*100 -> 12.61261261 | AA80: 1956.918919 | AB80: =(AA80/$Q80)*100 -> 73.87387387 | AC80: 2989 | AD80: 100 | AE80: 189.7777778 | AF80: 6.349206349 | AG80: 94.88888889 | AH80: 3.174603175 | AI80: 0 | AJ80: =(AI80/$AC80)*100 -> 0 | AK80: 142.3333333 | AL80: =(AK80/$AC80)*100 -> 4.761904762 | AM80: 2562 | AN80: =(AM80/$AC80)*100 -> 85.71428571
D81: Uramita | E81: 2239 | F81: 100 | G81: 90.31941161 | H81: 4.033917446 | I81: 60.44707118 | J81: 2.699735203 | K81: 10.30864198 | L81: =(K81/$E81)*100 -> 0.4604127725 | M81: 110.9366956 | N81: =(M81/$E81)*100 -> 4.954742991 | O81: 1966.98818 | P81: =(O81/$E81)*100 -> 87.85119159 | Q81: 835 | R81: 100 | S81: 20.61728395 | T81: 2.469135802 | U81: 20.61728395 | V81: 2.469135802 | W81: 10.30864198 | X81: =(W81/$Q81)*100 -> 1.234567901 | Y81: 41.2345679 | Z81: =(Y81/$Q81)*100 -> 4.938271605 | AA81: 742.2222222 | AB81: =(AA81/$Q81)*100 -> 88.88888889 | AC81: 1404 | AD81: 100 | AE81: 69.70212766 | AF81: 4.964539007 | AG81: 39.82978723 | AH81: 2.836879433 | AI81: 0 | AJ81: =(AI81/$AC81)*100 -> 0 | AK81: 69.70212766 | AL81: =(AK81/$AC81)*100 -> 4.964539007 | AM81: 1224.765957 | AN81: =(AM81/$AC81)*100 -> 87.23404255
B82: Oriente | C82: P_004_CADENA | D82: Total | E82: 227877 | F82: 100 | G82: 824.5221096 | H82: 0.3618277007 | I82: 1799.604352 | J82: 0.7897261907 | K82: 873.9116497 | L82: =(K82/$E82)*100 -> 0.3835014721 | M82: 54311.76172 | N82: =(M82/$E82)*100 -> 23.83380584 | O82: 170067.2002 | P82: =(O82/$E82)*100 -> 74.6311388 | Q82: 138308 | R82: 100 | S82: 110.5896194 | T82: 0.07995894625 | U82: 729.2880431 | V82: 0.5272927402 | W82: 641.3405474 | X82: =(W82/$Q82)*100 -> 0.4637045922 | Y82: 42960.42971 | Z82: =(Y82/$Q82)*100 -> 31.06142068 | AA82: 93866.35208 | AB82: =(AA82/$Q82)*100 -> 67.86762304 | AC82: 89569 | AD82: 100 | AE82: 713.9324903 | AF82: 0.7970754282 | AG82: 1070.316308 | AH82: 1.194962887 | AI82: 232.5711022 | AJ82: =(AI82/$AC82)*100 -> 0.2596557986 | AK82: 11351.33201 | AL82: =(AK82/$AC82)*100 -> 12.67328207 | AM82: 76200.84809 | AN82: =(AM82/$AC82)*100 -> 85.07502382
D83: Abejorral | E83: 7061 | F83: 100 | G83: 29.47619048 | H83: 0.4174506511 | I83: 176.6603175 | J83: 2.501916406 | K83: 0 | L83: =(K83/$E83)*100 -> 0 | M83: 559.5555556 | N83: =(M83/$E83)*100 -> 7.924593621 | O83: 6295.307937 | P83: =(O83/$E83)*100 -> 89.15603932 | Q83: 3095 | R83: 100 | S83: 29.47619048 | T83: 0.9523809524 | U83: 117.9047619 | V83: 3.80952381 | W83: 0 | X83: =(W83/$Q83)*100 -> 0 | Y83: 412.6666667 | Z83: =(Y83/$Q83)*100 -> 13.33333333 | AA83: 2534.952381 | AB83: =(AA83/$Q83)*100 -> 81.9047619 | AC83: 3966 | AD83: 100 | AE83: 0 | AF83: 0 | AG83: 58.75555556 | AH83: 1.481481481 | AI83: 0 | AJ83: =(AI83/$AC83)*100 -> 0 | AK83: 146.8888889 | AL83: =(AK83/$AC83)*100 -> 3.703703704 | AM83: 3760.355556 | AN83: =(AM83/$AC83)*100 -> 94.81481481
D84: Alejandría | E84: 1736 | F84: 100 | G84: 23.93258427 | H84: 1.378605085 | I84: 0 | J84: 0 | K84: 0 | L84: =(K84/$E84)*100 -> 0 | M84: 304.3270716 | N84: =(M84/$E84)*100 -> 17.53036127 | O84: 1407.740344 | P84: =(O84/$E84)*100 -> 81.09103365 | Q84: 1026 | R84: 100 | S84: 0 | T84: 0 | U84: 0 | V84: 0 | W84: 0 | X84: =(W84/$Q84)*100 -> 0 | Y84: 248.484375 | Z84: =(Y84/$Q84)*100 -> 24.21875 | AA84: 777.515625 | AB84: =(AA84/$Q84)*100 -> 75.78125 | AC84: 710 | AD84: 100 | AE84: 23.93258427 | AF84: 3.370786517 | AG84: 0 | AH84: 0 | AI84: 0 | AJ84: =(AI84/$AC84)*100 -> 0 | AK84: 55.84269663 | AL84: =(AK84/$AC84)*100 -> 7.865168539 | AM84: 630.2247191 | AN84: =(AM84/$AC84)*100 -> 88.76404494
D85: Argelia | E85: 2616 | F85: 100 | G85: 34.54471545 | H85: 1.320516646 | I85: 23.04471545 | J85: 0.8809141991 | K85: 11.54471545 | L85: =(K85/$E85)*100 -> 0.4413117526 | M85: 265.2154472 | N85: =(M85/$E85)*100 -> 10.13820517 | O85: 2281.650407 | P85: =(O85/$E85)*100 -> 87.21905224 | Q85: 1420 | R85: 100 | S85: 11.54471545 | T85: 0.8130081301 | U85: 11.54471545 | V85: 0.8130081301 | W85: 11.54471545 | X85: =(W85/$Q85)*100 -> 0.8130081301 | Y85: 184.7154472 | Z85: =(Y85/$Q85)*100 -> 13.00813008 | AA85: 1200.650407 | AB85: =(AA85/$Q85)*100 -> 84.55284553 | AC85: 1196 | AD85: 100 | AE85: 23 | AF85: 1.923076923 | AG85: 11.5 | AH85: 0.9615384615 | AI85: 0 | AJ85: =(AI85/$AC85)*100 -> 0 | AK85: 80.5 | AL85: =(AK85/$AC85)*100 -> 6.730769231 | AM85: 1081 | AN85: =(AM85/$AC85)*100 -> 90.38461538
D86: Cocorná | E86: 5257 | F86: 100 | G86: 88.33057851 | H86: =(G86/$E86)*100 -> 1.680246881 | I86: 22.08264463 | J86: 0.4200617201 | K86: 0 | L86: =(K86/$E86)*100 -> 0 | M86: 776.9293246 | N86: =(M86/$E86)*100 -> 14.77894854 | O86: 4369.657452 | P86: =(O86/$E86)*100 -> 83.12074286 | Q86: 2585 | R86: 100 | S86: 0 | T86: =(S86/$Q86)*100 -> 0 | U86: 0 | V86: 0 | W86: 0 | X86: =(W86/$Q86)*100 -> 0 | Y86: 445.6896552 | Z86: =(Y86/$Q86)*100 -> 17.24137931 | AA86: 2139.310345 | AB86: =(AA86/$Q86)*100 -> 82.75862069 | AC86: 2672 | AD86: 100 | AE86: 88.33057851 | AF86: =(AE86/$AC86)*100 -> 3.305785124 | AG86: 22.08264463 | AH86: 0.826446281 | AI86: 0 | AJ86: =(AI86/$AC86)*100 -> 0 | AK86: 331.2396694 | AL86: =(AK86/$AC86)*100 -> 12.39669421 | AM86: 2230.347107 | AN86: =(AM86/$AC86)*100 -> 83.47107438
D87: Concepción | E87: 1712 | F87: 100 | G87: 7.862068966 | H87: 0.4592330003 | I87: 7.920792079 | J87: 0.4626630887 | K87: 0 | L87: =(K87/$E87)*100 -> 0 | M87: 102.7941277 | N87: =(M87/$E87)*100 -> 6.004329888 | O87: 1593.423011 | P87: =(O87/$E87)*100 -> 93.07377402 | Q87: 800 | R87: 100 | S87: 0 | T87: 0 | U87: 7.920792079 | V87: 0.9900990099 | W87: 0 | X87: =(W87/$Q87)*100 -> 0 | Y87: 79.20792079 | Z87: =(Y87/$Q87)*100 -> 9.900990099 | AA87: 712.8712871 | AB87: =(AA87/$Q87)*100 -> 89.10891089 | AC87: 912 | AD87: 100 | AE87: 7.862068966 | AF87: 0.8620689655 | AG87: 0 | AH87: 0 | AI87: 0 | AJ87: =(AI87/$AC87)*100 -> 0 | AK87: 23.5862069 | AL87: =(AK87/$AC87)*100 -> 2.586206897 | AM87: 880.5517241 | AN87: =(AM87/$AC87)*100 -> 96.55172414
D88: El Carmen de Viboral | E88: 19767 | F88: 100 | G88: 0 | H88: 0 | I88: 161.4701987 | J88: 0.8168674997 | K88: 0 | L88: =(K88/$E88)*100 -> 0 | M88: 5325.590108 | N88: =(M88/$E88)*100 -> 26.94182278 | O88: 14279.93969 | P88: =(O88/$E88)*100 -> 72.24130972 | Q88: 12191 | R88: 100 | S88: 0 | T88: 0 | U88: 161.4701987 | V88: 1.324503311 | W88: 0 | X88: =(W88/$Q88)*100 -> 0 | Y88: 3633.07947 | Z88: =(Y88/$Q88)*100 -> 29.8013245 | AA88: 8396.450331 | AB88: =(AA88/$Q88)*100 -> 68.87417219 | AC88: 7576 | AD88: 100 | AE88: 0 | AF88: 0 | AG88: 0 | AH88: 0 | AI88: 0 | AJ88: =(AI88/$AC88)*100 -> 0 | AK88: 1692.510638 | AL88: =(AK88/$AC88)*100 -> 22.34042553 | AM88: 5883.489362 | AN88: =(AM88/$AC88)*100 -> 77.65957447
D89: El Peñol | E89: 7562 | F89: 100 | G89: 0 | H89: 0 | I89: 156.3809657 | J89: 2.067984207 | K89: 31.49635036 | L89: =(K89/$E89)*100 -> 0.4165082037 | M89: 1510.724031 | N89: =(M89/$E89)*100 -> 19.97783697 | O89: 5863.398652 | P89: =(O89/$E89)*100 -> 77.53767062 | Q89: 4315 | R89: 100 | S89: 0 | T89: 0 | U89: 31.49635036 | V89: 0.7299270073 | W89: 31.49635036 | X89: =(W89/$Q89)*100 -> 0.7299270073 | Y89: 1385.839416 | Z89: =(Y89/$Q89)*100 -> 32.11678832 | AA89: 2866.167883 | AB89: =(AA89/$Q89)*100 -> 66.42335766 | AC89: 3247 | AD89: 100 | AE89: 0 | AF89: 0 | AG89: 124.8846154 | AH89: 3.846153846 | AI89: 0 | AJ89: =(AI89/$AC89)*100 -> 0 | AK89: 124.8846154 | AL89: =(AK89/$AC89)*100 -> 3.846153846 | AM89: 2997.230769 | AN89: =(AM89/$AC89)*100 -> 92.30769231
D90: El Retiro | E90: 8420 | F90: 100 | G90: 34.74757282 | H90: 0.4126790121 | I90: 69.49514563 | J90: 0.8253580241 | K90: 104.9069931 | L90: =(K90/$E90)*100 -> 1.245926284 | M90: 3463.923596 | N90: =(M90/$E90)*100 -> 41.13923511 | O90: 4746.926692 | P90: =(O90/$E90)*100 -> 56.37680157 | Q90: 4841 | R90: 100 | S90: 0 | T90: 0 | U90: 0 | V90: 0 | W90: 70.15942029 | X90: =(W90/$Q90)*100 -> 1.449275362 | Y90: 2525.73913 | Z90: =(Y90/$Q90)*100 -> 52.17391304 | AA90: 2245.101449 | AB90: =(AA90/$Q90)*100 -> 46.37681159 | AC90: 3579 | AD90: 100 | AE90: 34.74757282 | AF90: 0.9708737864 | AG90: 69.49514563 | AH90: 1.941747573 | AI90: 34.74757282 | AJ90: =(AI90/$AC90)*100 -> 0.9708737864 | AK90: 938.184466 | AL90: =(AK90/$AC90)*100 -> 26.21359223 | AM90: 2501.825243 | AN90: =(AM90/$AC90)*100 -> 69.90291262
D91: El Santuario | E91: 11003 | F91: 100 | G91: 0 | H91: 0 | I91: 227.0807437 | J91: 2.063807541 | K91: 0 | L91: =(K91/$E91)*100 -> 0 | M91: 3707.845583 | N91: =(M91/$E91)*100 -> 33.69849662 | O91: 7068.073673 | P91: =(O91/$E91)*100 -> 64.23769584 | Q91: 8086 | R91: 100 | S91: 0 | T91: 0 | U91: 90.34636872 | V91: 1.117318436 | W91: 0 | X91: =(W91/$Q91)*100 -> 0 | Y91: 3297.642458 | Z91: =(Y91/$Q91)*100 -> 40.78212291 | AA91: 4698.011173 | AB91: =(AA91/$Q91)*100 -> 58.10055866 | AC91: 2917 | AD91: 100 | AE91: 0 | AF91: 0 | AG91: 136.734375 | AH91: 4.6875 | AI91: 0 | AJ91: =(AI91/$AC91)*100 -> 0 | AK91: 410.203125 | AL91: =(AK91/$AC91)*100 -> 14.0625 | AM91: 2370.0625 | AN91: =(AM91/$AC91)*100 -> 81.25
D92: Granada | E92: 3475 | F92: 100 | G92: 0 | H92: 0 | I92: 0 | J92: 0 | K92: 0 | L92: =(K92/$E92)*100 -> 0 | M92: 598.265892 | N92: =(M92/$E92)*100 -> 17.21628466 | O92: 2876.734108 | P92: =(O92/$E92)*100 -> 82.78371534 | Q92: 1986 | R92: 100 | S92: 0 | T92: 0 | U92: 0 | V92: 0 | W92: 0 | X92: =(W92/$Q92)*100 -> 0 | Y92: 462.9022556 | Z92: =(Y92/$Q92)*100 -> 23.30827068 | AA92: 1523.097744 | AB92: =(AA92/$Q92)*100 -> 76.69172932 | AC92: 1489 | AD92: 100 | AE92: 0 | AF92: 0 | AG92: 0 | AH92: 0 | AI92: 0 | AJ92: =(AI92/$AC92)*100 -> 0 | AK92: 135.3636364 | AL92: =(AK92/$AC92)*100 -> 9.090909091 | AM92: 1353.636364 | AN92: =(AM92/$AC92)*100 -> 90.90909091
D93: Guarne | E93: 18351 | F93: 100 | G93: 0 | H93: 0 | I93: 224.8064516 | J93: 1.225036519 | K93: 0 | L93: =(K93/$E93)*100 -> 0 | M93: 5764.296774 | N93: =(M93/$E93)*100 -> 31.41134965 | O93: 12361.89677 | P93: =(O93/$E93)*100 -> 67.36361383 | Q93: 6736 | R93: 100 | S93: 0 | T93: 0 | U93: 0 | V93: 0 | W93: 0 | X93: =(W93/$Q93)*100 -> 0 | Y93: 4715.2 | Z93: =(Y93/$Q93)*100 -> 70 | AA93: 2020.8 | AB93: =(AA93/$Q93)*100 -> 30 | AC93: 11615 | AD93: 100 | AE93: 0 | AF93: 0 | AG93: 224.8064516 | AH93: 1.935483871 | AI93: 0 | AJ93: =(AI93/$AC93)*100 -> 0 | AK93: 1049.096774 | AL93: =(AK93/$AC93)*100 -> 9.032258065 | AM93: 10341.09677 | AN93: =(AM93/$AC93)*100 -> 89.03225806
D94: Guatapé | E94: 3139 | F94: 100 | G94: 13.56410256 | H94: 0.432115405 | I94: 54.50978408 | J94: 1.736533421 | K94: 0 | L94: =(K94/$E94)*100 -> 0 | M94: 1285.794028 | N94: =(M94/$E94)*100 -> 40.9618996 | O94: 1785.132085 | P94: =(O94/$E94)*100 -> 56.86945158 | Q94: 2081 | R94: 100 | S94: 0 | T94: 0 | U94: 27.38157895 | V94: 1.315789474 | W94: 0 | X94: =(W94/$Q94)*100 -> 0 | Y94: 1163.717105 | Z94: =(Y94/$Q94)*100 -> 55.92105263 | AA94: 889.9013158 | AB94: =(AA94/$Q94)*100 -> 42.76315789 | AC94: 1058 | AD94: 100 | AE94: 13.56410256 | AF94: 1.282051282 | AG94: 27.12820513 | AH94: 2.564102564 | AI94: 0 | AJ94: =(AI94/$AC94)*100 -> 0 | AK94: 122.0769231 | AL94: =(AK94/$AC94)*100 -> 11.53846154 | AM94: 895.2307692 | AN94: =(AM94/$AC94)*100 -> 84.61538462
D95: La Ceja del Tambo | E95: 21023 | F95: 100 | G95: 0 | H95: 0 | I95: 0 | J95: 0 | K95: 0 | L95: =(K95/$E95)*100 -> 0 | M95: 4017.59593 | N95: =(M95/$E95)*100 -> 19.11047867 | O95: 17005.40407 | P95: =(O95/$E95)*100 -> 80.88952133 | Q95: 18417 | R95: 100 | S95: 0 | T95: 0 | U95: 0 | V95: 0 | W95: 0 | X95: =(W95/$Q95)*100 -> 0 | Y95: 3854.72093 | Z95: =(Y95/$Q95)*100 -> 20.93023256 | AA95: 14562.27907 | AB95: =(AA95/$Q95)*100 -> 79.06976744 | AC95: 2606 | AD95: 100 | AE95: 0 | AF95: 0 | AG95: 0 | AH95: 0 | AI95: 0 | AJ95: =(AI95/$AC95)*100 -> 0 | AK95: 162.875 | AL95: =(AK95/$AC95)*100 -> 6.25 | AM95: 2443.125 | AN95: =(AM95/$AC95)*100 -> 93.75
D96: La Unión | E96: 6860 | F96: 100 | G96: 28.55294118 | H96: 0.4162236323 | I96: 142.8117647 | J96: 2.08180415 | K96: 0 | L96: =(K96/$E96)*100 -> 0 | M96: 1401.211765 | N96: =(M96/$E96)*100 -> 20.42582747 | O96: 5287.423529 | P96: =(O96/$E96)*100 -> 77.07614474 | Q96: 4433 | R96: 100 | S96: 0 | T96: 0 | U96: 28.6 | V96: 0.6451612903 | W96: 0 | X96: =(W96/$Q96)*100 -> 0 | Y96: 1287 | Z96: =(Y96/$Q96)*100 -> 29.03225806 | AA96: 3117.4 | AB96: =(AA96/$Q96)*100 -> 70.32258065 | AC96: 2427 | AD96: 100 | AE96: 28.55294118 | AF96: 1.176470588 | AG96: 114.2117647 | AH96: 4.705882353 | AI96: 0 | AJ96: =(AI96/$AC96)*100 -> 0 | AK96: 114.2117647 | AL96: =(AK96/$AC96)*100 -> 4.705882353 | AM96: 2170.023529 | AN96: =(AM96/$AC96)*100 -> 89.41176471
D97: Marinilla | E97: 20989 | F97: 100 | G97: 0 | H97: 0 | I97: 86.03977273 | J97: 0.4099279276 | K97: 258.1193182 | L97: =(K97/$E97)*100 -> 1.229783783 | M97: 7204.983613 | N97: =(M97/$E97)*100 -> 34.32742681 | O97: 13439.8573 | P97: =(O97/$E97)*100 -> 64.03286148 | Q97: 15143 | R97: 100 | S97: 0 | T97: 0 | U97: 86.03977273 | V97: 0.5681818182 | W97: 258.1193182 | X97: =(W97/$Q97)*100 -> 1.704545455 | Y97: 5764.664773 | Z97: =(Y97/$Q97)*100 -> 38.06818182 | AA97: 9034.176136 | AB97: =(AA97/$Q97)*100 -> 59.65909091 | AC97: 5846 | AD97: 100 | AE97: 0 | AF97: 0 | AG97: 0 | AH97: 0 | AI97: 0 | AJ97: =(AI97/$AC97)*100 -> 0 | AK97: 1440.318841 | AL97: =(AK97/$AC97)*100 -> 24.63768116 | AM97: 4405.681159 | AN97: =(AM97/$AC97)*100 -> 75.36231884
D98: Nariño | E98: 3383 | F98: 100 | G98: 43.89361702 | H98: 1.297476117 | I98: 58.56028369 | J98: 1.731016367 | K98: 0 | L98: =(K98/$E98)*100 -> 0 | M98: 381.1205674 | N98: =(M98/$E98)*100 -> 11.26575724 | O98: 2899.425532 | P98: =(O98/$E98)*100 -> 85.70575028 | Q98: 1320 | R98: 100 | S98: 0 | T98: 0 | U98: 14.66666667 | V98: 1.111111111 | W98: 0 | X98: =(W98/$Q98)*100 -> 0 | Y98: 293.3333333 | Z98: =(Y98/$Q98)*100 -> 22.22222222 | AA98: 1012 | AB98: =(AA98/$Q98)*100 -> 76.66666667 | AC98: 2063 | AD98: 100 | AE98: 43.89361702 | AF98: 2.127659574 | AG98: 43.89361702 | AH98: 2.127659574 | AI98: 0 | AJ98: =(AI98/$AC98)*100 -> 0 | AK98: 87.78723404 | AL98: =(AK98/$AC98)*100 -> 4.255319149 | AM98: 1887.425532 | AN98: =(AM98/$AC98)*100 -> 91.4893617
D99: Rionegro | E99: 48708 | F99: 100 | G99: 197.8235294 | H99: 0.406141762 | I99: 0 | J99: 0 | K99: 197.8235294 | L99: =(K99/$E99)*100 -> 0.406141762 | M99: 12616.86057 | N99: =(M99/$E99)*100 -> 25.9030561 | O99: 35695.49237 | P99: =(O99/$E99)*100 -> 73.28466037 | Q99: 31893 | R99: 100 | S99: 0 | T99: 0 | U99: 0 | V99: 0 | W99: 0 | X99: =(W99/$Q99)*100 -> 0 | Y99: 9056.037037 | Z99: =(Y99/$Q99)*100 -> 28.39506173 | AA99: 22836.96296 | AB99: =(AA99/$Q99)*100 -> 71.60493827 | AC99: 16815 | AD99: 100 | AE99: 197.8235294 | AF99: 1.176470588 | AG99: 0 | AH99: 0 | AI99: 197.8235294 | AJ99: =(AI99/$AC99)*100 -> 1.176470588 | AK99: 3560.823529 | AL99: =(AK99/$AC99)*100 -> 21.17647059 | AM99: 12858.52941 | AN99: =(AM99/$AC99)*100 -> 76.47058824
D100: San Carlos | E100: 5927 | F100: 100 | G100: 74.472 | H100: 1.256487262 | I100: 49.648 | J100: 0.8376581745 | K100: 0 | L100: =(K100/$E100)*100 -> 0 | M100: 724.4090619 | N100: =(M100/$E100)*100 -> 12.22218765 | O100: 5078.470938 | P100: =(O100/$E100)*100 -> 85.68366692 | Q100: 2824 | R100: 100 | S100: 0 | T100: 0 | U100: 0 | V100: 0 | W100: 0 | X100: =(W100/$Q100)*100 -> 0 | Y100: 674.7610619 | Z100: =(Y100/$Q100)*100 -> 23.89380531 | AA100: 2149.238938 | AB100: =(AA100/$Q100)*100 -> 76.10619469 | AC100: 3103 | AD100: 100 | AE100: 74.472 | AF100: 2.4 | AG100: 49.648 | AH100: 1.6 | AI100: 0 | AJ100: =(AI100/$AC100)*100 -> 0 | AK100: 49.648 | AL100: =(AK100/$AC100)*100 -> 1.6 | AM100: 2929.232 | AN100: =(AM100/$AC100)*100 -> 94.4
D101: San Francisco | E101: 1979 | F101: 100 | G101: 35.8737498 | H101: 1.812721061 | I101: 8.929824561 | J101: 0.451229134 | K101: 0 | L101: =(K101/$E101)*100 -> 0 | M101: 196.5076242 | N101: =(M101/$E101)*100 -> 9.929642456 | O101: 1737.688801 | P101: =(O101/$E101)*100 -> 87.80640735 | Q101: 1018 | R101: 100 | S101: 8.929824561 | T101: 0.8771929825 | U101: 8.929824561 | V101: 0.8771929825 | W101: 0 | X101: =(W101/$Q101)*100 -> 0 | Y101: 187.5263158 | Z101: =(Y101/$Q101)*100 -> 18.42105263 | AA101: 812.6140351 | AB101: =(AA101/$Q101)*100 -> 79.8245614 | AC101: 961 | AD101: 100 | AE101: 26.94392523 | AF101: 2.803738318 | AG101: 0 | AH101: 0 | AI101: 0 | AJ101: =(AI101/$AC101)*100 -> 0 | AK101: 8.981308411 | AL101: =(AK101/$AC101)*100 -> 0.9345794393 | AM101: 925.0747664 | AN101: =(AM101/$AC101)*100 -> 96.26168224
D102: San Luis | E102: 4381 | F102: 100 | G102: 37.08045977 | H102: 0.8463925992 | I102: 18.54022989 | J102: 0.4231962996 | K102: 0 | L102: =(K102/$E102)*100 -> 0 | M102: 709.7278658 | N102: =(M102/$E102)*100 -> 16.20013389 | O102: 3615.651445 | P102: =(O102/$E102)*100 -> 82.53027721 | Q102: 2768 | R102: 100 | S102: 0 | T102: 0 | U102: 0 | V102: 0 | W102: 0 | X102: =(W102/$Q102)*100 -> 0 | Y102: 598.4864865 | Z102: =(Y102/$Q102)*100 -> 21.62162162 | AA102: 2169.513514 | AB102: =(AA102/$Q102)*100 -> 78.37837838 | AC102: 1613 | AD102: 100 | AE102: 37.08045977 | AF102: 2.298850575 | AG102: 18.54022989 | AH102: 1.149425287 | AI102: 0 | AJ102: =(AI102/$AC102)*100 -> 0 | AK102: 111.2413793 | AL102: =(AK102/$AC102)*100 -> 6.896551724 | AM102: 1446.137931 | AN102: =(AM102/$AC102)*100 -> 89.65517241
D103: San Rafael | E103: 5486 | F103: 100 | G103: 22.94339623 | H103: 0.4182172116 | I103: 69.2161235 | J103: 1.261686538 | K103: 46.27272727 | L103: =(K103/$E103)*100 -> 0.8434693269 | M103: 1201.54717 | N103: =(M103/$E103)*100 -> 21.90206288 | O103: 4146.020583 | P103: =(O103/$E103)*100 -> 75.57456404 | Q103: 3054 | R103: 100 | S103: 0 | T103: 0 | U103: 46.27272727 | V103: 1.515151515 | W103: 46.27272727 | X103: =(W103/$Q103)*100 -> 1.515151515 | Y103: 1018 | Z103: =(Y103/$Q103)*100 -> 33.33333333 | AA103: 1943.454545 | AB103: =(AA103/$Q103)*100 -> 63.63636364 | AC103: 2432 | AD103: 100 | AE103: 22.94339623 | AF103: 0.9433962264 | AG103: 22.94339623 | AH103: 0.9433962264 | AI103: 0 | AJ103: =(AI103/$AC103)*100 -> 0 | AK103: 183.5471698 | AL103: =(AK103/$AC103)*100 -> 7.547169811 | AM103: 2202.566038 | AN103: =(AM103/$AC103)*100 -> 90.56603774
D104: San Vicente Ferrer | E104: 7267 | F104: 100 | G104: 151.4246032 | H104: 2.08372923 | I104: 0 | J104: 0 | K104: 30.31944444 | L104: =(K104/$E104)*100 -> 0.4172209226 | M104: 1030.515873 | N104: =(M104/$E104)*100 -> 14.1807606 | O104: 6054.740079 | P104: =(O104/$E104)*100 -> 83.31828924 | Q104: 2183 | R104: 100 | S104: 60.63888889 | T104: 2.777777778 | U104: 0 | V104: 0 | W104: 30.31944444 | X104: =(W104/$Q104)*100 -> 1.388888889 | Y104: 848.9444444 | Z104: =(Y104/$Q104)*100 -> 38.88888889 | AA104: 1243.097222 | AB104: =(AA104/$Q104)*100 -> 56.94444444 | AC104: 5084 | AD104: 100 | AE104: 90.78571429 | AF104: 1.785714286 | AG104: 0 | AH104: 0 | AI104: 0 | AJ104: =(AI104/$AC104)*100 -> 0 | AK104: 181.5714286 | AL104: =(AK104/$AC104)*100 -> 3.571428571 | AM104: 4811.642857 | AN104: =(AM104/$AC104)*100 -> 94.64285714
D105: Sonsón | E105: 11775 | F105: 100 | G105: 0 | H105: 0 | I105: 242.4065934 | J105: 2.058654721 | K105: 193.4285714 | L105: =(K105/$E105)*100 -> 1.64270549 | M105: 1162.020147 | N105: =(M105/$E105)*100 -> 9.868536276 | O105: 10177.14469 | P105: =(O105/$E105)*100 -> 86.43010351 | Q105: 6093 | R105: 100 | S105: 0 | T105: 0 | U105: 96.71428571 | V105: 1.587301587 | W105: 193.4285714 | X105: =(W105/$Q105)*100 -> 3.174603175 | Y105: 822.0714286 | Z105: =(Y105/$Q105)*100 -> 13.49206349 | AA105: 4980.785714 | AB105: =(AA105/$Q105)*100 -> 81.74603175 | AC105: 5682 | AD105: 100 | AE105: 0 | AF105: 0 | AG105: 145.6923077 | AH105: 2.564102564 | AI105: 0 | AJ105: =(AI105/$AC105)*100 -> 0 | AK105: 339.9487179 | AL105: =(AK105/$AC105)*100 -> 5.982905983 | AM105: 5196.358974 | AN105: =(AM105/$AC105)*100 -> 91.45299145
B106: Suroeste | C106: P_004_CADENA | D106: Total | E106: 125004 | F106: 100 | G106: 800.0789201 | H106: 0.6400426547 | I106: 2915.913553 | J106: 2.332656197 | K106: 1069.414032 | L106: =(K106/$E106)*100 -> 0.8555038498 | M106: 21707.48749 | N106: =(M106/$E106)*100 -> 17.3654343 | O106: 98511.10601 | P106: =(O106/$E106)*100 -> 78.806363 | Q106: 64615 | R106: 100 | S106: 377.4828351 | T106: 0.5842031031 | U106: 1507.328014 | V106: 2.332783431 | W106: 761.6556237 | X106: =(W106/$Q106)*100 -> 1.178759767 | Y106: 15482.35658 | Z106: =(Y106/$Q106)*100 -> 23.96093258 | AA106: 46486.17694 | AB106: =(AA106/$Q106)*100 -> 71.94332112 | AC106: 60389 | AD106: 100 | AE106: 422.596085 | AF106: 0.6997898375 | AG106: 1408.585538 | AH106: 2.332520059 | AI106: 307.7584086 | AJ106: =(AI106/$AC106)*100 -> 0.5096266019 | AK106: 6225.130903 | AL106: =(AK106/$AC106)*100 -> 10.30838547 | AM106: 52024.92907 | AN106: =(AM106/$AC106)*100 -> 86.14967803
D107: Amagá | E107: 10497 | F107: 100 | G107: 172.8626016 | H107: 1.646781001 | I107: 388.8170732 | J107: 3.704078052 | K107: 86.39593496 | L107: =(K107/$E107)*100 -> 0.8230535864 | M107: 2288.749593 | N107: =(M107/$E107)*100 -> 21.80384485 | O107: 7560.174797 | P107: =(O107/$E107)*100 -> 72.02224251 | Q107: 5309 | R107: 100 | S107: 43.16260163 | T107: 0.8130081301 | U107: 172.6504065 | V107: 3.25203252 | W107: 43.16260163 | X107: =(W107/$Q107)*100 -> 0.8130081301 | Y107: 1597.01626 | Z107: =(Y107/$Q107)*100 -> 30.08130081 | AA107: 3453.00813 | AB107: =(AA107/$Q107)*100 -> 65.04065041 | AC107: 5188 | AD107: 100 | AE107: 129.7 | AF107: 2.5 | AG107: 216.1666667 | AH107: 4.166666667 | AI107: 43.23333333 | AJ107: =(AI107/$AC107)*100 -> 0.8333333333 | AK107: 691.7333333 | AL107: =(AK107/$AC107)*100 -> 13.33333333 | AM107: 4107.166667 | AN107: =(AM107/$AC107)*100 -> 79.16666667
D108: Andes | E108: 14466 | F108: 100 | G108: 0 | H108: 0 | I108: 414.9314516 | J108: 2.868321938 | K108: 0 | L108: =(K108/$E108)*100 -> 0 | M108: 2725.181452 | N108: =(M108/$E108)*100 -> 18.83852794 | O108: 11325.8871 | P108: =(O108/$E108)*100 -> 78.29315012 | Q108: 7341 | R108: 100 | S108: 0 | T108: 0 | U108: 236.8064516 | V108: 3.225806452 | W108: 0 | X108: =(W108/$Q108)*100 -> 0 | Y108: 2072.056452 | Z108: =(Y108/$Q108)*100 -> 28.22580645 | AA108: 5032.137097 | AB108: =(AA108/$Q108)*100 -> 68.5483871 | AC108: 7125 | AD108: 100 | AE108: 0 | AF108: 0 | AG108: 178.125 | AH108: 2.5 | AI108: 0 | AJ108: =(AI108/$AC108)*100 -> 0 | AK108: 653.125 | AL108: =(AK108/$AC108)*100 -> 9.166666667 | AM108: 6293.75 | AN108: =(AM108/$AC108)*100 -> 88.33333333
D109: Angelópolis | E109: 2068 | F109: 100 | G109: 18.64082474 | H109: 0.9013938463 | I109: 56.00329897 | J109: 2.708089892 | K109: 27.92082474 | L109: =(K109/$E109)*100 -> 1.350136593 | M109: 252.4189691 | N109: =(M109/$E109)*100 -> 12.20594628 | O109: 1713.016082 | P109: =(O109/$E109)*100 -> 82.83443339 | Q109: 908 | R109: 100 | S109: 9.360824742 | T109: 1.030927835 | U109: 37.44329897 | V109: 4.12371134 | W109: 9.360824742 | X109: =(W109/$Q109)*100 -> 1.030927835 | Y109: 215.2989691 | Z109: =(Y109/$Q109)*100 -> 23.71134021 | AA109: 636.5360825 | AB109: =(AA109/$Q109)*100 -> 70.10309278 | AC109: 1160 | AD109: 100 | AE109: 9.28 | AF109: 0.8 | AG109: 18.56 | AH109: 1.6 | AI109: 18.56 | AJ109: =(AI109/$AC109)*100 -> 1.6 | AK109: 37.12 | AL109: =(AK109/$AC109)*100 -> 3.2 | AM109: 1076.48 | AN109: =(AM109/$AC109)*100 -> 92.8
D110: Betania | E110: 3157 | F110: 100 | G110: 82.23184249 | H110: 2.604746357 | I110: 27.4649252 | J110: 0.8699691226 | K110: 27.4649252 | L110: =(K110/$E110)*100 -> 0.8699691226 | M110: 549.8687699 | N110: =(M110/$E110)*100 -> 17.41744599 | O110: 2469.969537 | P110: =(O110/$E110)*100 -> 78.23786941 | Q110: 1336 | R110: 100 | S110: 13.77319588 | T110: 1.030927835 | U110: 13.77319588 | V110: 1.030927835 | W110: 13.77319588 | X110: =(W110/$Q110)*100 -> 1.030927835 | Y110: 371.8762887 | Z110: =(Y110/$Q110)*100 -> 27.83505155 | AA110: 922.8041237 | AB110: =(AA110/$Q110)*100 -> 69.07216495 | AC110: 1821 | AD110: 100 | AE110: 68.45864662 | AF110: 3.759398496 | AG110: 13.69172932 | AH110: 0.7518796992 | AI110: 13.69172932 | AJ110: =(AI110/$AC110)*100 -> 0.7518796992 | AK110: 177.9924812 | AL110: =(AK110/$AC110)*100 -> 9.77443609 | AM110: 1547.165414 | AN110: =(AM110/$AC110)*100 -> 84.96240602
D111: Betulia | E111: 5116 | F111: 100 | G111: 21.63291139 | H111: 0.4228481508 | I111: 129.7278481 | J111: 2.535728071 | K111: 0 | L111: =(K111/$E111)*100 -> 0 | M111: 863.7848101 | N111: =(M111/$E111)*100 -> 16.88398769 | O111: 4100.85443 | P111: =(O111/$E111)*100 -> 80.15743609 | Q111: 1709 | R111: 100 | S111: 21.63291139 | T111: 1.265822785 | U111: 108.164557 | V111: 6.329113924 | W111: 0 | X111: =(W111/$Q111)*100 -> 0 | Y111: 389.3924051 | Z111: =(Y111/$Q111)*100 -> 22.78481013 | AA111: 1189.810127 | AB111: =(AA111/$Q111)*100 -> 69.62025316 | AC111: 3407 | AD111: 100 | AE111: 0 | AF111: 0 | AG111: 21.56329114 | AH111: 0.6329113924 | AI111: 0 | AJ111: =(AI111/$AC111)*100 -> 0 | AK111: 474.3924051 | AL111: =(AK111/$AC111)*100 -> 13.92405063 | AM111: 2911.044304 | AN111: =(AM111/$AC111)*100 -> 85.44303797
D112: Caramanta | E112: 1697 | F112: 100 | G112: 39.0756467 | H112: 2.302630919 | I112: 31.27756978 | J112: 1.843109592 | K112: 15.68141593 | L112: =(K112/$E112)*100 -> 0.9240669375 | M112: 172.3676821 | N112: =(M112/$E112)*100 -> 10.15719989 | O112: 1438.597686 | P112: =(O112/$E112)*100 -> 84.77299266 | Q112: 886 | R112: 100 | S112: 15.68141593 | T112: 1.769911504 | U112: 15.68141593 | V112: 1.769911504 | W112: 15.68141593 | X112: =(W112/$Q112)*100 -> 1.769911504 | Y112: 148.9734513 | Z112: =(Y112/$Q112)*100 -> 16.81415929 | AA112: 689.9823009 | AB112: =(AA112/$Q112)*100 -> 77.87610619 | AC112: 811 | AD112: 100 | AE112: 23.39423077 | AF112: 2.884615385 | AG112: 15.59615385 | AH112: 1.923076923 | AI112: 0 | AJ112: =(AI112/$AC112)*100 -> 0 | AK112: 23.39423077 | AL112: =(AK112/$AC112)*100 -> 2.884615385 | AM112: 748.6153846 | AN112: =(AM112/$AC112)*100 -> 92.30769231
D113: Ciudad Bolívar | E113: 8538 | F113: 100 | G113: 106.2857143 | H113: 1.244854934 | I113: 177.1392857 | J113: 2.074716394 | K113: 283.4285714 | L113: =(K113/$E113)*100 -> 3.319613158 | M113: 1310.835714 | N113: =(M113/$E113)*100 -> 15.35295988 | O113: 6660.310714 | P113: =(O113/$E113)*100 -> 78.00785564 | Q113: 5704 | R113: 100 | S113: 106.2857143 | T113: 1.863354037 | U113: 141.7142857 | V113: 2.48447205 | W113: 283.4285714 | X113: =(W113/$Q113)*100 -> 4.968944099 | Y113: 1098.285714 | Z113: =(Y113/$Q113)*100 -> 19.25465839 | AA113: 4074.285714 | AB113: =(AA113/$Q113)*100 -> 71.42857143 | AC113: 2834 | AD113: 100 | AE113: 0 | AF113: 0 | AG113: 35.425 | AH113: 1.25 | AI113: 0 | AJ113: =(AI113/$AC113)*100 -> 0 | AK113: 212.55 | AL113: =(AK113/$AC113)*100 -> 7.5 | AM113: 2586.025 | AN113: =(AM113/$AC113)*100 -> 91.25
D114: Concordia | E114: 7255 | F114: 100 | G114: 0 | H114: 0 | I114: 150.8857143 | J114: 2.079747957 | K114: 30.28571429 | L114: =(K114/$E114)*100 -> 0.4174460963 | M114: 724.8214286 | N114: =(M114/$E114)*100 -> 9.990646845 | O114: 6349.007143 | P114: =(O114/$E114)*100 -> 87.5121591 | Q114: 3015 | R114: 100 | S114: 0 | T114: 0 | U114: 120.6 | V114: 4 | W114: 0 | X114: =(W114/$Q114)*100 -> 0 | Y114: 452.25 | Z114: =(Y114/$Q114)*100 -> 15 | AA114: 2442.15 | AB114: =(AA114/$Q114)*100 -> 81 | AC114: 4240 | AD114: 100 | AE114: 0 | AF114: 0 | AG114: 30.28571429 | AH114: 0.7142857143 | AI114: 30.28571429 | AJ114: =(AI114/$AC114)*100 -> 0.7142857143 | AK114: 272.5714286 | AL114: =(AK114/$AC114)*100 -> 6.428571429 | AM114: 3906.857143 | AN114: =(AM114/$AC114)*100 -> 92.14285714
D115: Fredonia | E115: 8977 | F115: 100 | G115: 111.2960644 | H115: 1.239791293 | I115: 334.3846154 | J115: 3.724903814 | K115: 185.6037567 | L115: =(K115/$E115)*100 -> 2.067547696 | M115: 1258.928444 | N115: =(M115/$E115)*100 -> 14.02393276 | O115: 7086.78712 | P115: =(O115/$E115)*100 -> 78.94382444 | Q115: 3181 | R115: 100 | S115: 36.98837209 | T115: 1.162790698 | U115: 0 | V115: 0 | W115: 36.98837209 | X115: =(W115/$Q115)*100 -> 1.162790698 | Y115: 961.6976744 | Z115: =(Y115/$Q115)*100 -> 30.23255814 | AA115: 2145.325581 | AB115: =(AA115/$Q115)*100 -> 67.44186047 | AC115: 5796 | AD115: 100 | AE115: 74.30769231 | AF115: 1.282051282 | AG115: 334.3846154 | AH115: 5.769230769 | AI115: 148.6153846 | AJ115: =(AI115/$AC115)*100 -> 2.564102564 | AK115: 297.2307692 | AL115: =(AK115/$AC115)*100 -> 5.128205128 | AM115: 4941.461538 | AN115: =(AM115/$AC115)*100 -> 85.25641026
D116: Hispania | E116: 1970 | F116: 100 | G116: 26.73076923 | H116: 1.356891839 | I116: 62.5 | J116: 3.172588832 | K116: 0 | L116: =(K116/$E116)*100 -> 0 | M116: 250.2884615 | N116: =(M116/$E116)*100 -> 12.70499805 | O116: 1630.480769 | P116: =(O116/$E116)*100 -> 82.76552128 | Q116: 1395 | R116: 100 | S116: 17.88461538 | T116: 1.282051282 | U116: 53.65384615 | V116: 3.846153846 | W116: 0 | X116: =(W116/$Q116)*100 -> 0 | Y116: 241.4423077 | Z116: =(Y116/$Q116)*100 -> 17.30769231 | AA116: 1082.019231 | AB116: =(AA116/$Q116)*100 -> 77.56410256 | AC116: 575 | AD116: 100 | AE116: 8.846153846 | AF116: 1.538461538 | AG116: 8.846153846 | AH116: 1.538461538 | AI116: 0 | AJ116: =(AI116/$AC116)*100 -> 0 | AK116: 8.846153846 | AL116: =(AK116/$AC116)*100 -> 1.538461538 | AM116: 548.4615385 | AN116: =(AM116/$AC116)*100 -> 95.38461538
D117: Jardín | E117: 4861 | F117: 100 | G117: 0 | H117: 0 | I117: 102.9806752 | J117: 2.118508028 | K117: 20.68531469 | L117: =(K117/$E117)*100 -> 0.4255362001 | M117: 619.6676442 | N117: =(M117/$E117)*100 -> 12.74774006 | O117: 4117.666366 | P117: =(O117/$E117)*100 -> 84.70821571 | Q117: 2958 | R117: 100 | S117: 0 | T117: 0 | U117: 62.05594406 | V117: 2.097902098 | W117: 20.68531469 | X117: =(W117/$Q117)*100 -> 0.6993006993 | Y117: 537.8181818 | Z117: =(Y117/$Q117)*100 -> 18.18181818 | AA117: 2337.440559 | AB117: =(AA117/$Q117)*100 -> 79.02097902 | AC117: 1903 | AD117: 100 | AE117: 0 | AF117: 0 | AG117: 40.92473118 | AH117: 2.150537634 | AI117: 0 | AJ117: =(AI117/$AC117)*100 -> 0 | AK117: 81.84946237 | AL117: =(AK117/$AC117)*100 -> 4.301075269 | AM117: 1780.225806 | AN117: =(AM117/$AC117)*100 -> 93.5483871
D118: Jericó | E118: 4773 | F118: 100 | G118: 0 | H118: 0 | I118: 101.0964373 | J118: 2.118090034 | K118: 0 | L118: =(K118/$E118)*100 -> 0 | M118: 1034.187039 | N118: =(M118/$E118)*100 -> 21.66744268 | O118: 3637.716523 | P118: =(O118/$E118)*100 -> 76.21446728 | Q118: 3004 | R118: 100 | S118: 0 | T118: 0 | U118: 60.89189189 | V118: 2.027027027 | W118: 0 | X118: =(W118/$Q118)*100 -> 0 | Y118: 933.6756757 | Z118: =(Y118/$Q118)*100 -> 31.08108108 | AA118: 2009.432432 | AB118: =(AA118/$Q118)*100 -> 66.89189189 | AC118: 1769 | AD118: 100 | AE118: 0 | AF118: 0 | AG118: 40.20454545 | AH118: 2.272727273 | AI118: 0 | AJ118: =(AI118/$AC118)*100 -> 0 | AK118: 100.5113636 | AL118: =(AK118/$AC118)*100 -> 5.681818182 | AM118: 1628.284091 | AN118: =(AM118/$AC118)*100 -> 92.04545455
D119: La Pintada | E119: 2743 | F119: 100 | G119: 24.13592233 | H119: 0.879909673 | I119: 96.54368932 | J119: 3.519638692 | K119: 48.27184466 | L119: =(K119/$E119)*100 -> 1.759819346 | M119: 585.5184466 | N119: =(M119/$E119)*100 -> 21.34591493 | O119: 1988.530097 | P119: =(O119/$E119)*100 -> 72.49471736 | Q119: 2486 | R119: 100 | S119: 24.13592233 | T119: 0.9708737864 | U119: 96.54368932 | V119: 3.883495146 | W119: 48.27184466 | X119: =(W119/$Q119)*100 -> 1.941747573 | Y119: 482.7184466 | Z119: =(Y119/$Q119)*100 -> 19.41747573 | AA119: 1834.330097 | AB119: =(AA119/$Q119)*100 -> 73.78640777 | AC119: 257 | AD119: 100 | AE119: 0 | AF119: 0 | AG119: 0 | AH119: 0 | AI119: 0 | AJ119: =(AI119/$AC119)*100 -> 0 | AK119: 102.8 | AL119: =(AK119/$AC119)*100 -> 40 | AM119: 154.2 | AN119: =(AM119/$AC119)*100 -> 60
D120: Montebello | E120: 2365 | F120: 100 | G120: 10.51369863 | H120: 0.4445538533 | I120: 42.04005549 | J120: 1.777592198 | K120: 0 | L120: =(K120/$E120)*100 -> 0 | M120: 472.8437663 | N120: =(M120/$E120)*100 -> 19.99339392 | O120: 1839.60248 | P120: =(O120/$E120)*100 -> 77.78446003 | Q120: 830 | R120: 100 | S120: 0 | T120: 0 | U120: 21.01265823 | V120: 2.53164557 | W120: 0 | X120: =(W120/$Q120)*100 -> 0 | Y120: 388.7341772 | Z120: =(Y120/$Q120)*100 -> 46.83544304 | AA120: 420.2531646 | AB120: =(AA120/$Q120)*100 -> 50.63291139 | AC120: 1535 | AD120: 100 | AE120: 10.51369863 | AF120: 0.6849315068 | AG120: 21.02739726 | AH120: 1.369863014 | AI120: 0 | AJ120: =(AI120/$AC120)*100 -> 0 | AK120: 84.10958904 | AL120: =(AK120/$AC120)*100 -> 5.479452055 | AM120: 1419.349315 | AN120: =(AM120/$AC120)*100 -> 92.46575342
D121: Pueblorrico | E121: 2908 | F121: 100 | G121: 12.69343066 | H121: 0.4365003665 | I121: 76.22603935 | J121: 2.621253073 | K121: 12.69343066 | L121: =(K121/$E121)*100 -> 0.4365003665 | M121: 380.842193 | N121: =(M121/$E121)*100 -> 13.09636152 | O121: 2425.544906 | P121: =(O121/$E121)*100 -> 83.40938468 | Q121: 1739 | R121: 100 | S121: 12.69343066 | T121: 0.7299270073 | U121: 12.69343066 | V121: 0.7299270073 | W121: 12.69343066 | X121: =(W121/$Q121)*100 -> 0.7299270073 | Y121: 342.7226277 | Z121: =(Y121/$Q121)*100 -> 19.7080292 | AA121: 1358.19708 | AB121: =(AA121/$Q121)*100 -> 78.10218978 | AC121: 1169 | AD121: 100 | AE121: 0 | AF121: 0 | AG121: 63.5326087 | AH121: 5.434782609 | AI121: 0 | AJ121: =(AI121/$AC121)*100 -> 0 | AK121: 38.11956522 | AL121: =(AK121/$AC121)*100 -> 3.260869565 | AM121: 1067.347826 | AN121: =(AM121/$AC121)*100 -> 91.30434783
D122: Salgar | E122: 6269 | F122: 100 | G122: 0 | H122: 0 | I122: 78.62103767 | J122: 1.254124066 | K122: 26.35238095 | L122: =(K122/$E122)*100 -> 0.4203602002 | M122: 632.2390903 | N122: =(M122/$E122)*100 -> 10.08516654 | O122: 5531.787491 | P122: =(O122/$E122)*100 -> 88.2403492 | Q122: 2767 | R122: 100 | S122: 0 | T122: 0 | U122: 26.35238095 | V122: 0.9523809524 | W122: 26.35238095 | X122: =(W122/$Q122)*100 -> 0.9523809524 | Y122: 606.1047619 | Z122: =(Y122/$Q122)*100 -> 21.9047619 | AA122: 2108.190476 | AB122: =(AA122/$Q122)*100 -> 76.19047619 | AC122: 3502 | AD122: 100 | AE122: 0 | AF122: 0 | AG122: 52.26865672 | AH122: 1.492537313 | AI122: 0 | AJ122: =(AI122/$AC122)*100 -> 0 | AK122: 26.13432836 | AL122: =(AK122/$AC122)*100 -> 0.7462686567 | AM122: 3423.597015 | AN122: =(AM122/$AC122)*100 -> 97.76119403
D123: Santa Bárbara | E123: 9562 | F123: 100 | G123: 0 | H123: 0 | I123: 158.0510929 | J123: 1.652908313 | K123: 118.675 | L123: =(K123/$E123)*100 -> 1.241110646 | M123: 3240.411885 | N123: =(M123/$E123)*100 -> 33.88843218 | O123: 6044.862022 | P123: =(O123/$E123)*100 -> 63.21754886 | Q123: 4747 | R123: 100 | S123: 0 | T123: 0 | U123: 79.11666667 | V123: 1.666666667 | W123: 118.675 | X123: =(W123/$Q123)*100 -> 2.5 | Y123: 1780.125 | Z123: =(Y123/$Q123)*100 -> 37.5 | AA123: 2769.083333 | AB123: =(AA123/$Q123)*100 -> 58.33333333 | AC123: 4815 | AD123: 100 | AE123: 0 | AF123: 0 | AG123: 78.93442623 | AH123: 1.639344262 | AI123: 0 | AJ123: =(AI123/$AC123)*100 -> 0 | AK123: 1460.286885 | AL123: =(AK123/$AC123)*100 -> 30.32786885 | AM123: 3275.778689 | AN123: =(AM123/$AC123)*100 -> 68.03278689
D124: Támesis | E124: 5801 | F124: 100 | G124: 48.74429611 | H124: 0.8402740236 | I124: 195.4059476 | J124: 3.368487288 | K124: 24.47933884 | L124: =(K124/$E124)*100 -> 0.4219848103 | M124: 1269.709896 | N124: =(M124/$E124)*100 -> 21.88777618 | O124: 4262.660521 | P124: =(O124/$E124)*100 -> 73.4814777 | Q124: 2962 | R124: 100 | S124: 24.47933884 | T124: 0.826446281 | U124: 146.8760331 | V124: 4.958677686 | W124: 24.47933884 | X124: =(W124/$Q124)*100 -> 0.826446281 | Y124: 905.7355372 | Z124: =(Y124/$Q124)*100 -> 30.5785124 | AA124: 1860.429752 | AB124: =(AA124/$Q124)*100 -> 62.80991736 | AC124: 2839 | AD124: 100 | AE124: 24.26495726 | AF124: 0.8547008547 | AG124: 48.52991453 | AH124: 1.709401709 | AI124: 0 | AJ124: =(AI124/$AC124)*100 -> 0 | AK124: 363.974359 | AL124: =(AK124/$AC124)*100 -> 12.82051282 | AM124: 2402.230769 | AN124: =(AM124/$AC124)*100 -> 84.61538462
D125: Tarso | E125: 1990 | F125: 100 | G125: 8.984848485 | H125: 0.4514999239 | I125: 27.1011236 | J125: 1.361865507 | K125: 27.00340483 | L125: =(K125/$E125)*100 -> 1.356955017 | M125: 341.8151175 | N125: =(M125/$E125)*100 -> 17.17663907 | O125: 1585.095506 | P125: =(O125/$E125)*100 -> 79.65304048 | Q125: 1186 | R125: 100 | S125: 8.984848485 | T125: 0.7575757576 | U125: 0 | V125: 0 | W125: 17.96969697 | X125: =(W125/$Q125)*100 -> 1.515151515 | Y125: 269.5454545 | Z125: =(Y125/$Q125)*100 -> 22.72727273 | AA125: 889.5 | AB125: =(AA125/$Q125)*100 -> 75 | AC125: 804 | AD125: 100 | AE125: 0 | AF125: 0 | AG125: 27.1011236 | AH125: 3.370786517 | AI125: 9.033707865 | AJ125: =(AI125/$AC125)*100 -> 1.123595506 | AK125: 72.26966292 | AL125: =(AK125/$AC125)*100 -> 8.988764045 | AM125: 695.5955056 | AN125: =(AM125/$AC125)*100 -> 86.51685393
D126: Titiribí | E126: 3707 | F126: 100 | G126: 95.3541636 | H126: 2.572273094 | I126: 31.71186441 | J126: 0.8554589805 | K126: 47.78636699 | L126: =(K126/$E126)*100 -> 1.289084623 | M126: 542.3802506 | N126: =(M126/$E126)*100 -> 14.63124496 | O126: 2989.767354 | P126: =(O126/$E126)*100 -> 80.65193835 | Q126: 1836 | R126: 100 | S126: 31.93043478 | T126: 1.739130435 | U126: 0 | V126: 0 | W126: 31.93043478 | X126: =(W126/$Q126)*100 -> 1.739130435 | Y126: 478.9565217 | Z126: =(Y126/$Q126)*100 -> 26.08695652 | AA126: 1293.182609 | AB126: =(AA126/$Q126)*100 -> 70.43478261 | AC126: 1871 | AD126: 100 | AE126: 63.42372881 | AF126: 3.389830508 | AG126: 31.71186441 | AH126: 1.694915254 | AI126: 15.8559322 | AJ126: =(AI126/$AC126)*100 -> 0.8474576271 | AK126: 63.42372881 | AL126: =(AK126/$AC126)*100 -> 3.389830508 | AM126: 1696.584746 | AN126: =(AM126/$AC126)*100 -> 90.6779661
D127: Urrao | E127: 9705 | F127: 100 | G127: 0 | H127: 0 | I127: 201.6184135 | J127: 2.077469485 | K127: 40.15972222 | L127: =(K127/$E127)*100 -> 0.4138044536 | M127: 1369.802835 | N127: =(M127/$E127)*100 -> 14.11440325 | O127: 8093.419029 | P127: =(O127/$E127)*100 -> 83.39432282 | Q127: 5783 | R127: 100 | S127: 0 | T127: 0 | U127: 80.31944444 | V127: 1.388888889 | W127: 40.15972222 | X127: =(W127/$Q127)*100 -> 0.6944444444 | Y127: 722.875 | Z127: =(Y127/$Q127)*100 -> 12.5 | AA127: 4939.645833 | AB127: =(AA127/$Q127)*100 -> 85.41666667 | AC127: 3922 | AD127: 100 | AE127: 0 | AF127: 0 | AG127: 121.2989691 | AH127: 3.092783505 | AI127: 0 | AJ127: =(AI127/$AC127)*100 -> 0 | AK127: 646.9278351 | AL127: =(AK127/$AC127)*100 -> 16.49484536 | AM127: 3153.773196 | AN127: =(AM127/$AC127)*100 -> 80.41237113
D128: Valparaíso | E128: 2353 | F128: 100 | G128: 20.89618538 | H128: 0.8880656769 | I128: 31.38539401 | J128: 1.333845899 | K128: 10.40697674 | L128: =(K128/$E128)*100 -> 0.4422854545 | M128: 188.7235235 | N128: =(M128/$E128)*100 -> 8.020549235 | O128: 2101.58792 | P128: =(O128/$E128)*100 -> 89.31525373 | Q128: 1458 | R128: 100 | S128: 10.48920863 | T128: 0.7194244604 | U128: 20.97841727 | V128: 1.438848921 | W128: 0 | X128: =(W128/$Q128)*100 -> 0 | Y128: 178.3165468 | Z128: =(Y128/$Q128)*100 -> 12.23021583 | AA128: 1248.215827 | AB128: =(AA128/$Q128)*100 -> 85.61151079 | AC128: 895 | AD128: 100 | AE128: 10.40697674 | AF128: 1.162790698 | AG128: 10.40697674 | AH128: 1.162790698 | AI128: 10.40697674 | AJ128: =(AI128/$AC128)*100 -> 1.162790698 | AK128: 10.40697674 | AL128: =(AK128/$AC128)*100 -> 1.162790698 | AM128: 853.372093 | AN128: =(AM128/$AC128)*100 -> 95.34883721
D129: Venecia | E129: 4226 | F129: 100 | G129: 0 | H129: 0 | I129: 0 | J129: 0 | K129: 36.11910851 | L129: =(K129/$E129)*100 -> 0.8546878493 | M129: 632.100475 | N129: =(M129/$E129)*100 -> 14.95741777 | O129: 3557.780417 | P129: =(O129/$E129)*100 -> 84.18789438 | Q129: 2075 | R129: 100 | S129: 0 | T129: 0 | U129: 0 | V129: 0 | W129: 18.04347826 | X129: =(W129/$Q129)*100 -> 0.8695652174 | Y129: 306.7391304 | Z129: =(Y129/$Q129)*100 -> 14.7826087 | AA129: 1750.217391 | AB129: =(AA129/$Q129)*100 -> 84.34782609 | AC129: 2151 | AD129: 100 | AE129: 0 | AF129: 0 | AG129: 0 | AH129: 0 | AI129: 18.07563025 | AJ129: =(AI129/$AC129)*100 -> 0.8403361345 | AK129: 325.3613445 | AL129: =(AK129/$AC129)*100 -> 15.12605042 | AM129: 1807.563025 | AN129: =(AM129/$AC129)*100 -> 84.03361345
B130: Urabá | C130: P_004_CADENA | D130: Total | E130: 157545 | F130: 100 | G130: 14595.23837 | H130: 9.264171109 | I130: 8440.352513 | J130: 5.357423284 | K130: 2885.488794 | L130: =(K130/$E130)*100 -> 1.831533082 | M130: 24229.83343 | N130: =(M130/$E130)*100 -> 15.37962705 | O130: 107394.0869 | P130: =(O130/$E130)*100 -> 68.16724548 | Q130: 97427 | R130: 100 | S130: 7703.25247 | T130: 7.906691646 | U130: 4849.061637 | V130: 4.977123012 | W130: 2199.623818 | X130: =(W130/$Q130)*100 -> 2.257714821 | Y130: 20070.45968 | Z130: =(Y130/$Q130)*100 -> 20.60051082 | AA130: 62604.6024 | AB130: =(AA130/$Q130)*100 -> 64.2579597 | AC130: 60118 | AD130: 100 | AE130: 6891.985904 | AF130: 11.46409712 | AG130: 3591.290876 | AH130: 5.973736446 | AI130: 685.8649761 | AJ130: =(AI130/$AC130)*100 -> 1.140864593 | AK130: 4159.373755 | AL130: =(AK130/$AC130)*100 -> 6.918682849 | AM130: 44789.48449 | AN130: =(AM130/$AC130)*100 -> 74.502619
D131: Apartadó | E131: 41165 | F131: 100 | G131: 2831.795155 | H131: 6.879133136 | I131: 1999.684308 | J131: 4.8577294 | K131: 1000.777251 | L131: =(K131/$E131)*100 -> 2.431136284 | M131: 9834.430621 | N131: =(M131/$E131)*100 -> 23.89027237 | O131: 25498.31266 | P131: =(O131/$E131)*100 -> 61.94172881 | Q131: 35194 | R131: 100 | S131: 2168.350711 | T131: 6.161137441 | U131: 1667.962085 | V131: 4.739336493 | W131: 1000.777251 | X131: =(W131/$Q131)*100 -> 2.843601896 | Y131: 8673.402844 | Z131: =(Y131/$Q131)*100 -> 24.64454976 | AA131: 21683.50711 | AB131: =(AA131/$Q131)*100 -> 61.61137441 | AC131: 5971 | AD131: 100 | AE131: 663.4444444 | AF131: 11.11111111 | AG131: 331.7222222 | AH131: 5.555555556 | AI131: 0 | AJ131: =(AI131/$AC131)*100 -> 0 | AK131: 1161.027778 | AL131: =(AK131/$AC131)*100 -> 19.44444444 | AM131: 3814.805556 | AN131: =(AM131/$AC131)*100 -> 63.88888889
D132: Arboletes | E132: 8705 | F132: 100 | G132: 396.7121909 | H132: 4.557291108 | I132: 35.82432432 | J132: 0.4115373271 | K132: 71.64864865 | L132: =(K132/$E132)*100 -> 0.8230746542 | M132: 506.4519839 | N132: =(M132/$E132)*100 -> 5.817943526 | O132: 7694.362852 | P132: =(O132/$E132)*100 -> 88.39015339 | Q132: 3403 | R132: 100 | S132: 253.4148936 | T132: 7.446808511 | U132: 0 | V132: 0 | W132: 0 | X132: =(W132/$Q132)*100 -> 0 | Y132: 470.6276596 | Z132: =(Y132/$Q132)*100 -> 13.82978723 | AA132: 2678.957447 | AB132: =(AA132/$Q132)*100 -> 78.72340426 | AC132: 5302 | AD132: 100 | AE132: 143.2972973 | AF132: 2.702702703 | AG132: 35.82432432 | AH132: 0.6756756757 | AI132: 71.64864865 | AJ132: =(AI132/$AC132)*100 -> 1.351351351 | AK132: 35.82432432 | AL132: =(AK132/$AC132)*100 -> 0.6756756757 | AM132: 5015.405405 | AN132: =(AM132/$AC132)*100 -> 94.59459459
D133: Carepa | E133: 16238 | F133: 100 | G133: 1457.859303 | H133: 8.978071825 | I133: 861.2056058 | J133: 5.303643341 | K133: 530.3435368 | L133: =(K133/$E133)*100 -> 3.266064397 | M133: 2584.71879 | N133: =(M133/$E133)*100 -> 15.91771641 | O133: 10803.87276 | P133: =(O133/$E133)*100 -> 66.53450403 | Q133: 12400 | R133: 100 | S133: 994.6524064 | T133: 8.021390374 | U133: 464.171123 | V133: 3.743315508 | W133: 464.171123 | X133: =(W133/$Q133)*100 -> 3.743315508 | Y133: 1922.994652 | Z133: =(Y133/$Q133)*100 -> 15.50802139 | AA133: 8554.010695 | AB133: =(AA133/$Q133)*100 -> 68.98395722 | AC133: 3838 | AD133: 100 | AE133: 463.2068966 | AF133: 12.06896552 | AG133: 397.0344828 | AH133: 10.34482759 | AI133: 66.17241379 | AJ133: =(AI133/$AC133)*100 -> 1.724137931 | AK133: 661.7241379 | AL133: =(AK133/$AC133)*100 -> 17.24137931 | AM133: 2249.862069 | AN133: =(AM133/$AC133)*100 -> 58.62068966
D134: Chigorodó | E134: 18520 | F134: 100 | G134: 2058.190476 | H134: 11.1133395 | I134: 1829.695238 | J134: 9.879563921 | K134: 152.4952381 | L134: =(K134/$E134)*100 -> 0.823408413 | M134: 4192.87619 | N134: =(M134/$E134)*100 -> 22.63972025 | O134: 10286.74286 | P134: =(O134/$E134)*100 -> 55.54396791 | Q134: 16012 | R134: 100 | S134: 1906.190476 | T134: 11.9047619 | U134: 1753.695238 | V134: 10.95238095 | W134: 152.4952381 | X134: =(W134/$Q134)*100 -> 0.9523809524 | Y134: 3964.87619 | Z134: =(Y134/$Q134)*100 -> 24.76190476 | AA134: 8234.742857 | AB134: =(AA134/$Q134)*100 -> 51.42857143 | AC134: 2508 | AD134: 100 | AE134: 152 | AF134: 6.060606061 | AG134: 76 | AH134: 3.03030303 | AI134: 0 | AJ134: =(AI134/$AC134)*100 -> 0 | AK134: 228 | AL134: =(AK134/$AC134)*100 -> 9.090909091 | AM134: 2052 | AN134: =(AM134/$AC134)*100 -> 81.81818182
D135: Murindó | E135: 1304 | F135: 100 | G135: 6.247524752 | H135: 0.4791046589 | I135: 18.72653099 | J135: 1.436083665 | K135: 12.47900623 | L135: =(K135/$E135)*100 -> 0.9569790057 | M135: 18.72653099 | N135: =(M135/$E135)*100 -> 1.436083665 | O135: 1247.820407 | P135: =(O135/$E135)*100 -> 95.69174901 | Q135: 631 | R135: 100 | S135: 6.247524752 | T135: 0.9900990099 | U135: 12.4950495 | V135: 1.98019802 | W135: 6.247524752 | X135: =(W135/$Q135)*100 -> 0.9900990099 | Y135: 12.4950495 | Z135: =(Y135/$Q135)*100 -> 1.98019802 | AA135: 593.5148515 | AB135: =(AA135/$Q135)*100 -> 94.05940594 | AC135: 673 | AD135: 100 | AE135: 0 | AF135: 0 | AG135: 6.231481481 | AH135: 0.9259259259 | AI135: 6.231481481 | AJ135: =(AI135/$AC135)*100 -> 0.9259259259 | AK135: 6.231481481 | AL135: =(AK135/$AC135)*100 -> 0.9259259259 | AM135: 654.3055556 | AN135: =(AM135/$AC135)*100 -> 97.22222222
D136: Mutatá | E136: 4277 | F136: 100 | G136: 589.2098214 | H136: 13.77624086 | I136: 201.4791667 | J136: 4.710759099 | K136: 36.47619048 | L136: =(K136/$E136)*100 -> 0.8528452297 | M136: 512.6019345 | N136: =(M136/$E136)*100 -> 11.98508147 | O136: 2937.232887 | P136: =(O136/$E136)*100 -> 68.67507334 | Q136: 1915 | R136: 100 | S136: 109.4285714 | T136: 5.714285714 | U136: 127.6666667 | V136: 6.666666667 | W136: 36.47619048 | X136: =(W136/$Q136)*100 -> 1.904761905 | Y136: 346.5238095 | Z136: =(Y136/$Q136)*100 -> 18.0952381 | AA136: 1294.904762 | AB136: =(AA136/$Q136)*100 -> 67.61904762 | AC136: 2362 | AD136: 100 | AE136: 479.78125 | AF136: 20.3125 | AG136: 73.8125 | AH136: 3.125 | AI136: 0 | AJ136: =(AI136/$AC136)*100 -> 0 | AK136: 166.078125 | AL136: =(AK136/$AC136)*100 -> 7.03125 | AM136: 1642.328125 | AN136: =(AM136/$AC136)*100 -> 69.53125
D137: Necoclí | E137: 12648 | F137: 100 | G137: 1663.558042 | H137: 13.15273594 | I137: 833.5594406 | J137: 6.59044466 | K137: 367.6867133 | L137: =(K137/$E137)*100 -> 2.907073951 | M137: 992.4111888 | N137: =(M137/$E137)*100 -> 7.846388273 | O137: 8790.784615 | P137: =(O137/$E137)*100 -> 69.50335717 | Q137: 4107 | R137: 100 | S137: 421.2307692 | T137: 10.25641026 | U137: 315.9230769 | V137: 7.692307692 | W137: 315.9230769 | X137: =(W137/$Q137)*100 -> 7.692307692 | Y137: 526.5384615 | Z137: =(Y137/$Q137)*100 -> 12.82051282 | AA137: 2527.384615 | AB137: =(AA137/$Q137)*100 -> 61.53846154 | AC137: 8541 | AD137: 100 | AE137: 1242.327273 | AF137: 14.54545455 | AG137: 517.6363636 | AH137: 6.060606061 | AI137: 51.76363636 | AJ137: =(AI137/$AC137)*100 -> 0.6060606061 | AK137: 465.8727273 | AL137: =(AK137/$AC137)*100 -> 5.454545455 | AM137: 6263.4 | AN137: =(AM137/$AC137)*100 -> 73.33333333
D138: San Juan de Urabá | E138: 5983 | F138: 100 | G138: 1050.770704 | H138: 17.56260578 | I138: 25.07608696 | J138: 0.4191222958 | K138: 75.15897663 | L138: =(K138/$E138)*100 -> 1.256208869 | M138: 425.6699201 | N138: =(M138/$E138)*100 -> 7.114656863 | O138: 4406.324312 | P138: =(O138/$E138)*100 -> 73.64740619 | Q138: 2307 | R138: 100 | S138: 175.5326087 | T138: 7.608695652 | U138: 25.07608696 | V138: 1.086956522 | W138: 50.15217391 | X138: =(W138/$Q138)*100 -> 2.173913043 | Y138: 200.6086957 | Z138: =(Y138/$Q138)*100 -> 8.695652174 | AA138: 1855.630435 | AB138: =(AA138/$Q138)*100 -> 80.43478261 | AC138: 3676 | AD138: 100 | AE138: 875.2380952 | AF138: 23.80952381 | AG138: 0 | AH138: 0 | AI138: 25.00680272 | AJ138: =(AI138/$AC138)*100 -> 0.6802721088 | AK138: 225.0612245 | AL138: =(AK138/$AC138)*100 -> 6.12244898 | AM138: 2550.693878 | AN138: =(AM138/$AC138)*100 -> 69.3877551
D139: San Pedro de Urabá | E139: 8828 | F139: 100 | G139: 0 | H139: 0 | I139: 183.000343 | J139: 2.072953591 | K139: 0 | L139: =(K139/$E139)*100 -> 0 | M139: 476.7433628 | N139: =(M139/$E139)*100 -> 5.400355265 | O139: 8168.256294 | P139: =(O139/$E139)*100 -> 92.52669114 | Q139: 4144 | R139: 100 | S139: 0 | T139: 0 | U139: 146.6902655 | V139: 3.539823009 | W139: 0 | X139: =(W139/$Q139)*100 -> 0 | Y139: 476.7433628 | Z139: =(Y139/$Q139)*100 -> 11.50442478 | AA139: 3520.566372 | AB139: =(AA139/$Q139)*100 -> 84.95575221 | AC139: 4684 | AD139: 100 | AE139: 0 | AF139: 0 | AG139: 36.31007752 | AH139: 0.7751937984 | AI139: 0 | AJ139: =(AI139/$AC139)*100 -> 0 | AK139: 0 | AL139: =(AK139/$AC139)*100 -> 0 | AM139: 4647.689922 | AN139: =(AM139/$AC139)*100 -> 99.2248062
D140: Turbo | E140: 37283 | F140: 100 | G140: 4529.514722 | H140: 12.14900818 | I140: 2417.960165 | J140: 6.485422754 | K140: 604.2031042 | L140: =(K140/$E140)*100 -> 1.620586069 | M140: 4673.822475 | N140: =(M140/$E140)*100 -> 12.53606865 | O140: 25057.49953 | P140: =(O140/$E140)*100 -> 67.20891434 | Q140: 16267 | R140: 100 | S140: 1656.824074 | T140: 10.18518519 | U140: 301.2407407 | V140: 1.851851852 | W140: 150.6203704 | X140: =(W140/$Q140)*100 -> 0.9259259259 | Y140: 3464.268519 | Z140: =(Y140/$Q140)*100 -> 21.2962963 | AA140: 10694.0463 | AB140: =(AA140/$Q140)*100 -> 65.74074074 | AC140: 21016 | AD140: 100 | AE140: 2872.690647 | AF140: 13.66906475 | AG140: 2116.719424 | AH140: 10.07194245 | AI140: 453.5827338 | AJ140: =(AI140/$AC140)*100 -> 2.158273381 | AK140: 1209.553957 | AL140: =(AK140/$AC140)*100 -> 5.755395683 | AM140: 14363.45324 | AN140: =(AM140/$AC140)*100 -> 68.34532374
D141: Vigía del Fuerte | E141: 2594 | F141: 100 | G141: 11.38043478 | H141: 0.4387214642 | I141: 34.14130435 | J141: 1.316164393 | K141: 34.22012882 | L141: =(K141/$E141)*100 -> 1.319203116 | M141: 11.38043478 | N141: =(M141/$E141)*100 -> 0.4387214642 | O141: 2502.877697 | P141: =(O141/$E141)*100 -> 96.48718956 | Q141: 1047 | R141: 100 | S141: 11.38043478 | T141: 1.086956522 | U141: 34.14130435 | V141: 3.260869565 | W141: 22.76086957 | X141: =(W141/$Q141)*100 -> 2.173913043 | Y141: 11.38043478 | Z141: =(Y141/$Q141)*100 -> 1.086956522 | AA141: 967.3369565 | AB141: =(AA141/$Q141)*100 -> 92.39130435 | AC141: 1547 | AD141: 100 | AE141: 0 | AF141: 0 | AG141: 0 | AH141: 0 | AI141: 11.45925926 | AJ141: =(AI141/$AC141)*100 -> 0.7407407407 | AK141: 0 | AL141: =(AK141/$AC141)*100 -> 0 | AM141: 1535.540741 | AN141: =(AM141/$AC141)*100 -> 99.25925926
E144: P_005 : Zona REC
E145: Total | Q145: Urbano | AC145: Rural
A146: =E146 -> P_172 : Tipo de vivienda | E146: P_172 : Tipo de vivienda | Q146: P_172 : Tipo de vivienda | AC146: P_172 : Tipo de vivienda
E147: Total | G147: Rancho, vivienda de desechos | I147: Cuarto(s) | K147: Cuarto en inquilinato | M147: Apartamento | O147: Casa | Q147: Total | S147: Rancho, vivienda de desechos | U147: Cuarto(s) | W147: Cuarto en inquilinato | Y147: Apartamento | AA147: Casa | AC147: Total | AE147: Rancho, vivienda de desechos | AG147: Cuarto(s) | AI147: Cuarto en inquilinato | AK147: Apartamento | AM147: Casa
E148: Recuento | F148: % del N de fila | G148: Recuento | H148: % del N de fila | I148: Recuento | J148: % del N de fila | K148: Recuento | L148: % del N de fila | M148: Recuento | N148: % del N de fila | O148: Recuento | P148: % del N de fila | Q148: Recuento | R148: % del N de fila | S148: Recuento | T148: % del N de fila | U148: Recuento | V148: % del N de fila | W148: Recuento | X148: % del N de fila | Y148: Recuento | Z148: % del N de fila | AA148: Recuento | AB148: % del N de fila | AC148: Recuento | AD148: % del N de fila | AE148: Recuento | AF148: % del N de fila | AG148: Recuento | AH148: % del N de fila | AI148: Recuento | AJ148: % del N de fila | AK148: Recuento | AL148: % del N de fila | AM148: Recuento | AN148: % del N de fila
B149: Total | C149: ZonasDeptoA_CADENA | D149: Total | E149: 2252010 | F149: 100 | G149: 36030.26799 | H149: =(G149/$E149)*100 -> 1.599915986 | I149: 42712.40567 | J149: 1.896634814 | K149: 13815.88467 | L149: =(K149/$E149)*100 -> 0.6134912666 | M149: 896866.1227 | N149: =(M149/$E149)*100 -> 39.82513944 | O149: 1262585.319 | P149: =(O149/$E149)*100 -> 56.0648185 | Q149: 1738970 | R149: 100 | S149: 18606.61814 | T149: =(S149/$Q149)*100 -> 1.069979248 | U149: 31541.86862 | V149: 1.813824771 | W149: 11215.86007 | X149: =(W149/$Q149)*100 -> 0.6449714529 | Y149: 791138.2635 | Z149: =(Y149/$Q149)*100 -> 45.49464703 | AA149: 886467.3897 | AB149: =(AA149/$Q149)*100 -> 50.9765775 | AC149: 513040 | AD149: 100 | AE149: 17423.64986 | AF149: =(AE149/$AC149)*100 -> 3.396158166 | AG149: 11170.53705 | AH149: 2.17732283 | AI149: 2600.024599 | AJ149: =(AI149/$AC149)*100 -> 0.5067878916 | AK149: 105727.8592 | AL149: =(AK149/$AC149)*100 -> 20.60811227 | AM149: 376117.9293 | AN149: =(AM149/$AC149)*100 -> 73.31161885
B150: Valle de Aburrá | C150: ZonasDeptoA_CADENA | D150: Total | E150: 1412741 | F150: 100 | G150: 5642.884896 | H150: =(G150/$E150)*100 -> 0.3994281256 | I150: 22166.48127 | J150: =(I150/$E150)*100 -> 1.5690407 | K150: 6893.313085 | L150: =(K150/$E150)*100 -> 0.4879389134 | M150: 748823.5374 | N150: =(M150/$E150)*100 -> 53.00501206 | O150: 629214.7833 | P150: =(O150/$E150)*100 -> 44.5385802 | Q150: 1257088 | R150: 100 | S150: 4453.799003 | T150: =(S150/$Q150)*100 -> 0.3542949263 | U150: 20758.45921 | V150: =(U150/$Q150)*100 -> 1.651313131 | W150: 5970.180124 | X150: =(W150/$Q150)*100 -> 0.4749214155 | Y150: 680518.3922 | Z150: =(Y150/$Q150)*100 -> 54.13450707 | AA150: 545387.1695 | AB150: =(AA150/$Q150)*100 -> 43.38496346 | AC150: 155653 | AD150: 100 | AE150: 1189.085893 | AF150: =(AE150/$AC150)*100 -> 0.7639338097 | AG150: 1408.022061 | AH150: =(AG150/$AC150)*100 -> 0.9045903779 | AI150: 923.1329613 | AJ150: =(AI150/$AC150)*100 -> 0.5930711013 | AK150: 68305.14522 | AL150: =(AK150/$AC150)*100 -> 43.88296096 | AM150: 83827.61386 | AN150: =(AM150/$AC150)*100 -> 53.85544375
D151: Centro (Valle de Aburrá) | E151: 895573 | F151: 100 | G151: 4283.314067 | H151: =(G151/$E151)*100 -> 0.4782763735 | I151: 13237.07713 | J151: =(I151/$E151)*100 -> 1.478056745 | K151: 4212.668048 | L151: =(K151/$E151)*100 -> 0.470388014 | M151: 528979.1726 | N151: =(M151/$E151)*100 -> 59.06600272 | O151: 344860.7682 | P151: =(O151/$E151)*100 -> 38.50727615 | Q151: 790262 | R151: 100 | S151: 3699.294727 | T151: =(S151/$Q151)*100 -> 0.4681099088 | U151: 12556.30654 | V151: =(U151/$Q151)*100 -> 1.588878947 | W151: 3405.306676 | X151: =(W151/$Q151)*100 -> 0.4309085691 | Y151: 474723.9271 | Z151: =(Y151/$Q151)*100 -> 60.07171382 | AA151: 295877.165 | AB151: =(AA151/$Q151)*100 -> 37.44038875 | AC151: 105311 | AD151: 100 | AE151: 584.0193395 | AF151: =(AE151/$AC151)*100 -> 0.5545663221 | AG151: 680.7705919 | AH151: =(AG151/$AC151)*100 -> 0.6464382562 | AI151: 807.3613718 | AJ151: =(AI151/$AC151)*100 -> 0.7666448631 | AK151: 54255.24547 | AL151: =(AK151/$AC151)*100 -> 51.51906778 | AM151: 48983.60323 | AN151: =(AM151/$AC151)*100 -> 46.51328278
D152: Norte (Valle de Aburrá) | E152: 249375 | F152: 100 | G152: 737.0320676 | H152: =(G152/$E152)*100 -> 0.2955517063 | I152: 5415.86514 | J152: =(I152/$E152)*100 -> 2.171775495 | K152: 1467.749602 | L152: =(K152/$E152)*100 -> 0.5885712691 | M152: 110099.0468 | N152: =(M152/$E152)*100 -> 44.14999371 | O152: 131655.3064 | P152: =(O152/$E152)*100 -> 52.79410782 | Q152: 221001 | R152: 100 | S152: 555.1762887 | T152: =(S152/$Q152)*100 -> 0.2512098536 | U152: 4897.981482 | V152: =(U152/$Q152)*100 -> 2.216271185 | W152: 1418.783849 | X152: =(W152/$Q152)*100 -> 0.6419807371 | Y152: 103315.554 | Z152: =(Y152/$Q152)*100 -> 46.7489079 | AA152: 110813.5044 | AB152: =(AA152/$Q152)*100 -> 50.14163032 | AC152: 28374 | AD152: 100 | AE152: 181.8557789 | AF152: =(AE152/$AC152)*100 -> 0.640924011 | AG152: 517.8836575 | AH152: =(AG152/$AC152)*100 -> 1.825204967 | AI152: 48.96575342 | AJ152: =(AI152/$AC152)*100 -> 0.1725726137 | AK152: 6783.49287 | AL152: =(AK152/$AC152)*100 -> 23.90742535 | AM152: 20841.80194 | AN152: =(AM152/$AC152)*100 -> 73.45387306
D153: Sur (Valle de Aburrá) | E153: 267793 | F153: 100 | G153: 622.5387618 | H153: =(G153/$E153)*100 -> 0.2324701399 | I153: 3513.538997 | J153: =(I153/$E153)*100 -> 1.312035414 | K153: 1212.895435 | L153: =(K153/$E153)*100 -> 0.4529227556 | M153: 109745.318 | N153: =(M153/$E153)*100 -> 40.98139908 | O153: 152698.7088 | P153: =(O153/$E153)*100 -> 57.02117261 | Q153: 245825 | R153: 100 | S153: 199.3279874 | T153: =(S153/$Q153)*100 -> 0.08108531979 | U153: 3304.171185 | V153: =(U153/$Q153)*100 -> 1.344115198 | W153: 1146.089599 | X153: =(W153/$Q153)*100 -> 0.4662217426 | Y153: 102478.9112 | Z153: =(Y153/$Q153)*100 -> 41.68774988 | AA153: 138696.5001 | AB153: =(AA153/$Q153)*100 -> 56.42082786 | AC153: 21968 | AD153: 100 | AE153: 423.2107744 | AF153: =(AE153/$AC153)*100 -> 1.926487502 | AG153: 209.3678114 | AH153: =(AG153/$AC153)*100 -> 0.9530581366 | AI153: 66.80583614 | AJ153: =(AI153/$AC153)*100 -> 0.3041052264 | AK153: 7266.406881 | AL153: =(AK153/$AC153)*100 -> 33.07723453 | AM153: 14002.2087 | AN153: =(AM153/$AC153)*100 -> 63.73911461
B154: Bajo Cauca | C154: ZonasDeptoA_CADENA | D154: Total | E154: 77368 | F154: 100 | G154: 6608.546215 | H154: =(G154/$E154)*100 -> 8.541704859 | I154: 821.9935618 | J154: 1.06244644 | K154: 129.9055862 | L154: =(K154/$E154)*100 -> 0.1679060932 | M154: 6512.419616 | N154: =(M154/$E154)*100 -> 8.417458919 | O154: 63295.13502 | P154: =(O154/$E154)*100 -> 81.81048369 | Q154: 50412 | R154: 100 | S154: 3385.5164 | T154: 6.715695469 | U154: 549.1879679 | V154: 1.089399286 | W154: 97.57758621 | X154: =(W154/$Q154)*100 -> 0.1935602361 | Y154: 5962.000778 | Z154: =(Y154/$Q154)*100 -> 11.82655078 | AA154: 40417.71727 | AB154: =(AA154/$Q154)*100 -> 80.17479423 | AC154: 26956 | AD154: 100 | AE154: 3223.029816 | AF154: =(AE154/$AC154)*100 -> 11.95663235 | AG154: 272.8055939 | AH154: 1.01204034 | AI154: 32.328 | AJ154: =(AI154/$AC154)*100 -> 0.1199287728 | AK154: 550.4188379 | AL154: =(AK154/$AC154)*100 -> 2.041915855 | AM154: 22877.41775 | AN154: =(AM154/$AC154)*100 -> 84.86948268
D155: Bajo Cauca | E155: 77368 | F155: 100 | G155: 6608.546215 | H155: =(G155/$E155)*100 -> 8.541704859 | I155: 821.9935618 | J155: 1.06244644 | K155: 129.9055862 | L155: =(K155/$E155)*100 -> 0.1679060932 | M155: 6512.419616 | N155: =(M155/$E155)*100 -> 8.417458919 | O155: 63295.13502 | P155: =(O155/$E155)*100 -> 81.81048369 | Q155: 50412 | R155: 100 | S155: 3385.5164 | T155: 6.715695469 | U155: 549.1879679 | V155: 1.089399286 | W155: 97.57758621 | X155: =(W155/$Q155)*100 -> 0.1935602361 | Y155: 5962.000778 | Z155: =(Y155/$Q155)*100 -> 11.82655078 | AA155: 40417.71727 | AB155: =(AA155/$Q155)*100 -> 80.17479423 | AC155: 26956 | AD155: 100 | AE155: 3223.029816 | AF155: =(AE155/$AC155)*100 -> 11.95663235 | AG155: 272.8055939 | AH155: 1.01204034 | AI155: 32.328 | AJ155: =(AI155/$AC155)*100 -> 0.1199287728 | AK155: 550.4188379 | AL155: =(AK155/$AC155)*100 -> 2.041915855 | AM155: 22877.41775 | AN155: =(AM155/$AC155)*100 -> 84.86948268
B156: Magdalena Medio | C156: ZonasDeptoA_CADENA | D156: Total | E156: 35647 | F156: 100 | G156: 1061.536801 | H156: =(G156/$E156)*100 -> 2.977913432 | I156: 292.7834099 | J156: 0.8213409542 | K156: 306.511429 | L156: =(K156/$E156)*100 -> 0.8598519622 | M156: 3213.54065 | N156: =(M156/$E156)*100 -> 9.014897888 | O156: 30772.62771 | P156: =(O156/$E156)*100 -> 86.32599576 | Q156: 20859 | R156: 100 | S156: 603.8104236 | T156: 2.894723734 | U156: 94.50196632 | V156: 0.4530512792 | W156: 238.0504185 | X156: =(W156/$Q156)*100 -> 1.141236006 | Y156: 1348.630939 | Z156: =(Y156/$Q156)*100 -> 6.465463057 | AA156: 18574.00625 | AB156: =(AA156/$Q156)*100 -> 89.04552592 | AC156: 14788 | AD156: 100 | AE156: 457.7263776 | AF156: =(AE156/$AC156)*100 -> 3.095255461 | AG156: 198.2814436 | AH156: 1.340826641 | AI156: 68.4610105 | AJ156: =(AI156/$AC156)*100 -> 0.4629497599 | AK156: 1864.909711 | AL156: =(AK156/$AC156)*100 -> 12.6109664 | AM156: 12198.62146 | AN156: =(AM156/$AC156)*100 -> 82.49000174
D157: Nus | E157: 4670 | F157: 100 | G157: 57.6674258 | H157: =(G157/$E157)*100 -> 1.234848518 | I157: 92.3906806 | J157: 1.978387165 | K157: 33.48549003 | L157: =(K157/$E157)*100 -> 0.7170340477 | M157: 462.0931035 | N157: =(M157/$E157)*100 -> 9.894927269 | O157: 4024.3633 | P157: =(O157/$E157)*100 -> 86.174803 | Q157: 2343 | R157: 100 | S157: 8.077464789 | T157: 0.3447488173 | U157: 38.17021277 | V157: 1.629117062 | W157: 12.72340426 | X157: =(W157/$Q157)*100 -> 0.5430390207 | Y157: 269.4086005 | Z157: =(Y157/$Q157)*100 -> 11.49844646 | AA157: 2014.620318 | AB157: =(AA157/$Q157)*100 -> 85.98464864 | AC157: 2327 | AD157: 100 | AE157: 49.58996101 | AF157: =(AE157/$AC157)*100 -> 2.131068372 | AG157: 54.22046784 | AH157: 2.330058781 | AI157: 20.76208577 | AJ157: =(AI157/$AC157)*100 -> 0.8922254306 | AK157: 192.6845029 | AL157: =(AK157/$AC157)*100 -> 8.280382592 | AM157: 2009.742982 | AN157: =(AM157/$AC157)*100 -> 86.36626482
D158: Ribereña | E158: 30977 | F158: 100 | G158: 1003.869375 | H158: =(G158/$E158)*100 -> 3.240692693 | I158: 200.3927293 | J158: 0.6469081233 | K158: 273.0259389 | L158: =(K158/$E158)*100 -> 0.8813827645 | M158: 2751.447547 | N158: =(M158/$E158)*100 -> 8.882227287 | O158: 26748.26441 | P158: =(O158/$E158)*100 -> 86.34878913 | Q158: 18516 | R158: 100 | S158: 595.7329588 | T158: 3.217395543 | U158: 56.33175355 | V158: 0.3042328449 | W158: 225.3270142 | X158: =(W158/$Q158)*100 -> 1.216931379 | Y158: 1079.222339 | Z158: =(Y158/$Q158)*100 -> 5.828593317 | AA158: 16559.38593 | AB158: =(AA158/$Q158)*100 -> 89.43284692 | AC158: 12461 | AD158: 100 | AE158: 408.1364166 | AF158: =(AE158/$AC158)*100 -> 3.275310301 | AG158: 144.0609758 | AH158: 1.156094822 | AI158: 47.69892473 | AJ158: =(AI158/$AC158)*100 -> 0.3827856892 | AK158: 1672.225208 | AL158: =(AK158/$AC158)*100 -> 13.41967104 | AM158: 10188.87847 | AN158: =(AM158/$AC158)*100 -> 81.76613815
B159: Nordeste | C159: ZonasDeptoA_CADENA | D159: Total | E159: 68400 | F159: 100 | G159: 1583.974801 | H159: =(G159/$E159)*100 -> 2.315752634 | I159: 2350.761782 | J159: 3.436786231 | K159: 512.4524391 | L159: =(K159/$E159)*100 -> 0.7491994724 | M159: 11230.2673 | N159: =(M159/$E159)*100 -> 16.41851945 | O159: 52722.54367 | P159: =(O159/$E159)*100 -> 77.07974221 | Q159: 37807 | R159: 100 | S159: 679.208357 | T159: 1.796514817 | U159: 1034.303202 | V159: 2.735745237 | W159: 347.4345392 | X159: =(W159/$Q159)*100 -> 0.9189688132 | Y159: 7510.190171 | Z159: =(Y159/$Q159)*100 -> 19.86454935 | AA159: 28235.86373 | AB159: =(AA159/$Q159)*100 -> 74.68422179 | AC159: 30593 | AD159: 100 | AE159: 904.7664444 | AF159: =(AE159/$AC159)*100 -> 2.957429623 | AG159: 1316.45858 | AH159: 4.3031366 | AI159: 165.0178999 | AJ159: =(AI159/$AC159)*100 -> 0.5393975742 | AK159: 3720.077134 | AL159: =(AK159/$AC159)*100 -> 12.15989649 | AM159: 24486.67994 | AN159: =(AM159/$AC159)*100 -> 80.04013971
D160: Meseta | E160: 23869 | F160: 100 | G160: 576.2559112 | H160: =(G160/$E160)*100 -> 2.414244045 | I160: 483.6286979 | J160: 2.026179136 | K160: 200.744947 | L160: =(K160/$E160)*100 -> 0.8410278897 | M160: 2726.15168 | N160: =(M160/$E160)*100 -> 11.42130663 | O160: 19882.21876 | P160: =(O160/$E160)*100 -> 83.2972423 | Q160: 12578 | R160: 100 | S160: 135.0186297 | T160: 1.073450705 | U160: 156.3770574 | V160: 1.243258526 | W160: 183.6465863 | X160: =(W160/$Q160)*100 -> 1.460061904 | Y160: 2447.056889 | Z160: =(Y160/$Q160)*100 -> 19.45505557 | AA160: 9655.900837 | AB160: =(AA160/$Q160)*100 -> 76.7681733 | AC160: 11291 | AD160: 100 | AE160: 441.2372815 | AF160: =(AE160/$AC160)*100 -> 3.907867164 | AG160: 327.2516404 | AH160: 2.898340629 | AI160: 17.09836066 | AJ160: =(AI160/$AC160)*100 -> 0.1514335369 | AK160: 279.0947908 | AL160: =(AK160/$AC160)*100 -> 2.471834123 | AM160: 10226.31793 | AN160: =(AM160/$AC160)*100 -> 90.57052455
D161: Minera | E161: 22783 | F161: 100 | G161: 428.4635179 | H161: =(G161/$E161)*100 -> 1.880628179 | I161: 1311.934034 | J161: 5.758390177 | K161: 147.1208436 | L161: =(K161/$E161)*100 -> 0.6457483369 | M161: 3252.098425 | N161: =(M161/$E161)*100 -> 14.27423265 | O161: 17643.38318 | P161: =(O161/$E161)*100 -> 77.44100066 | Q161: 15430 | R161: 100 | S161: 254.0508385 | T161: 1.646473354 | U161: 655.1816417 | V161: 4.246154515 | W161: 93.5945278 | X161: =(W161/$Q161)*100 -> 0.6065750344 | Y161: 2553.844837 | Z161: =(Y161/$Q161)*100 -> 16.5511655 | AA161: 11873.32816 | AB161: =(AA161/$Q161)*100 -> 76.9496316 | AC161: 7353 | AD161: 100 | AE161: 174.4126794 | AF161: =(AE161/$AC161)*100 -> 2.371993464 | AG161: 656.7523923 | AH161: 8.931761082 | AI161: 53.52631579 | AJ161: =(AI161/$AC161)*100 -> 0.7279520711 | AK161: 698.2535885 | AL161: =(AK161/$AC161)*100 -> 9.496172834 | AM161: 5770.055024 | AN161: =(AM161/$AC161)*100 -> 78.47212055
D162: Nus | E162: 15515 | F162: 100 | G162: 500.9553724 | H162: =(G162/$E162)*100 -> 3.228845455 | I162: 398.7339123 | J162: 2.569989766 | K162: 86.37655678 | L162: =(K162/$E162)*100 -> 0.5567293379 | M162: 4261.026374 | N162: =(M162/$E162)*100 -> 27.46391475 | O162: 10267.90778 | P162: =(O162/$E162)*100 -> 66.18052069 | Q162: 6959 | R162: 100 | S162: 290.1388889 | T162: 4.169261228 | U162: 144.5793651 | V162: 2.077588232 | W162: 18.08333333 | X162: =(W162/$Q162)*100 -> 0.2598553432 | Y162: 2040.297619 | Z162: =(Y162/$Q162)*100 -> 29.31883344 | AA162: 4465.900794 | AB162: =(AA162/$Q162)*100 -> 64.17446176 | AC162: 8556 | AD162: 100 | AE162: 210.8164835 | AF162: =(AE162/$AC162)*100 -> 2.46396077 | AG162: 254.1545472 | AH162: 2.970483254 | AI162: 68.29322344 | AJ162: =(AI162/$AC162)*100 -> 0.7981910173 | AK162: 2220.728755 | AL162: =(AK162/$AC162)*100 -> 25.95522154 | AM162: 5802.006991 | AN162: =(AM162/$AC162)*100 -> 67.81214342
D163: Río Porce | E163: 6233 | F163: 100 | G163: 78.3 | H163: =(G163/$E163)*100 -> 1.25621691 | I163: 156.4651376 | J163: 2.510270137 | K163: 78.21009174 | L163: =(K163/$E163)*100 -> 1.254774454 | M163: 990.9908257 | N163: =(M163/$E163)*100 -> 15.89909876 | O163: 4929.033945 | P163: =(O163/$E163)*100 -> 79.07963974 | Q163: 2840 | R163: 100 | S163: 0 | T163: 0 | U163: 78.16513761 | V163: 2.752293578 | W163: 52.11009174 | X163: =(W163/$Q163)*100 -> 1.834862385 | Y163: 468.9908257 | Z163: =(Y163/$Q163)*100 -> 16.51376147 | AA163: 2240.733945 | AB163: =(AA163/$Q163)*100 -> 78.89908257 | AC163: 3393 | AD163: 100 | AE163: 78.3 | AF163: =(AE163/$AC163)*100 -> 2.307692308 | AG163: 78.3 | AH163: 2.307692308 | AI163: 26.1 | AJ163: =(AI163/$AC163)*100 -> 0.7692307692 | AK163: 522 | AL163: =(AK163/$AC163)*100 -> 15.38461538 | AM163: 2688.3 | AN163: =(AM163/$AC163)*100 -> 79.23076923
B164: Norte | C164: ZonasDeptoA_CADENA | D164: Total | E164: 77455 | F164: 100 | G164: 1261.73677 | H164: =(G164/$E164)*100 -> 1.628993312 | I164: 1475.944129 | J164: 1.905550486 | K164: 500.8565965 | L164: =(K164/$E164)*100 -> 0.6466420458 | M164: 18319.00567 | N164: =(M164/$E164)*100 -> 23.65115961 | O164: 55897.45683 | P164: =(O164/$E164)*100 -> 72.16765455 | Q164: 42410 | R164: 100 | S164: 376.8106248 | T164: 0.8884947531 | U164: 851.0847938 | V164: 2.006802155 | W164: 453.866069 | X164: =(W164/$Q164)*100 -> 1.07018644 | Y164: 12071.06728 | Z164: =(Y164/$Q164)*100 -> 28.46278538 | AA164: 28657.17123 | AB164: =(AA164/$Q164)*100 -> 67.57173128 | AC164: 35045 | AD164: 100 | AE164: 884.9261453 | AF164: =(AE164/$AC164)*100 -> 2.52511384 | AG164: 624.8593347 | AH164: 1.783019931 | AI164: 46.99052752 | AJ164: =(AI164/$AC164)*100 -> 0.1340862534 | AK164: 6247.938396 | AL164: =(AK164/$AC164)*100 -> 17.82833042 | AM164: 27240.2856 | AN164: =(AM164/$AC164)*100 -> 77.72944955
D165: Río Cauca | E165: 10594 | F165: 100 | G165: 314.3890042 | H165: =(G165/$E165)*100 -> 2.967613783 | I165: 217.4610674 | J165: 2.052681399 | K165: 66.21606465 | L165: =(K165/$E165)*100 -> 0.6250336479 | M165: 1495.519801 | N165: =(M165/$E165)*100 -> 14.11666794 | O165: 8500.414062 | P165: =(O165/$E165)*100 -> 80.23800323 | Q165: 4336 | R165: 100 | S165: 27.9673913 | T165: 0.645004412 | U165: 120.6869453 | V165: 2.78337051 | W165: 58.50512715 | X165: =(W165/$Q165)*100 -> 1.349287988 | Y165: 661.7038929 | Z165: =(Y165/$Q165)*100 -> 15.26069864 | AA165: 3467.136643 | AB165: =(AA165/$Q165)*100 -> 79.96163845 | AC165: 6258 | AD165: 100 | AE165: 286.4216129 | AF165: =(AE165/$AC165)*100 -> 4.57688739 | AG165: 96.7741221 | AH165: 1.546406553 | AI165: 7.7109375 | AJ165: =(AI165/$AC165)*100 -> 0.1232172819 | AK165: 833.8159086 | AL165: =(AK165/$AC165)*100 -> 13.32399982 | AM165: 5033.277419 | AN165: =(AM165/$AC165)*100 -> 80.42948896
D166: Río Grande y Chico | E166: 32140 | F166: 100 | G166: 293.7247311 | H166: =(G166/$E166)*100 -> 0.9138915094 | I166: 432.6854491 | J166: 1.346252175 | K166: 192.553056 | L166: =(K166/$E166)*100 -> 0.5991072061 | M166: 9161.434288 | N166: =(M166/$E166)*100 -> 28.50477377 | O166: 22059.60248 | P166: =(O166/$E166)*100 -> 68.63597534 | Q166: 19284 | R166: 100 | S166: 178.8857689 | T166: 0.9276382957 | U166: 347.4794439 | V166: 1.801905434 | W166: 192.553056 | X166: =(W166/$Q166)*100 -> 0.9985120101 | Y166: 6520.996749 | Z166: =(Y166/$Q166)*100 -> 33.81558156 | AA166: 12044.08498 | AB166: =(AA166/$Q166)*100 -> 62.4563627 | AC166: 12856 | AD166: 100 | AE166: 114.8389622 | AF166: =(AE166/$AC166)*100 -> 0.8932713299 | AG166: 85.20600521 | AH166: 0.6627722869 | AI166: 0 | AJ166: =(AI166/$AC166)*100 -> 0 | AK166: 2640.43754 | AL166: =(AK166/$AC166)*100 -> 20.53856207 | AM166: 10015.51749 | AN166: =(AM166/$AC166)*100 -> 77.90539431
D167: Río Porce | E167: 7376 | F167: 100 | G167: 123.4511215 | H167: =(G167/$E167)*100 -> 1.673686572 | I167: 257.4860079 | J167: 3.490862363 | K167: 154.5353877 | L167: =(K167/$E167)*100 -> 2.095111005 | M167: 1093.933212 | N167: =(M167/$E167)*100 -> 14.83098173 | O167: 5746.594271 | P167: =(O167/$E167)*100 -> 77.90935833 | Q167: 4164 | R167: 100 | S167: 23.14545536 | T167: 0.5558466705 | U167: 180.2899484 | V167: 4.329729788 | W167: 135.4618583 | X167: =(W167/$Q167)*100 -> 3.253166626 | Y167: 762.8707524 | Z167: =(Y167/$Q167)*100 -> 18.32062326 | AA167: 3062.231986 | AB167: =(AA167/$Q167)*100 -> 73.54063366 | AC167: 3212 | AD167: 100 | AE167: 100.3056662 | AF167: =(AE167/$AC167)*100 -> 3.122841413 | AG167: 77.19605947 | AH167: 2.403364242 | AI167: 19.07352941 | AJ167: =(AI167/$AC167)*100 -> 0.5938209655 | AK167: 331.0624597 | AL167: =(AK167/$AC167)*100 -> 10.30705043 | AM167: 2684.362285 | AN167: =(AM167/$AC167)*100 -> 83.57292295
D168: Vertiente Chorros Blancos | E168: 27345 | F168: 100 | G168: 530.1719132 | H168: =(G168/$E168)*100 -> 1.938825794 | I168: 568.3116041 | J168: 2.078301716 | K168: 87.55208814 | L168: =(K168/$E168)*100 -> 0.3201758572 | M168: 6568.118372 | N168: =(M168/$E168)*100 -> 24.01944916 | O168: 19590.84602 | P168: =(O168/$E168)*100 -> 71.64324748 | Q168: 14626 | R168: 100 | S168: 146.8120092 | T168: 1.003774164 | U168: 202.6284562 | V168: 1.385398989 | W168: 67.34602754 | X168: =(W168/$Q168)*100 -> 0.4604541743 | Y168: 4125.495884 | Z168: =(Y168/$Q168)*100 -> 28.20659021 | AA168: 10083.71762 | AB168: =(AA168/$Q168)*100 -> 68.94378247 | AC168: 12719 | AD168: 100 | AE168: 383.3599041 | AF168: =(AE168/$AC168)*100 -> 3.014072679 | AG168: 365.683148 | AH168: 2.875093545 | AI168: 20.20606061 | AJ168: =(AI168/$AC168)*100 -> 0.1588651671 | AK168: 2442.622488 | AL168: =(AK168/$AC168)*100 -> 19.20451677 | AM168: 9507.128399 | AN168: =(AM168/$AC168)*100 -> 74.74745184
B169: Occidente | C169: ZonasDeptoA_CADENA | D169: Total | E169: 69973 | F169: 100 | G169: 3651.749106 | H169: =(G169/$E169)*100 -> 5.218797402 | I169: 2448.571096 | J169: 3.499308442 | K169: 644.0310614 | L169: =(K169/$E169)*100 -> 0.9203993846 | M169: 8518.269352 | N169: =(M169/$E169)*100 -> 12.17365177 | O169: 54710.37938 | P169: =(O169/$E169)*100 -> 78.187843 | Q169: 30044 | R169: 100 | S169: 916.1484036 | T169: 3.049355624 | U169: 1168.653787 | V169: 3.889807571 | W169: 506.1313485 | X169: =(W169/$Q169)*100 -> 1.684633699 | Y169: 5214.736155 | Z169: =(Y169/$Q169)*100 -> 17.35699692 | AA169: 22238.33031 | AB169: =(AA169/$Q169)*100 -> 74.01920619 | AC169: 39929 | AD169: 100 | AE169: 2735.600703 | AF169: =(AE169/$AC169)*100 -> 6.85116257 | AG169: 1279.91731 | AH169: 3.205483007 | AI169: 137.8997129 | AJ169: =(AI169/$AC169)*100 -> 0.3453623003 | AK169: 3303.533197 | AL169: =(AK169/$AC169)*100 -> 8.273518489 | AM169: 32472.04908 | AN169: =(AM169/$AC169)*100 -> 81.32447363
D170: Cauca Medio | E170: 45855 | F170: 100 | G170: 1576.467779 | H170: =(G170/$E170)*100 -> 3.437940856 | I170: 1863.209024 | J170: 4.063262509 | K170: 564.900714 | L170: =(K170/$E170)*100 -> 1.231928283 | M170: 6655.830856 | N170: =(M170/$E170)*100 -> 14.51495116 | O170: 35194.59163 | P170: =(O170/$E170)*100 -> 76.75191719 | Q170: 19382 | R170: 100 | S170: 451.3076875 | T170: 2.32848874 | U170: 840.9714556 | V170: 4.338930222 | W170: 427.0010011 | X170: =(W170/$Q170)*100 -> 2.203080183 | Y170: 4144.923486 | Z170: =(Y170/$Q170)*100 -> 21.38542713 | AA170: 13517.79637 | AB170: =(AA170/$Q170)*100 -> 69.74407373 | AC170: 26473 | AD170: 100 | AE170: 1125.160092 | AF170: =(AE170/$AC170)*100 -> 4.25021755 | AG170: 1022.237568 | AH170: 3.861434548 | AI170: 137.8997129 | AJ170: =(AI170/$AC170)*100 -> 0.5209070104 | AK170: 2510.90737 | AL170: =(AK170/$AC170)*100 -> 9.484785896 | AM170: 21676.79526 | AN170: =(AM170/$AC170)*100 -> 81.882655
D171: Cuenca del Río Sucio | E171: 24118 | F171: 100 | G171: 2075.281327 | H171: =(G171/$E171)*100 -> 8.604699091 | I171: 585.3620728 | J171: 2.427075516 | K171: 79.13034739 | L171: =(K171/$E171)*100 -> 0.328096639 | M171: 1862.438496 | N171: =(M171/$E171)*100 -> 7.722192953 | O171: 19515.78776 | P171: =(O171/$E171)*100 -> 80.9179358 | Q171: 10662 | R171: 100 | S171: 464.8407161 | T171: 4.359789121 | U171: 327.682331 | V171: 3.073366451 | W171: 79.13034739 | X171: =(W171/$Q171)*100 -> 0.7421717069 | Y171: 1069.812669 | Z171: =(Y171/$Q171)*100 -> 10.0338836 | AA171: 8720.533936 | AB171: =(AA171/$Q171)*100 -> 81.79078912 | AC171: 13456 | AD171: 100 | AE171: 1610.440611 | AF171: =(AE171/$AC171)*100 -> 11.96819717 | AG171: 257.6797419 | AH171: 1.914980246 | AI171: 0 | AJ171: =(AI171/$AC171)*100 -> 0 | AK171: 792.625827 | AL171: =(AK171/$AC171)*100 -> 5.890501092 | AM171: 10795.25382 | AN171: =(AM171/$AC171)*100 -> 80.2263215
B172: Oriente | C172: ZonasDeptoA_CADENA | D172: Total | E172: 227877 | F172: 100 | G172: 824.5221096 | H172: =(G172/$E172)*100 -> 0.3618277007 | I172: 1799.604352 | J172: 0.7897261907 | K172: 873.9116497 | L172: =(K172/$E172)*100 -> 0.3835014721 | M172: 54311.76172 | N172: =(M172/$E172)*100 -> 23.83380584 | O172: 170067.2002 | P172: =(O172/$E172)*100 -> 74.6311388 | Q172: 138308 | R172: 100 | S172: 110.5896194 | T172: 0.07995894625 | U172: 729.2880431 | V172: 0.5272927402 | W172: 641.3405474 | X172: =(W172/$Q172)*100 -> 0.4637045922 | Y172: 42960.42971 | Z172: =(Y172/$Q172)*100 -> 31.06142068 | AA172: 93866.35208 | AB172: =(AA172/$Q172)*100 -> 67.86762304 | AC172: 89569 | AD172: 100 | AE172: 713.9324903 | AF172: =(AE172/$AC172)*100 -> 0.7970754282 | AG172: 1070.316308 | AH172: 1.194962887 | AI172: 232.5711022 | AJ172: =(AI172/$AC172)*100 -> 0.2596557986 | AK172: 11351.33201 | AL172: =(AK172/$AC172)*100 -> 12.67328207 | AM172: 76200.84809 | AN172: =(AM172/$AC172)*100 -> 85.07502382
D173: Bosques | E173: 11617 | F173: 100 | G173: 161.2847881 | H173: =(G173/$E173)*100 -> 1.388351451 | I173: 49.55269907 | J173: 0.4265533191 | K173: 0 | L173: =(K173/$E173)*100 -> 0 | M173: 1683.164815 | N173: =(M173/$E173)*100 -> 14.48880791 | O173: 9722.997698 | P173: =(O173/$E173)*100 -> 83.69628732 | Q173: 6371 | R173: 100 | S173: 8.929824561 | T173: 0.1401636252 | U173: 8.929824561 | V173: 0.1401636252 | W173: 0 | X173: =(W173/$Q173)*100 -> 0 | Y173: 1231.702457 | Z173: =(Y173/$Q173)*100 -> 19.33295334 | AA173: 5121.437893 | AB173: =(AA173/$Q173)*100 -> 80.38671941 | AC173: 5246 | AD173: 100 | AE173: 152.3549635 | AF173: =(AE173/$AC173)*100 -> 2.904212038 | AG173: 40.62287451 | AH173: 0.7743590262 | AI173: 0 | AJ173: =(AI173/$AC173)*100 -> 0 | AK173: 451.4623571 | AL173: =(AK173/$AC173)*100 -> 8.605839824 | AM173: 4601.559805 | AN173: =(AM173/$AC173)*100 -> 87.71558911
D174: Embalses | E174: 29037 | F174: 100 | G174: 142.774152 | H174: =(G174/$E174)*100 -> 0.4916973242 | I174: 337.6756654 | J174: 1.162915127 | K174: 77.76907764 | L174: =(K174/$E174)*100 -> 0.2678275223 | M174: 5727.861383 | N174: =(M174/$E174)*100 -> 19.72607839 | O174: 22750.91972 | P174: =(O174/$E174)*100 -> 78.35148163 | Q174: 16086 | R174: 100 | S174: 0 | T174: 0 | U174: 113.0714487 | V174: 0.7029183679 | W174: 77.76907764 | X174: =(W174/$Q174)*100 -> 0.4834581477 | Y174: 5032.912135 | Z174: =(Y174/$Q174)*100 -> 31.28753037 | AA174: 10862.24734 | AB174: =(AA174/$Q174)*100 -> 67.52609312 | AC174: 12951 | AD174: 100 | AE174: 142.774152 | AF174: =(AE174/$AC174)*100 -> 1.102417976 | AG174: 224.6042167 | AH174: 1.734261576 | AI174: 0 | AJ174: =(AI174/$AC174)*100 -> 0 | AK174: 694.9492482 | AL174: =(AK174/$AC174)*100 -> 5.365989099 | AM174: 11888.67238 | AN174: =(AM174/$AC174)*100 -> 91.79733135
D175: Páramo | E175: 24835 | F175: 100 | G175: 107.9145229 | H175: =(G175/$E175)*100 -> 0.4345259631 | I175: 500.67191 | J175: 2.015993195 | K175: 204.9732869 | L175: =(K175/$E175)*100 -> 0.8253403941 | M175: 2367.911717 | N175: =(M175/$E175)*100 -> 9.534575062 | O175: 21653.52856 | P175: =(O175/$E175)*100 -> 87.18956539 | Q175: 11928 | R175: 100 | S175: 41.02090592 | T175: 0.3439043085 | U175: 240.8304297 | V175: 2.019034455 | W175: 204.9732869 | X175: =(W175/$Q175)*100 -> 1.718421251 | Y175: 1712.786876 | Z175: =(Y175/$Q175)*100 -> 14.35938025 | AA175: 9728.388502 | AB175: =(AA175/$Q175)*100 -> 81.55925974 | AC175: 12907 | AD175: 100 | AE175: 66.89361702 | AF175: =(AE175/$AC175)*100 -> 0.5182739368 | AG175: 259.8414803 | AH175: 2.013182616 | AI175: 0 | AJ175: =(AI175/$AC175)*100 -> 0 | AK175: 655.1248409 | AL175: =(AK175/$AC175)*100 -> 5.075732865 | AM175: 11925.14006 | AN175: =(AM175/$AC175)*100 -> 92.39281058
D176: Valle de San Nicolás | E176: 162388 | F176: 100 | G176: 412.5486466 | H176: =(G176/$E176)*100 -> 0.2540511901 | I176: 911.7040771 | J176: 0.5614356215 | K176: 591.1692851 | L176: =(K176/$E176)*100 -> 0.3640473958 | M176: 44532.82381 | N176: =(M176/$E176)*100 -> 27.42371592 | O176: 115939.7542 | P176: =(O176/$E176)*100 -> 71.39674987 | Q176: 103923 | R176: 100 | S176: 60.63888889 | T176: 0.05834982524 | U176: 366.4563401 | V176: 0.3526229421 | W176: 358.5981829 | X176: =(W176/$Q176)*100 -> 0.3450614233 | Y176: 34983.02824 | Z176: =(Y176/$Q176)*100 -> 33.66245032 | AA176: 68154.27834 | AB176: =(AA176/$Q176)*100 -> 65.58151549 | AC176: 58465 | AD176: 100 | AE176: 351.9097577 | AF176: =(AE176/$AC176)*100 -> 0.6019152616 | AG176: 545.2477369 | AH176: 0.9326053826 | AI176: 232.5711022 | AJ176: =(AI176/$AC176)*100 -> 0.397795437 | AK176: 9549.795567 | AL176: =(AK176/$AC176)*100 -> 16.33420947 | AM176: 47785.47584 | AN176: =(AM176/$AC176)*100 -> 81.73347445
B177: Suroeste | C177: ZonasDeptoA_CADENA | D177: Total | E177: 125004 | F177: 100 | G177: 800.0789201 | H177: =(G177/$E177)*100 -> 0.6400426547 | I177: 2915.913553 | J177: 2.332656197 | K177: 1069.414032 | L177: =(K177/$E177)*100 -> 0.8555038498 | M177: 21707.48749 | N177: =(M177/$E177)*100 -> 17.3654343 | O177: 98511.10601 | P177: =(O177/$E177)*100 -> 78.806363 | Q177: 64615 | R177: 100 | S177: 377.4828351 | T177: 0.5842031031 | U177: 1507.328014 | V177: 2.332783431 | W177: 761.6556237 | X177: =(W177/$Q177)*100 -> 1.178759767 | Y177: 15482.35658 | Z177: =(Y177/$Q177)*100 -> 23.96093258 | AA177: 46486.17694 | AB177: =(AA177/$Q177)*100 -> 71.94332112 | AC177: 60389 | AD177: 100 | AE177: 422.596085 | AF177: =(AE177/$AC177)*100 -> 0.6997898375 | AG177: 1408.585538 | AH177: 2.332520059 | AI177: 307.7584086 | AJ177: =(AI177/$AC177)*100 -> 0.5096266019 | AK177: 6225.130903 | AL177: =(AK177/$AC177)*100 -> 10.30838547 | AM177: 52024.92907 | AN177: =(AM177/$AC177)*100 -> 86.14967803
D178: Cartama | E178: 34192 | F178: 100 | G178: 165.0440283 | H178: =(G178/$E178)*100 -> 0.4826977898 | I178: 759.1273494 | J178: 2.220189955 | K178: 257.2114117 | L178: =(K178/$E178)*100 -> 0.7522561174 | M178: 7686.41955 | N178: =(M178/$E178)*100 -> 22.48016948 | O178: 25324.19766 | P178: =(O178/$E178)*100 -> 74.06468665 | Q178: 19298 | R178: 100 | S178: 96.46416488 | T178: 0.4998661254 | U178: 453.794203 | V178: 2.35150898 | W178: 237.7707271 | X178: =(W178/$Q178)*100 -> 1.232100358 | Y178: 5430.546917 | Z178: =(Y178/$Q178)*100 -> 28.1404649 | AA178: 13079.42399 | AB178: =(AA178/$Q178)*100 -> 67.77605963 | AC178: 14894 | AD178: 100 | AE178: 68.57986341 | AF178: =(AE178/$AC178)*100 -> 0.460452957 | AG178: 305.3331464 | AH178: 2.050041267 | AI178: 19.44068461 | AJ178: =(AI178/$AC178)*100 -> 0.1305269545 | AK178: 2255.872633 | AL178: =(AK178/$AC178)*100 -> 15.14618392 | AM178: 12244.77367 | AN178: =(AM178/$AC178)*100 -> 82.2127949
D179: Penderisco | E179: 28345 | F179: 100 | G179: 21.63291139 | H179: =(G179/$E179)*100 -> 0.07632002608 | I179: 560.8530136 | J179: 1.978666479 | K179: 96.79781746 | L179: =(K179/$E179)*100 -> 0.3414987386 | M179: 3590.648164 | N179: =(M179/$E179)*100 -> 12.66765978 | O179: 24075.06809 | P179: =(O179/$E179)*100 -> 84.93585498 | Q179: 13274 | R179: 100 | S179: 21.63291139 | T179: 0.1629720611 | U179: 335.4363824 | V179: 2.527018098 | W179: 66.51210317 | X179: =(W179/$Q179)*100 -> 0.5010705377 | Y179: 2170.622167 | Z179: =(Y179/$Q179)*100 -> 16.35243459 | AA179: 10679.79644 | AB179: =(AA179/$Q179)*100 -> 80.45650472 | AC179: 15071 | AD179: 100 | AE179: 0 | AF179: =(AE179/$AC179)*100 -> 0 | AG179: 225.4166312 | AH179: 1.495697905 | AI179: 30.28571429 | AJ179: =(AI179/$AC179)*100 -> 0.2009535816 | AK179: 1420.025997 | AL179: =(AK179/$AC179)*100 -> 9.422241371 | AM179: 13395.27166 | AN179: =(AM179/$AC179)*100 -> 88.88110714
D180: San Juan | E180: 32992 | F180: 100 | G180: 215.248326 | H180: =(G180/$E180)*100 -> 0.6524258184 | I180: 785.0163378 | J180: 2.379414215 | K180: 331.5788113 | L180: =(K180/$E180)*100 -> 1.00502792 | M180: 5455.842041 | N180: =(M180/$E180)*100 -> 16.53686361 | O180: 26204.31448 | P180: =(O180/$E180)*100 -> 79.42626844 | Q180: 18734 | R180: 100 | S180: 137.9435255 | T180: 0.7363271354 | U180: 508.0037234 | V180: 2.711667148 | W180: 317.887082 | X180: =(W180/$Q180)*100 -> 1.696845746 | Y180: 4321.478944 | Z180: =(Y180/$Q180)*100 -> 23.06757203 | AA180: 13448.68672 | AB180: =(AA180/$Q180)*100 -> 71.78758794 | AC180: 14258 | AD180: 100 | AE180: 77.30480046 | AF180: =(AE180/$AC180)*100 -> 0.542185443 | AG180: 277.0126144 | AH180: 1.942857444 | AI180: 13.69172932 | AJ180: =(AI180/$AC180)*100 -> 0.09602840036 | AK180: 1134.363097 | AL180: =(AK180/$AC180)*100 -> 7.955976276 | AM180: 12755.62776 | AN180: =(AM180/$AC180)*100 -> 89.46295244
D181: Sinifaná | E181: 29475 | F181: 100 | G181: 398.1536544 | H181: =(G181/$E181)*100 -> 1.350818166 | I181: 810.9168519 | J181: 2.751202212 | K181: 383.8259919 | L181: =(K181/$E181)*100 -> 1.302208624 | M181: 4974.577732 | N181: =(M181/$E181)*100 -> 16.87727814 | O181: 22907.52577 | P181: =(O181/$E181)*100 -> 77.71849286 | Q181: 13309 | R181: 100 | S181: 121.4422332 | T181: 0.912482029 | U181: 210.0937055 | V181: 1.578583706 | W181: 139.4857115 | X181: =(W181/$Q181)*100 -> 1.048055538 | Y181: 3559.708556 | Z181: =(Y181/$Q181)*100 -> 26.74662676 | AA181: 9278.269794 | AB181: =(AA181/$Q181)*100 -> 69.71425196 | AC181: 16166 | AD181: 100 | AE181: 276.7114211 | AF181: =(AE181/$AC181)*100 -> 1.711687623 | AG181: 600.8231465 | AH181: 3.716585095 | AI181: 244.3402804 | AJ181: =(AI181/$AC181)*100 -> 1.511445505 | AK181: 1414.869176 | AL181: =(AK181/$AC181)*100 -> 8.752129011 | AM181: 13629.25598 | AN181: =(AM181/$AC181)*100 -> 84.30815277
B182: Urabá | C182: ZonasDeptoA_CADENA | D182: Total | E182: 157545 | F182: 100 | G182: 14595.23837 | H182: =(G182/$E182)*100 -> 9.264171109 | I182: 8440.352513 | J182: 5.357423284 | K182: 2885.488794 | L182: =(K182/$E182)*100 -> 1.831533082 | M182: 24229.83343 | N182: =(M182/$E182)*100 -> 15.37962705 | O182: 107394.0869 | P182: =(O182/$E182)*100 -> 68.16724548 | Q182: 97427 | R182: 100 | S182: 7703.25247 | T182: 7.906691646 | U182: 4849.061637 | V182: 4.977123012 | W182: 2199.623818 | X182: =(W182/$Q182)*100 -> 2.257714821 | Y182: 20070.45968 | Z182: =(Y182/$Q182)*100 -> 20.60051082 | AA182: 62604.6024 | AB182: =(AA182/$Q182)*100 -> 64.2579597 | AC182: 60118 | AD182: 100 | AE182: 6891.985904 | AF182: =(AE182/$AC182)*100 -> 11.46409712 | AG182: 3591.290876 | AH182: 5.973736446 | AI182: 685.8649761 | AJ182: =(AI182/$AC182)*100 -> 1.140864593 | AK182: 4159.373755 | AL182: =(AK182/$AC182)*100 -> 6.918682849 | AM182: 44789.48449 | AN182: =(AM182/$AC182)*100 -> 74.502619
D183: Atrato Medio | E183: 3898 | F183: 100 | G183: 17.62795954 | H183: =(G183/$E183)*100 -> 0.4522308757 | I183: 52.86783533 | J183: 1.35628105 | K183: 46.69913506 | L183: =(K183/$E183)*100 -> 1.198028093 | M183: 30.10696577 | N183: =(M183/$E183)*100 -> 0.7723695682 | O183: 3750.698104 | P183: =(O183/$E183)*100 -> 96.22109041 | Q183: 1678 | R183: 100 | S183: 17.62795954 | T183: 1.050533941 | U183: 46.63635385 | V183: 2.779282113 | W183: 29.00839432 | X183: =(W183/$Q183)*100 -> 1.728748171 | Y183: 23.87548429 | Z183: =(Y183/$Q183)*100 -> 1.422853652 | AA183: 1560.851808 | AB183: =(AA183/$Q183)*100 -> 93.01858212 | AC183: 2220 | AD183: 100 | AE183: 0 | AF183: =(AE183/$AC183)*100 -> 0 | AG183: 6.231481481 | AH183: 0.280697364 | AI183: 17.69074074 | AJ183: =(AI183/$AC183)*100 -> 0.7968802135 | AK183: 6.231481481 | AL183: =(AK183/$AC183)*100 -> 0.280697364 | AM183: 2189.846296 | AN183: =(AM183/$AC183)*100 -> 98.64172506
D184: Centro (Urabá) | E184: 117483 | F184: 100 | G184: 11466.56948 | H184: =(G184/$E184)*100 -> 9.760194647 | I184: 7310.024483 | J184: 6.222197665 | K184: 2324.295321 | L184: =(K184/$E184)*100 -> 1.978409915 | M184: 21798.45001 | N184: =(M184/$E184)*100 -> 18.55455684 | O184: 74583.66071 | P184: =(O184/$E184)*100 -> 63.48464093 | Q184: 81788 | R184: 100 | S184: 6835.446239 | T184: 8.357517287 | U184: 4314.735854 | V184: 5.275512121 | W184: 1804.540173 | X184: =(W184/$Q184)*100 -> 2.206363003 | Y184: 18372.06601 | Z184: =(Y184/$Q184)*100 -> 22.46303371 | AA184: 50461.21172 | AB184: =(AA184/$Q184)*100 -> 61.69757387 | AC184: 35695 | AD184: 100 | AE184: 4631.123238 | AF184: =(AE184/$AC184)*100 -> 12.97415111 | AG184: 2995.288629 | AH184: 8.391339486 | AI184: 519.7551476 | AJ184: =(AI184/$AC184)*100 -> 1.456100708 | AK184: 3426.383998 | AL184: =(AK184/$AC184)*100 -> 9.599058685 | AM184: 24122.44899 | AN184: =(AM184/$AC184)*100 -> 67.57935001
D185: Norte (Urabá) | E185: 36164 | F185: 100 | G185: 3111.040937 | H185: =(G185/$E185)*100 -> 8.6025908 | I185: 1077.460195 | J185: 2.97937229 | K185: 514.4943386 | L185: =(K185/$E185)*100 -> 1.422669889 | M185: 2401.276456 | N185: =(M185/$E185)*100 -> 6.639963654 | O185: 29059.72807 | P185: =(O185/$E185)*100 -> 80.35540337 | Q185: 13961 | R185: 100 | S185: 850.1782715 | T185: 6.089666009 | U185: 487.6894294 | V185: 3.493227057 | W185: 366.0752508 | X185: =(W185/$Q185)*100 -> 2.622127719 | Y185: 1674.51818 | Z185: =(Y185/$Q185)*100 -> 11.99425671 | AA185: 10582.53887 | AB185: =(AA185/$Q185)*100 -> 75.8007225 | AC185: 22203 | AD185: 100 | AE185: 2260.862665 | AF185: =(AE185/$AC185)*100 -> 10.18269002 | AG185: 589.7707655 | AH185: 2.656266115 | AI185: 148.4190877 | AJ185: =(AI185/$AC185)*100 -> 0.6684641163 | AK185: 726.7582761 | AL185: =(AK185/$AC185)*100 -> 3.273243598 | AM185: 18477.18921 | AN185: =(AM185/$AC185)*100 -> 83.21933615
E188: P_005 : Zona REC
E189: Total | AC189: Urbano | BA189: Rural
A190: =E190 -> P_173 : ¿Cuál es el material predominante de las paredes exteriores? | E190: P_173 : ¿Cuál es el material predominante de las paredes exteriores? | AC190: P_173 : ¿Cuál es el material predominante de las paredes exteriores? | BA190: P_173 : ¿Cuál es el material predominante de las paredes exteriores?
E191: Total | G191: Materiales de desechos y otros (zinc, tela, lona, cartón, latas, desechos, plásticos, etc) | I191: Madera burda | K191: Bahareque sin revocar, guadua, caña, esterilla, otro vegetal | M191: Bahareque revocado | O191: Tapia pisada | Q191: Material prefabricado, dry wall, super board | S191: Ladrillo-bloque-adobe sin ranurar, sin revocar o sin revitar | U191: Bloque ranurado o revitado | W191: Ladrillo ranurado o revitado | Y191: Ladrillo-bloque-adobe revocado o pintado | AA191: Ladrillo-bloque forrado en piedra o madera | AC191: Total | AE191: Materiales de desechos y otros (zinc, tela, lona, cartón, latas, desechos, plásticos, etc) | AG191: Madera burda | AI191: Bahareque sin revocar, guadua, caña, esterilla, otro vegetal | AK191: Bahareque revocado | AM191: Tapia pisada | AO191: Material prefabricado, dry wall, super board | AQ191: Ladrillo-bloque-adobe sin ranurar, sin revocar o sin revitar | AS191: Bloque ranurado o revitado | AU191: Ladrillo ranurado o revitado | AW191: Ladrillo-bloque-adobe revocado o pintado | AY191: Ladrillo-bloque forrado en piedra o madera | BA191: Total | BC191: Materiales de desechos y otros (zinc, tela, lona, cartón, latas, desechos, plásticos, etc) | BE191: Madera burda | BG191: Bahareque sin revocar, guadua, caña, esterilla, otro vegetal | BI191: Bahareque revocado | BK191: Tapia pisada | BM191: Material prefabricado, dry wall, super board | BO191: Ladrillo-bloque-adobe sin ranurar, sin revocar o sin revitar | BQ191: Bloque ranurado o revitado | BS191: Ladrillo ranurado o revitado | BU191: Ladrillo-bloque-adobe revocado o pintado | BW191: Ladrillo-bloque forrado en piedra o madera
E192: Recuento | F192: % del N de fila | G192: Recuento | H192: % del N de fila | I192: Recuento | J192: % del N de fila | K192: Recuento | L192: % del N de fila | M192: Recuento | N192: % del N de fila | O192: Recuento | P192: % del N de fila | Q192: Recuento | R192: % del N de fila | S192: Recuento | T192: % del N de fila | U192: Recuento | V192: % del N de fila | W192: Recuento | X192: % del N de fila | Y192: Recuento | Z192: % del N de fila | AA192: Recuento | AB192: % del N de fila | AC192: Recuento | AD192: % del N de fila | AE192: Recuento | AF192: % del N de fila | AG192: Recuento | AH192: % del N de fila | AI192: Recuento | AJ192: % del N de fila | AK192: Recuento | AL192: % del N de fila | AM192: Recuento | AN192: % del N de fila | AO192: Recuento | AP192: % del N de fila | AQ192: Recuento | AR192: % del N de fila | AS192: Recuento | AT192: % del N de fila | AU192: Recuento | AV192: % del N de fila | AW192: Recuento | AX192: % del N de fila | AY192: Recuento | AZ192: % del N de fila | BA192: Recuento | BB192: % del N de fila | BC192: Recuento | BD192: % del N de fila | BE192: Recuento | BF192: % del N de fila | BG192: Recuento | BH192: % del N de fila | BI192: Recuento | BJ192: % del N de fila | BK192: Recuento | BL192: % del N de fila | BM192: Recuento | BN192: % del N de fila | BO192: Recuento | BP192: % del N de fila | BQ192: Recuento | BR192: % del N de fila | BS192: Recuento | BT192: % del N de fila | BU192: Recuento | BV192: % del N de fila | BW192: Recuento | BX192: % del N de fila
B193: Total | C193: P_004_CADENA | D193: Total | E193: 2252010 | F193: 100 | G193: 15932.94117 | H193: =(G193/$E193)*100 -> 0.7074986864 | I193: 74100.79175 | J193: 3.290429072 | K193: 17644.65264 | L193: =(K193/$E193)*100 -> 0.783506851 | M193: 18045.37292 | N193: =(M193/$E193)*100 -> 0.8013007457 | O193: 33262.3597 | P193: =(O193/$E193)*100 -> 1.477007638 | Q193: 22147.00296 | R193: =(Q193/$E193)*100 -> 0.9834327095 | S193: 306404.528 | T193: =(S193/$E193)*100 -> 13.60582449 | U193: 132563.0252 | V193: =(U193/$E193)*100 -> 5.886431464 | W193: 121299.8175 | X193: =(W193/$E193)*100 -> 5.386291247 | Y193: 1464256.302 | Z193: =(Y193/$E193)*100 -> 65.01997337 | AA193: 46353.2059 | AB193: =(AA193/$E193)*100 -> 2.058303733 | AC193: 1738970 | AD193: 100 | AE193: 9966.771582 | AF193: =(AE193/$AC193)*100 -> 0.5731422383 | AG193: 31168.81247 | AH193: =(AG193/$AC193)*100 -> 1.792372064 | AI193: 8231.125477 | AJ193: =(AI193/$AC193)*100 -> 0.4733333799 | AK193: 11144.41991 | AL193: =(AK193/$AC193)*100 -> 0.6408632642 | AM193: 17744.34549 | AN193: =(AM193/$AC193)*100 -> 1.020393997 | AO193: 15897.17272 | AP193: =(AO193/$AC193)*100 -> 0.9141717637 | AQ193: 212901.559 | AR193: =(AQ193/$AC193)*100 -> 12.24296906 | AS193: 95164.61882 | AT193: =(AS193/$AC193)*100 -> 5.472470418 | AU193: 85042.41791 | AV193: =(AU193/$AC193)*100 -> 4.890390168 | AW193: 1211492.304 | AX193: =(AW193/$AC193)*100 -> 69.66723427 | AY193: 40216.45284 | AZ193: =(AY193/$AC193)*100 -> 2.312659381 | BA193: 513040 | BB193: 100 | BC193: 5966.169586 | BD193: =(BC193/$BA193)*100 -> 1.162905346 | BE193: 42931.97928 | BF193: =(BE193/$BA193)*100 -> 8.368154389 | BG193: 9413.527159 | BH193: =(BG193/$BA193)*100 -> 1.834852479 | BI193: 6900.953018 | BJ193: =(BI193/$BA193)*100 -> 1.345110131 | BK193: 15518.01421 | BL193: =(BK193/$BA193)*100 -> 3.024718191 | BM193: 6249.830242 | BN193: =(BM193/$BA193)*100 -> 1.218195509 | BO193: 93502.96898 | BP193: =(BO193/$BA193)*100 -> 18.22527853 | BQ193: 37398.40639 | BR193: =(BQ193/$BA193)*100 -> 7.289569311 | BS193: 36257.39959 | BT193: =(BS193/$BA193)*100 -> 7.067168173 | BU193: 252763.9985 | BV193: =(BU193/$BA193)*100 -> 49.26789305 | BW193: 6136.753058 | BX193: =(BW193/$BA193)*100 -> 1.196154892
B194: Valle de Aburrá | C194: P_004_CADENA | D194: Total | E194: 1412741 | F194: 100 | G194: 3957.551281 | H194: =(G194/$E194)*100 -> 0.2801328255 | I194: 3681.239068 | J194: =(I194/$E194)*100 -> 0.260574236 | K194: 4139.406352 | L194: =(K194/$E194)*100 -> 0.2930053245 | M194: 6507.713555 | N194: =(M194/$E194)*100 -> 0.4606444886 | O194: 6110.526544 | P194: =(O194/$E194)*100 -> 0.4325298511 | Q194: 13700.05699 | R194: =(Q194/$E194)*100 -> 0.9697500805 | S194: 148955.2434 | T194: =(S194/$E194)*100 -> 10.54370499 | U194: 87387.45526 | V194: =(U194/$E194)*100 -> 6.185667101 | W194: 73184.42801 | X194: =(W194/$E194)*100 -> 5.180314581 | Y194: 1031313.513 | Z194: =(Y194/$E194)*100 -> 73.0008907 | AA194: 33803.86627 | AB194: =(AA194/$E194)*100 -> 2.392785817 | AC194: 1257088 | AD194: 100 | AE194: 3305.931695 | AF194: 0.262983315 | AG194: 3177.087884 | AH194: 0.2527339283 | AI194: 3262.51595 | AJ194: 0.2595296391 | AK194: 5805.292566 | AL194: 0.4618047874 | AM194: 4585.791116 | AN194: 0.3647947571 | AO194: 11941.43115 | AP194: 0.94992802 | AQ194: 131776.3254 | AR194: 10.48266512 | AS194: 67849.64773 | AT194: 5.397366591 | AU194: 60996.16599 | AV194: 4.852179481 | AW194: 932601.3064 | AX194: 74.1874321 | AY194: 31786.50414 | AZ194: 2.528582258 | BA194: 155653 | BB194: 100 | BC194: 651.6195857 | BD194: 0.4186360595 | BE194: 504.1511834 | BF194: 0.3238942927 | BG194: 876.890402 | BH194: 0.5633623521 | BI194: 702.4209883 | BJ194: 0.4512736589 | BK194: 1524.735428 | BL194: 0.979573428 | BM194: 1758.625837 | BN194: 1.129837419 | BO194: 17178.91801 | BP194: 11.03667646 | BQ194: 19537.80753 | BR194: 12.5521561 | BS194: 12188.26202 | BT194: 7.83040611 | BU194: 98712.20688 | BV194: 63.41812035 | BW194: 2017.362138 | BX194: 1.296063769
D195: Barbosa | E195: 20038 | F195: 100 | G195: 0 | H195: 0 | I195: 61.46486486 | J195: 0.3067415154 | K195: 0 | L195: 0 | M195: 122.9297297 | N195: 0.6134830309 | O195: 543.2925449 | P195: 2.711311233 | Q195: 181.097515 | R195: 0.903770411 | S195: 1493.759586 | T195: 7.454634127 | U195: 485.1247597 | V195: 2.421023853 | W195: 2962.322184 | X195: 14.78352223 | Y195: 13651.31043 | Z195: 68.12711064 | AA195: 536.6983856 | AB195: 2.678402963 | AC195: 8667 | AD195: 100 | AE195: 0 | AF195: 0 | AG195: 0 | AH195: 0 | AI195: 0 | AJ195: 0 | AK195: 0 | AL195: 0 | AM195: 174.5033557 | AN195: 2.013422819 | AO195: 58.16778523 | AP195: 0.6711409396 | AQ195: 756.1812081 | AR195: 8.724832215 | AS195: 116.3355705 | AT195: 1.342281879 | AU195: 872.5167785 | AV195: 10.06711409 | AW195: 6398.456376 | AX195: 73.82550336 | AY195: 290.8389262 | AZ195: 3.355704698 | BA195: 11371 | BB195: 100 | BC195: 0 | BD195: 0 | BE195: 61.46486486 | BF195: 0.5405405405 | BG195: 0 | BH195: 0 | BI195: 122.9297297 | BJ195: 1.081081081 | BK195: 368.7891892 | BL195: 3.243243243 | BM195: 122.9297297 | BN195: 1.081081081 | BO195: 737.5783784 | BP195: 6.486486486 | BQ195: 368.7891892 | BR195: 3.243243243 | BS195: 2089.805405 | BT195: 18.37837838 | BU195: 7252.854054 | BV195: 63.78378378 | BW195: 245.8594595 | BX195: 2.162162162
D196: Bello | E196: 184639 | F196: 100 | G196: 519.2789791 | H196: 0.2812401384 | I196: 473.2733047 | J196: 0.2563235853 | K196: 1074.455268 | L196: 0.5819221658 | M196: 976.8717039 | N196: 0.5290711626 | O196: 1012.769013 | P196: 0.5485130517 | Q196: 2739.984134 | R196: 1.483968248 | S196: 22133.82897 | T196: 11.98762394 | U196: 12302.38961 | V196: 6.662942073 | W196: 17885.51366 | X196: 9.68674747 | Y196: 123001.6073 | Z196: 66.61734914 | AA196: 2519.028061 | AB196: 1.364299017 | AC196: 179507 | AD196: 100 | AE196: 493.4900344 | AF196: 0.2749140893 | AG196: 370.1175258 | AH196: 0.206185567 | AI196: 1048.666323 | AJ196: 0.5841924399 | AK196: 925.2938144 | AL196: 0.5154639175 | AM196: 986.9800687 | AN196: 0.5498281787 | AO196: 2714.195189 | AP196: 1.512027491 | AQ196: 20973.32646 | AR196: 11.6838488 | AS196: 11967.13333 | AT196: 6.666666667 | AU196: 17395.52371 | AV196: 9.690721649 | AW196: 120164.8234 | AX196: 66.94158076 | AY196: 2467.450172 | AZ196: 1.374570447 | BA196: 5132 | BB196: 100 | BC196: 25.78894472 | BD196: 0.5025125628 | BE196: 103.1557789 | BF196: 2.010050251 | BG196: 25.78894472 | BH196: 0.5025125628 | BI196: 51.57788945 | BJ196: 1.005025126 | BK196: 25.78894472 | BL196: 0.5025125628 | BM196: 25.78894472 | BN196: 0.5025125628 | BO196: 1160.502513 | BP196: 22.61306533 | BQ196: 335.2562814 | BR196: 6.532663317 | BS196: 489.9899497 | BT196: 9.547738693 | BU196: 2836.78392 | BV196: 55.27638191 | BW196: 51.57788945 | BX196: 1.005025126
D197: Caldas | E197: 27496 | F197: 100 | G197: 104.4021713 | H197: 0.3796994884 | I197: 59.0839895 | J197: 0.2148821265 | K197: 0 | L197: 0 | M197: 0 | N197: 0 | O197: 45.31818182 | P197: 0.1648173619 | Q197: 340.7381293 | R197: 1.239227994 | S197: 4211.04629 | T197: 15.31512325 | U197: 1652.648175 | V197: 6.010503981 | W197: 1144.403126 | X197: 4.162071304 | Y197: 19702.02398 | Z197: 71.65414598 | AA197: 236.335958 | AB197: 0.859528506 | AC197: 22511 | AD197: 100 | AE197: 59.0839895 | AF197: 0.2624671916 | AG197: 59.0839895 | AH197: 0.2624671916 | AI197: 0 | AJ197: 0 | AK197: 0 | AL197: 0 | AM197: 0 | AN197: 0 | AO197: 295.4199475 | AP197: 1.312335958 | AQ197: 3485.955381 | AR197: 15.4855643 | AS197: 1063.511811 | AT197: 4.724409449 | AU197: 827.175853 | AV197: 3.674540682 | AW197: 16484.43307 | AX197: 73.22834646 | AY197: 236.335958 | AZ197: 1.049868766 | BA197: 4985 | BB197: 100 | BC197: 45.31818182 | BD197: 0.9090909091 | BE197: 0 | BF197: 0 | BG197: 0 | BH197: 0 | BI197: 0 | BJ197: 0 | BK197: 45.31818182 | BL197: 0.9090909091 | BM197: 45.31818182 | BN197: 0.9090909091 | BO197: 725.0909091 | BP197: 14.54545455 | BQ197: 589.1363636 | BR197: 11.81818182 | BS197: 317.2272727 | BT197: 6.363636364 | BU197: 3217.590909 | BV197: 64.54545455 | BW197: 0 | BX197: 0
D198: Copacabana | E198: 27315 | F198: 100 | G198: 98.80526316 | H198: 0.3617252907 | I198: 98.80526316 | J198: 0.3617252907 | K198: 138.1552632 | L198: 0.505785331 | M198: 0 | N198: 0 | O198: 0 | P198: 0 | Q198: 98.80526316 | R198: 0.3617252907 | S198: 1440.147368 | T198: 5.27236818 | U198: 3105.755263 | V198: 11.37014557 | W198: 1562.5 | X198: 5.720300201 | Y198: 19880.19737 | Z198: 72.78124609 | AA198: 891.8289474 | AB198: 3.264978757 | AC198: 22593 | AD198: 100 | AE198: 59.45526316 | AF198: 0.2631578947 | AG198: 59.45526316 | AH198: 0.2631578947 | AI198: 59.45526316 | AJ198: 0.2631578947 | AK198: 0 | AL198: 0 | AM198: 0 | AN198: 0 | AO198: 59.45526316 | AP198: 0.2631578947 | AQ198: 535.0973684 | AR198: 2.368421053 | AS198: 2318.755263 | AT198: 10.26315789 | AU198: 1129.65 | AV198: 5 | AW198: 17479.84737 | AX198: 77.36842105 | AY198: 891.8289474 | AZ198: 3.947368421 | BA198: 4722 | BB198: 100 | BC198: 39.35 | BD198: 0.8333333333 | BE198: 39.35 | BF198: 0.8333333333 | BG198: 78.7 | BH198: 1.666666667 | BI198: 0 | BJ198: 0 | BK198: 0 | BL198: 0 | BM198: 39.35 | BN198: 0.8333333333 | BO198: 905.05 | BP198: 19.16666667 | BQ198: 787 | BR198: 16.66666667 | BS198: 432.85 | BT198: 9.166666667 | BU198: 2400.35 | BV198: 50.83333333 | BW198: 0 | BX198: 0
D199: Envigado | E199: 87487 | F199: 100 | G199: 357.9873418 | H199: 0.4091891844 | I199: 178.9936709 | J199: 0.2045945922 | K199: 59.66455696 | L199: 0.0681981974 | M199: 536.9810127 | N199: 0.6137837766 | O199: 536.9810127 | P199: 0.6137837766 | Q199: 1133.626582 | R199: 1.295765751 | S199: 7450.248201 | T199: 8.515834582 | U199: 5175.173616 | V199: 5.915362987 | W199: 3989.703897 | X199: 4.560339132 | Y199: 65943.18032 | Z199: 75.3748332 | AA199: 2124.459792 | AB199: 2.428314826 | AC199: 84843 | AD199: 100 | AE199: 357.9873418 | AF199: 0.4219409283 | AG199: 178.9936709 | AH199: 0.2109704641 | AI199: 59.66455696 | AJ199: 0.07032348805 | AK199: 536.9810127 | AL199: 0.6329113924 | AM199: 536.9810127 | AN199: 0.6329113924 | AO199: 1133.626582 | AP199: 1.336146273 | AQ199: 7398.405063 | AR199: 8.720112518 | AS199: 5071.487342 | AT199: 5.977496484 | AU199: 3937.860759 | AV199: 4.641350211 | AW199: 63662.08228 | AX199: 75.03516174 | AY199: 1968.93038 | AZ199: 2.320675105 | BA199: 2644 | BB199: 100 | BC199: 0 | BD199: 0 | BE199: 0 | BF199: 0 | BG199: 0 | BH199: 0 | BI199: 0 | BJ199: 0 | BK199: 0 | BL199: 0 | BM199: 0 | BN199: 0 | BO199: 51.84313725 | BP199: 1.960784314 | BQ199: 103.6862745 | BR199: 3.921568627 | BS199: 51.84313725 | BT199: 1.960784314 | BU199: 2281.098039 | BV199: 86.2745098 | BW199: 155.5294118 | BX199: 5.882352941
